Workbook

Sheet Velkomst

Sheet Tabel 1 F
A1: Tabel 1. Forsikrede medlemmer
A3: Fyn
C5: Mænd | E5: Kvinder | G5: I alt
A7: Civ. ing. | C7: 1404 | E7: 385 | G7: 1789
A8: Diplom ing. | C8: 2717 | E8: 615 | G8: 3332
A9: Cand. Scient. Tek. | C9: 779 | E9: 737 | G9: 1516
A10: MA. Hum. | C10: 1091 | E10: 2513 | G10: 3604
A11: MA. Nat. | C11: 622 | E11: 626 | G11: 1248
A12: MA. Ph.d. | C12: 87 | E12: 73 | G12: 160
A13: MA. Samf. | C13: 78 | E13: 187 | G13: 265
A14: Øvrige Mag. | C14: 94 | E14: 183 | G14: 277
A15: Agronom | C15: 76 | E15: 69 | G15: 145
A16: Landsk. Arkt. | C16: 8 | E16: 25 | G16: 33
A17: Hortonom | C17: 15 | E17: 19 | G17: 34
A18: Forstkand. | C18: 17 | E18: 8 | G18: 25
A19: Jordbrugsakad. | C19: 116 | E19: 121 | G19: 237
A20: Mejeriing. | C20: 8 | E20: 7 | G20: 15
A21: Levn.m.kand. | C21: 6 | E21: 13 | G21: 19
A22: Dyrlæge | C22: 23 | E22: 130 | G22: 153
A23: Farmaceut | C23: 73 | E23: 244 | G23: 317
A24: Læge | C24: 478 | E24: 951 | G24: 1429
A25: Tandlæge | C25: 16 | E25: 100 | G25: 116
A26: Arkitekt | C26: 76 | E26: 79 | G26: 155
A27: Landinspek. | C27: 46 | E27: 17 | G27: 63
A28: Bibliotekar | C28: 57 | E28: 133 | G28: 190
A29: Musikudd. | C29: 45 | E29: 50 | G29: 95
A30: Teolog | C30: 43 | E30: 71 | G30: 114
A31: Psykolog | C31: 137 | E31: 514 | G31: 651
A32: Jurist | C32: 233 | E32: 443 | G32: 676
A33: Økonom | C33: 340 | E33: 281 | G33: 621
A34: Samf. Adm. | C34: 631 | E34: 1027 | G34: 1658
A35: Cand. Merc. | C35: 1055 | E35: 1029 | G35: 2084
A36: HA | C36: 248 | E36: 205 | G36: 453
A37: HD | C37: 146 | E37: 132 | G37: 278
A38: Komm. og Sprog | C38: 79 | E38: 362 | G38: 441
A39: Bygningskonst. | C39: 840 | E39: 127 | G39: 967
A40: Cand. IT. | C40: 130 | E40: 115 | G40: 245
A41: Bac. Samf. | C41: 36 | E41: 61 | G41: 97
A42: Bac. Hum. | C42: 214 | E42: 343 | G42: 557
A43: Bac. Nat. | C43: 224 | E43: 97 | G43: 321
A44: Andre | C44: 844 | E44: 683 | G44: 1527
A46: Total | C46: 13016 | E46: 12654 | G46: 25670
A48: Ingeniører i alt | C48: 4121 | E48: 1000 | G48: 5121
A49: Magistre i alt | C49: 1972 | E49: 3582 | G49: 5554
A50: DJØF'ere i alt | C50: 2507 | E50: 2985 | G50: 5492
A57: Middelfart
C59: Mænd | E59: Kvinder | G59: I alt
A61: Civ. ing. | C61: 94 | E61: 30 | G61: 124
A62: Diplom ing. | C62: 246 | E62: 59 | G62: 305
A63: Cand. Scient. Tek. | C63: 40 | E63: 39 | G63: 79
A64: MA. Hum. | C64: 60 | E64: 135 | G64: 195
A65: MA. Nat. | C65: 34 | E65: 44 | G65: 78
A66: MA. Ph.d. | C66: 2 | E66: 2 | G66: 4
A67: MA. Samf. | C67: 2 | E67: 19 | G67: 21
A68: Øvrige Mag. | C68: 3 | E68: 7 | G68: 10
A69: Agronom | C69: 18 | E69: 11 | G69: 29
A70: Landsk. Arkt. | C70: 2 | E70: 1 | G70: 3
A71: Hortonom | C71: 1 | E71: 2 | G71: 3
A72: Forstkand. | C72: 1 | E72: 1 | G72: 2
A73: Jordbrugsakad. | C73: 22 | E73: 15 | G73: 37
A74: Mejeriing. | C74: 4 | E74: 0 | G74: 4
A75: Levn.m.kand. | C75: 1 | E75: 1 | G75: 2
A76: Dyrlæge | C76: 4 | E76: 14 | G76: 18
A77: Farmaceut | C77: 3 | E77: 10 | G77: 13
A78: Læge | C78: 23 | E78: 87 | G78: 110
A79: Tandlæge | C79: 1 | E79: 9 | G79: 10
A80: Arkitekt | C80: 4 | E80: 8 | G80: 12
A81: Landinspek. | C81: 10 | E81: 4 | G81: 14
A82: Bibliotekar | C82: 4 | E82: 12 | G82: 16
A83: Musikudd. | C83: 3 | E83: 2 | G83: 5
A84: Teolog | C84: 7 | E84: 7 | G84: 14
A85: Psykolog | C85: 9 | E85: 44 | G85: 53
A86: Jurist | C86: 16 | E86: 40 | G86: 56
A87: Økonom | C87: 25 | E87: 23 | G87: 48
A88: Samf. Adm. | C88: 37 | E88: 64 | G88: 101
A89: Cand. Merc. | C89: 89 | E89: 79 | G89: 168
A90: HA | C90: 24 | E90: 13 | G90: 37
A91: HD | C91: 8 | E91: 14 | G91: 22
A92: Komm. og Sprog | C92: 3 | E92: 28 | G92: 31
A93: Bygningskonst. | C93: 80 | E93: 16 | G93: 96
A94: Cand. IT. | C94: 6 | E94: 7 | G94: 13
A95: Bac. Samf. | C95: 1 | E95: 5 | G95: 6
A96: Bac. Hum. | C96: 3 | E96: 16 | G96: 19
A97: Bac. Nat. | C97: 8 | E97: 6 | G97: 14
A98: Andre | C98: 54 | E98: 42 | G98: 96
A100: Total | C100: 930 | E100: 901 | G100: 1831
A102: Ingeniører i alt | C102: 340 | E102: 89 | G102: 429
A103: Magistre i alt | C103: 101 | E103: 207 | G103: 308
A104: DJØF'ere i alt | C104: 191 | E104: 219 | G104: 410
A111: Assens
C113: Mænd | E113: Kvinder | G113: I alt
A115: Civ. ing. | C115: 63 | E115: 19 | G115: 82
A116: Diplom ing. | C116: 207 | E116: 44 | G116: 251
A117: Cand. Scient. Tek. | C117: 23 | E117: 22 | G117: 45
A118: MA. Hum. | C118: 42 | E118: 121 | G118: 163
A119: MA. Nat. | C119: 27 | E119: 31 | G119: 58
A120: MA. Ph.d. | C120: 2 | E120: 2 | G120: 4
A121: MA. Samf. | C121: 1 | E121: 7 | G121: 8
A122: Øvrige Mag. | C122: 3 | E122: 2 | G122: 5
A123: Agronom | C123: 7 | E123: 11 | G123: 18
A124: Landsk. Arkt. | C124: 1 | E124: 6 | G124: 7
A125: Hortonom | C125: 1 | E125: 2 | G125: 3
A126: Forstkand. | C126: 4 | E126: 1 | G126: 5
A127: Jordbrugsakad. | C127: 13 | E127: 20 | G127: 33
A128: Mejeriing. | C128: 1 | E128: 0 | G128: 1
A129: Levn.m.kand. | C129: 0 | E129: 1 | G129: 1
A130: Dyrlæge | C130: 2 | E130: 16 | G130: 18
A131: Farmaceut | C131: 0 | E131: 14 | G131: 14
A132: Læge | C132: 12 | E132: 32 | G132: 44
A133: Tandlæge | C133: 2 | E133: 3 | G133: 5
A134: Arkitekt | C134: 2 | E134: 3 | G134: 5
A135: Landinspek. | C135: 2 | E135: 1 | G135: 3
A136: Bibliotekar | C136: 5 | E136: 10 | G136: 15
A137: Musikudd. | C137: 4 | E137: 8 | G137: 12
A138: Teolog | C138: 4 | E138: 6 | G138: 10
A139: Psykolog | C139: 4 | E139: 22 | G139: 26
A140: Jurist | C140: 11 | E140: 19 | G140: 30
A141: Økonom | C141: 8 | E141: 12 | G141: 20
A142: Samf. Adm. | C142: 24 | E142: 48 | G142: 72
A143: Cand. Merc. | C143: 37 | E143: 32 | G143: 69
A144: HA | C144: 10 | E144: 14 | G144: 24
A145: HD | C145: 9 | E145: 7 | G145: 16
A146: Komm. og Sprog | C146: 2 | E146: 18 | G146: 20
A147: Bygningskonst. | C147: 56 | E147: 7 | G147: 63
A148: Cand. IT. | C148: 6 | E148: 2 | G148: 8
A149: Bac. Samf. | C149: 0 | E149: 2 | G149: 2
A150: Bac. Hum. | C150: 5 | E150: 12 | G150: 17
A151: Bac. Nat. | C151: 5 | E151: 4 | G151: 9
A152: Andre | C152: 61 | E152: 26 | G152: 87
A154: Total | C154: 653 | E154: 587 | G154: 1240
A156: Ingeniører i alt | C156: 270 | E156: 63 | G156: 333
A157: Magistre i alt | C157: 75 | E157: 163 | G157: 238
A158: DJØF'ere i alt | C158: 90 | E158: 125 | G158: 215
A165: Faarborg-Midtfyn
C167: Mænd | E167: Kvinder | G167: I alt
A169: Civ. ing. | C169: 86 | E169: 17 | G169: 103
A170: Diplom ing. | C170: 238 | E170: 46 | G170: 284
A171: Cand. Scient. Tek. | C171: 36 | E171: 48 | G171: 84
A172: MA. Hum. | C172: 69 | E172: 140 | G172: 209
A173: MA. Nat. | C173: 33 | E173: 47 | G173: 80
A174: MA. Ph.d. | C174: 5 | E174: 4 | G174: 9
A175: MA. Samf. | C175: 3 | E175: 5 | G175: 8
A176: Øvrige Mag. | C176: 7 | E176: 10 | G176: 17
A177: Agronom | C177: 9 | E177: 16 | G177: 25
A178: Landsk. Arkt. | C178: 1 | E178: 6 | G178: 7
A179: Hortonom | C179: 2 | E179: 1 | G179: 3
A180: Forstkand. | C180: 5 | E180: 2 | G180: 7
A181: Jordbrugsakad. | C181: 17 | E181: 25 | G181: 42
A182: Mejeriing. | C182: 1 | E182: 2 | G182: 3
A183: Levn.m.kand. | C183: 0 | E183: 5 | G183: 5
A184: Dyrlæge | C184: 1 | E184: 16 | G184: 17
A185: Farmaceut | C185: 3 | E185: 21 | G185: 24
A186: Læge | C186: 13 | E186: 37 | G186: 50
A187: Tandlæge | C187: 1 | E187: 2 | G187: 3
A188: Arkitekt | C188: 7 | E188: 5 | G188: 12
A189: Landinspek. | C189: 5 | E189: 0 | G189: 5
A190: Bibliotekar | C190: 1 | E190: 11 | G190: 12
A191: Musikudd. | C191: 6 | E191: 4 | G191: 10
A192: Teolog | C192: 2 | E192: 6 | G192: 8
A193: Psykolog | C193: 4 | E193: 18 | G193: 22
A194: Jurist | C194: 12 | E194: 26 | G194: 38
A195: Økonom | C195: 16 | E195: 16 | G195: 32
A196: Samf. Adm. | C196: 27 | E196: 64 | G196: 91
A197: Cand. Merc. | C197: 34 | E197: 55 | G197: 89
A198: HA | C198: 14 | E198: 13 | G198: 27
A199: HD | C199: 10 | E199: 11 | G199: 21
A200: Komm. og Sprog | C200: 6 | E200: 11 | G200: 17
A201: Bygningskonst. | C201: 71 | E201: 11 | G201: 82
A202: Cand. IT. | C202: 6 | E202: 6 | G202: 12
A203: Bac. Samf. | C203: 5 | E203: 5 | G203: 10
A204: Bac. Hum. | C204: 7 | E204: 15 | G204: 22
A205: Bac. Nat. | C205: 11 | E205: 4 | G205: 15
A206: Andre | C206: 65 | E206: 47 | G206: 112
A208: Total | C208: 822 | E208: 753 | G208: 1575
A210: Ingeniører i alt | C210: 324 | E210: 63 | G210: 387
A211: Magistre i alt | C211: 117 | E211: 206 | G211: 323
A212: DJØF'ere i alt | C212: 103 | E212: 174 | G212: 277
A219: Kerteminde
C221: Mænd | E221: Kvinder | G221: I alt
A223: Civ. ing. | C223: 24 | E223: 11 | G223: 35
A224: Diplom ing. | C224: 131 | E224: 29 | G224: 160
A225: Cand. Scient. Tek. | C225: 23 | E225: 20 | G225: 43
A226: MA. Hum. | C226: 33 | E226: 81 | G226: 114
A227: MA. Nat. | C227: 16 | E227: 17 | G227: 33
A228: MA. Ph.d. | C228: 4 | E228: 4 | G228: 8
A229: MA. Samf. | C229: 1 | E229: 2 | G229: 3
A230: Øvrige Mag. | C230: 1 | E230: 6 | G230: 7
A231: Agronom | C231: 1 | E231: 2 | G231: 3
A232: Landsk. Arkt. | C232: 1 | E232: 2 | G232: 3
A233: Hortonom | C233: 1 | E233: 2 | G233: 3
A234: Forstkand. | C234: 0 | E234: 1 | G234: 1
A235: Jordbrugsakad. | C235: 3 | E235: 7 | G235: 10
A236: Mejeriing. | C236: 0 | E236: 0 | G236: 0
A237: Levn.m.kand. | C237: 0 | E237: 0 | G237: 0
A238: Dyrlæge | C238: 0 | E238: 2 | G238: 2
A239: Farmaceut | C239: 0 | E239: 3 | G239: 3
A240: Læge | C240: 7 | E240: 10 | G240: 17
A241: Tandlæge | C241: 0 | E241: 3 | G241: 3
A242: Arkitekt | C242: 2 | E242: 2 | G242: 4
A243: Landinspek. | C243: 4 | E243: 1 | G243: 5
... 285 more rows

Sheet Tabel 2 F
A1: Tabel 2. Antal bruttoledighedsberørte og gennemsnitlig antal ledige brutto
A3: Fyn
C5: Mænd | F5: Kvinder | I5: I alt
C6: Ledigheds- berørte | D6: Gns. brutto- ledighed | F6: Ledigheds- berørte | G6: Gns. brutto- ledighed | I6: Ledigheds- berørte | J6: Gns. brutto- ledighed
A9: Civ. ing. | C9: 87 | D9: 71.49566519 | F9: 36 | G9: 30.95116323 | I9: 123 | J9: 102.4468284
A10: Diplom ing. | C10: 57 | D10: 42.8360257 | F10: 21 | G10: 15.06143579 | I10: 78 | J10: 57.89746149
A11: Cand. Scient. Tek. | C11: 86 | D11: 70.99981289 | F11: 76 | G11: 60.43659951 | I11: 162 | J11: 131.4364124
A12: MA. Hum. | C12: 101 | D12: 79.89771097 | F12: 288 | G12: 220.8145699 | I12: 389 | J12: 300.7122809
A13: MA. Nat. | C13: 36 | D13: 27.81138901 | F13: 27 | G13: 20.10852616 | I13: 63 | J13: 47.91991517
A14: MA. Ph.d. | C14: 4 | D14: 3.399239069 | F14: 4 | G14: 3.19965072 | I14: 8 | J14: 6.59888979
A15: MA. Samf. | C15: 21 | D15: 16.50907503 | F15: 25 | G15: 18.18686459 | I15: 46 | J15: 34.69593962
A16: Øvrige Mag. | C16: 11 | D16: 9.751761991 | F16: 22 | G16: 18.80434105 | I16: 33 | J16: 28.55610304
A17: Agronom | C17: 1 | D17: 0.9998128859 | F17: 4 | G17: 3.306929458 | I17: 5 | J17: 4.306742344
A18: Landsk. Arkt. | C18: 0 | D18: 0 | F18: 0 | G18: 0 | I18: 0 | J18: 0
A19: Hortonom | C19: 1 | D19: 0.4840017464 | F19: 1 | G19: 0.9998128859 | I19: 2 | J19: 1.483814632
A20: Forstkand. | C20: 0 | D20: 0 | F20: 1 | G20: 0.9998128859 | I20: 1 | J20: 0.9998128859
A21: Jordbrugsakad. | C21: 2 | D21: 1.483814632 | F21: 6 | G21: 5.30655523 | I21: 8 | J21: 6.790369862
A22: Mejeriing. | C22: 0 | D22: 0 | F22: 0 | G22: 0 | I22: 0 | J22: 0
A23: Levn.m.kand. | C23: 0 | D23: 0 | F23: 2 | G23: 1.538077715 | I23: 2 | J23: 1.538077715
A24: Dyrlæge | C24: 0 | D24: 0 | F24: 1 | G24: 0.9075032745 | I24: 1 | J24: 0.9075032745
A25: Farmaceut | C25: 6 | D25: 5.247926152 | F25: 13 | G25: 9.667560656 | I25: 19 | J25: 14.91548681
A26: Læge | C26: 34 | D26: 28.13509636 | F26: 55 | G26: 43.6942556 | I26: 89 | J26: 71.82935196
A27: Tandlæge | C27: 0 | D27: 0 | F27: 4 | G27: 2.106904509 | I27: 4 | J27: 2.106904509
A28: Arkitekt | C28: 2 | D28: 1.52685087 | F28: 4 | G28: 2.461173829 | I28: 6 | J28: 3.988024699
A29: Landinspek. | C29: 0 | D29: 0 | F29: 0 | G29: 0 | I29: 0 | J29: 0
A30: Bibliotekar | C30: 0 | D30: 0 | F30: 2 | G30: 0.8401422067 | I30: 2 | J30: 0.8401422067
A31: Musikudd. | C31: 0 | D31: 0 | F31: 2 | G31: 1.70398553 | I31: 2 | J31: 1.70398553
A32: Teolog | C32: 1 | D32: 0.9998128859 | F32: 2 | G32: 1.538077715 | I32: 3 | J32: 2.537890601
A33: Psykolog | C33: 8 | D33: 6.904509449 | F33: 54 | G33: 43.48593526 | I33: 62 | J33: 50.39044471
A34: Jurist | C34: 4 | D34: 2.537890601 | F34: 12 | G34: 8.877315537 | I34: 16 | J34: 11.41520614
A35: Økonom | C35: 10 | D35: 8.188735733 | F35: 2 | G35: 1.26114888 | I35: 12 | J35: 9.449884613
A36: Samf. Adm. | C36: 46 | D36: 36.76167904 | F36: 73 | G36: 59.57961704 | I36: 119 | J36: 96.34129608
A37: Cand. Merc. | C37: 67 | D37: 53.49279611 | F37: 82 | G37: 67.54506331 | I37: 149 | J37: 121.0378594
A38: HA | C38: 23 | D38: 15.29719953 | F38: 29 | G38: 23.10359883 | I38: 52 | J38: 38.40079835
A39: HD | C39: 5 | D39: 4.214432732 | F39: 5 | G39: 4.057256908 | I39: 10 | J39: 8.27168964
A40: Komm. og Sprog | C40: 5 | D40: 2.907129046 | F40: 26 | G40: 18.04777646 | I40: 31 | J40: 20.95490551
A41: Bygningskonst. | C41: 32 | D41: 26.83739787 | F41: 9 | G41: 6.584544377 | I41: 41 | J41: 33.42194224
A42: Cand. IT. | C42: 12 | D42: 11.26925716 | F42: 18 | G42: 14.65602195 | I42: 30 | J42: 25.92527911
A43: Bac. Samf. | C43: 2 | D43: 1.722696938 | F43: 10 | G43: 7.10784008 | I43: 12 | J43: 8.830537017
A44: Bac. Hum. | C44: 26 | D44: 21.25990145 | F44: 32 | G44: 25.54917982 | I44: 58 | J44: 46.80908127
A45: Bac. Nat. | C45: 23 | D45: 19.92328323 | F45: 14 | G45: 10.66674983 | I45: 37 | J45: 30.59003306
A46: Andre | C46: 52 | D46: 44.10528285 | F46: 55 | G46: 44.26931953 | I46: 107 | J46: 88.37460238
A48: Total | C48: =SUM(C9:C46)-C21 -> 763 | D48: 615.5163725 | E48: 0 | F48: 1011 | G48: 792.1187551 | H48: 0 | I48: 1774 | J48: =SUM(J9:J46)-J21 -> 1407.635128
A50: Ingeniører i alt | C50: 144 | D50: 114.3316909 | F50: 57 | G50: 46.01259901 | I50: 201 | J50: 160.3442899
A51: Magistre i alt | C51: 173 | D51: 137.3691761 | F51: 366 | G51: 281.1139525 | I51: 539 | J51: 418.4831285
A52: DJØF'ere i alt | C52: 150 | D52: 116.278301 | F52: 198 | G52: 160.3667436 | I52: 348 | J52: 276.6450446
A57: Middelfart
C59: Mænd | F59: Kvinder | I59: I alt
C60: Ledigheds- berørte | D60: Gns. brutto- ledighed | F60: Ledigheds- berørte | G60: Gns. brutto- ledighed | I60: Ledigheds- berørte | J60: Gns. brutto- ledighed
A63: Civ. ing. | C63: 1 | D63: 0.9312043909 | F63: 0 | G63: 0 | I63: 1 | J63: 0.9312043909
A64: Diplom ing. | C64: 2 | D64: 1.214994075 | F64: 0 | G64: 0 | I64: 2 | J64: 1.214994075
A65: Cand. Scient. Tek. | C65: 1 | D65: 0.5382648288 | F65: 2 | G65: 1.90731616 | I65: 3 | J65: 2.445580989
A66: MA. Hum. | C66: 1 | D66: 0.6305744402 | F66: 10 | G66: 8.252354519 | I66: 11 | J66: 8.882928959
A67: MA. Nat. | C67: 1 | D67: 0.9998128859 | F67: 1 | G67: 0.4459552174 | I67: 2 | J67: 1.445768103
A68: MA. Ph.d. | C68: 0 | D68: 0 | F68: 0 | G68: 0 | I68: 0 | J68: 0
A69: MA. Samf. | C69: 0 | D69: 0 | F69: 0 | G69: 0 | I69: 0 | J69: 0
A70: Øvrige Mag. | C70: 0 | D70: 0 | F70: 0 | G70: 0 | I70: 0 | J70: 0
A71: Agronom | C71: 0 | D71: 0 | F71: 0 | G71: 0 | I71: 0 | J71: 0
A72: Landsk. Arkt. | C72: 0 | D72: 0 | F72: 0 | G72: 0 | I72: 0 | J72: 0
A73: Hortonom | C73: 0 | D73: 0 | F73: 0 | G73: 0 | I73: 0 | J73: 0
A74: Forstkand. | C74: 0 | D74: 0 | F74: 0 | G74: 0 | I74: 0 | J74: 0
A75: Jordbrugsakad. | C75: 0 | D75: 0 | F75: 0 | G75: 0 | I75: 0 | J75: 0
A76: Mejeriing. | C76: 0 | D76: 0 | F76: 0 | G76: 0 | I76: 0 | J76: 0
A77: Levn.m.kand. | C77: 0 | D77: 0 | F77: 1 | G77: 0.8151936631 | I77: 1 | J77: 0.8151936631
A78: Dyrlæge | C78: 0 | D78: 0 | F78: 1 | G78: 0.9075032745 | I78: 1 | J78: 0.9075032745
A79: Farmaceut | C79: 0 | D79: 0 | F79: 0 | G79: 0 | I79: 0 | J79: 0
A80: Læge | C80: 0 | D80: 0 | F80: 0 | G80: 0 | I80: 0 | J80: 0
A81: Tandlæge | C81: 0 | D81: 0 | F81: 0 | G81: 0 | I81: 0 | J81: 0
A82: Arkitekt | C82: 0 | D82: 0 | F82: 1 | G82: 0.9998128859 | I82: 1 | J82: 0.9998128859
A83: Landinspek. | C83: 0 | D83: 0 | F83: 0 | G83: 0 | I83: 0 | J83: 0
A84: Bibliotekar | C84: 0 | D84: 0 | F84: 0 | G84: 0 | I84: 0 | J84: 0
A85: Musikudd. | C85: 0 | D85: 0 | F85: 0 | G85: 0 | I85: 0 | J85: 0
A86: Teolog | C86: 0 | D86: 0 | F86: 1 | G86: 0.5382648288 | I86: 1 | J86: 0.5382648288
A87: Psykolog | C87: 0 | D87: 0 | F87: 1 | G87: 0.9075032745 | I87: 1 | J87: 0.9075032745
A88: Jurist | C88: 0 | D88: 0 | F88: 0 | G88: 0 | I88: 0 | J88: 0
A89: Økonom | C89: 0 | D89: 0 | F89: 0 | G89: 0 | I89: 0 | J89: 0
A90: Samf. Adm. | C90: 1 | D90: 0.6305744402 | F90: 1 | G90: 0.9998128859 | I90: 2 | J90: 1.630387326
A91: Cand. Merc. | C91: 0 | D91: 0 | F91: 1 | G91: 0.9998128859 | I91: 1 | J91: 0.9998128859
A92: HA | C92: 0 | D92: 0 | F92: 0 | G92: 0 | I92: 0 | J92: 0
A93: HD | C93: 0 | D93: 0 | F93: 0 | G93: 0 | I93: 0 | J93: 0
A94: Komm. og Sprog | C94: 0 | D94: 0 | F94: 0 | G94: 0 | I94: 0 | J94: 0
A95: Bygningskonst | C95: 0 | D95: 0 | F95: 1 | G95: 0.7999750515 | I95: 1 | J95: 0.7999750515
A96: Cand. IT. | C96: 1 | D96: 0.9998128859 | F96: 0 | G96: 0 | I96: 1 | J96: 0.9998128859
A97: Bac. Samf. | C97: 0 | D97: 0 | F97: 1 | G97: 0.5869144889 | I97: 1 | J97: 0.5869144889
A98: Bac. Hum. | C98: 0 | D98: 0 | F98: 3 | G98: 2.445580989 | I98: 3 | J98: 2.445580989
A99: Bac. Nat. | C99: 0 | D99: 0 | F99: 1 | G99: 0.8151936631 | I99: 1 | J99: 0.8151936631
A100: Andre | C100: 0 | D100: 0 | F100: 0 | G100: 0 | I100: 0 | J100: 0
A102: Total | C102: 11 | D102: 8.373354955 | F102: 27 | G102: 22.42100667 | I102: 38 | J102: 30.79436163
A104: Ingeniører i alt | C104: 3 | D104: 2.146198466 | F104: 0 | G104: 0 | I104: 3 | J104: 2.146198466
A105: Magistre i alt | C105: 2 | D105: 1.630387326 | F105: 11 | G105: 8.698309736 | I105: 13 | J105: 10.32869706
A106: DJØF'ere i alt | C106: 1 | D106: 0.6305744402 | F106: 2 | G106: 1.999625772 | I106: 3 | J106: 2.630200212
A111: Assens
C113: Mænd | F113: Kvinder | I113: I alt
C114: Ledigheds- berørte | D114: Gns. brutto- ledighed | F114: Ledigheds- berørte | G114: Gns. brutto- ledighed | I114: Ledigheds- berørte | J114: Gns. brutto- ledighed
A117: Civ. ing. | C117: 1 | D117: 0.7228840516 | F117: 0 | G117: 0 | I117: 1 | J117: 0.7228840516
A118: Diplom ing. | C118: 2 | D118: 0.845755629 | F118: 2 | G118: 1.26114888 | I118: 4 | J118: 2.106904509
A119: Cand. Scient. Tek. | C119: 1 | D119: 0.7690388574 | F119: 2 | G119: 1.055323395 | I119: 3 | J119: 1.824362253
A120: MA. Hum. | C120: 2 | D120: 1.214994075 | F120: 8 | G120: 5.247926152 | I120: 10 | J120: 6.462920227
A121: MA. Nat. | C121: 1 | D121: 0.8438844882 | F121: 1 | G121: 0.5382648288 | I121: 2 | J121: 1.382149317
A122: MA. Ph.d. | C122: 0 | D122: 0 | F122: 0 | G122: 0 | I122: 0 | J122: 0
A123: MA. Samf. | C123: 0 | D123: 0 | F123: 2 | G123: 1.122684463 | I123: 2 | J123: 1.122684463
A124: Øvrige Mag. | C124: 0 | D124: 0 | F124: 0 | G124: 0 | I124: 0 | J124: 0
A125: Agronom | C125: 0 | D125: 0 | F125: 0 | G125: 0 | I125: 0 | J125: 0
A126: Landsk. Arkt. | C126: 0 | D126: 0 | F126: 0 | G126: 0 | I126: 0 | J126: 0
A127: Hortonom | C127: 0 | D127: 0 | F127: 0 | G127: 0 | I127: 0 | J127: 0
A128: Forstkand. | C128: 0 | D128: 0 | F128: 0 | G128: 0 | I128: 0 | J128: 0
A129: Jordbrugsakad. | C129: 0 | D129: 0 | F129: 0 | G129: 0 | I129: 0 | J129: 0
A130: Mejeriing. | C130: 0 | D130: 0 | F130: 0 | G130: 0 | I130: 0 | J130: 0
A131: Levn.m.kand. | C131: 0 | D131: 0 | F131: 0 | G131: 0 | I131: 0 | J131: 0
A132: Dyrlæge | C132: 0 | D132: 0 | F132: 0 | G132: 0 | I132: 0 | J132: 0
A133: Farmaceut | C133: 0 | D133: 0 | F133: 0 | G133: 0 | I133: 0 | J133: 0
A134: Læge | C134: 1 | D134: 0.9536580802 | F134: 0 | G134: 0 | I134: 1 | J134: 0.9536580802
A135: Tandlæge | C135: 0 | D135: 0 | F135: 0 | G135: 0 | I135: 0 | J135: 0
A136: Arkitekt | C136: 0 | D136: 0 | F136: 0 | G136: 0 | I136: 0 | J136: 0
A137: Landinspek. | C137: 0 | D137: 0 | F137: 0 | G137: 0 | I137: 0 | J137: 0
A138: Bibliotekar | C138: 0 | D138: 0 | F138: 0 | G138: 0 | I138: 0 | J138: 0
A139: Musikudd. | C139: 0 | D139: 0 | F139: 0 | G139: 0 | I139: 0 | J139: 0
A140: Teolog | C140: 0 | D140: 0 | F140: 0 | G140: 0 | I140: 0 | J140: 0
A141: Psykolog | C141: 0 | D141: 0 | F141: 1 | G141: 0.9998128859 | I141: 1 | J141: 0.9998128859
A142: Jurist | C142: 0 | D142: 0 | F142: 2 | G142: 1.58423252 | I142: 2 | J142: 1.58423252
A143: Økonom | C143: 0 | D143: 0 | F143: 0 | G143: 0 | I143: 0 | J143: 0
A144: Samf. Adm. | C144: 1 | D144: 0.3536456059 | F144: 2 | G144: 1.999625772 | I144: 3 | J144: 2.353271378
A145: Cand. Merc. | C145: 0 | D145: 0 | F145: 2 | G145: 1.999625772 | I145: 2 | J145: 1.999625772
A146: HA | C146: 0 | D146: 0 | F146: 0 | G146: 0 | I146: 0 | J146: 0
A147: HD | C147: 0 | D147: 0 | F147: 1 | G147: 0.9998128859 | I147: 1 | J147: 0.9998128859
A148: Komm. og Sprog | C148: 0 | D148: 0 | F148: 0 | G148: 0 | I148: 0 | J148: 0
A149: Bygningskonst. | C149: 1 | D149: 0.9538451943 | F149: 0 | G149: 0 | I149: 1 | J149: 0.9538451943
A150: Cand. IT. | C150: 0 | D150: 0 | F150: 0 | G150: 0 | I150: 0 | J150: 0
A151: Bac. Samf. | C151: 0 | D151: 0 | F151: 0 | G151: 0 | I151: 0 | J151: 0
A152: Bac. Hum. | C152: 0 | D152: 0 | F152: 1 | G152: 0.7690388574 | I152: 1 | J152: 0.7690388574
A153: Bac. Nat. | C153: 1 | D153: 0.9536580802 | F153: 1 | G153: 0.5382648288 | I153: 2 | J153: 1.491922909
A154: Andre | C154: 3 | D154: 2.797355454 | F154: 1 | G154: 0.7066674983 | I154: 4 | J154: 3.504022953
A156: Total | C156: 14 | D156: 10.40871952 | F156: 26 | G156: 18.82242874 | I156: 40 | J156: 29.23114826
A158: Ingeniører i alt | C158: 3 | D158: 1.568639681 | F158: 2 | G158: 1.26114888 | I158: 5 | J158: 2.829788561
A159: Magistre i alt | C159: 3 | D159: 2.058878563 | F159: 11 | G159: 6.908875444 | I159: 14 | J159: 8.967754007
A160: DJØF'ere i alt | C160: 1 | D160: 0.3536456059 | F160: 6 | G160: 5.583484064 | I160: 7 | J160: 5.93712967
A165: Faaborg-Midtfyn
C167: Mænd | F167: Kvinder | I167: I alt
C168: Ledigheds- berørte | D168: Gns. brutto- ledighed | F168: Ledigheds- berørte | G168: Gns. brutto- ledighed | I168: Ledigheds- berørte | J168: Gns. brutto- ledighed
A171: Civ. ing. | C171: 2 | D171: 1.999625772 | F171: 1 | G171: 0.9998128859 | I171: 3 | J171: 2.999438658
A172: Diplom ing. | C172: 2 | D172: 1.768851743 | F172: 4 | G172: 3.353084264 | I172: 6 | J172: 5.121936007
A173: Cand. Scient. Tek. | C173: 0 | D173: 0 | F173: 3 | G173: 2.645793052 | I173: 3 | J173: 2.645793052
A174: MA. Hum. | C174: 2 | D174: 1.307303686 | F174: 11 | G174: 8.646541508 | I174: 13 | J174: 9.953845194
A175: MA. Nat. | C175: 1 | D175: 0.8750701678 | F175: 0 | G175: 0 | I175: 1 | J175: 0.8750701678
A176: MA. Ph.d. | C176: 1 | D176: 0.9998128859 | F176: 0 | G176: 0 | I176: 1 | J176: 0.9998128859
A177: MA. Samf. | C177: 0 | D177: 0 | F177: 2 | G177: 1.258654026 | I177: 2 | J177: 1.258654026
A178: Øvrige Mag. | C178: 0 | D178: 0 | F178: 0 | G178: 0 | I178: 0 | J178: 0
A179: Agronom | C179: 0 | D179: 0 | F179: 3 | G179: 2.307116572 | I179: 3 | J179: 2.307116572
A180: Landsk. Arkt. | C180: 0 | D180: 0 | F180: 0 | G180: 0 | I180: 0 | J180: 0
A181: Hortonom | C181: 0 | D181: 0 | F181: 0 | G181: 0 | I181: 0 | J181: 0
A182: Forstkand. | C182: 0 | D182: 0 | F182: 0 | G182: 0 | I182: 0 | J182: 0
A183: Jordbrugsakad. | C183: 0 | D183: 0 | F183: 3 | G183: 2.307116572 | I183: 3 | J183: 2.307116572
A184: Mejeriing. | C184: 0 | D184: 0 | F184: 0 | G184: 0 | I184: 0 | J184: 0
A185: Levn.m.kand. | C185: 0 | D185: 0 | F185: 0 | G185: 0 | I185: 0 | J185: 0
A186: Dyrlæge | C186: 0 | D186: 0 | F186: 0 | G186: 0 | I186: 0 | J186: 0
A187: Farmaceut | C187: 0 | D187: 0 | F187: 1 | G187: 0.7690388574 | I187: 1 | J187: 0.7690388574
A188: Læge | C188: 1 | D188: 0.9998128859 | F188: 0 | G188: 0 | I188: 1 | J188: 0.9998128859
A189: Tandlæge | C189: 0 | D189: 0 | F189: 0 | G189: 0 | I189: 0 | J189: 0
A190: Arkitekt | C190: 1 | D190: 0.5270379842 | F190: 0 | G190: 0 | I190: 1 | J190: 0.5270379842
A191: Landinspek. | C191: 0 | D191: 0 | F191: 0 | G191: 0 | I191: 0 | J191: 0
A192: Bibliotekar | C192: 0 | D192: 0 | F192: 0 | G192: 0 | I192: 0 | J192: 0
A193: Musikudd. | C193: 0 | D193: 0 | F193: 0 | G193: 0 | I193: 0 | J193: 0
A194: Teolog | C194: 0 | D194: 0 | F194: 0 | G194: 0 | I194: 0 | J194: 0
A195: Psykolog | C195: 0 | D195: 0 | F195: 1 | G195: 0.1790058005 | I195: 1 | J195: 0.1790058005
A196: Jurist | C196: 0 | D196: 0 | F196: 0 | G196: 0 | I196: 0 | J196: 0
A197: Økonom | C197: 0 | D197: 0 | F197: 0 | G197: 0 | I197: 0 | J197: 0
A198: Samf. Adm. | C198: 1 | D198: 0.7228840516 | F198: 5 | G198: 3.522110647 | I198: 6 | J198: 4.244994698
A199: Cand. Merc. | C199: 0 | D199: 0 | F199: 1 | G199: 0.9998128859 | I199: 1 | J199: 0.9998128859
A200: HA | C200: 1 | D200: 0.5844196345 | F200: 1 | G200: 0.9998128859 | I200: 2 | J200: 1.58423252
A201: HD | C201: 0 | D201: 0 | F201: 0 | G201: 0 | I201: 0 | J201: 0
A202: Komm. og Sprog | C202: 0 | D202: 0 | F202: 1 | G202: 0.6305744402 | I202: 1 | J202: 0.6305744402
A203: Bygningskonst. | C203: 1 | D203: 1 | F203: 0 | G203: 0 | I203: 1 | J203: 1
A204: Cand. IT. | C204: 1 | D204: 0.9998128859 | F204: 1 | G204: 0.9998128859 | I204: 2 | J204: 1.999625772
A205: Bac. Samf. | C205: 0 | D205: 0 | F205: 1 | G205: 0.9998128859 | I205: 1 | J205: 0.9998128859
A206: Bac. Hum. | C206: 0 | D206: 0 | F206: 0 | G206: 0 | I206: 0 | J206: 0
A207: Bac. Nat. | C207: 1 | D207: 0.9998128859 | F207: 1 | G207: 0.9998128859 | I207: 2 | J207: 1.999625772
A208: Andre | C208: 0 | D208: 0 | F208: 0 | G208: 0 | I208: 0 | J208: 0
A210: Total | C210: 15 | D210: 12.78444458 | F210: 37 | G210: 29.31079648 | I210: 52 | J210: 42.09524107
A212: Ingeniører i alt | C212: 4 | D212: 3.768477515 | F212: 5 | G212: 4.35289715 | I212: 9 | J212: 8.121374665
A213: Magistre i alt | C213: 4 | D213: 3.18218674 | F213: 13 | G213: 9.905195534 | I213: 17 | J213: 13.08738227
A214: DJØF'ere i alt | C214: 2 | D214: 1.307303686 | F214: 7 | G214: 5.521736419 | I214: 9 | J214: 6.829040105
A219: Kerteminde
C221: Mænd | F221: Kvinder | I221: I alt
C222: Ledigheds- berørte | D222: Gns. brutto- ledighed | F222: Ledigheds- berørte | G222: Gns. brutto- ledighed | I222: Ledigheds- berørte | J222: Gns. brutto- ledighed
A225: Civ. ing. | C225: 0 | D225: 0 | F225: 1 | G225: 0.4459552174 | I225: 1 | J225: 0.4459552174
A226: Diplom ing. | C226: 1 | D226: 0.9998128859 | F226: 1 | G226: 0.9998128859 | I226: 2 | J226: 1.999625772
A227: Cand. Scient. Tek. | C227: 0 | D227: 0 | F227: 2 | G227: 1.999625772 | I227: 2 | J227: 1.999625772
A228: MA. Hum. | C228: 3 | D228: 2.537890601 | F228: 8 | G228: 7.675419447 | I228: 11 | J228: 10.21331005
A229: MA. Nat. | C229: 1 | D229: 0.1228715774 | F229: 1 | G229: 0.3074908002 | I229: 2 | J229: 0.4303623776
A230: MA. Ph.d. | C230: 0 | D230: 0 | F230: 0 | G230: 0 | I230: 0 | J230: 0
A231: MA. Samf. | C231: 0 | D231: 0 | F231: 1 | G231: 0.4459552174 | I231: 1 | J231: 0.4459552174
A232: Øvrige Mag. | C232: 0 | D232: 0 | F232: 0 | G232: 0 | I232: 0 | J232: 0
A233: Agronom | C233: 0 | D233: 0 | F233: 0 | G233: 0 | I233: 0 | J233: 0
A234: Landsk. Arkt. | C234: 0 | D234: 0 | F234: 0 | G234: 0 | I234: 0 | J234: 0
A235: Hortonom | C235: 0 | D235: 0 | F235: 0 | G235: 0 | I235: 0 | J235: 0
A236: Forstkand. | C236: 0 | D236: 0 | F236: 0 | G236: 0 | I236: 0 | J236: 0
A237: Jordbrugsakad. | C237: 0 | D237: 0 | F237: 0 | G237: 0 | I237: 0 | J237: 0
A238: Mejeriing. | C238: 0 | D238: 0 | F238: 0 | G238: 0 | I238: 0 | J238: 0
A239: Levn.m.kand. | C239: 0 | D239: 0 | F239: 0 | G239: 0 | I239: 0 | J239: 0
A240: Dyrlæge | C240: 0 | D240: 0 | F240: 0 | G240: 0 | I240: 0 | J240: 0
... 296 more rows

Sheet Tabel 3 F
A1: Tabel 3. Ledige i procent af forsikrede
A3: Fyn
C5: Mænd | F5: Kvinder | I5: I alt
C6: Ledigheds- berørte | D6: Gns. brutto- ledighed | F6: Ledigheds- berørte | G6: Gns. brutto- ledighed | I6: Ledigheds- berørte | J6: Gns. brutto- ledighed
A9: Civ. ing. | C9: =IF(OR('Tabel 1 F'!C7<5,'Tabel 2 F'!C9<0.5),"-",IFERROR('Tabel 2 F'!C9/'Tabel 1 F'!C7*100,"-")) -> 6.196581197 | D9: =IF(OR('Tabel 1 F'!C7<5,'Tabel 2 F'!D9<0.5),"-",IFERROR('Tabel 2 F'!D9/'Tabel 1 F'!C7*100,"-")) -> 5.092283845 | F9: =IF(OR('Tabel 1 F'!E7<5,'Tabel 2 F'!F9<0.5),"-",IFERROR('Tabel 2 F'!F9/'Tabel 1 F'!E7*100,"-")) -> 9.350649351 | G9: =IF(OR('Tabel 1 F'!E7<5,'Tabel 2 F'!G9<0.5),"-",IFERROR('Tabel 2 F'!G9/'Tabel 1 F'!E7*100,"-")) -> 8.039263176 | I9: =IF(OR('Tabel 1 F'!G7<5,'Tabel 2 F'!I9<0.5),"-",IFERROR('Tabel 2 F'!I9/'Tabel 1 F'!G7*100,"-")) -> 6.875349357 | J9: =IF(OR('Tabel 1 F'!G7<5,'Tabel 2 F'!J9<0.5),"-",IFERROR('Tabel 2 F'!J9/'Tabel 1 F'!G7*100,"-")) -> 5.726485658
A10: Diplom ing. | C10: =IF(OR('Tabel 1 F'!C8<5,'Tabel 2 F'!C10<0.5),"-",IFERROR('Tabel 2 F'!C10/'Tabel 1 F'!C8*100,"-")) -> 2.097902098 | D10: =IF(OR('Tabel 1 F'!C8<5,'Tabel 2 F'!D10<0.5),"-",IFERROR('Tabel 2 F'!D10/'Tabel 1 F'!C8*100,"-")) -> 1.576592775 | F10: =IF(OR('Tabel 1 F'!E8<5,'Tabel 2 F'!F10<0.5),"-",IFERROR('Tabel 2 F'!F10/'Tabel 1 F'!E8*100,"-")) -> 3.414634146 | G10: =IF(OR('Tabel 1 F'!E8<5,'Tabel 2 F'!G10<0.5),"-",IFERROR('Tabel 2 F'!G10/'Tabel 1 F'!E8*100,"-")) -> 2.449013949 | I10: =IF(OR('Tabel 1 F'!G8<5,'Tabel 2 F'!I10<0.5),"-",IFERROR('Tabel 2 F'!I10/'Tabel 1 F'!G8*100,"-")) -> 2.340936375 | J10: =IF(OR('Tabel 1 F'!G8<5,'Tabel 2 F'!J10<0.5),"-",IFERROR('Tabel 2 F'!J10/'Tabel 1 F'!G8*100,"-")) -> 1.737618892
A11: Cand. Scient. Tek. | C11: =IF(OR('Tabel 1 F'!C9<5,'Tabel 2 F'!C11<0.5),"-",IFERROR('Tabel 2 F'!C11/'Tabel 1 F'!C9*100,"-")) -> 11.03979461 | D11: =IF(OR('Tabel 1 F'!C9<5,'Tabel 2 F'!D11<0.5),"-",IFERROR('Tabel 2 F'!D11/'Tabel 1 F'!C9*100,"-")) -> 9.114225017 | F11: =IF(OR('Tabel 1 F'!E9<5,'Tabel 2 F'!F11<0.5),"-",IFERROR('Tabel 2 F'!F11/'Tabel 1 F'!E9*100,"-")) -> 10.31207598 | G11: =IF(OR('Tabel 1 F'!E9<5,'Tabel 2 F'!G11<0.5),"-",IFERROR('Tabel 2 F'!G11/'Tabel 1 F'!E9*100,"-")) -> 8.200352716 | I11: =IF(OR('Tabel 1 F'!G9<5,'Tabel 2 F'!I11<0.5),"-",IFERROR('Tabel 2 F'!I11/'Tabel 1 F'!G9*100,"-")) -> 10.68601583 | J11: =IF(OR('Tabel 1 F'!G9<5,'Tabel 2 F'!J11<0.5),"-",IFERROR('Tabel 2 F'!J11/'Tabel 1 F'!G9*100,"-")) -> 8.669948047
A12: MA. Hum. | C12: =IF(OR('Tabel 1 F'!C10<5,'Tabel 2 F'!C12<0.5),"-",IFERROR('Tabel 2 F'!C12/'Tabel 1 F'!C10*100,"-")) -> 9.25756187 | D12: =IF(OR('Tabel 1 F'!C10<5,'Tabel 2 F'!D12<0.5),"-",IFERROR('Tabel 2 F'!D12/'Tabel 1 F'!C10*100,"-")) -> 7.32334656 | F12: =IF(OR('Tabel 1 F'!E10<5,'Tabel 2 F'!F12<0.5),"-",IFERROR('Tabel 2 F'!F12/'Tabel 1 F'!E10*100,"-")) -> 11.46040589 | G12: =IF(OR('Tabel 1 F'!E10<5,'Tabel 2 F'!G12<0.5),"-",IFERROR('Tabel 2 F'!G12/'Tabel 1 F'!E10*100,"-")) -> 8.786890965 | I12: =IF(OR('Tabel 1 F'!G10<5,'Tabel 2 F'!I12<0.5),"-",IFERROR('Tabel 2 F'!I12/'Tabel 1 F'!G10*100,"-")) -> 10.79356271 | J12: =IF(OR('Tabel 1 F'!G10<5,'Tabel 2 F'!J12<0.5),"-",IFERROR('Tabel 2 F'!J12/'Tabel 1 F'!G10*100,"-")) -> 8.343847972
A13: MA. Nat. | C13: =IF(OR('Tabel 1 F'!C11<5,'Tabel 2 F'!C13<0.5),"-",IFERROR('Tabel 2 F'!C13/'Tabel 1 F'!C11*100,"-")) -> 5.78778135 | D13: =IF(OR('Tabel 1 F'!C11<5,'Tabel 2 F'!D13<0.5),"-",IFERROR('Tabel 2 F'!D13/'Tabel 1 F'!C11*100,"-")) -> 4.471284407 | F13: =IF(OR('Tabel 1 F'!E11<5,'Tabel 2 F'!F13<0.5),"-",IFERROR('Tabel 2 F'!F13/'Tabel 1 F'!E11*100,"-")) -> 4.313099042 | G13: =IF(OR('Tabel 1 F'!E11<5,'Tabel 2 F'!G13<0.5),"-",IFERROR('Tabel 2 F'!G13/'Tabel 1 F'!E11*100,"-")) -> 3.212224627 | I13: =IF(OR('Tabel 1 F'!G11<5,'Tabel 2 F'!I13<0.5),"-",IFERROR('Tabel 2 F'!I13/'Tabel 1 F'!G11*100,"-")) -> 5.048076923 | J13: =IF(OR('Tabel 1 F'!G11<5,'Tabel 2 F'!J13<0.5),"-",IFERROR('Tabel 2 F'!J13/'Tabel 1 F'!G11*100,"-")) -> 3.839736793
A14: MA. Ph.d. | C14: =IF(OR('Tabel 1 F'!C12<5,'Tabel 2 F'!C14<0.5),"-",IFERROR('Tabel 2 F'!C14/'Tabel 1 F'!C12*100,"-")) -> 4.597701149 | D14: =IF(OR('Tabel 1 F'!C12<5,'Tabel 2 F'!D14<0.5),"-",IFERROR('Tabel 2 F'!D14/'Tabel 1 F'!C12*100,"-")) -> 3.907171344 | F14: =IF(OR('Tabel 1 F'!E12<5,'Tabel 2 F'!F14<0.5),"-",IFERROR('Tabel 2 F'!F14/'Tabel 1 F'!E12*100,"-")) -> 5.479452055 | G14: =IF(OR('Tabel 1 F'!E12<5,'Tabel 2 F'!G14<0.5),"-",IFERROR('Tabel 2 F'!G14/'Tabel 1 F'!E12*100,"-")) -> 4.383083179 | I14: =IF(OR('Tabel 1 F'!G12<5,'Tabel 2 F'!I14<0.5),"-",IFERROR('Tabel 2 F'!I14/'Tabel 1 F'!G12*100,"-")) -> 5 | J14: =IF(OR('Tabel 1 F'!G12<5,'Tabel 2 F'!J14<0.5),"-",IFERROR('Tabel 2 F'!J14/'Tabel 1 F'!G12*100,"-")) -> 4.124306119
A15: MA. Samf. | C15: =IF(OR('Tabel 1 F'!C13<5,'Tabel 2 F'!C15<0.5),"-",IFERROR('Tabel 2 F'!C15/'Tabel 1 F'!C13*100,"-")) -> 26.92307692 | D15: =IF(OR('Tabel 1 F'!C13<5,'Tabel 2 F'!D15<0.5),"-",IFERROR('Tabel 2 F'!D15/'Tabel 1 F'!C13*100,"-")) -> 21.16548081 | F15: =IF(OR('Tabel 1 F'!E13<5,'Tabel 2 F'!F15<0.5),"-",IFERROR('Tabel 2 F'!F15/'Tabel 1 F'!E13*100,"-")) -> 13.36898396 | G15: =IF(OR('Tabel 1 F'!E13<5,'Tabel 2 F'!G15<0.5),"-",IFERROR('Tabel 2 F'!G15/'Tabel 1 F'!E13*100,"-")) -> 9.725596038 | I15: =IF(OR('Tabel 1 F'!G13<5,'Tabel 2 F'!I15<0.5),"-",IFERROR('Tabel 2 F'!I15/'Tabel 1 F'!G13*100,"-")) -> 17.35849057 | J15: =IF(OR('Tabel 1 F'!G13<5,'Tabel 2 F'!J15<0.5),"-",IFERROR('Tabel 2 F'!J15/'Tabel 1 F'!G13*100,"-")) -> 13.09280741
A16: Øvrige Mag. | C16: =IF(OR('Tabel 1 F'!C14<5,'Tabel 2 F'!C16<0.5),"-",IFERROR('Tabel 2 F'!C16/'Tabel 1 F'!C14*100,"-")) -> 11.70212766 | D16: =IF(OR('Tabel 1 F'!C14<5,'Tabel 2 F'!D16<0.5),"-",IFERROR('Tabel 2 F'!D16/'Tabel 1 F'!C14*100,"-")) -> 10.37421488 | F16: =IF(OR('Tabel 1 F'!E14<5,'Tabel 2 F'!F16<0.5),"-",IFERROR('Tabel 2 F'!F16/'Tabel 1 F'!E14*100,"-")) -> 12.02185792 | G16: =IF(OR('Tabel 1 F'!E14<5,'Tabel 2 F'!G16<0.5),"-",IFERROR('Tabel 2 F'!G16/'Tabel 1 F'!E14*100,"-")) -> 10.2755962 | I16: =IF(OR('Tabel 1 F'!G14<5,'Tabel 2 F'!I16<0.5),"-",IFERROR('Tabel 2 F'!I16/'Tabel 1 F'!G14*100,"-")) -> 11.9133574 | J16: =IF(OR('Tabel 1 F'!G14<5,'Tabel 2 F'!J16<0.5),"-",IFERROR('Tabel 2 F'!J16/'Tabel 1 F'!G14*100,"-")) -> 10.30906247
A17: Agronom | C17: =IF(OR('Tabel 1 F'!C15<5,'Tabel 2 F'!C17<0.5),"-",IFERROR('Tabel 2 F'!C17/'Tabel 1 F'!C15*100,"-")) -> 1.315789474 | D17: =IF(OR('Tabel 1 F'!C15<5,'Tabel 2 F'!D17<0.5),"-",IFERROR('Tabel 2 F'!D17/'Tabel 1 F'!C15*100,"-")) -> 1.315543271 | F17: =IF(OR('Tabel 1 F'!E15<5,'Tabel 2 F'!F17<0.5),"-",IFERROR('Tabel 2 F'!F17/'Tabel 1 F'!E15*100,"-")) -> 5.797101449 | G17: =IF(OR('Tabel 1 F'!E15<5,'Tabel 2 F'!G17<0.5),"-",IFERROR('Tabel 2 F'!G17/'Tabel 1 F'!E15*100,"-")) -> 4.792651388 | I17: =IF(OR('Tabel 1 F'!G15<5,'Tabel 2 F'!I17<0.5),"-",IFERROR('Tabel 2 F'!I17/'Tabel 1 F'!G15*100,"-")) -> 3.448275862 | J17: =IF(OR('Tabel 1 F'!G15<5,'Tabel 2 F'!J17<0.5),"-",IFERROR('Tabel 2 F'!J17/'Tabel 1 F'!G15*100,"-")) -> 2.970167134
A18: Landsk. Arkt. | C18: =IF(OR('Tabel 1 F'!C16<5,'Tabel 2 F'!C18<0.5),"-",IFERROR('Tabel 2 F'!C18/'Tabel 1 F'!C16*100,"-")) -> - | D18: =IF(OR('Tabel 1 F'!C16<5,'Tabel 2 F'!D18<0.5),"-",IFERROR('Tabel 2 F'!D18/'Tabel 1 F'!C16*100,"-")) -> - | F18: =IF(OR('Tabel 1 F'!E16<5,'Tabel 2 F'!F18<0.5),"-",IFERROR('Tabel 2 F'!F18/'Tabel 1 F'!E16*100,"-")) -> - | G18: =IF(OR('Tabel 1 F'!E16<5,'Tabel 2 F'!G18<0.5),"-",IFERROR('Tabel 2 F'!G18/'Tabel 1 F'!E16*100,"-")) -> - | I18: =IF(OR('Tabel 1 F'!G16<5,'Tabel 2 F'!I18<0.5),"-",IFERROR('Tabel 2 F'!I18/'Tabel 1 F'!G16*100,"-")) -> - | J18: =IF(OR('Tabel 1 F'!G16<5,'Tabel 2 F'!J18<0.5),"-",IFERROR('Tabel 2 F'!J18/'Tabel 1 F'!G16*100,"-")) -> -
A19: Hortonom | C19: =IF(OR('Tabel 1 F'!C17<5,'Tabel 2 F'!C19<0.5),"-",IFERROR('Tabel 2 F'!C19/'Tabel 1 F'!C17*100,"-")) -> 6.666666667 | D19: =IF(OR('Tabel 1 F'!C17<5,'Tabel 2 F'!D19<0.5),"-",IFERROR('Tabel 2 F'!D19/'Tabel 1 F'!C17*100,"-")) -> - | F19: =IF(OR('Tabel 1 F'!E17<5,'Tabel 2 F'!F19<0.5),"-",IFERROR('Tabel 2 F'!F19/'Tabel 1 F'!E17*100,"-")) -> 5.263157895 | G19: =IF(OR('Tabel 1 F'!E17<5,'Tabel 2 F'!G19<0.5),"-",IFERROR('Tabel 2 F'!G19/'Tabel 1 F'!E17*100,"-")) -> 5.262173084 | I19: =IF(OR('Tabel 1 F'!G17<5,'Tabel 2 F'!I19<0.5),"-",IFERROR('Tabel 2 F'!I19/'Tabel 1 F'!G17*100,"-")) -> 5.882352941 | J19: =IF(OR('Tabel 1 F'!G17<5,'Tabel 2 F'!J19<0.5),"-",IFERROR('Tabel 2 F'!J19/'Tabel 1 F'!G17*100,"-")) -> 4.364160683
A20: Forstkand. | C20: =IF(OR('Tabel 1 F'!C18<5,'Tabel 2 F'!C20<0.5),"-",IFERROR('Tabel 2 F'!C20/'Tabel 1 F'!C18*100,"-")) -> - | D20: =IF(OR('Tabel 1 F'!C18<5,'Tabel 2 F'!D20<0.5),"-",IFERROR('Tabel 2 F'!D20/'Tabel 1 F'!C18*100,"-")) -> - | F20: =IF(OR('Tabel 1 F'!E18<5,'Tabel 2 F'!F20<0.5),"-",IFERROR('Tabel 2 F'!F20/'Tabel 1 F'!E18*100,"-")) -> 12.5 | G20: =IF(OR('Tabel 1 F'!E18<5,'Tabel 2 F'!G20<0.5),"-",IFERROR('Tabel 2 F'!G20/'Tabel 1 F'!E18*100,"-")) -> 12.49766107 | I20: =IF(OR('Tabel 1 F'!G18<5,'Tabel 2 F'!I20<0.5),"-",IFERROR('Tabel 2 F'!I20/'Tabel 1 F'!G18*100,"-")) -> 4 | J20: =IF(OR('Tabel 1 F'!G18<5,'Tabel 2 F'!J20<0.5),"-",IFERROR('Tabel 2 F'!J20/'Tabel 1 F'!G18*100,"-")) -> 3.999251544
A21: Jordbrugsakad. | C21: =IF(OR('Tabel 1 F'!C19<5,'Tabel 2 F'!C21<0.5),"-",IFERROR('Tabel 2 F'!C21/'Tabel 1 F'!C19*100,"-")) -> 1.724137931 | D21: =IF(OR('Tabel 1 F'!C19<5,'Tabel 2 F'!D21<0.5),"-",IFERROR('Tabel 2 F'!D21/'Tabel 1 F'!C19*100,"-")) -> 1.279150545 | F21: =IF(OR('Tabel 1 F'!E19<5,'Tabel 2 F'!F21<0.5),"-",IFERROR('Tabel 2 F'!F21/'Tabel 1 F'!E19*100,"-")) -> 4.958677686 | G21: =IF(OR('Tabel 1 F'!E19<5,'Tabel 2 F'!G21<0.5),"-",IFERROR('Tabel 2 F'!G21/'Tabel 1 F'!E19*100,"-")) -> 4.385582835 | I21: =IF(OR('Tabel 1 F'!G19<5,'Tabel 2 F'!I21<0.5),"-",IFERROR('Tabel 2 F'!I21/'Tabel 1 F'!G19*100,"-")) -> 3.375527426 | J21: =IF(OR('Tabel 1 F'!G19<5,'Tabel 2 F'!J21<0.5),"-",IFERROR('Tabel 2 F'!J21/'Tabel 1 F'!G19*100,"-")) -> 2.865134963
A22: Mejeriing. | C22: =IF(OR('Tabel 1 F'!C20<5,'Tabel 2 F'!C22<0.5),"-",IFERROR('Tabel 2 F'!C22/'Tabel 1 F'!C20*100,"-")) -> - | D22: =IF(OR('Tabel 1 F'!C20<5,'Tabel 2 F'!D22<0.5),"-",IFERROR('Tabel 2 F'!D22/'Tabel 1 F'!C20*100,"-")) -> - | F22: =IF(OR('Tabel 1 F'!E20<5,'Tabel 2 F'!F22<0.5),"-",IFERROR('Tabel 2 F'!F22/'Tabel 1 F'!E20*100,"-")) -> - | G22: =IF(OR('Tabel 1 F'!E20<5,'Tabel 2 F'!G22<0.5),"-",IFERROR('Tabel 2 F'!G22/'Tabel 1 F'!E20*100,"-")) -> - | I22: =IF(OR('Tabel 1 F'!G20<5,'Tabel 2 F'!I22<0.5),"-",IFERROR('Tabel 2 F'!I22/'Tabel 1 F'!G20*100,"-")) -> - | J22: =IF(OR('Tabel 1 F'!G20<5,'Tabel 2 F'!J22<0.5),"-",IFERROR('Tabel 2 F'!J22/'Tabel 1 F'!G20*100,"-")) -> -
A23: Levn.m.kand. | C23: =IF(OR('Tabel 1 F'!C21<5,'Tabel 2 F'!C23<0.5),"-",IFERROR('Tabel 2 F'!C23/'Tabel 1 F'!C21*100,"-")) -> - | D23: =IF(OR('Tabel 1 F'!C21<5,'Tabel 2 F'!D23<0.5),"-",IFERROR('Tabel 2 F'!D23/'Tabel 1 F'!C21*100,"-")) -> - | F23: =IF(OR('Tabel 1 F'!E21<5,'Tabel 2 F'!F23<0.5),"-",IFERROR('Tabel 2 F'!F23/'Tabel 1 F'!E21*100,"-")) -> 15.38461538 | G23: =IF(OR('Tabel 1 F'!E21<5,'Tabel 2 F'!G23<0.5),"-",IFERROR('Tabel 2 F'!G23/'Tabel 1 F'!E21*100,"-")) -> 11.83136704 | I23: =IF(OR('Tabel 1 F'!G21<5,'Tabel 2 F'!I23<0.5),"-",IFERROR('Tabel 2 F'!I23/'Tabel 1 F'!G21*100,"-")) -> 10.52631579 | J23: =IF(OR('Tabel 1 F'!G21<5,'Tabel 2 F'!J23<0.5),"-",IFERROR('Tabel 2 F'!J23/'Tabel 1 F'!G21*100,"-")) -> 8.095145867
A24: Dyrlæge | C24: =IF(OR('Tabel 1 F'!C22<5,'Tabel 2 F'!C24<0.5),"-",IFERROR('Tabel 2 F'!C24/'Tabel 1 F'!C22*100,"-")) -> - | D24: =IF(OR('Tabel 1 F'!C22<5,'Tabel 2 F'!D24<0.5),"-",IFERROR('Tabel 2 F'!D24/'Tabel 1 F'!C22*100,"-")) -> - | F24: =IF(OR('Tabel 1 F'!E22<5,'Tabel 2 F'!F24<0.5),"-",IFERROR('Tabel 2 F'!F24/'Tabel 1 F'!E22*100,"-")) -> 0.7692307692 | G24: =IF(OR('Tabel 1 F'!E22<5,'Tabel 2 F'!G24<0.5),"-",IFERROR('Tabel 2 F'!G24/'Tabel 1 F'!E22*100,"-")) -> 0.6980794419 | I24: =IF(OR('Tabel 1 F'!G22<5,'Tabel 2 F'!I24<0.5),"-",IFERROR('Tabel 2 F'!I24/'Tabel 1 F'!G22*100,"-")) -> 0.6535947712 | J24: =IF(OR('Tabel 1 F'!G22<5,'Tabel 2 F'!J24<0.5),"-",IFERROR('Tabel 2 F'!J24/'Tabel 1 F'!G22*100,"-")) -> 0.5931393951
A25: Farmaceut | C25: =IF(OR('Tabel 1 F'!C23<5,'Tabel 2 F'!C25<0.5),"-",IFERROR('Tabel 2 F'!C25/'Tabel 1 F'!C23*100,"-")) -> 8.219178082 | D25: =IF(OR('Tabel 1 F'!C23<5,'Tabel 2 F'!D25<0.5),"-",IFERROR('Tabel 2 F'!D25/'Tabel 1 F'!C23*100,"-")) -> 7.188939935 | F25: =IF(OR('Tabel 1 F'!E23<5,'Tabel 2 F'!F25<0.5),"-",IFERROR('Tabel 2 F'!F25/'Tabel 1 F'!E23*100,"-")) -> 5.327868852 | G25: =IF(OR('Tabel 1 F'!E23<5,'Tabel 2 F'!G25<0.5),"-",IFERROR('Tabel 2 F'!G25/'Tabel 1 F'!E23*100,"-")) -> 3.962115023 | I25: =IF(OR('Tabel 1 F'!G23<5,'Tabel 2 F'!I25<0.5),"-",IFERROR('Tabel 2 F'!I25/'Tabel 1 F'!G23*100,"-")) -> 5.993690852 | J25: =IF(OR('Tabel 1 F'!G23<5,'Tabel 2 F'!J25<0.5),"-",IFERROR('Tabel 2 F'!J25/'Tabel 1 F'!G23*100,"-")) -> 4.705200886
A26: Læge | C26: =IF(OR('Tabel 1 F'!C24<5,'Tabel 2 F'!C26<0.5),"-",IFERROR('Tabel 2 F'!C26/'Tabel 1 F'!C24*100,"-")) -> 7.112970711 | D26: =IF(OR('Tabel 1 F'!C24<5,'Tabel 2 F'!D26<0.5),"-",IFERROR('Tabel 2 F'!D26/'Tabel 1 F'!C24*100,"-")) -> 5.886003423 | F26: =IF(OR('Tabel 1 F'!E24<5,'Tabel 2 F'!F26<0.5),"-",IFERROR('Tabel 2 F'!F26/'Tabel 1 F'!E24*100,"-")) -> 5.78338591 | G26: =IF(OR('Tabel 1 F'!E24<5,'Tabel 2 F'!G26<0.5),"-",IFERROR('Tabel 2 F'!G26/'Tabel 1 F'!E24*100,"-")) -> 4.594558948 | I26: =IF(OR('Tabel 1 F'!G24<5,'Tabel 2 F'!I26<0.5),"-",IFERROR('Tabel 2 F'!I26/'Tabel 1 F'!G24*100,"-")) -> 6.228131561 | J26: =IF(OR('Tabel 1 F'!G24<5,'Tabel 2 F'!J26<0.5),"-",IFERROR('Tabel 2 F'!J26/'Tabel 1 F'!G24*100,"-")) -> 5.026546673
A27: Tandlæge | C27: =IF(OR('Tabel 1 F'!C25<5,'Tabel 2 F'!C27<0.5),"-",IFERROR('Tabel 2 F'!C27/'Tabel 1 F'!C25*100,"-")) -> - | D27: =IF(OR('Tabel 1 F'!C25<5,'Tabel 2 F'!D27<0.5),"-",IFERROR('Tabel 2 F'!D27/'Tabel 1 F'!C25*100,"-")) -> - | F27: =IF(OR('Tabel 1 F'!E25<5,'Tabel 2 F'!F27<0.5),"-",IFERROR('Tabel 2 F'!F27/'Tabel 1 F'!E25*100,"-")) -> 4 | G27: =IF(OR('Tabel 1 F'!E25<5,'Tabel 2 F'!G27<0.5),"-",IFERROR('Tabel 2 F'!G27/'Tabel 1 F'!E25*100,"-")) -> 2.106904509 | I27: =IF(OR('Tabel 1 F'!G25<5,'Tabel 2 F'!I27<0.5),"-",IFERROR('Tabel 2 F'!I27/'Tabel 1 F'!G25*100,"-")) -> 3.448275862 | J27: =IF(OR('Tabel 1 F'!G25<5,'Tabel 2 F'!J27<0.5),"-",IFERROR('Tabel 2 F'!J27/'Tabel 1 F'!G25*100,"-")) -> 1.816296991
A28: Arkitekt | C28: =IF(OR('Tabel 1 F'!C26<5,'Tabel 2 F'!C28<0.5),"-",IFERROR('Tabel 2 F'!C28/'Tabel 1 F'!C26*100,"-")) -> 2.631578947 | D28: =IF(OR('Tabel 1 F'!C26<5,'Tabel 2 F'!D28<0.5),"-",IFERROR('Tabel 2 F'!D28/'Tabel 1 F'!C26*100,"-")) -> 2.009014303 | F28: =IF(OR('Tabel 1 F'!E26<5,'Tabel 2 F'!F28<0.5),"-",IFERROR('Tabel 2 F'!F28/'Tabel 1 F'!E26*100,"-")) -> 5.063291139 | G28: =IF(OR('Tabel 1 F'!E26<5,'Tabel 2 F'!G28<0.5),"-",IFERROR('Tabel 2 F'!G28/'Tabel 1 F'!E26*100,"-")) -> 3.11540991 | I28: =IF(OR('Tabel 1 F'!G26<5,'Tabel 2 F'!I28<0.5),"-",IFERROR('Tabel 2 F'!I28/'Tabel 1 F'!G26*100,"-")) -> 3.870967742 | J28: =IF(OR('Tabel 1 F'!G26<5,'Tabel 2 F'!J28<0.5),"-",IFERROR('Tabel 2 F'!J28/'Tabel 1 F'!G26*100,"-")) -> 2.572919161
A29: Landinspek. | C29: =IF(OR('Tabel 1 F'!C27<5,'Tabel 2 F'!C29<0.5),"-",IFERROR('Tabel 2 F'!C29/'Tabel 1 F'!C27*100,"-")) -> - | D29: =IF(OR('Tabel 1 F'!C27<5,'Tabel 2 F'!D29<0.5),"-",IFERROR('Tabel 2 F'!D29/'Tabel 1 F'!C27*100,"-")) -> - | F29: =IF(OR('Tabel 1 F'!E27<5,'Tabel 2 F'!F29<0.5),"-",IFERROR('Tabel 2 F'!F29/'Tabel 1 F'!E27*100,"-")) -> - | G29: =IF(OR('Tabel 1 F'!E27<5,'Tabel 2 F'!G29<0.5),"-",IFERROR('Tabel 2 F'!G29/'Tabel 1 F'!E27*100,"-")) -> - | I29: =IF(OR('Tabel 1 F'!G27<5,'Tabel 2 F'!I29<0.5),"-",IFERROR('Tabel 2 F'!I29/'Tabel 1 F'!G27*100,"-")) -> - | J29: =IF(OR('Tabel 1 F'!G27<5,'Tabel 2 F'!J29<0.5),"-",IFERROR('Tabel 2 F'!J29/'Tabel 1 F'!G27*100,"-")) -> -
A30: Bibliotekar | C30: =IF(OR('Tabel 1 F'!C28<5,'Tabel 2 F'!C30<0.5),"-",IFERROR('Tabel 2 F'!C30/'Tabel 1 F'!C28*100,"-")) -> - | D30: =IF(OR('Tabel 1 F'!C28<5,'Tabel 2 F'!D30<0.5),"-",IFERROR('Tabel 2 F'!D30/'Tabel 1 F'!C28*100,"-")) -> - | F30: =IF(OR('Tabel 1 F'!E28<5,'Tabel 2 F'!F30<0.5),"-",IFERROR('Tabel 2 F'!F30/'Tabel 1 F'!E28*100,"-")) -> 1.503759398 | G30: =IF(OR('Tabel 1 F'!E28<5,'Tabel 2 F'!G30<0.5),"-",IFERROR('Tabel 2 F'!G30/'Tabel 1 F'!E28*100,"-")) -> 0.6316858697 | I30: =IF(OR('Tabel 1 F'!G28<5,'Tabel 2 F'!I30<0.5),"-",IFERROR('Tabel 2 F'!I30/'Tabel 1 F'!G28*100,"-")) -> 1.052631579 | J30: =IF(OR('Tabel 1 F'!G28<5,'Tabel 2 F'!J30<0.5),"-",IFERROR('Tabel 2 F'!J30/'Tabel 1 F'!G28*100,"-")) -> 0.4421801088
A31: Musikudd. | C31: =IF(OR('Tabel 1 F'!C29<5,'Tabel 2 F'!C31<0.5),"-",IFERROR('Tabel 2 F'!C31/'Tabel 1 F'!C29*100,"-")) -> - | D31: =IF(OR('Tabel 1 F'!C29<5,'Tabel 2 F'!D31<0.5),"-",IFERROR('Tabel 2 F'!D31/'Tabel 1 F'!C29*100,"-")) -> - | F31: =IF(OR('Tabel 1 F'!E29<5,'Tabel 2 F'!F31<0.5),"-",IFERROR('Tabel 2 F'!F31/'Tabel 1 F'!E29*100,"-")) -> 4 | G31: =IF(OR('Tabel 1 F'!E29<5,'Tabel 2 F'!G31<0.5),"-",IFERROR('Tabel 2 F'!G31/'Tabel 1 F'!E29*100,"-")) -> 3.40797106 | I31: =IF(OR('Tabel 1 F'!G29<5,'Tabel 2 F'!I31<0.5),"-",IFERROR('Tabel 2 F'!I31/'Tabel 1 F'!G29*100,"-")) -> 2.105263158 | J31: =IF(OR('Tabel 1 F'!G29<5,'Tabel 2 F'!J31<0.5),"-",IFERROR('Tabel 2 F'!J31/'Tabel 1 F'!G29*100,"-")) -> 1.793668979
A32: Teolog | C32: =IF(OR('Tabel 1 F'!C30<5,'Tabel 2 F'!C32<0.5),"-",IFERROR('Tabel 2 F'!C32/'Tabel 1 F'!C30*100,"-")) -> 2.325581395 | D32: =IF(OR('Tabel 1 F'!C30<5,'Tabel 2 F'!D32<0.5),"-",IFERROR('Tabel 2 F'!D32/'Tabel 1 F'!C30*100,"-")) -> 2.325146246 | F32: =IF(OR('Tabel 1 F'!E30<5,'Tabel 2 F'!F32<0.5),"-",IFERROR('Tabel 2 F'!F32/'Tabel 1 F'!E30*100,"-")) -> 2.816901408 | G32: =IF(OR('Tabel 1 F'!E30<5,'Tabel 2 F'!G32<0.5),"-",IFERROR('Tabel 2 F'!G32/'Tabel 1 F'!E30*100,"-")) -> 2.16630664 | I32: =IF(OR('Tabel 1 F'!G30<5,'Tabel 2 F'!I32<0.5),"-",IFERROR('Tabel 2 F'!I32/'Tabel 1 F'!G30*100,"-")) -> 2.631578947 | J32: =IF(OR('Tabel 1 F'!G30<5,'Tabel 2 F'!J32<0.5),"-",IFERROR('Tabel 2 F'!J32/'Tabel 1 F'!G30*100,"-")) -> 2.226219825
A33: Psykolog | C33: =IF(OR('Tabel 1 F'!C31<5,'Tabel 2 F'!C33<0.5),"-",IFERROR('Tabel 2 F'!C33/'Tabel 1 F'!C31*100,"-")) -> 5.839416058 | D33: =IF(OR('Tabel 1 F'!C31<5,'Tabel 2 F'!D33<0.5),"-",IFERROR('Tabel 2 F'!D33/'Tabel 1 F'!C31*100,"-")) -> 5.039787919 | F33: =IF(OR('Tabel 1 F'!E31<5,'Tabel 2 F'!F33<0.5),"-",IFERROR('Tabel 2 F'!F33/'Tabel 1 F'!E31*100,"-")) -> 10.50583658 | G33: =IF(OR('Tabel 1 F'!E31<5,'Tabel 2 F'!G33<0.5),"-",IFERROR('Tabel 2 F'!G33/'Tabel 1 F'!E31*100,"-")) -> 8.460298688 | I33: =IF(OR('Tabel 1 F'!G31<5,'Tabel 2 F'!I33<0.5),"-",IFERROR('Tabel 2 F'!I33/'Tabel 1 F'!G31*100,"-")) -> 9.523809524 | J33: =IF(OR('Tabel 1 F'!G31<5,'Tabel 2 F'!J33<0.5),"-",IFERROR('Tabel 2 F'!J33/'Tabel 1 F'!G31*100,"-")) -> 7.740467697
A34: Jurist | C34: =IF(OR('Tabel 1 F'!C32<5,'Tabel 2 F'!C34<0.5),"-",IFERROR('Tabel 2 F'!C34/'Tabel 1 F'!C32*100,"-")) -> 1.716738197 | D34: =IF(OR('Tabel 1 F'!C32<5,'Tabel 2 F'!D34<0.5),"-",IFERROR('Tabel 2 F'!D34/'Tabel 1 F'!C32*100,"-")) -> 1.089223434 | F34: =IF(OR('Tabel 1 F'!E32<5,'Tabel 2 F'!F34<0.5),"-",IFERROR('Tabel 2 F'!F34/'Tabel 1 F'!E32*100,"-")) -> 2.708803612 | G34: =IF(OR('Tabel 1 F'!E32<5,'Tabel 2 F'!G34<0.5),"-",IFERROR('Tabel 2 F'!G34/'Tabel 1 F'!E32*100,"-")) -> 2.003908699 | I34: =IF(OR('Tabel 1 F'!G32<5,'Tabel 2 F'!I34<0.5),"-",IFERROR('Tabel 2 F'!I34/'Tabel 1 F'!G32*100,"-")) -> 2.366863905 | J34: =IF(OR('Tabel 1 F'!G32<5,'Tabel 2 F'!J34<0.5),"-",IFERROR('Tabel 2 F'!J34/'Tabel 1 F'!G32*100,"-")) -> 1.688639961
A35: Økonom | C35: =IF(OR('Tabel 1 F'!C33<5,'Tabel 2 F'!C35<0.5),"-",IFERROR('Tabel 2 F'!C35/'Tabel 1 F'!C33*100,"-")) -> 2.941176471 | D35: =IF(OR('Tabel 1 F'!C33<5,'Tabel 2 F'!D35<0.5),"-",IFERROR('Tabel 2 F'!D35/'Tabel 1 F'!C33*100,"-")) -> 2.408451686 | F35: =IF(OR('Tabel 1 F'!E33<5,'Tabel 2 F'!F35<0.5),"-",IFERROR('Tabel 2 F'!F35/'Tabel 1 F'!E33*100,"-")) -> 0.7117437722 | G35: =IF(OR('Tabel 1 F'!E33<5,'Tabel 2 F'!G35<0.5),"-",IFERROR('Tabel 2 F'!G35/'Tabel 1 F'!E33*100,"-")) -> 0.4488074308 | I35: =IF(OR('Tabel 1 F'!G33<5,'Tabel 2 F'!I35<0.5),"-",IFERROR('Tabel 2 F'!I35/'Tabel 1 F'!G33*100,"-")) -> 1.93236715 | J35: =IF(OR('Tabel 1 F'!G33<5,'Tabel 2 F'!J35<0.5),"-",IFERROR('Tabel 2 F'!J35/'Tabel 1 F'!G33*100,"-")) -> 1.52172055
A36: Samf. Adm. | C36: =IF(OR('Tabel 1 F'!C34<5,'Tabel 2 F'!C36<0.5),"-",IFERROR('Tabel 2 F'!C36/'Tabel 1 F'!C34*100,"-")) -> 7.290015848 | D36: =IF(OR('Tabel 1 F'!C34<5,'Tabel 2 F'!D36<0.5),"-",IFERROR('Tabel 2 F'!D36/'Tabel 1 F'!C34*100,"-")) -> 5.825939626 | F36: =IF(OR('Tabel 1 F'!E34<5,'Tabel 2 F'!F36<0.5),"-",IFERROR('Tabel 2 F'!F36/'Tabel 1 F'!E34*100,"-")) -> 7.108081792 | G36: =IF(OR('Tabel 1 F'!E34<5,'Tabel 2 F'!G36<0.5),"-",IFERROR('Tabel 2 F'!G36/'Tabel 1 F'!E34*100,"-")) -> 5.801325905 | I36: =IF(OR('Tabel 1 F'!G34<5,'Tabel 2 F'!I36<0.5),"-",IFERROR('Tabel 2 F'!I36/'Tabel 1 F'!G34*100,"-")) -> 7.177322075 | J36: =IF(OR('Tabel 1 F'!G34<5,'Tabel 2 F'!J36<0.5),"-",IFERROR('Tabel 2 F'!J36/'Tabel 1 F'!G34*100,"-")) -> 5.81069337
A37: Cand. Merc. | C37: =IF(OR('Tabel 1 F'!C35<5,'Tabel 2 F'!C37<0.5),"-",IFERROR('Tabel 2 F'!C37/'Tabel 1 F'!C35*100,"-")) -> 6.3507109 | D37: =IF(OR('Tabel 1 F'!C35<5,'Tabel 2 F'!D37<0.5),"-",IFERROR('Tabel 2 F'!D37/'Tabel 1 F'!C35*100,"-")) -> 5.070407214 | F37: =IF(OR('Tabel 1 F'!E35<5,'Tabel 2 F'!F37<0.5),"-",IFERROR('Tabel 2 F'!F37/'Tabel 1 F'!E35*100,"-")) -> 7.968901846 | G37: =IF(OR('Tabel 1 F'!E35<5,'Tabel 2 F'!G37<0.5),"-",IFERROR('Tabel 2 F'!G37/'Tabel 1 F'!E35*100,"-")) -> 6.564146094 | I37: =IF(OR('Tabel 1 F'!G35<5,'Tabel 2 F'!I37<0.5),"-",IFERROR('Tabel 2 F'!I37/'Tabel 1 F'!G35*100,"-")) -> 7.149712092 | J37: =IF(OR('Tabel 1 F'!G35<5,'Tabel 2 F'!J37<0.5),"-",IFERROR('Tabel 2 F'!J37/'Tabel 1 F'!G35*100,"-")) -> 5.807958705
A38: HA | C38: =IF(OR('Tabel 1 F'!C36<5,'Tabel 2 F'!C38<0.5),"-",IFERROR('Tabel 2 F'!C38/'Tabel 1 F'!C36*100,"-")) -> 9.274193548 | D38: =IF(OR('Tabel 1 F'!C36<5,'Tabel 2 F'!D38<0.5),"-",IFERROR('Tabel 2 F'!D38/'Tabel 1 F'!C36*100,"-")) -> 6.168225615 | F38: =IF(OR('Tabel 1 F'!E36<5,'Tabel 2 F'!F38<0.5),"-",IFERROR('Tabel 2 F'!F38/'Tabel 1 F'!E36*100,"-")) -> 14.14634146 | G38: =IF(OR('Tabel 1 F'!E36<5,'Tabel 2 F'!G38<0.5),"-",IFERROR('Tabel 2 F'!G38/'Tabel 1 F'!E36*100,"-")) -> 11.27004821 | I38: =IF(OR('Tabel 1 F'!G36<5,'Tabel 2 F'!I38<0.5),"-",IFERROR('Tabel 2 F'!I38/'Tabel 1 F'!G36*100,"-")) -> 11.4790287 | J38: =IF(OR('Tabel 1 F'!G36<5,'Tabel 2 F'!J38<0.5),"-",IFERROR('Tabel 2 F'!J38/'Tabel 1 F'!G36*100,"-")) -> 8.476997429
A39: HD | C39: =IF(OR('Tabel 1 F'!C37<5,'Tabel 2 F'!C39<0.5),"-",IFERROR('Tabel 2 F'!C39/'Tabel 1 F'!C37*100,"-")) -> 3.424657534 | D39: =IF(OR('Tabel 1 F'!C37<5,'Tabel 2 F'!D39<0.5),"-",IFERROR('Tabel 2 F'!D39/'Tabel 1 F'!C37*100,"-")) -> 2.886597762 | F39: =IF(OR('Tabel 1 F'!E37<5,'Tabel 2 F'!F39<0.5),"-",IFERROR('Tabel 2 F'!F39/'Tabel 1 F'!E37*100,"-")) -> 3.787878788 | G39: =IF(OR('Tabel 1 F'!E37<5,'Tabel 2 F'!G39<0.5),"-",IFERROR('Tabel 2 F'!G39/'Tabel 1 F'!E37*100,"-")) -> 3.073679475 | I39: =IF(OR('Tabel 1 F'!G37<5,'Tabel 2 F'!I39<0.5),"-",IFERROR('Tabel 2 F'!I39/'Tabel 1 F'!G37*100,"-")) -> 3.597122302 | J39: =IF(OR('Tabel 1 F'!G37<5,'Tabel 2 F'!J39<0.5),"-",IFERROR('Tabel 2 F'!J39/'Tabel 1 F'!G37*100,"-")) -> 2.975427928
A40: Komm. og Sprog | C40: =IF(OR('Tabel 1 F'!C38<5,'Tabel 2 F'!C40<0.5),"-",IFERROR('Tabel 2 F'!C40/'Tabel 1 F'!C38*100,"-")) -> 6.329113924 | D40: =IF(OR('Tabel 1 F'!C38<5,'Tabel 2 F'!D40<0.5),"-",IFERROR('Tabel 2 F'!D40/'Tabel 1 F'!C38*100,"-")) -> 3.679910185 | F40: =IF(OR('Tabel 1 F'!E38<5,'Tabel 2 F'!F40<0.5),"-",IFERROR('Tabel 2 F'!F40/'Tabel 1 F'!E38*100,"-")) -> 7.182320442 | G40: =IF(OR('Tabel 1 F'!E38<5,'Tabel 2 F'!G40<0.5),"-",IFERROR('Tabel 2 F'!G40/'Tabel 1 F'!E38*100,"-")) -> 4.985573608 | I40: =IF(OR('Tabel 1 F'!G38<5,'Tabel 2 F'!I40<0.5),"-",IFERROR('Tabel 2 F'!I40/'Tabel 1 F'!G38*100,"-")) -> 7.029478458 | J40: =IF(OR('Tabel 1 F'!G38<5,'Tabel 2 F'!J40<0.5),"-",IFERROR('Tabel 2 F'!J40/'Tabel 1 F'!G38*100,"-")) -> 4.751679253
A41: Bygningskonst. | C41: =IF(OR('Tabel 1 F'!C39<5,'Tabel 2 F'!C41<0.5),"-",IFERROR('Tabel 2 F'!C41/'Tabel 1 F'!C39*100,"-")) -> 3.80952381 | D41: =IF(OR('Tabel 1 F'!C39<5,'Tabel 2 F'!D41<0.5),"-",IFERROR('Tabel 2 F'!D41/'Tabel 1 F'!C39*100,"-")) -> 3.194928317 | F41: =IF(OR('Tabel 1 F'!E39<5,'Tabel 2 F'!F41<0.5),"-",IFERROR('Tabel 2 F'!F41/'Tabel 1 F'!E39*100,"-")) -> 7.086614173 | G41: =IF(OR('Tabel 1 F'!E39<5,'Tabel 2 F'!G41<0.5),"-",IFERROR('Tabel 2 F'!G41/'Tabel 1 F'!E39*100,"-")) -> 5.184680612 | I41: =IF(OR('Tabel 1 F'!G39<5,'Tabel 2 F'!I41<0.5),"-",IFERROR('Tabel 2 F'!I41/'Tabel 1 F'!G39*100,"-")) -> 4.23991727 | J41: =IF(OR('Tabel 1 F'!G39<5,'Tabel 2 F'!J41<0.5),"-",IFERROR('Tabel 2 F'!J41/'Tabel 1 F'!G39*100,"-")) -> 3.456250491
A42: Cand. IT. | C42: =IF(OR('Tabel 1 F'!C40<5,'Tabel 2 F'!C42<0.5),"-",IFERROR('Tabel 2 F'!C42/'Tabel 1 F'!C40*100,"-")) -> 9.230769231 | D42: =IF(OR('Tabel 1 F'!C40<5,'Tabel 2 F'!D42<0.5),"-",IFERROR('Tabel 2 F'!D42/'Tabel 1 F'!C40*100,"-")) -> 8.668659352 | F42: =IF(OR('Tabel 1 F'!E40<5,'Tabel 2 F'!F42<0.5),"-",IFERROR('Tabel 2 F'!F42/'Tabel 1 F'!E40*100,"-")) -> 15.65217391 | G42: =IF(OR('Tabel 1 F'!E40<5,'Tabel 2 F'!G42<0.5),"-",IFERROR('Tabel 2 F'!G42/'Tabel 1 F'!E40*100,"-")) -> 12.74436692 | I42: =IF(OR('Tabel 1 F'!G40<5,'Tabel 2 F'!I42<0.5),"-",IFERROR('Tabel 2 F'!I42/'Tabel 1 F'!G40*100,"-")) -> 12.24489796 | J42: =IF(OR('Tabel 1 F'!G40<5,'Tabel 2 F'!J42<0.5),"-",IFERROR('Tabel 2 F'!J42/'Tabel 1 F'!G40*100,"-")) -> 10.58174658
A43: Bac. Samf. | C43: =IF(OR('Tabel 1 F'!C41<5,'Tabel 2 F'!C43<0.5),"-",IFERROR('Tabel 2 F'!C43/'Tabel 1 F'!C41*100,"-")) -> 5.555555556 | D43: =IF(OR('Tabel 1 F'!C41<5,'Tabel 2 F'!D43<0.5),"-",IFERROR('Tabel 2 F'!D43/'Tabel 1 F'!C41*100,"-")) -> 4.785269271 | F43: =IF(OR('Tabel 1 F'!E41<5,'Tabel 2 F'!F43<0.5),"-",IFERROR('Tabel 2 F'!F43/'Tabel 1 F'!E41*100,"-")) -> 16.39344262 | G43: =IF(OR('Tabel 1 F'!E41<5,'Tabel 2 F'!G43<0.5),"-",IFERROR('Tabel 2 F'!G43/'Tabel 1 F'!E41*100,"-")) -> 11.65219685 | I43: =IF(OR('Tabel 1 F'!G41<5,'Tabel 2 F'!I43<0.5),"-",IFERROR('Tabel 2 F'!I43/'Tabel 1 F'!G41*100,"-")) -> 12.37113402 | J43: =IF(OR('Tabel 1 F'!G41<5,'Tabel 2 F'!J43<0.5),"-",IFERROR('Tabel 2 F'!J43/'Tabel 1 F'!G41*100,"-")) -> 9.10364641
A44: Bac. Hum. | C44: =IF(OR('Tabel 1 F'!C42<5,'Tabel 2 F'!C44<0.5),"-",IFERROR('Tabel 2 F'!C44/'Tabel 1 F'!C42*100,"-")) -> 12.14953271 | D44: =IF(OR('Tabel 1 F'!C42<5,'Tabel 2 F'!D44<0.5),"-",IFERROR('Tabel 2 F'!D44/'Tabel 1 F'!C42*100,"-")) -> 9.934533389 | F44: =IF(OR('Tabel 1 F'!E42<5,'Tabel 2 F'!F44<0.5),"-",IFERROR('Tabel 2 F'!F44/'Tabel 1 F'!E42*100,"-")) -> 9.329446064 | G44: =IF(OR('Tabel 1 F'!E42<5,'Tabel 2 F'!G44<0.5),"-",IFERROR('Tabel 2 F'!G44/'Tabel 1 F'!E42*100,"-")) -> 7.448740471 | I44: =IF(OR('Tabel 1 F'!G42<5,'Tabel 2 F'!I44<0.5),"-",IFERROR('Tabel 2 F'!I44/'Tabel 1 F'!G42*100,"-")) -> 10.41292639 | J44: =IF(OR('Tabel 1 F'!G42<5,'Tabel 2 F'!J44<0.5),"-",IFERROR('Tabel 2 F'!J44/'Tabel 1 F'!G42*100,"-")) -> 8.403784788
A45: Bac. Nat. | C45: =IF(OR('Tabel 1 F'!C43<5,'Tabel 2 F'!C45<0.5),"-",IFERROR('Tabel 2 F'!C45/'Tabel 1 F'!C43*100,"-")) -> 10.26785714 | D45: =IF(OR('Tabel 1 F'!C43<5,'Tabel 2 F'!D45<0.5),"-",IFERROR('Tabel 2 F'!D45/'Tabel 1 F'!C43*100,"-")) -> 8.89432287 | F45: =IF(OR('Tabel 1 F'!E43<5,'Tabel 2 F'!F45<0.5),"-",IFERROR('Tabel 2 F'!F45/'Tabel 1 F'!E43*100,"-")) -> 14.43298969 | G45: =IF(OR('Tabel 1 F'!E43<5,'Tabel 2 F'!G45<0.5),"-",IFERROR('Tabel 2 F'!G45/'Tabel 1 F'!E43*100,"-")) -> 10.99664931 | I45: =IF(OR('Tabel 1 F'!G43<5,'Tabel 2 F'!I45<0.5),"-",IFERROR('Tabel 2 F'!I45/'Tabel 1 F'!G43*100,"-")) -> 11.52647975 | J45: =IF(OR('Tabel 1 F'!G43<5,'Tabel 2 F'!J45<0.5),"-",IFERROR('Tabel 2 F'!J45/'Tabel 1 F'!G43*100,"-")) -> 9.529605314
A46: Andre | C46: =IF(OR('Tabel 1 F'!C44<5,'Tabel 2 F'!C46<0.5),"-",IFERROR('Tabel 2 F'!C46/'Tabel 1 F'!C44*100,"-")) -> 6.161137441 | D46: =IF(OR('Tabel 1 F'!C44<5,'Tabel 2 F'!D46<0.5),"-",IFERROR('Tabel 2 F'!D46/'Tabel 1 F'!C44*100,"-")) -> 5.225744414 | F46: =IF(OR('Tabel 1 F'!E44<5,'Tabel 2 F'!F46<0.5),"-",IFERROR('Tabel 2 F'!F46/'Tabel 1 F'!E44*100,"-")) -> 8.052708638 | G46: =IF(OR('Tabel 1 F'!E44<5,'Tabel 2 F'!G46<0.5),"-",IFERROR('Tabel 2 F'!G46/'Tabel 1 F'!E44*100,"-")) -> 6.48159876 | I46: =IF(OR('Tabel 1 F'!G44<5,'Tabel 2 F'!I46<0.5),"-",IFERROR('Tabel 2 F'!I46/'Tabel 1 F'!G44*100,"-")) -> 7.007203667 | J46: =IF(OR('Tabel 1 F'!G44<5,'Tabel 2 F'!J46<0.5),"-",IFERROR('Tabel 2 F'!J46/'Tabel 1 F'!G44*100,"-")) -> 5.787465775
A48: Total | C48: =IF(OR('Tabel 1 F'!C46<5,'Tabel 2 F'!C48<0.5),"-",IFERROR('Tabel 2 F'!C48/'Tabel 1 F'!C46*100,"-")) -> 5.86201598 | D48: =IF(OR('Tabel 1 F'!C46<5,'Tabel 2 F'!D48<0.5),"-",IFERROR('Tabel 2 F'!D48/'Tabel 1 F'!C46*100,"-")) -> 4.728921116 | F48: =IF(OR('Tabel 1 F'!E46<5,'Tabel 2 F'!F48<0.5),"-",IFERROR('Tabel 2 F'!F48/'Tabel 1 F'!E46*100,"-")) -> 7.989568516 | G48: =IF(OR('Tabel 1 F'!E46<5,'Tabel 2 F'!G48<0.5),"-",IFERROR('Tabel 2 F'!G48/'Tabel 1 F'!E46*100,"-")) -> 6.259828948 | I48: =IF(OR('Tabel 1 F'!G46<5,'Tabel 2 F'!I48<0.5),"-",IFERROR('Tabel 2 F'!I48/'Tabel 1 F'!G46*100,"-")) -> 6.910790806 | J48: =IF(OR('Tabel 1 F'!G46<5,'Tabel 2 F'!J48<0.5),"-",IFERROR('Tabel 2 F'!J48/'Tabel 1 F'!G46*100,"-")) -> 5.483580551
A50: Ingeniører i alt | C50: =IF(OR('Tabel 1 F'!C48<5,'Tabel 2 F'!C50<0.5),"-",IFERROR('Tabel 2 F'!C50/'Tabel 1 F'!C48*100,"-")) -> 3.494297501 | D50: =IF(OR('Tabel 1 F'!C48<5,'Tabel 2 F'!D50<0.5),"-",IFERROR('Tabel 2 F'!D50/'Tabel 1 F'!C48*100,"-")) -> 2.774367651 | F50: =IF(OR('Tabel 1 F'!E48<5,'Tabel 2 F'!F50<0.5),"-",IFERROR('Tabel 2 F'!F50/'Tabel 1 F'!E48*100,"-")) -> 5.7 | G50: =IF(OR('Tabel 1 F'!E48<5,'Tabel 2 F'!G50<0.5),"-",IFERROR('Tabel 2 F'!G50/'Tabel 1 F'!E48*100,"-")) -> 4.601259901 | I50: =IF(OR('Tabel 1 F'!G48<5,'Tabel 2 F'!I50<0.5),"-",IFERROR('Tabel 2 F'!I50/'Tabel 1 F'!G48*100,"-")) -> 3.925014646 | J50: =IF(OR('Tabel 1 F'!G48<5,'Tabel 2 F'!J50<0.5),"-",IFERROR('Tabel 2 F'!J50/'Tabel 1 F'!G48*100,"-")) -> 3.131112867
A51: Magistre i alt | C51: =IF(OR('Tabel 1 F'!C49<5,'Tabel 2 F'!C51<0.5),"-",IFERROR('Tabel 2 F'!C51/'Tabel 1 F'!C49*100,"-")) -> 8.772819473 | D51: =IF(OR('Tabel 1 F'!C49<5,'Tabel 2 F'!D51<0.5),"-",IFERROR('Tabel 2 F'!D51/'Tabel 1 F'!C49*100,"-")) -> 6.96598256 | F51: =IF(OR('Tabel 1 F'!E49<5,'Tabel 2 F'!F51<0.5),"-",IFERROR('Tabel 2 F'!F51/'Tabel 1 F'!E49*100,"-")) -> 10.21775544 | G51: =IF(OR('Tabel 1 F'!E49<5,'Tabel 2 F'!G51<0.5),"-",IFERROR('Tabel 2 F'!G51/'Tabel 1 F'!E49*100,"-")) -> 7.847960706 | I51: =IF(OR('Tabel 1 F'!G49<5,'Tabel 2 F'!I51<0.5),"-",IFERROR('Tabel 2 F'!I51/'Tabel 1 F'!G49*100,"-")) -> 9.704717321 | J51: =IF(OR('Tabel 1 F'!G49<5,'Tabel 2 F'!J51<0.5),"-",IFERROR('Tabel 2 F'!J51/'Tabel 1 F'!G49*100,"-")) -> 7.53480606
A52: DJØF'ere i alt | C52: =IF(OR('Tabel 1 F'!C50<5,'Tabel 2 F'!C52<0.5),"-",IFERROR('Tabel 2 F'!C52/'Tabel 1 F'!C50*100,"-")) -> 5.983246909 | D52: =IF(OR('Tabel 1 F'!C50<5,'Tabel 2 F'!D52<0.5),"-",IFERROR('Tabel 2 F'!D52/'Tabel 1 F'!C50*100,"-")) -> 4.638145234 | F52: =IF(OR('Tabel 1 F'!E50<5,'Tabel 2 F'!F52<0.5),"-",IFERROR('Tabel 2 F'!F52/'Tabel 1 F'!E50*100,"-")) -> 6.633165829 | G52: =IF(OR('Tabel 1 F'!E50<5,'Tabel 2 F'!G52<0.5),"-",IFERROR('Tabel 2 F'!G52/'Tabel 1 F'!E50*100,"-")) -> 5.372420221 | I52: =IF(OR('Tabel 1 F'!G50<5,'Tabel 2 F'!I52<0.5),"-",IFERROR('Tabel 2 F'!I52/'Tabel 1 F'!G50*100,"-")) -> 6.336489439 | J52: =IF(OR('Tabel 1 F'!G50<5,'Tabel 2 F'!J52<0.5),"-",IFERROR('Tabel 2 F'!J52/'Tabel 1 F'!G50*100,"-")) -> 5.037236792
A57: Middelfart
C59: Mænd | F59: Kvinder | I59: I alt
C60: Ledigheds- berørte | D60: Gns. brutto- ledighed | F60: Ledigheds- berørte | G60: Gns. brutto- ledighed | I60: Ledigheds- berørte | J60: Gns. brutto- ledighed
A63: Civ. ing. | C63: =IF(OR('Tabel 1 F'!C61<5,'Tabel 2 F'!C63<0.5),"-",IFERROR('Tabel 2 F'!C63/'Tabel 1 F'!C61*100,"-")) -> 1.063829787 | D63: =IF(OR('Tabel 1 F'!C61<5,'Tabel 2 F'!D63<0.5),"-",IFERROR('Tabel 2 F'!D63/'Tabel 1 F'!C61*100,"-")) -> 0.9906429691 | F63: =IF(OR('Tabel 1 F'!E61<5,'Tabel 2 F'!F63<0.5),"-",IFERROR('Tabel 2 F'!F63/'Tabel 1 F'!E61*100,"-")) -> - | G63: =IF(OR('Tabel 1 F'!E61<5,'Tabel 2 F'!G63<0.5),"-",IFERROR('Tabel 2 F'!G63/'Tabel 1 F'!E61*100,"-")) -> - | I63: =IF(OR('Tabel 1 F'!G61<5,'Tabel 2 F'!I63<0.5),"-",IFERROR('Tabel 2 F'!I63/'Tabel 1 F'!G61*100,"-")) -> 0.8064516129 | J63: =IF(OR('Tabel 1 F'!G61<5,'Tabel 2 F'!J63<0.5),"-",IFERROR('Tabel 2 F'!J63/'Tabel 1 F'!G61*100,"-")) -> 0.750971283
A64: Diplom ing. | C64: =IF(OR('Tabel 1 F'!C62<5,'Tabel 2 F'!C64<0.5),"-",IFERROR('Tabel 2 F'!C64/'Tabel 1 F'!C62*100,"-")) -> 0.8130081301 | D64: =IF(OR('Tabel 1 F'!C62<5,'Tabel 2 F'!D64<0.5),"-",IFERROR('Tabel 2 F'!D64/'Tabel 1 F'!C62*100,"-")) -> 0.4939000304 | F64: =IF(OR('Tabel 1 F'!E62<5,'Tabel 2 F'!F64<0.5),"-",IFERROR('Tabel 2 F'!F64/'Tabel 1 F'!E62*100,"-")) -> - | G64: =IF(OR('Tabel 1 F'!E62<5,'Tabel 2 F'!G64<0.5),"-",IFERROR('Tabel 2 F'!G64/'Tabel 1 F'!E62*100,"-")) -> - | I64: =IF(OR('Tabel 1 F'!G62<5,'Tabel 2 F'!I64<0.5),"-",IFERROR('Tabel 2 F'!I64/'Tabel 1 F'!G62*100,"-")) -> 0.6557377049 | J64: =IF(OR('Tabel 1 F'!G62<5,'Tabel 2 F'!J64<0.5),"-",IFERROR('Tabel 2 F'!J64/'Tabel 1 F'!G62*100,"-")) -> 0.398358713
A65: Cand. Scient. Tek. | C65: =IF(OR('Tabel 1 F'!C63<5,'Tabel 2 F'!C65<0.5),"-",IFERROR('Tabel 2 F'!C65/'Tabel 1 F'!C63*100,"-")) -> 2.5 | D65: =IF(OR('Tabel 1 F'!C63<5,'Tabel 2 F'!D65<0.5),"-",IFERROR('Tabel 2 F'!D65/'Tabel 1 F'!C63*100,"-")) -> 1.345662072 | F65: =IF(OR('Tabel 1 F'!E63<5,'Tabel 2 F'!F65<0.5),"-",IFERROR('Tabel 2 F'!F65/'Tabel 1 F'!E63*100,"-")) -> 5.128205128 | G65: =IF(OR('Tabel 1 F'!E63<5,'Tabel 2 F'!G65<0.5),"-",IFERROR('Tabel 2 F'!G65/'Tabel 1 F'!E63*100,"-")) -> 4.890554257 | I65: =IF(OR('Tabel 1 F'!G63<5,'Tabel 2 F'!I65<0.5),"-",IFERROR('Tabel 2 F'!I65/'Tabel 1 F'!G63*100,"-")) -> 3.797468354 | J65: =IF(OR('Tabel 1 F'!G63<5,'Tabel 2 F'!J65<0.5),"-",IFERROR('Tabel 2 F'!J65/'Tabel 1 F'!G63*100,"-")) -> 3.095672138
A66: MA. Hum. | C66: =IF(OR('Tabel 1 F'!C64<5,'Tabel 2 F'!C66<0.5),"-",IFERROR('Tabel 2 F'!C66/'Tabel 1 F'!C64*100,"-")) -> 1.666666667 | D66: =IF(OR('Tabel 1 F'!C64<5,'Tabel 2 F'!D66<0.5),"-",IFERROR('Tabel 2 F'!D66/'Tabel 1 F'!C64*100,"-")) -> 1.0509574 | F66: =IF(OR('Tabel 1 F'!E64<5,'Tabel 2 F'!F66<0.5),"-",IFERROR('Tabel 2 F'!F66/'Tabel 1 F'!E64*100,"-")) -> 7.407407407 | G66: =IF(OR('Tabel 1 F'!E64<5,'Tabel 2 F'!G66<0.5),"-",IFERROR('Tabel 2 F'!G66/'Tabel 1 F'!E64*100,"-")) -> 6.112855199 | I66: =IF(OR('Tabel 1 F'!G64<5,'Tabel 2 F'!I66<0.5),"-",IFERROR('Tabel 2 F'!I66/'Tabel 1 F'!G64*100,"-")) -> 5.641025641 | J66: =IF(OR('Tabel 1 F'!G64<5,'Tabel 2 F'!J66<0.5),"-",IFERROR('Tabel 2 F'!J66/'Tabel 1 F'!G64*100,"-")) -> 4.555348184
A67: MA. Nat. | C67: =IF(OR('Tabel 1 F'!C65<5,'Tabel 2 F'!C67<0.5),"-",IFERROR('Tabel 2 F'!C67/'Tabel 1 F'!C65*100,"-")) -> 2.941176471 | D67: =IF(OR('Tabel 1 F'!C65<5,'Tabel 2 F'!D67<0.5),"-",IFERROR('Tabel 2 F'!D67/'Tabel 1 F'!C65*100,"-")) -> 2.940626135 | F67: =IF(OR('Tabel 1 F'!E65<5,'Tabel 2 F'!F67<0.5),"-",IFERROR('Tabel 2 F'!F67/'Tabel 1 F'!E65*100,"-")) -> 2.272727273 | G67: =IF(OR('Tabel 1 F'!E65<5,'Tabel 2 F'!G67<0.5),"-",IFERROR('Tabel 2 F'!G67/'Tabel 1 F'!E65*100,"-")) -> - | I67: =IF(OR('Tabel 1 F'!G65<5,'Tabel 2 F'!I67<0.5),"-",IFERROR('Tabel 2 F'!I67/'Tabel 1 F'!G65*100,"-")) -> 2.564102564 | J67: =IF(OR('Tabel 1 F'!G65<5,'Tabel 2 F'!J67<0.5),"-",IFERROR('Tabel 2 F'!J67/'Tabel 1 F'!G65*100,"-")) -> 1.85354885
A68: MA. Ph.d. | C68: =IF(OR('Tabel 1 F'!C66<5,'Tabel 2 F'!C68<0.5),"-",IFERROR('Tabel 2 F'!C68/'Tabel 1 F'!C66*100,"-")) -> - | D68: =IF(OR('Tabel 1 F'!C66<5,'Tabel 2 F'!D68<0.5),"-",IFERROR('Tabel 2 F'!D68/'Tabel 1 F'!C66*100,"-")) -> - | F68: =IF(OR('Tabel 1 F'!E66<5,'Tabel 2 F'!F68<0.5),"-",IFERROR('Tabel 2 F'!F68/'Tabel 1 F'!E66*100,"-")) -> - | G68: =IF(OR('Tabel 1 F'!E66<5,'Tabel 2 F'!G68<0.5),"-",IFERROR('Tabel 2 F'!G68/'Tabel 1 F'!E66*100,"-")) -> - | I68: =IF(OR('Tabel 1 F'!G66<5,'Tabel 2 F'!I68<0.5),"-",IFERROR('Tabel 2 F'!I68/'Tabel 1 F'!G66*100,"-")) -> - | J68: =IF(OR('Tabel 1 F'!G66<5,'Tabel 2 F'!J68<0.5),"-",IFERROR('Tabel 2 F'!J68/'Tabel 1 F'!G66*100,"-")) -> -
A69: MA. Samf. | C69: =IF(OR('Tabel 1 F'!C67<5,'Tabel 2 F'!C69<0.5),"-",IFERROR('Tabel 2 F'!C69/'Tabel 1 F'!C67*100,"-")) -> - | D69: =IF(OR('Tabel 1 F'!C67<5,'Tabel 2 F'!D69<0.5),"-",IFERROR('Tabel 2 F'!D69/'Tabel 1 F'!C67*100,"-")) -> - | F69: =IF(OR('Tabel 1 F'!E67<5,'Tabel 2 F'!F69<0.5),"-",IFERROR('Tabel 2 F'!F69/'Tabel 1 F'!E67*100,"-")) -> - | G69: =IF(OR('Tabel 1 F'!E67<5,'Tabel 2 F'!G69<0.5),"-",IFERROR('Tabel 2 F'!G69/'Tabel 1 F'!E67*100,"-")) -> - | I69: =IF(OR('Tabel 1 F'!G67<5,'Tabel 2 F'!I69<0.5),"-",IFERROR('Tabel 2 F'!I69/'Tabel 1 F'!G67*100,"-")) -> - | J69: =IF(OR('Tabel 1 F'!G67<5,'Tabel 2 F'!J69<0.5),"-",IFERROR('Tabel 2 F'!J69/'Tabel 1 F'!G67*100,"-")) -> -
A70: Øvrige Mag. | C70: =IF(OR('Tabel 1 F'!C68<5,'Tabel 2 F'!C70<0.5),"-",IFERROR('Tabel 2 F'!C70/'Tabel 1 F'!C68*100,"-")) -> - | D70: =IF(OR('Tabel 1 F'!C68<5,'Tabel 2 F'!D70<0.5),"-",IFERROR('Tabel 2 F'!D70/'Tabel 1 F'!C68*100,"-")) -> - | F70: =IF(OR('Tabel 1 F'!E68<5,'Tabel 2 F'!F70<0.5),"-",IFERROR('Tabel 2 F'!F70/'Tabel 1 F'!E68*100,"-")) -> - | G70: =IF(OR('Tabel 1 F'!E68<5,'Tabel 2 F'!G70<0.5),"-",IFERROR('Tabel 2 F'!G70/'Tabel 1 F'!E68*100,"-")) -> - | I70: =IF(OR('Tabel 1 F'!G68<5,'Tabel 2 F'!I70<0.5),"-",IFERROR('Tabel 2 F'!I70/'Tabel 1 F'!G68*100,"-")) -> - | J70: =IF(OR('Tabel 1 F'!G68<5,'Tabel 2 F'!J70<0.5),"-",IFERROR('Tabel 2 F'!J70/'Tabel 1 F'!G68*100,"-")) -> -
A71: Agronom | C71: =IF(OR('Tabel 1 F'!C69<5,'Tabel 2 F'!C71<0.5),"-",IFERROR('Tabel 2 F'!C71/'Tabel 1 F'!C69*100,"-")) -> - | D71: =IF(OR('Tabel 1 F'!C69<5,'Tabel 2 F'!D71<0.5),"-",IFERROR('Tabel 2 F'!D71/'Tabel 1 F'!C69*100,"-")) -> - | F71: =IF(OR('Tabel 1 F'!E69<5,'Tabel 2 F'!F71<0.5),"-",IFERROR('Tabel 2 F'!F71/'Tabel 1 F'!E69*100,"-")) -> - | G71: =IF(OR('Tabel 1 F'!E69<5,'Tabel 2 F'!G71<0.5),"-",IFERROR('Tabel 2 F'!G71/'Tabel 1 F'!E69*100,"-")) -> - | I71: =IF(OR('Tabel 1 F'!G69<5,'Tabel 2 F'!I71<0.5),"-",IFERROR('Tabel 2 F'!I71/'Tabel 1 F'!G69*100,"-")) -> - | J71: =IF(OR('Tabel 1 F'!G69<5,'Tabel 2 F'!J71<0.5),"-",IFERROR('Tabel 2 F'!J71/'Tabel 1 F'!G69*100,"-")) -> -
A72: Landsk. Arkt. | C72: =IF(OR('Tabel 1 F'!C70<5,'Tabel 2 F'!C72<0.5),"-",IFERROR('Tabel 2 F'!C72/'Tabel 1 F'!C70*100,"-")) -> - | D72: =IF(OR('Tabel 1 F'!C70<5,'Tabel 2 F'!D72<0.5),"-",IFERROR('Tabel 2 F'!D72/'Tabel 1 F'!C70*100,"-")) -> - | F72: =IF(OR('Tabel 1 F'!E70<5,'Tabel 2 F'!F72<0.5),"-",IFERROR('Tabel 2 F'!F72/'Tabel 1 F'!E70*100,"-")) -> - | G72: =IF(OR('Tabel 1 F'!E70<5,'Tabel 2 F'!G72<0.5),"-",IFERROR('Tabel 2 F'!G72/'Tabel 1 F'!E70*100,"-")) -> - | I72: =IF(OR('Tabel 1 F'!G70<5,'Tabel 2 F'!I72<0.5),"-",IFERROR('Tabel 2 F'!I72/'Tabel 1 F'!G70*100,"-")) -> - | J72: =IF(OR('Tabel 1 F'!G70<5,'Tabel 2 F'!J72<0.5),"-",IFERROR('Tabel 2 F'!J72/'Tabel 1 F'!G70*100,"-")) -> -
A73: Hortonom | C73: =IF(OR('Tabel 1 F'!C71<5,'Tabel 2 F'!C73<0.5),"-",IFERROR('Tabel 2 F'!C73/'Tabel 1 F'!C71*100,"-")) -> - | D73: =IF(OR('Tabel 1 F'!C71<5,'Tabel 2 F'!D73<0.5),"-",IFERROR('Tabel 2 F'!D73/'Tabel 1 F'!C71*100,"-")) -> - | F73: =IF(OR('Tabel 1 F'!E71<5,'Tabel 2 F'!F73<0.5),"-",IFERROR('Tabel 2 F'!F73/'Tabel 1 F'!E71*100,"-")) -> - | G73: =IF(OR('Tabel 1 F'!E71<5,'Tabel 2 F'!G73<0.5),"-",IFERROR('Tabel 2 F'!G73/'Tabel 1 F'!E71*100,"-")) -> - | I73: =IF(OR('Tabel 1 F'!G71<5,'Tabel 2 F'!I73<0.5),"-",IFERROR('Tabel 2 F'!I73/'Tabel 1 F'!G71*100,"-")) -> - | J73: =IF(OR('Tabel 1 F'!G71<5,'Tabel 2 F'!J73<0.5),"-",IFERROR('Tabel 2 F'!J73/'Tabel 1 F'!G71*100,"-")) -> -
A74: Forstkand. | C74: =IF(OR('Tabel 1 F'!C72<5,'Tabel 2 F'!C74<0.5),"-",IFERROR('Tabel 2 F'!C74/'Tabel 1 F'!C72*100,"-")) -> - | D74: =IF(OR('Tabel 1 F'!C72<5,'Tabel 2 F'!D74<0.5),"-",IFERROR('Tabel 2 F'!D74/'Tabel 1 F'!C72*100,"-")) -> - | F74: =IF(OR('Tabel 1 F'!E72<5,'Tabel 2 F'!F74<0.5),"-",IFERROR('Tabel 2 F'!F74/'Tabel 1 F'!E72*100,"-")) -> - | G74: =IF(OR('Tabel 1 F'!E72<5,'Tabel 2 F'!G74<0.5),"-",IFERROR('Tabel 2 F'!G74/'Tabel 1 F'!E72*100,"-")) -> - | I74: =IF(OR('Tabel 1 F'!G72<5,'Tabel 2 F'!I74<0.5),"-",IFERROR('Tabel 2 F'!I74/'Tabel 1 F'!G72*100,"-")) -> - | J74: =IF(OR('Tabel 1 F'!G72<5,'Tabel 2 F'!J74<0.5),"-",IFERROR('Tabel 2 F'!J74/'Tabel 1 F'!G72*100,"-")) -> -
A75: Jordbrugsakad. | C75: =IF(OR('Tabel 1 F'!C73<5,'Tabel 2 F'!C75<0.5),"-",IFERROR('Tabel 2 F'!C75/'Tabel 1 F'!C73*100,"-")) -> - | D75: =IF(OR('Tabel 1 F'!C73<5,'Tabel 2 F'!D75<0.5),"-",IFERROR('Tabel 2 F'!D75/'Tabel 1 F'!C73*100,"-")) -> - | F75: =IF(OR('Tabel 1 F'!E73<5,'Tabel 2 F'!F75<0.5),"-",IFERROR('Tabel 2 F'!F75/'Tabel 1 F'!E73*100,"-")) -> - | G75: =IF(OR('Tabel 1 F'!E73<5,'Tabel 2 F'!G75<0.5),"-",IFERROR('Tabel 2 F'!G75/'Tabel 1 F'!E73*100,"-")) -> - | I75: =IF(OR('Tabel 1 F'!G73<5,'Tabel 2 F'!I75<0.5),"-",IFERROR('Tabel 2 F'!I75/'Tabel 1 F'!G73*100,"-")) -> - | J75: =IF(OR('Tabel 1 F'!G73<5,'Tabel 2 F'!J75<0.5),"-",IFERROR('Tabel 2 F'!J75/'Tabel 1 F'!G73*100,"-")) -> -
A76: Mejeriing. | C76: =IF(OR('Tabel 1 F'!C74<5,'Tabel 2 F'!C76<0.5),"-",IFERROR('Tabel 2 F'!C76/'Tabel 1 F'!C74*100,"-")) -> - | D76: =IF(OR('Tabel 1 F'!C74<5,'Tabel 2 F'!D76<0.5),"-",IFERROR('Tabel 2 F'!D76/'Tabel 1 F'!C74*100,"-")) -> - | F76: =IF(OR('Tabel 1 F'!E74<5,'Tabel 2 F'!F76<0.5),"-",IFERROR('Tabel 2 F'!F76/'Tabel 1 F'!E74*100,"-")) -> - | G76: =IF(OR('Tabel 1 F'!E74<5,'Tabel 2 F'!G76<0.5),"-",IFERROR('Tabel 2 F'!G76/'Tabel 1 F'!E74*100,"-")) -> - | I76: =IF(OR('Tabel 1 F'!G74<5,'Tabel 2 F'!I76<0.5),"-",IFERROR('Tabel 2 F'!I76/'Tabel 1 F'!G74*100,"-")) -> - | J76: =IF(OR('Tabel 1 F'!G74<5,'Tabel 2 F'!J76<0.5),"-",IFERROR('Tabel 2 F'!J76/'Tabel 1 F'!G74*100,"-")) -> -
A77: Levn.m.kand. | C77: =IF(OR('Tabel 1 F'!C75<5,'Tabel 2 F'!C77<0.5),"-",IFERROR('Tabel 2 F'!C77/'Tabel 1 F'!C75*100,"-")) -> - | D77: =IF(OR('Tabel 1 F'!C75<5,'Tabel 2 F'!D77<0.5),"-",IFERROR('Tabel 2 F'!D77/'Tabel 1 F'!C75*100,"-")) -> - | F77: =IF(OR('Tabel 1 F'!E75<5,'Tabel 2 F'!F77<0.5),"-",IFERROR('Tabel 2 F'!F77/'Tabel 1 F'!E75*100,"-")) -> - | G77: =IF(OR('Tabel 1 F'!E75<5,'Tabel 2 F'!G77<0.5),"-",IFERROR('Tabel 2 F'!G77/'Tabel 1 F'!E75*100,"-")) -> - | I77: =IF(OR('Tabel 1 F'!G75<5,'Tabel 2 F'!I77<0.5),"-",IFERROR('Tabel 2 F'!I77/'Tabel 1 F'!G75*100,"-")) -> - | J77: =IF(OR('Tabel 1 F'!G75<5,'Tabel 2 F'!J77<0.5),"-",IFERROR('Tabel 2 F'!J77/'Tabel 1 F'!G75*100,"-")) -> -
A78: Dyrlæge | C78: =IF(OR('Tabel 1 F'!C76<5,'Tabel 2 F'!C78<0.5),"-",IFERROR('Tabel 2 F'!C78/'Tabel 1 F'!C76*100,"-")) -> - | D78: =IF(OR('Tabel 1 F'!C76<5,'Tabel 2 F'!D78<0.5),"-",IFERROR('Tabel 2 F'!D78/'Tabel 1 F'!C76*100,"-")) -> - | F78: =IF(OR('Tabel 1 F'!E76<5,'Tabel 2 F'!F78<0.5),"-",IFERROR('Tabel 2 F'!F78/'Tabel 1 F'!E76*100,"-")) -> 7.142857143 | G78: =IF(OR('Tabel 1 F'!E76<5,'Tabel 2 F'!G78<0.5),"-",IFERROR('Tabel 2 F'!G78/'Tabel 1 F'!E76*100,"-")) -> 6.482166246 | I78: =IF(OR('Tabel 1 F'!G76<5,'Tabel 2 F'!I78<0.5),"-",IFERROR('Tabel 2 F'!I78/'Tabel 1 F'!G76*100,"-")) -> 5.555555556 | J78: =IF(OR('Tabel 1 F'!G76<5,'Tabel 2 F'!J78<0.5),"-",IFERROR('Tabel 2 F'!J78/'Tabel 1 F'!G76*100,"-")) -> 5.041684858
A79: Farmaceut | C79: =IF(OR('Tabel 1 F'!C77<5,'Tabel 2 F'!C79<0.5),"-",IFERROR('Tabel 2 F'!C79/'Tabel 1 F'!C77*100,"-")) -> - | D79: =IF(OR('Tabel 1 F'!C77<5,'Tabel 2 F'!D79<0.5),"-",IFERROR('Tabel 2 F'!D79/'Tabel 1 F'!C77*100,"-")) -> - | F79: =IF(OR('Tabel 1 F'!E77<5,'Tabel 2 F'!F79<0.5),"-",IFERROR('Tabel 2 F'!F79/'Tabel 1 F'!E77*100,"-")) -> - | G79: =IF(OR('Tabel 1 F'!E77<5,'Tabel 2 F'!G79<0.5),"-",IFERROR('Tabel 2 F'!G79/'Tabel 1 F'!E77*100,"-")) -> - | I79: =IF(OR('Tabel 1 F'!G77<5,'Tabel 2 F'!I79<0.5),"-",IFERROR('Tabel 2 F'!I79/'Tabel 1 F'!G77*100,"-")) -> - | J79: =IF(OR('Tabel 1 F'!G77<5,'Tabel 2 F'!J79<0.5),"-",IFERROR('Tabel 2 F'!J79/'Tabel 1 F'!G77*100,"-")) -> -
A80: Læge | C80: =IF(OR('Tabel 1 F'!C78<5,'Tabel 2 F'!C80<0.5),"-",IFERROR('Tabel 2 F'!C80/'Tabel 1 F'!C78*100,"-")) -> - | D80: =IF(OR('Tabel 1 F'!C78<5,'Tabel 2 F'!D80<0.5),"-",IFERROR('Tabel 2 F'!D80/'Tabel 1 F'!C78*100,"-")) -> - | F80: =IF(OR('Tabel 1 F'!E78<5,'Tabel 2 F'!F80<0.5),"-",IFERROR('Tabel 2 F'!F80/'Tabel 1 F'!E78*100,"-")) -> - | G80: =IF(OR('Tabel 1 F'!E78<5,'Tabel 2 F'!G80<0.5),"-",IFERROR('Tabel 2 F'!G80/'Tabel 1 F'!E78*100,"-")) -> - | I80: =IF(OR('Tabel 1 F'!G78<5,'Tabel 2 F'!I80<0.5),"-",IFERROR('Tabel 2 F'!I80/'Tabel 1 F'!G78*100,"-")) -> - | J80: =IF(OR('Tabel 1 F'!G78<5,'Tabel 2 F'!J80<0.5),"-",IFERROR('Tabel 2 F'!J80/'Tabel 1 F'!G78*100,"-")) -> -
A81: Tandlæge | C81: =IF(OR('Tabel 1 F'!C79<5,'Tabel 2 F'!C81<0.5),"-",IFERROR('Tabel 2 F'!C81/'Tabel 1 F'!C79*100,"-")) -> - | D81: =IF(OR('Tabel 1 F'!C79<5,'Tabel 2 F'!D81<0.5),"-",IFERROR('Tabel 2 F'!D81/'Tabel 1 F'!C79*100,"-")) -> - | F81: =IF(OR('Tabel 1 F'!E79<5,'Tabel 2 F'!F81<0.5),"-",IFERROR('Tabel 2 F'!F81/'Tabel 1 F'!E79*100,"-")) -> - | G81: =IF(OR('Tabel 1 F'!E79<5,'Tabel 2 F'!G81<0.5),"-",IFERROR('Tabel 2 F'!G81/'Tabel 1 F'!E79*100,"-")) -> - | I81: =IF(OR('Tabel 1 F'!G79<5,'Tabel 2 F'!I81<0.5),"-",IFERROR('Tabel 2 F'!I81/'Tabel 1 F'!G79*100,"-")) -> - | J81: =IF(OR('Tabel 1 F'!G79<5,'Tabel 2 F'!J81<0.5),"-",IFERROR('Tabel 2 F'!J81/'Tabel 1 F'!G79*100,"-")) -> -
A82: Arkitekt | C82: =IF(OR('Tabel 1 F'!C80<5,'Tabel 2 F'!C82<0.5),"-",IFERROR('Tabel 2 F'!C82/'Tabel 1 F'!C80*100,"-")) -> - | D82: =IF(OR('Tabel 1 F'!C80<5,'Tabel 2 F'!D82<0.5),"-",IFERROR('Tabel 2 F'!D82/'Tabel 1 F'!C80*100,"-")) -> - | F82: =IF(OR('Tabel 1 F'!E80<5,'Tabel 2 F'!F82<0.5),"-",IFERROR('Tabel 2 F'!F82/'Tabel 1 F'!E80*100,"-")) -> 12.5 | G82: =IF(OR('Tabel 1 F'!E80<5,'Tabel 2 F'!G82<0.5),"-",IFERROR('Tabel 2 F'!G82/'Tabel 1 F'!E80*100,"-")) -> 12.49766107 | I82: =IF(OR('Tabel 1 F'!G80<5,'Tabel 2 F'!I82<0.5),"-",IFERROR('Tabel 2 F'!I82/'Tabel 1 F'!G80*100,"-")) -> 8.333333333 | J82: =IF(OR('Tabel 1 F'!G80<5,'Tabel 2 F'!J82<0.5),"-",IFERROR('Tabel 2 F'!J82/'Tabel 1 F'!G80*100,"-")) -> 8.331774049
A83: Landinspek. | C83: =IF(OR('Tabel 1 F'!C81<5,'Tabel 2 F'!C83<0.5),"-",IFERROR('Tabel 2 F'!C83/'Tabel 1 F'!C81*100,"-")) -> - | D83: =IF(OR('Tabel 1 F'!C81<5,'Tabel 2 F'!D83<0.5),"-",IFERROR('Tabel 2 F'!D83/'Tabel 1 F'!C81*100,"-")) -> - | F83: =IF(OR('Tabel 1 F'!E81<5,'Tabel 2 F'!F83<0.5),"-",IFERROR('Tabel 2 F'!F83/'Tabel 1 F'!E81*100,"-")) -> - | G83: =IF(OR('Tabel 1 F'!E81<5,'Tabel 2 F'!G83<0.5),"-",IFERROR('Tabel 2 F'!G83/'Tabel 1 F'!E81*100,"-")) -> - | I83: =IF(OR('Tabel 1 F'!G81<5,'Tabel 2 F'!I83<0.5),"-",IFERROR('Tabel 2 F'!I83/'Tabel 1 F'!G81*100,"-")) -> - | J83: =IF(OR('Tabel 1 F'!G81<5,'Tabel 2 F'!J83<0.5),"-",IFERROR('Tabel 2 F'!J83/'Tabel 1 F'!G81*100,"-")) -> -
A84: Bibliotekar | C84: =IF(OR('Tabel 1 F'!C82<5,'Tabel 2 F'!C84<0.5),"-",IFERROR('Tabel 2 F'!C84/'Tabel 1 F'!C82*100,"-")) -> - | D84: =IF(OR('Tabel 1 F'!C82<5,'Tabel 2 F'!D84<0.5),"-",IFERROR('Tabel 2 F'!D84/'Tabel 1 F'!C82*100,"-")) -> - | F84: =IF(OR('Tabel 1 F'!E82<5,'Tabel 2 F'!F84<0.5),"-",IFERROR('Tabel 2 F'!F84/'Tabel 1 F'!E82*100,"-")) -> - | G84: =IF(OR('Tabel 1 F'!E82<5,'Tabel 2 F'!G84<0.5),"-",IFERROR('Tabel 2 F'!G84/'Tabel 1 F'!E82*100,"-")) -> - | I84: =IF(OR('Tabel 1 F'!G82<5,'Tabel 2 F'!I84<0.5),"-",IFERROR('Tabel 2 F'!I84/'Tabel 1 F'!G82*100,"-")) -> - | J84: =IF(OR('Tabel 1 F'!G82<5,'Tabel 2 F'!J84<0.5),"-",IFERROR('Tabel 2 F'!J84/'Tabel 1 F'!G82*100,"-")) -> -
A85: Musikudd. | C85: =IF(OR('Tabel 1 F'!C83<5,'Tabel 2 F'!C85<0.5),"-",IFERROR('Tabel 2 F'!C85/'Tabel 1 F'!C83*100,"-")) -> - | D85: =IF(OR('Tabel 1 F'!C83<5,'Tabel 2 F'!D85<0.5),"-",IFERROR('Tabel 2 F'!D85/'Tabel 1 F'!C83*100,"-")) -> - | F85: =IF(OR('Tabel 1 F'!E83<5,'Tabel 2 F'!F85<0.5),"-",IFERROR('Tabel 2 F'!F85/'Tabel 1 F'!E83*100,"-")) -> - | G85: =IF(OR('Tabel 1 F'!E83<5,'Tabel 2 F'!G85<0.5),"-",IFERROR('Tabel 2 F'!G85/'Tabel 1 F'!E83*100,"-")) -> - | I85: =IF(OR('Tabel 1 F'!G83<5,'Tabel 2 F'!I85<0.5),"-",IFERROR('Tabel 2 F'!I85/'Tabel 1 F'!G83*100,"-")) -> - | J85: =IF(OR('Tabel 1 F'!G83<5,'Tabel 2 F'!J85<0.5),"-",IFERROR('Tabel 2 F'!J85/'Tabel 1 F'!G83*100,"-")) -> -
A86: Teolog | C86: =IF(OR('Tabel 1 F'!C84<5,'Tabel 2 F'!C86<0.5),"-",IFERROR('Tabel 2 F'!C86/'Tabel 1 F'!C84*100,"-")) -> - | D86: =IF(OR('Tabel 1 F'!C84<5,'Tabel 2 F'!D86<0.5),"-",IFERROR('Tabel 2 F'!D86/'Tabel 1 F'!C84*100,"-")) -> - | F86: =IF(OR('Tabel 1 F'!E84<5,'Tabel 2 F'!F86<0.5),"-",IFERROR('Tabel 2 F'!F86/'Tabel 1 F'!E84*100,"-")) -> 14.28571429 | G86: =IF(OR('Tabel 1 F'!E84<5,'Tabel 2 F'!G86<0.5),"-",IFERROR('Tabel 2 F'!G86/'Tabel 1 F'!E84*100,"-")) -> 7.689497554 | I86: =IF(OR('Tabel 1 F'!G84<5,'Tabel 2 F'!I86<0.5),"-",IFERROR('Tabel 2 F'!I86/'Tabel 1 F'!G84*100,"-")) -> 7.142857143 | J86: =IF(OR('Tabel 1 F'!G84<5,'Tabel 2 F'!J86<0.5),"-",IFERROR('Tabel 2 F'!J86/'Tabel 1 F'!G84*100,"-")) -> 3.844748777
A87: Psykolog | C87: =IF(OR('Tabel 1 F'!C85<5,'Tabel 2 F'!C87<0.5),"-",IFERROR('Tabel 2 F'!C87/'Tabel 1 F'!C85*100,"-")) -> - | D87: =IF(OR('Tabel 1 F'!C85<5,'Tabel 2 F'!D87<0.5),"-",IFERROR('Tabel 2 F'!D87/'Tabel 1 F'!C85*100,"-")) -> - | F87: =IF(OR('Tabel 1 F'!E85<5,'Tabel 2 F'!F87<0.5),"-",IFERROR('Tabel 2 F'!F87/'Tabel 1 F'!E85*100,"-")) -> 2.272727273 | G87: =IF(OR('Tabel 1 F'!E85<5,'Tabel 2 F'!G87<0.5),"-",IFERROR('Tabel 2 F'!G87/'Tabel 1 F'!E85*100,"-")) -> 2.062507442 | I87: =IF(OR('Tabel 1 F'!G85<5,'Tabel 2 F'!I87<0.5),"-",IFERROR('Tabel 2 F'!I87/'Tabel 1 F'!G85*100,"-")) -> 1.886792453 | J87: =IF(OR('Tabel 1 F'!G85<5,'Tabel 2 F'!J87<0.5),"-",IFERROR('Tabel 2 F'!J87/'Tabel 1 F'!G85*100,"-")) -> 1.712270329
A88: Jurist | C88: =IF(OR('Tabel 1 F'!C86<5,'Tabel 2 F'!C88<0.5),"-",IFERROR('Tabel 2 F'!C88/'Tabel 1 F'!C86*100,"-")) -> - | D88: =IF(OR('Tabel 1 F'!C86<5,'Tabel 2 F'!D88<0.5),"-",IFERROR('Tabel 2 F'!D88/'Tabel 1 F'!C86*100,"-")) -> - | F88: =IF(OR('Tabel 1 F'!E86<5,'Tabel 2 F'!F88<0.5),"-",IFERROR('Tabel 2 F'!F88/'Tabel 1 F'!E86*100,"-")) -> - | G88: =IF(OR('Tabel 1 F'!E86<5,'Tabel 2 F'!G88<0.5),"-",IFERROR('Tabel 2 F'!G88/'Tabel 1 F'!E86*100,"-")) -> - | I88: =IF(OR('Tabel 1 F'!G86<5,'Tabel 2 F'!I88<0.5),"-",IFERROR('Tabel 2 F'!I88/'Tabel 1 F'!G86*100,"-")) -> - | J88: =IF(OR('Tabel 1 F'!G86<5,'Tabel 2 F'!J88<0.5),"-",IFERROR('Tabel 2 F'!J88/'Tabel 1 F'!G86*100,"-")) -> -
A89: Økonom | C89: =IF(OR('Tabel 1 F'!C87<5,'Tabel 2 F'!C89<0.5),"-",IFERROR('Tabel 2 F'!C89/'Tabel 1 F'!C87*100,"-")) -> - | D89: =IF(OR('Tabel 1 F'!C87<5,'Tabel 2 F'!D89<0.5),"-",IFERROR('Tabel 2 F'!D89/'Tabel 1 F'!C87*100,"-")) -> - | F89: =IF(OR('Tabel 1 F'!E87<5,'Tabel 2 F'!F89<0.5),"-",IFERROR('Tabel 2 F'!F89/'Tabel 1 F'!E87*100,"-")) -> - | G89: =IF(OR('Tabel 1 F'!E87<5,'Tabel 2 F'!G89<0.5),"-",IFERROR('Tabel 2 F'!G89/'Tabel 1 F'!E87*100,"-")) -> - | I89: =IF(OR('Tabel 1 F'!G87<5,'Tabel 2 F'!I89<0.5),"-",IFERROR('Tabel 2 F'!I89/'Tabel 1 F'!G87*100,"-")) -> - | J89: =IF(OR('Tabel 1 F'!G87<5,'Tabel 2 F'!J89<0.5),"-",IFERROR('Tabel 2 F'!J89/'Tabel 1 F'!G87*100,"-")) -> -
A90: Samf. Adm. | C90: =IF(OR('Tabel 1 F'!C88<5,'Tabel 2 F'!C90<0.5),"-",IFERROR('Tabel 2 F'!C90/'Tabel 1 F'!C88*100,"-")) -> 2.702702703 | D90: =IF(OR('Tabel 1 F'!C88<5,'Tabel 2 F'!D90<0.5),"-",IFERROR('Tabel 2 F'!D90/'Tabel 1 F'!C88*100,"-")) -> 1.704255244 | F90: =IF(OR('Tabel 1 F'!E88<5,'Tabel 2 F'!F90<0.5),"-",IFERROR('Tabel 2 F'!F90/'Tabel 1 F'!E88*100,"-")) -> 1.5625 | G90: =IF(OR('Tabel 1 F'!E88<5,'Tabel 2 F'!G90<0.5),"-",IFERROR('Tabel 2 F'!G90/'Tabel 1 F'!E88*100,"-")) -> 1.562207634 | I90: =IF(OR('Tabel 1 F'!G88<5,'Tabel 2 F'!I90<0.5),"-",IFERROR('Tabel 2 F'!I90/'Tabel 1 F'!G88*100,"-")) -> 1.98019802 | J90: =IF(OR('Tabel 1 F'!G88<5,'Tabel 2 F'!J90<0.5),"-",IFERROR('Tabel 2 F'!J90/'Tabel 1 F'!G88*100,"-")) -> 1.614244877
A91: Cand. Merc. | C91: =IF(OR('Tabel 1 F'!C89<5,'Tabel 2 F'!C91<0.5),"-",IFERROR('Tabel 2 F'!C91/'Tabel 1 F'!C89*100,"-")) -> - | D91: =IF(OR('Tabel 1 F'!C89<5,'Tabel 2 F'!D91<0.5),"-",IFERROR('Tabel 2 F'!D91/'Tabel 1 F'!C89*100,"-")) -> - | F91: =IF(OR('Tabel 1 F'!E89<5,'Tabel 2 F'!F91<0.5),"-",IFERROR('Tabel 2 F'!F91/'Tabel 1 F'!E89*100,"-")) -> 1.265822785 | G91: =IF(OR('Tabel 1 F'!E89<5,'Tabel 2 F'!G91<0.5),"-",IFERROR('Tabel 2 F'!G91/'Tabel 1 F'!E89*100,"-")) -> 1.265585932 | I91: =IF(OR('Tabel 1 F'!G89<5,'Tabel 2 F'!I91<0.5),"-",IFERROR('Tabel 2 F'!I91/'Tabel 1 F'!G89*100,"-")) -> 0.5952380952 | J91: =IF(OR('Tabel 1 F'!G89<5,'Tabel 2 F'!J91<0.5),"-",IFERROR('Tabel 2 F'!J91/'Tabel 1 F'!G89*100,"-")) -> 0.5951267178
A92: HA | C92: =IF(OR('Tabel 1 F'!C90<5,'Tabel 2 F'!C92<0.5),"-",IFERROR('Tabel 2 F'!C92/'Tabel 1 F'!C90*100,"-")) -> - | D92: =IF(OR('Tabel 1 F'!C90<5,'Tabel 2 F'!D92<0.5),"-",IFERROR('Tabel 2 F'!D92/'Tabel 1 F'!C90*100,"-")) -> - | F92: =IF(OR('Tabel 1 F'!E90<5,'Tabel 2 F'!F92<0.5),"-",IFERROR('Tabel 2 F'!F92/'Tabel 1 F'!E90*100,"-")) -> - | G92: =IF(OR('Tabel 1 F'!E90<5,'Tabel 2 F'!G92<0.5),"-",IFERROR('Tabel 2 F'!G92/'Tabel 1 F'!E90*100,"-")) -> - | I92: =IF(OR('Tabel 1 F'!G90<5,'Tabel 2 F'!I92<0.5),"-",IFERROR('Tabel 2 F'!I92/'Tabel 1 F'!G90*100,"-")) -> - | J92: =IF(OR('Tabel 1 F'!G90<5,'Tabel 2 F'!J92<0.5),"-",IFERROR('Tabel 2 F'!J92/'Tabel 1 F'!G90*100,"-")) -> -
A93: HD | C93: =IF(OR('Tabel 1 F'!C91<5,'Tabel 2 F'!C93<0.5),"-",IFERROR('Tabel 2 F'!C93/'Tabel 1 F'!C91*100,"-")) -> - | D93: =IF(OR('Tabel 1 F'!C91<5,'Tabel 2 F'!D93<0.5),"-",IFERROR('Tabel 2 F'!D93/'Tabel 1 F'!C91*100,"-")) -> - | F93: =IF(OR('Tabel 1 F'!E91<5,'Tabel 2 F'!F93<0.5),"-",IFERROR('Tabel 2 F'!F93/'Tabel 1 F'!E91*100,"-")) -> - | G93: =IF(OR('Tabel 1 F'!E91<5,'Tabel 2 F'!G93<0.5),"-",IFERROR('Tabel 2 F'!G93/'Tabel 1 F'!E91*100,"-")) -> - | I93: =IF(OR('Tabel 1 F'!G91<5,'Tabel 2 F'!I93<0.5),"-",IFERROR('Tabel 2 F'!I93/'Tabel 1 F'!G91*100,"-")) -> - | J93: =IF(OR('Tabel 1 F'!G91<5,'Tabel 2 F'!J93<0.5),"-",IFERROR('Tabel 2 F'!J93/'Tabel 1 F'!G91*100,"-")) -> -
A94: Komm. og Sprog | C94: =IF(OR('Tabel 1 F'!C92<5,'Tabel 2 F'!C94<0.5),"-",IFERROR('Tabel 2 F'!C94/'Tabel 1 F'!C92*100,"-")) -> - | D94: =IF(OR('Tabel 1 F'!C92<5,'Tabel 2 F'!D94<0.5),"-",IFERROR('Tabel 2 F'!D94/'Tabel 1 F'!C92*100,"-")) -> - | F94: =IF(OR('Tabel 1 F'!E92<5,'Tabel 2 F'!F94<0.5),"-",IFERROR('Tabel 2 F'!F94/'Tabel 1 F'!E92*100,"-")) -> - | G94: =IF(OR('Tabel 1 F'!E92<5,'Tabel 2 F'!G94<0.5),"-",IFERROR('Tabel 2 F'!G94/'Tabel 1 F'!E92*100,"-")) -> - | I94: =IF(OR('Tabel 1 F'!G92<5,'Tabel 2 F'!I94<0.5),"-",IFERROR('Tabel 2 F'!I94/'Tabel 1 F'!G92*100,"-")) -> - | J94: =IF(OR('Tabel 1 F'!G92<5,'Tabel 2 F'!J94<0.5),"-",IFERROR('Tabel 2 F'!J94/'Tabel 1 F'!G92*100,"-")) -> -
A95: Bygningskonst. | C95: =IF(OR('Tabel 1 F'!C93<5,'Tabel 2 F'!C95<0.5),"-",IFERROR('Tabel 2 F'!C95/'Tabel 1 F'!C93*100,"-")) -> - | D95: =IF(OR('Tabel 1 F'!C93<5,'Tabel 2 F'!D95<0.5),"-",IFERROR('Tabel 2 F'!D95/'Tabel 1 F'!C93*100,"-")) -> - | F95: =IF(OR('Tabel 1 F'!E93<5,'Tabel 2 F'!F95<0.5),"-",IFERROR('Tabel 2 F'!F95/'Tabel 1 F'!E93*100,"-")) -> 6.25 | G95: =IF(OR('Tabel 1 F'!E93<5,'Tabel 2 F'!G95<0.5),"-",IFERROR('Tabel 2 F'!G95/'Tabel 1 F'!E93*100,"-")) -> 4.999844072 | I95: =IF(OR('Tabel 1 F'!G93<5,'Tabel 2 F'!I95<0.5),"-",IFERROR('Tabel 2 F'!I95/'Tabel 1 F'!G93*100,"-")) -> 1.041666667 | J95: =IF(OR('Tabel 1 F'!G93<5,'Tabel 2 F'!J95<0.5),"-",IFERROR('Tabel 2 F'!J95/'Tabel 1 F'!G93*100,"-")) -> 0.8333073453
A96: Cand. IT. | C96: =IF(OR('Tabel 1 F'!C94<5,'Tabel 2 F'!C96<0.5),"-",IFERROR('Tabel 2 F'!C96/'Tabel 1 F'!C94*100,"-")) -> 16.66666667 | D96: =IF(OR('Tabel 1 F'!C94<5,'Tabel 2 F'!D96<0.5),"-",IFERROR('Tabel 2 F'!D96/'Tabel 1 F'!C94*100,"-")) -> 16.6635481 | F96: =IF(OR('Tabel 1 F'!E94<5,'Tabel 2 F'!F96<0.5),"-",IFERROR('Tabel 2 F'!F96/'Tabel 1 F'!E94*100,"-")) -> - | G96: =IF(OR('Tabel 1 F'!E94<5,'Tabel 2 F'!G96<0.5),"-",IFERROR('Tabel 2 F'!G96/'Tabel 1 F'!E94*100,"-")) -> - | I96: =IF(OR('Tabel 1 F'!G94<5,'Tabel 2 F'!I96<0.5),"-",IFERROR('Tabel 2 F'!I96/'Tabel 1 F'!G94*100,"-")) -> 7.692307692 | J96: =IF(OR('Tabel 1 F'!G94<5,'Tabel 2 F'!J96<0.5),"-",IFERROR('Tabel 2 F'!J96/'Tabel 1 F'!G94*100,"-")) -> 7.690868353
A97: Bac. Samf. | C97: =IF(OR('Tabel 1 F'!C95<5,'Tabel 2 F'!C97<0.5),"-",IFERROR('Tabel 2 F'!C97/'Tabel 1 F'!C95*100,"-")) -> - | D97: =IF(OR('Tabel 1 F'!C95<5,'Tabel 2 F'!D97<0.5),"-",IFERROR('Tabel 2 F'!D97/'Tabel 1 F'!C95*100,"-")) -> - | F97: =IF(OR('Tabel 1 F'!E95<5,'Tabel 2 F'!F97<0.5),"-",IFERROR('Tabel 2 F'!F97/'Tabel 1 F'!E95*100,"-")) -> 20 | G97: =IF(OR('Tabel 1 F'!E95<5,'Tabel 2 F'!G97<0.5),"-",IFERROR('Tabel 2 F'!G97/'Tabel 1 F'!E95*100,"-")) -> 11.73828978 | I97: =IF(OR('Tabel 1 F'!G95<5,'Tabel 2 F'!I97<0.5),"-",IFERROR('Tabel 2 F'!I97/'Tabel 1 F'!G95*100,"-")) -> 16.66666667 | J97: =IF(OR('Tabel 1 F'!G95<5,'Tabel 2 F'!J97<0.5),"-",IFERROR('Tabel 2 F'!J97/'Tabel 1 F'!G95*100,"-")) -> 9.781908148
A98: Bac. Hum. | C98: =IF(OR('Tabel 1 F'!C96<5,'Tabel 2 F'!C98<0.5),"-",IFERROR('Tabel 2 F'!C98/'Tabel 1 F'!C96*100,"-")) -> - | D98: =IF(OR('Tabel 1 F'!C96<5,'Tabel 2 F'!D98<0.5),"-",IFERROR('Tabel 2 F'!D98/'Tabel 1 F'!C96*100,"-")) -> - | F98: =IF(OR('Tabel 1 F'!E96<5,'Tabel 2 F'!F98<0.5),"-",IFERROR('Tabel 2 F'!F98/'Tabel 1 F'!E96*100,"-")) -> 18.75 | G98: =IF(OR('Tabel 1 F'!E96<5,'Tabel 2 F'!G98<0.5),"-",IFERROR('Tabel 2 F'!G98/'Tabel 1 F'!E96*100,"-")) -> 15.28488118 | I98: =IF(OR('Tabel 1 F'!G96<5,'Tabel 2 F'!I98<0.5),"-",IFERROR('Tabel 2 F'!I98/'Tabel 1 F'!G96*100,"-")) -> 15.78947368 | J98: =IF(OR('Tabel 1 F'!G96<5,'Tabel 2 F'!J98<0.5),"-",IFERROR('Tabel 2 F'!J98/'Tabel 1 F'!G96*100,"-")) -> 12.87147889
A99: Bac. Nat. | C99: =IF(OR('Tabel 1 F'!C97<5,'Tabel 2 F'!C99<0.5),"-",IFERROR('Tabel 2 F'!C99/'Tabel 1 F'!C97*100,"-")) -> - | D99: =IF(OR('Tabel 1 F'!C97<5,'Tabel 2 F'!D99<0.5),"-",IFERROR('Tabel 2 F'!D99/'Tabel 1 F'!C97*100,"-")) -> - | F99: =IF(OR('Tabel 1 F'!E97<5,'Tabel 2 F'!F99<0.5),"-",IFERROR('Tabel 2 F'!F99/'Tabel 1 F'!E97*100,"-")) -> 16.66666667 | G99: =IF(OR('Tabel 1 F'!E97<5,'Tabel 2 F'!G99<0.5),"-",IFERROR('Tabel 2 F'!G99/'Tabel 1 F'!E97*100,"-")) -> 13.58656105 | I99: =IF(OR('Tabel 1 F'!G97<5,'Tabel 2 F'!I99<0.5),"-",IFERROR('Tabel 2 F'!I99/'Tabel 1 F'!G97*100,"-")) -> 7.142857143 | J99: =IF(OR('Tabel 1 F'!G97<5,'Tabel 2 F'!J99<0.5),"-",IFERROR('Tabel 2 F'!J99/'Tabel 1 F'!G97*100,"-")) -> 5.822811879
A100: Andre | C100: =IF(OR('Tabel 1 F'!C98<5,'Tabel 2 F'!C100<0.5),"-",IFERROR('Tabel 2 F'!C100/'Tabel 1 F'!C98*100,"-")) -> - | D100: =IF(OR('Tabel 1 F'!C98<5,'Tabel 2 F'!D100<0.5),"-",IFERROR('Tabel 2 F'!D100/'Tabel 1 F'!C98*100,"-")) -> - | F100: =IF(OR('Tabel 1 F'!E98<5,'Tabel 2 F'!F100<0.5),"-",IFERROR('Tabel 2 F'!F100/'Tabel 1 F'!E98*100,"-")) -> - | G100: =IF(OR('Tabel 1 F'!E98<5,'Tabel 2 F'!G100<0.5),"-",IFERROR('Tabel 2 F'!G100/'Tabel 1 F'!E98*100,"-")) -> - | I100: =IF(OR('Tabel 1 F'!G98<5,'Tabel 2 F'!I100<0.5),"-",IFERROR('Tabel 2 F'!I100/'Tabel 1 F'!G98*100,"-")) -> - | J100: =IF(OR('Tabel 1 F'!G98<5,'Tabel 2 F'!J100<0.5),"-",IFERROR('Tabel 2 F'!J100/'Tabel 1 F'!G98*100,"-")) -> -
A102: Total | C102: =IF(OR('Tabel 1 F'!C100<5,'Tabel 2 F'!C102<0.5),"-",IFERROR('Tabel 2 F'!C102/'Tabel 1 F'!C100*100,"-")) -> 1.182795699 | D102: =IF(OR('Tabel 1 F'!C100<5,'Tabel 2 F'!D102<0.5),"-",IFERROR('Tabel 2 F'!D102/'Tabel 1 F'!C100*100,"-")) -> 0.9003607479 | F102: =IF(OR('Tabel 1 F'!E100<5,'Tabel 2 F'!F102<0.5),"-",IFERROR('Tabel 2 F'!F102/'Tabel 1 F'!E100*100,"-")) -> 2.996670366 | G102: =IF(OR('Tabel 1 F'!E100<5,'Tabel 2 F'!G102<0.5),"-",IFERROR('Tabel 2 F'!G102/'Tabel 1 F'!E100*100,"-")) -> 2.48845801 | I102: =IF(OR('Tabel 1 F'!G100<5,'Tabel 2 F'!I102<0.5),"-",IFERROR('Tabel 2 F'!I102/'Tabel 1 F'!G100*100,"-")) -> 2.075368651 | J102: =IF(OR('Tabel 1 F'!G100<5,'Tabel 2 F'!J102<0.5),"-",IFERROR('Tabel 2 F'!J102/'Tabel 1 F'!G100*100,"-")) -> 1.681832967
A104: Ingeniører i alt | C104: =IF(OR('Tabel 1 F'!C102<5,'Tabel 2 F'!C104<0.5),"-",IFERROR('Tabel 2 F'!C104/'Tabel 1 F'!C102*100,"-")) -> 0.8823529412 | D104: =IF(OR('Tabel 1 F'!C102<5,'Tabel 2 F'!D104<0.5),"-",IFERROR('Tabel 2 F'!D104/'Tabel 1 F'!C102*100,"-")) -> 0.6312348428 | F104: =IF(OR('Tabel 1 F'!E102<5,'Tabel 2 F'!F104<0.5),"-",IFERROR('Tabel 2 F'!F104/'Tabel 1 F'!E102*100,"-")) -> - | G104: =IF(OR('Tabel 1 F'!E102<5,'Tabel 2 F'!G104<0.5),"-",IFERROR('Tabel 2 F'!G104/'Tabel 1 F'!E102*100,"-")) -> - | I104: =IF(OR('Tabel 1 F'!G102<5,'Tabel 2 F'!I104<0.5),"-",IFERROR('Tabel 2 F'!I104/'Tabel 1 F'!G102*100,"-")) -> 0.6993006993 | J104: =IF(OR('Tabel 1 F'!G102<5,'Tabel 2 F'!J104<0.5),"-",IFERROR('Tabel 2 F'!J104/'Tabel 1 F'!G102*100,"-")) -> 0.5002793626
A105: Magistre i alt | C105: =IF(OR('Tabel 1 F'!C103<5,'Tabel 2 F'!C105<0.5),"-",IFERROR('Tabel 2 F'!C105/'Tabel 1 F'!C103*100,"-")) -> 1.98019802 | D105: =IF(OR('Tabel 1 F'!C103<5,'Tabel 2 F'!D105<0.5),"-",IFERROR('Tabel 2 F'!D105/'Tabel 1 F'!C103*100,"-")) -> 1.614244877 | F105: =IF(OR('Tabel 1 F'!E103<5,'Tabel 2 F'!F105<0.5),"-",IFERROR('Tabel 2 F'!F105/'Tabel 1 F'!E103*100,"-")) -> 5.314009662 | G105: =IF(OR('Tabel 1 F'!E103<5,'Tabel 2 F'!G105<0.5),"-",IFERROR('Tabel 2 F'!G105/'Tabel 1 F'!E103*100,"-")) -> 4.202081998 | I105: =IF(OR('Tabel 1 F'!G103<5,'Tabel 2 F'!I105<0.5),"-",IFERROR('Tabel 2 F'!I105/'Tabel 1 F'!G103*100,"-")) -> 4.220779221 | J105: =IF(OR('Tabel 1 F'!G103<5,'Tabel 2 F'!J105<0.5),"-",IFERROR('Tabel 2 F'!J105/'Tabel 1 F'!G103*100,"-")) -> 3.353473072
A106: DJØF'ere i alt | C106: =IF(OR('Tabel 1 F'!C104<5,'Tabel 2 F'!C106<0.5),"-",IFERROR('Tabel 2 F'!C106/'Tabel 1 F'!C104*100,"-")) -> 0.5235602094 | D106: =IF(OR('Tabel 1 F'!C104<5,'Tabel 2 F'!D106<0.5),"-",IFERROR('Tabel 2 F'!D106/'Tabel 1 F'!C104*100,"-")) -> 0.330143686 | F106: =IF(OR('Tabel 1 F'!E104<5,'Tabel 2 F'!F106<0.5),"-",IFERROR('Tabel 2 F'!F106/'Tabel 1 F'!E104*100,"-")) -> 0.9132420091 | G106: =IF(OR('Tabel 1 F'!E104<5,'Tabel 2 F'!G106<0.5),"-",IFERROR('Tabel 2 F'!G106/'Tabel 1 F'!E104*100,"-")) -> 0.9130711287 | I106: =IF(OR('Tabel 1 F'!G104<5,'Tabel 2 F'!I106<0.5),"-",IFERROR('Tabel 2 F'!I106/'Tabel 1 F'!G104*100,"-")) -> 0.7317073171 | J106: =IF(OR('Tabel 1 F'!G104<5,'Tabel 2 F'!J106<0.5),"-",IFERROR('Tabel 2 F'!J106/'Tabel 1 F'!G104*100,"-")) -> 0.6415122468
A111: Assens
C113: Mænd | F113: Kvinder | I113: I alt
C114: Ledigheds- berørte | D114: Gns. brutto- ledighed | F114: Ledigheds- berørte | G114: Gns. brutto- ledighed | I114: Ledigheds- berørte | J114: Gns. brutto- ledighed
A117: Civ. ing. | C117: =IF(OR('Tabel 1 F'!C115<5,'Tabel 2 F'!C117<0.5),"-",IFERROR('Tabel 2 F'!C117/'Tabel 1 F'!C115*100,"-")) -> 1.587301587 | D117: =IF(OR('Tabel 1 F'!C115<5,'Tabel 2 F'!D117<0.5),"-",IFERROR('Tabel 2 F'!D117/'Tabel 1 F'!C115*100,"-")) -> 1.147435003 | F117: =IF(OR('Tabel 1 F'!E115<5,'Tabel 2 F'!F117<0.5),"-",IFERROR('Tabel 2 F'!F117/'Tabel 1 F'!E115*100,"-")) -> - | G117: =IF(OR('Tabel 1 F'!E115<5,'Tabel 2 F'!G117<0.5),"-",IFERROR('Tabel 2 F'!G117/'Tabel 1 F'!E115*100,"-")) -> - | I117: =IF(OR('Tabel 1 F'!G115<5,'Tabel 2 F'!I117<0.5),"-",IFERROR('Tabel 2 F'!I117/'Tabel 1 F'!G115*100,"-")) -> 1.219512195 | J117: =IF(OR('Tabel 1 F'!G115<5,'Tabel 2 F'!J117<0.5),"-",IFERROR('Tabel 2 F'!J117/'Tabel 1 F'!G115*100,"-")) -> 0.8815659166
A118: Diplom ing. | C118: =IF(OR('Tabel 1 F'!C116<5,'Tabel 2 F'!C118<0.5),"-",IFERROR('Tabel 2 F'!C118/'Tabel 1 F'!C116*100,"-")) -> 0.9661835749 | D118: =IF(OR('Tabel 1 F'!C116<5,'Tabel 2 F'!D118<0.5),"-",IFERROR('Tabel 2 F'!D118/'Tabel 1 F'!C116*100,"-")) -> 0.4085775986 | F118: =IF(OR('Tabel 1 F'!E116<5,'Tabel 2 F'!F118<0.5),"-",IFERROR('Tabel 2 F'!F118/'Tabel 1 F'!E116*100,"-")) -> 4.545454545 | G118: =IF(OR('Tabel 1 F'!E116<5,'Tabel 2 F'!G118<0.5),"-",IFERROR('Tabel 2 F'!G118/'Tabel 1 F'!E116*100,"-")) -> 2.866247456 | I118: =IF(OR('Tabel 1 F'!G116<5,'Tabel 2 F'!I118<0.5),"-",IFERROR('Tabel 2 F'!I118/'Tabel 1 F'!G116*100,"-")) -> 1.593625498 | J118: =IF(OR('Tabel 1 F'!G116<5,'Tabel 2 F'!J118<0.5),"-",IFERROR('Tabel 2 F'!J118/'Tabel 1 F'!G116*100,"-")) -> 0.839404187
A119: Cand. Scient. Tek. | C119: =IF(OR('Tabel 1 F'!C117<5,'Tabel 2 F'!C119<0.5),"-",IFERROR('Tabel 2 F'!C119/'Tabel 1 F'!C117*100,"-")) -> 4.347826087 | D119: =IF(OR('Tabel 1 F'!C117<5,'Tabel 2 F'!D119<0.5),"-",IFERROR('Tabel 2 F'!D119/'Tabel 1 F'!C117*100,"-")) -> 3.343647206 | F119: =IF(OR('Tabel 1 F'!E117<5,'Tabel 2 F'!F119<0.5),"-",IFERROR('Tabel 2 F'!F119/'Tabel 1 F'!E117*100,"-")) -> 9.090909091 | G119: =IF(OR('Tabel 1 F'!E117<5,'Tabel 2 F'!G119<0.5),"-",IFERROR('Tabel 2 F'!G119/'Tabel 1 F'!E117*100,"-")) -> 4.796924525 | I119: =IF(OR('Tabel 1 F'!G117<5,'Tabel 2 F'!I119<0.5),"-",IFERROR('Tabel 2 F'!I119/'Tabel 1 F'!G117*100,"-")) -> 6.666666667 | J119: =IF(OR('Tabel 1 F'!G117<5,'Tabel 2 F'!J119<0.5),"-",IFERROR('Tabel 2 F'!J119/'Tabel 1 F'!G117*100,"-")) -> 4.05413834
A120: MA. Hum. | C120: =IF(OR('Tabel 1 F'!C118<5,'Tabel 2 F'!C120<0.5),"-",IFERROR('Tabel 2 F'!C120/'Tabel 1 F'!C118*100,"-")) -> 4.761904762 | D120: =IF(OR('Tabel 1 F'!C118<5,'Tabel 2 F'!D120<0.5),"-",IFERROR('Tabel 2 F'!D120/'Tabel 1 F'!C118*100,"-")) -> 2.892843035 | F120: =IF(OR('Tabel 1 F'!E118<5,'Tabel 2 F'!F120<0.5),"-",IFERROR('Tabel 2 F'!F120/'Tabel 1 F'!E118*100,"-")) -> 6.611570248 | G120: =IF(OR('Tabel 1 F'!E118<5,'Tabel 2 F'!G120<0.5),"-",IFERROR('Tabel 2 F'!G120/'Tabel 1 F'!E118*100,"-")) -> 4.337129051 | I120: =IF(OR('Tabel 1 F'!G118<5,'Tabel 2 F'!I120<0.5),"-",IFERROR('Tabel 2 F'!I120/'Tabel 1 F'!G118*100,"-")) -> 6.134969325 | J120: =IF(OR('Tabel 1 F'!G118<5,'Tabel 2 F'!J120<0.5),"-",IFERROR('Tabel 2 F'!J120/'Tabel 1 F'!G118*100,"-")) -> 3.964981734
A121: MA. Nat. | C121: =IF(OR('Tabel 1 F'!C119<5,'Tabel 2 F'!C121<0.5),"-",IFERROR('Tabel 2 F'!C121/'Tabel 1 F'!C119*100,"-")) -> 3.703703704 | D121: =IF(OR('Tabel 1 F'!C119<5,'Tabel 2 F'!D121<0.5),"-",IFERROR('Tabel 2 F'!D121/'Tabel 1 F'!C119*100,"-")) -> 3.125498105 | F121: =IF(OR('Tabel 1 F'!E119<5,'Tabel 2 F'!F121<0.5),"-",IFERROR('Tabel 2 F'!F121/'Tabel 1 F'!E119*100,"-")) -> 3.225806452 | G121: =IF(OR('Tabel 1 F'!E119<5,'Tabel 2 F'!G121<0.5),"-",IFERROR('Tabel 2 F'!G121/'Tabel 1 F'!E119*100,"-")) -> 1.736338157 | I121: =IF(OR('Tabel 1 F'!G119<5,'Tabel 2 F'!I121<0.5),"-",IFERROR('Tabel 2 F'!I121/'Tabel 1 F'!G119*100,"-")) -> 3.448275862 | J121: =IF(OR('Tabel 1 F'!G119<5,'Tabel 2 F'!J121<0.5),"-",IFERROR('Tabel 2 F'!J121/'Tabel 1 F'!G119*100,"-")) -> 2.383016064
A122: MA. Ph.d. | C122: =IF(OR('Tabel 1 F'!C120<5,'Tabel 2 F'!C122<0.5),"-",IFERROR('Tabel 2 F'!C122/'Tabel 1 F'!C120*100,"-")) -> - | D122: =IF(OR('Tabel 1 F'!C120<5,'Tabel 2 F'!D122<0.5),"-",IFERROR('Tabel 2 F'!D122/'Tabel 1 F'!C120*100,"-")) -> - | F122: =IF(OR('Tabel 1 F'!E120<5,'Tabel 2 F'!F122<0.5),"-",IFERROR('Tabel 2 F'!F122/'Tabel 1 F'!E120*100,"-")) -> - | G122: =IF(OR('Tabel 1 F'!E120<5,'Tabel 2 F'!G122<0.5),"-",IFERROR('Tabel 2 F'!G122/'Tabel 1 F'!E120*100,"-")) -> - | I122: =IF(OR('Tabel 1 F'!G120<5,'Tabel 2 F'!I122<0.5),"-",IFERROR('Tabel 2 F'!I122/'Tabel 1 F'!G120*100,"-")) -> - | J122: =IF(OR('Tabel 1 F'!G120<5,'Tabel 2 F'!J122<0.5),"-",IFERROR('Tabel 2 F'!J122/'Tabel 1 F'!G120*100,"-")) -> -
A123: MA. Samf. | C123: =IF(OR('Tabel 1 F'!C121<5,'Tabel 2 F'!C123<0.5),"-",IFERROR('Tabel 2 F'!C123/'Tabel 1 F'!C121*100,"-")) -> - | D123: =IF(OR('Tabel 1 F'!C121<5,'Tabel 2 F'!D123<0.5),"-",IFERROR('Tabel 2 F'!D123/'Tabel 1 F'!C121*100,"-")) -> - | F123: =IF(OR('Tabel 1 F'!E121<5,'Tabel 2 F'!F123<0.5),"-",IFERROR('Tabel 2 F'!F123/'Tabel 1 F'!E121*100,"-")) -> 28.57142857 | G123: =IF(OR('Tabel 1 F'!E121<5,'Tabel 2 F'!G123<0.5),"-",IFERROR('Tabel 2 F'!G123/'Tabel 1 F'!E121*100,"-")) -> 16.03834948 | I123: =IF(OR('Tabel 1 F'!G121<5,'Tabel 2 F'!I123<0.5),"-",IFERROR('Tabel 2 F'!I123/'Tabel 1 F'!G121*100,"-")) -> 25 | J123: =IF(OR('Tabel 1 F'!G121<5,'Tabel 2 F'!J123<0.5),"-",IFERROR('Tabel 2 F'!J123/'Tabel 1 F'!G121*100,"-")) -> 14.03355579
A124: Øvrige Mag. | C124: =IF(OR('Tabel 1 F'!C122<5,'Tabel 2 F'!C124<0.5),"-",IFERROR('Tabel 2 F'!C124/'Tabel 1 F'!C122*100,"-")) -> - | D124: =IF(OR('Tabel 1 F'!C122<5,'Tabel 2 F'!D124<0.5),"-",IFERROR('Tabel 2 F'!D124/'Tabel 1 F'!C122*100,"-")) -> - | F124: =IF(OR('Tabel 1 F'!E122<5,'Tabel 2 F'!F124<0.5),"-",IFERROR('Tabel 2 F'!F124/'Tabel 1 F'!E122*100,"-")) -> - | G124: =IF(OR('Tabel 1 F'!E122<5,'Tabel 2 F'!G124<0.5),"-",IFERROR('Tabel 2 F'!G124/'Tabel 1 F'!E122*100,"-")) -> - | I124: =IF(OR('Tabel 1 F'!G122<5,'Tabel 2 F'!I124<0.5),"-",IFERROR('Tabel 2 F'!I124/'Tabel 1 F'!G122*100,"-")) -> - | J124: =IF(OR('Tabel 1 F'!G122<5,'Tabel 2 F'!J124<0.5),"-",IFERROR('Tabel 2 F'!J124/'Tabel 1 F'!G122*100,"-")) -> -
A125: Agronom | C125: =IF(OR('Tabel 1 F'!C123<5,'Tabel 2 F'!C125<0.5),"-",IFERROR('Tabel 2 F'!C125/'Tabel 1 F'!C123*100,"-")) -> - | D125: =IF(OR('Tabel 1 F'!C123<5,'Tabel 2 F'!D125<0.5),"-",IFERROR('Tabel 2 F'!D125/'Tabel 1 F'!C123*100,"-")) -> - | F125: =IF(OR('Tabel 1 F'!E123<5,'Tabel 2 F'!F125<0.5),"-",IFERROR('Tabel 2 F'!F125/'Tabel 1 F'!E123*100,"-")) -> - | G125: =IF(OR('Tabel 1 F'!E123<5,'Tabel 2 F'!G125<0.5),"-",IFERROR('Tabel 2 F'!G125/'Tabel 1 F'!E123*100,"-")) -> - | I125: =IF(OR('Tabel 1 F'!G123<5,'Tabel 2 F'!I125<0.5),"-",IFERROR('Tabel 2 F'!I125/'Tabel 1 F'!G123*100,"-")) -> - | J125: =IF(OR('Tabel 1 F'!G123<5,'Tabel 2 F'!J125<0.5),"-",IFERROR('Tabel 2 F'!J125/'Tabel 1 F'!G123*100,"-")) -> -
A126: Landsk. Arkt. | C126: =IF(OR('Tabel 1 F'!C124<5,'Tabel 2 F'!C126<0.5),"-",IFERROR('Tabel 2 F'!C126/'Tabel 1 F'!C124*100,"-")) -> - | D126: =IF(OR('Tabel 1 F'!C124<5,'Tabel 2 F'!D126<0.5),"-",IFERROR('Tabel 2 F'!D126/'Tabel 1 F'!C124*100,"-")) -> - | F126: =IF(OR('Tabel 1 F'!E124<5,'Tabel 2 F'!F126<0.5),"-",IFERROR('Tabel 2 F'!F126/'Tabel 1 F'!E124*100,"-")) -> - | G126: =IF(OR('Tabel 1 F'!E124<5,'Tabel 2 F'!G126<0.5),"-",IFERROR('Tabel 2 F'!G126/'Tabel 1 F'!E124*100,"-")) -> - | I126: =IF(OR('Tabel 1 F'!G124<5,'Tabel 2 F'!I126<0.5),"-",IFERROR('Tabel 2 F'!I126/'Tabel 1 F'!G124*100,"-")) -> - | J126: =IF(OR('Tabel 1 F'!G124<5,'Tabel 2 F'!J126<0.5),"-",IFERROR('Tabel 2 F'!J126/'Tabel 1 F'!G124*100,"-")) -> -
A127: Hortonom | C127: =IF(OR('Tabel 1 F'!C125<5,'Tabel 2 F'!C127<0.5),"-",IFERROR('Tabel 2 F'!C127/'Tabel 1 F'!C125*100,"-")) -> - | D127: =IF(OR('Tabel 1 F'!C125<5,'Tabel 2 F'!D127<0.5),"-",IFERROR('Tabel 2 F'!D127/'Tabel 1 F'!C125*100,"-")) -> - | F127: =IF(OR('Tabel 1 F'!E125<5,'Tabel 2 F'!F127<0.5),"-",IFERROR('Tabel 2 F'!F127/'Tabel 1 F'!E125*100,"-")) -> - | G127: =IF(OR('Tabel 1 F'!E125<5,'Tabel 2 F'!G127<0.5),"-",IFERROR('Tabel 2 F'!G127/'Tabel 1 F'!E125*100,"-")) -> - | I127: =IF(OR('Tabel 1 F'!G125<5,'Tabel 2 F'!I127<0.5),"-",IFERROR('Tabel 2 F'!I127/'Tabel 1 F'!G125*100,"-")) -> - | J127: =IF(OR('Tabel 1 F'!G125<5,'Tabel 2 F'!J127<0.5),"-",IFERROR('Tabel 2 F'!J127/'Tabel 1 F'!G125*100,"-")) -> -
A128: Forstkand. | C128: =IF(OR('Tabel 1 F'!C126<5,'Tabel 2 F'!C128<0.5),"-",IFERROR('Tabel 2 F'!C128/'Tabel 1 F'!C126*100,"-")) -> - | D128: =IF(OR('Tabel 1 F'!C126<5,'Tabel 2 F'!D128<0.5),"-",IFERROR('Tabel 2 F'!D128/'Tabel 1 F'!C126*100,"-")) -> - | F128: =IF(OR('Tabel 1 F'!E126<5,'Tabel 2 F'!F128<0.5),"-",IFERROR('Tabel 2 F'!F128/'Tabel 1 F'!E126*100,"-")) -> - | G128: =IF(OR('Tabel 1 F'!E126<5,'Tabel 2 F'!G128<0.5),"-",IFERROR('Tabel 2 F'!G128/'Tabel 1 F'!E126*100,"-")) -> - | I128: =IF(OR('Tabel 1 F'!G126<5,'Tabel 2 F'!I128<0.5),"-",IFERROR('Tabel 2 F'!I128/'Tabel 1 F'!G126*100,"-")) -> - | J128: =IF(OR('Tabel 1 F'!G126<5,'Tabel 2 F'!J128<0.5),"-",IFERROR('Tabel 2 F'!J128/'Tabel 1 F'!G126*100,"-")) -> -
A129: Jordbrugsakad. | C129: =IF(OR('Tabel 1 F'!C127<5,'Tabel 2 F'!C129<0.5),"-",IFERROR('Tabel 2 F'!C129/'Tabel 1 F'!C127*100,"-")) -> - | D129: =IF(OR('Tabel 1 F'!C127<5,'Tabel 2 F'!D129<0.5),"-",IFERROR('Tabel 2 F'!D129/'Tabel 1 F'!C127*100,"-")) -> - | F129: =IF(OR('Tabel 1 F'!E127<5,'Tabel 2 F'!F129<0.5),"-",IFERROR('Tabel 2 F'!F129/'Tabel 1 F'!E127*100,"-")) -> - | G129: =IF(OR('Tabel 1 F'!E127<5,'Tabel 2 F'!G129<0.5),"-",IFERROR('Tabel 2 F'!G129/'Tabel 1 F'!E127*100,"-")) -> - | I129: =IF(OR('Tabel 1 F'!G127<5,'Tabel 2 F'!I129<0.5),"-",IFERROR('Tabel 2 F'!I129/'Tabel 1 F'!G127*100,"-")) -> - | J129: =IF(OR('Tabel 1 F'!G127<5,'Tabel 2 F'!J129<0.5),"-",IFERROR('Tabel 2 F'!J129/'Tabel 1 F'!G127*100,"-")) -> -
A130: Mejeriing. | C130: =IF(OR('Tabel 1 F'!C128<5,'Tabel 2 F'!C130<0.5),"-",IFERROR('Tabel 2 F'!C130/'Tabel 1 F'!C128*100,"-")) -> - | D130: =IF(OR('Tabel 1 F'!C128<5,'Tabel 2 F'!D130<0.5),"-",IFERROR('Tabel 2 F'!D130/'Tabel 1 F'!C128*100,"-")) -> - | F130: =IF(OR('Tabel 1 F'!E128<5,'Tabel 2 F'!F130<0.5),"-",IFERROR('Tabel 2 F'!F130/'Tabel 1 F'!E128*100,"-")) -> - | G130: =IF(OR('Tabel 1 F'!E128<5,'Tabel 2 F'!G130<0.5),"-",IFERROR('Tabel 2 F'!G130/'Tabel 1 F'!E128*100,"-")) -> - | I130: =IF(OR('Tabel 1 F'!G128<5,'Tabel 2 F'!I130<0.5),"-",IFERROR('Tabel 2 F'!I130/'Tabel 1 F'!G128*100,"-")) -> - | J130: =IF(OR('Tabel 1 F'!G128<5,'Tabel 2 F'!J130<0.5),"-",IFERROR('Tabel 2 F'!J130/'Tabel 1 F'!G128*100,"-")) -> -
A131: Levn.m.kand. | C131: =IF(OR('Tabel 1 F'!C129<5,'Tabel 2 F'!C131<0.5),"-",IFERROR('Tabel 2 F'!C131/'Tabel 1 F'!C129*100,"-")) -> - | D131: =IF(OR('Tabel 1 F'!C129<5,'Tabel 2 F'!D131<0.5),"-",IFERROR('Tabel 2 F'!D131/'Tabel 1 F'!C129*100,"-")) -> - | F131: =IF(OR('Tabel 1 F'!E129<5,'Tabel 2 F'!F131<0.5),"-",IFERROR('Tabel 2 F'!F131/'Tabel 1 F'!E129*100,"-")) -> - | G131: =IF(OR('Tabel 1 F'!E129<5,'Tabel 2 F'!G131<0.5),"-",IFERROR('Tabel 2 F'!G131/'Tabel 1 F'!E129*100,"-")) -> - | I131: =IF(OR('Tabel 1 F'!G129<5,'Tabel 2 F'!I131<0.5),"-",IFERROR('Tabel 2 F'!I131/'Tabel 1 F'!G129*100,"-")) -> - | J131: =IF(OR('Tabel 1 F'!G129<5,'Tabel 2 F'!J131<0.5),"-",IFERROR('Tabel 2 F'!J131/'Tabel 1 F'!G129*100,"-")) -> -
A132: Dyrlæge | C132: =IF(OR('Tabel 1 F'!C130<5,'Tabel 2 F'!C132<0.5),"-",IFERROR('Tabel 2 F'!C132/'Tabel 1 F'!C130*100,"-")) -> - | D132: =IF(OR('Tabel 1 F'!C130<5,'Tabel 2 F'!D132<0.5),"-",IFERROR('Tabel 2 F'!D132/'Tabel 1 F'!C130*100,"-")) -> - | F132: =IF(OR('Tabel 1 F'!E130<5,'Tabel 2 F'!F132<0.5),"-",IFERROR('Tabel 2 F'!F132/'Tabel 1 F'!E130*100,"-")) -> - | G132: =IF(OR('Tabel 1 F'!E130<5,'Tabel 2 F'!G132<0.5),"-",IFERROR('Tabel 2 F'!G132/'Tabel 1 F'!E130*100,"-")) -> - | I132: =IF(OR('Tabel 1 F'!G130<5,'Tabel 2 F'!I132<0.5),"-",IFERROR('Tabel 2 F'!I132/'Tabel 1 F'!G130*100,"-")) -> - | J132: =IF(OR('Tabel 1 F'!G130<5,'Tabel 2 F'!J132<0.5),"-",IFERROR('Tabel 2 F'!J132/'Tabel 1 F'!G130*100,"-")) -> -
A133: Farmaceut | C133: =IF(OR('Tabel 1 F'!C131<5,'Tabel 2 F'!C133<0.5),"-",IFERROR('Tabel 2 F'!C133/'Tabel 1 F'!C131*100,"-")) -> - | D133: =IF(OR('Tabel 1 F'!C131<5,'Tabel 2 F'!D133<0.5),"-",IFERROR('Tabel 2 F'!D133/'Tabel 1 F'!C131*100,"-")) -> - | F133: =IF(OR('Tabel 1 F'!E131<5,'Tabel 2 F'!F133<0.5),"-",IFERROR('Tabel 2 F'!F133/'Tabel 1 F'!E131*100,"-")) -> - | G133: =IF(OR('Tabel 1 F'!E131<5,'Tabel 2 F'!G133<0.5),"-",IFERROR('Tabel 2 F'!G133/'Tabel 1 F'!E131*100,"-")) -> - | I133: =IF(OR('Tabel 1 F'!G131<5,'Tabel 2 F'!I133<0.5),"-",IFERROR('Tabel 2 F'!I133/'Tabel 1 F'!G131*100,"-")) -> - | J133: =IF(OR('Tabel 1 F'!G131<5,'Tabel 2 F'!J133<0.5),"-",IFERROR('Tabel 2 F'!J133/'Tabel 1 F'!G131*100,"-")) -> -
A134: Læge | C134: =IF(OR('Tabel 1 F'!C132<5,'Tabel 2 F'!C134<0.5),"-",IFERROR('Tabel 2 F'!C134/'Tabel 1 F'!C132*100,"-")) -> 8.333333333 | D134: =IF(OR('Tabel 1 F'!C132<5,'Tabel 2 F'!D134<0.5),"-",IFERROR('Tabel 2 F'!D134/'Tabel 1 F'!C132*100,"-")) -> 7.947150668 | F134: =IF(OR('Tabel 1 F'!E132<5,'Tabel 2 F'!F134<0.5),"-",IFERROR('Tabel 2 F'!F134/'Tabel 1 F'!E132*100,"-")) -> - | G134: =IF(OR('Tabel 1 F'!E132<5,'Tabel 2 F'!G134<0.5),"-",IFERROR('Tabel 2 F'!G134/'Tabel 1 F'!E132*100,"-")) -> - | I134: =IF(OR('Tabel 1 F'!G132<5,'Tabel 2 F'!I134<0.5),"-",IFERROR('Tabel 2 F'!I134/'Tabel 1 F'!G132*100,"-")) -> 2.272727273 | J134: =IF(OR('Tabel 1 F'!G132<5,'Tabel 2 F'!J134<0.5),"-",IFERROR('Tabel 2 F'!J134/'Tabel 1 F'!G132*100,"-")) -> 2.167404728
A135: Tandlæge | C135: =IF(OR('Tabel 1 F'!C133<5,'Tabel 2 F'!C135<0.5),"-",IFERROR('Tabel 2 F'!C135/'Tabel 1 F'!C133*100,"-")) -> - | D135: =IF(OR('Tabel 1 F'!C133<5,'Tabel 2 F'!D135<0.5),"-",IFERROR('Tabel 2 F'!D135/'Tabel 1 F'!C133*100,"-")) -> - | F135: =IF(OR('Tabel 1 F'!E133<5,'Tabel 2 F'!F135<0.5),"-",IFERROR('Tabel 2 F'!F135/'Tabel 1 F'!E133*100,"-")) -> - | G135: =IF(OR('Tabel 1 F'!E133<5,'Tabel 2 F'!G135<0.5),"-",IFERROR('Tabel 2 F'!G135/'Tabel 1 F'!E133*100,"-")) -> - | I135: =IF(OR('Tabel 1 F'!G133<5,'Tabel 2 F'!I135<0.5),"-",IFERROR('Tabel 2 F'!I135/'Tabel 1 F'!G133*100,"-")) -> - | J135: =IF(OR('Tabel 1 F'!G133<5,'Tabel 2 F'!J135<0.5),"-",IFERROR('Tabel 2 F'!J135/'Tabel 1 F'!G133*100,"-")) -> -
A136: Arkitekt | C136: =IF(OR('Tabel 1 F'!C134<5,'Tabel 2 F'!C136<0.5),"-",IFERROR('Tabel 2 F'!C136/'Tabel 1 F'!C134*100,"-")) -> - | D136: =IF(OR('Tabel 1 F'!C134<5,'Tabel 2 F'!D136<0.5),"-",IFERROR('Tabel 2 F'!D136/'Tabel 1 F'!C134*100,"-")) -> - | F136: =IF(OR('Tabel 1 F'!E134<5,'Tabel 2 F'!F136<0.5),"-",IFERROR('Tabel 2 F'!F136/'Tabel 1 F'!E134*100,"-")) -> - | G136: =IF(OR('Tabel 1 F'!E134<5,'Tabel 2 F'!G136<0.5),"-",IFERROR('Tabel 2 F'!G136/'Tabel 1 F'!E134*100,"-")) -> - | I136: =IF(OR('Tabel 1 F'!G134<5,'Tabel 2 F'!I136<0.5),"-",IFERROR('Tabel 2 F'!I136/'Tabel 1 F'!G134*100,"-")) -> - | J136: =IF(OR('Tabel 1 F'!G134<5,'Tabel 2 F'!J136<0.5),"-",IFERROR('Tabel 2 F'!J136/'Tabel 1 F'!G134*100,"-")) -> -
A137: Landinspek. | C137: =IF(OR('Tabel 1 F'!C135<5,'Tabel 2 F'!C137<0.5),"-",IFERROR('Tabel 2 F'!C137/'Tabel 1 F'!C135*100,"-")) -> - | D137: =IF(OR('Tabel 1 F'!C135<5,'Tabel 2 F'!D137<0.5),"-",IFERROR('Tabel 2 F'!D137/'Tabel 1 F'!C135*100,"-")) -> - | F137: =IF(OR('Tabel 1 F'!E135<5,'Tabel 2 F'!F137<0.5),"-",IFERROR('Tabel 2 F'!F137/'Tabel 1 F'!E135*100,"-")) -> - | G137: =IF(OR('Tabel 1 F'!E135<5,'Tabel 2 F'!G137<0.5),"-",IFERROR('Tabel 2 F'!G137/'Tabel 1 F'!E135*100,"-")) -> - | I137: =IF(OR('Tabel 1 F'!G135<5,'Tabel 2 F'!I137<0.5),"-",IFERROR('Tabel 2 F'!I137/'Tabel 1 F'!G135*100,"-")) -> - | J137: =IF(OR('Tabel 1 F'!G135<5,'Tabel 2 F'!J137<0.5),"-",IFERROR('Tabel 2 F'!J137/'Tabel 1 F'!G135*100,"-")) -> -
A138: Bibliotekar | C138: =IF(OR('Tabel 1 F'!C136<5,'Tabel 2 F'!C138<0.5),"-",IFERROR('Tabel 2 F'!C138/'Tabel 1 F'!C136*100,"-")) -> - | D138: =IF(OR('Tabel 1 F'!C136<5,'Tabel 2 F'!D138<0.5),"-",IFERROR('Tabel 2 F'!D138/'Tabel 1 F'!C136*100,"-")) -> - | F138: =IF(OR('Tabel 1 F'!E136<5,'Tabel 2 F'!F138<0.5),"-",IFERROR('Tabel 2 F'!F138/'Tabel 1 F'!E136*100,"-")) -> - | G138: =IF(OR('Tabel 1 F'!E136<5,'Tabel 2 F'!G138<0.5),"-",IFERROR('Tabel 2 F'!G138/'Tabel 1 F'!E136*100,"-")) -> - | I138: =IF(OR('Tabel 1 F'!G136<5,'Tabel 2 F'!I138<0.5),"-",IFERROR('Tabel 2 F'!I138/'Tabel 1 F'!G136*100,"-")) -> - | J138: =IF(OR('Tabel 1 F'!G136<5,'Tabel 2 F'!J138<0.5),"-",IFERROR('Tabel 2 F'!J138/'Tabel 1 F'!G136*100,"-")) -> -
A139: Musikudd. | C139: =IF(OR('Tabel 1 F'!C137<5,'Tabel 2 F'!C139<0.5),"-",IFERROR('Tabel 2 F'!C139/'Tabel 1 F'!C137*100,"-")) -> - | D139: =IF(OR('Tabel 1 F'!C137<5,'Tabel 2 F'!D139<0.5),"-",IFERROR('Tabel 2 F'!D139/'Tabel 1 F'!C137*100,"-")) -> - | F139: =IF(OR('Tabel 1 F'!E137<5,'Tabel 2 F'!F139<0.5),"-",IFERROR('Tabel 2 F'!F139/'Tabel 1 F'!E137*100,"-")) -> - | G139: =IF(OR('Tabel 1 F'!E137<5,'Tabel 2 F'!G139<0.5),"-",IFERROR('Tabel 2 F'!G139/'Tabel 1 F'!E137*100,"-")) -> - | I139: =IF(OR('Tabel 1 F'!G137<5,'Tabel 2 F'!I139<0.5),"-",IFERROR('Tabel 2 F'!I139/'Tabel 1 F'!G137*100,"-")) -> - | J139: =IF(OR('Tabel 1 F'!G137<5,'Tabel 2 F'!J139<0.5),"-",IFERROR('Tabel 2 F'!J139/'Tabel 1 F'!G137*100,"-")) -> -
A140: Teolog | C140: =IF(OR('Tabel 1 F'!C138<5,'Tabel 2 F'!C140<0.5),"-",IFERROR('Tabel 2 F'!C140/'Tabel 1 F'!C138*100,"-")) -> - | D140: =IF(OR('Tabel 1 F'!C138<5,'Tabel 2 F'!D140<0.5),"-",IFERROR('Tabel 2 F'!D140/'Tabel 1 F'!C138*100,"-")) -> - | F140: =IF(OR('Tabel 1 F'!E138<5,'Tabel 2 F'!F140<0.5),"-",IFERROR('Tabel 2 F'!F140/'Tabel 1 F'!E138*100,"-")) -> - | G140: =IF(OR('Tabel 1 F'!E138<5,'Tabel 2 F'!G140<0.5),"-",IFERROR('Tabel 2 F'!G140/'Tabel 1 F'!E138*100,"-")) -> - | I140: =IF(OR('Tabel 1 F'!G138<5,'Tabel 2 F'!I140<0.5),"-",IFERROR('Tabel 2 F'!I140/'Tabel 1 F'!G138*100,"-")) -> - | J140: =IF(OR('Tabel 1 F'!G138<5,'Tabel 2 F'!J140<0.5),"-",IFERROR('Tabel 2 F'!J140/'Tabel 1 F'!G138*100,"-")) -> -
A141: Psykolog | C141: =IF(OR('Tabel 1 F'!C139<5,'Tabel 2 F'!C141<0.5),"-",IFERROR('Tabel 2 F'!C141/'Tabel 1 F'!C139*100,"-")) -> - | D141: =IF(OR('Tabel 1 F'!C139<5,'Tabel 2 F'!D141<0.5),"-",IFERROR('Tabel 2 F'!D141/'Tabel 1 F'!C139*100,"-")) -> - | F141: =IF(OR('Tabel 1 F'!E139<5,'Tabel 2 F'!F141<0.5),"-",IFERROR('Tabel 2 F'!F141/'Tabel 1 F'!E139*100,"-")) -> 4.545454545 | G141: =IF(OR('Tabel 1 F'!E139<5,'Tabel 2 F'!G141<0.5),"-",IFERROR('Tabel 2 F'!G141/'Tabel 1 F'!E139*100,"-")) -> 4.544604027 | I141: =IF(OR('Tabel 1 F'!G139<5,'Tabel 2 F'!I141<0.5),"-",IFERROR('Tabel 2 F'!I141/'Tabel 1 F'!G139*100,"-")) -> 3.846153846 | J141: =IF(OR('Tabel 1 F'!G139<5,'Tabel 2 F'!J141<0.5),"-",IFERROR('Tabel 2 F'!J141/'Tabel 1 F'!G139*100,"-")) -> 3.845434177
A142: Jurist | C142: =IF(OR('Tabel 1 F'!C140<5,'Tabel 2 F'!C142<0.5),"-",IFERROR('Tabel 2 F'!C142/'Tabel 1 F'!C140*100,"-")) -> - | D142: =IF(OR('Tabel 1 F'!C140<5,'Tabel 2 F'!D142<0.5),"-",IFERROR('Tabel 2 F'!D142/'Tabel 1 F'!C140*100,"-")) -> - | F142: =IF(OR('Tabel 1 F'!E140<5,'Tabel 2 F'!F142<0.5),"-",IFERROR('Tabel 2 F'!F142/'Tabel 1 F'!E140*100,"-")) -> 10.52631579 | G142: =IF(OR('Tabel 1 F'!E140<5,'Tabel 2 F'!G142<0.5),"-",IFERROR('Tabel 2 F'!G142/'Tabel 1 F'!E140*100,"-")) -> 8.338065897 | I142: =IF(OR('Tabel 1 F'!G140<5,'Tabel 2 F'!I142<0.5),"-",IFERROR('Tabel 2 F'!I142/'Tabel 1 F'!G140*100,"-")) -> 6.666666667 | J142: =IF(OR('Tabel 1 F'!G140<5,'Tabel 2 F'!J142<0.5),"-",IFERROR('Tabel 2 F'!J142/'Tabel 1 F'!G140*100,"-")) -> 5.280775068
A143: Økonom | C143: =IF(OR('Tabel 1 F'!C141<5,'Tabel 2 F'!C143<0.5),"-",IFERROR('Tabel 2 F'!C143/'Tabel 1 F'!C141*100,"-")) -> - | D143: =IF(OR('Tabel 1 F'!C141<5,'Tabel 2 F'!D143<0.5),"-",IFERROR('Tabel 2 F'!D143/'Tabel 1 F'!C141*100,"-")) -> - | F143: =IF(OR('Tabel 1 F'!E141<5,'Tabel 2 F'!F143<0.5),"-",IFERROR('Tabel 2 F'!F143/'Tabel 1 F'!E141*100,"-")) -> - | G143: =IF(OR('Tabel 1 F'!E141<5,'Tabel 2 F'!G143<0.5),"-",IFERROR('Tabel 2 F'!G143/'Tabel 1 F'!E141*100,"-")) -> - | I143: =IF(OR('Tabel 1 F'!G141<5,'Tabel 2 F'!I143<0.5),"-",IFERROR('Tabel 2 F'!I143/'Tabel 1 F'!G141*100,"-")) -> - | J143: =IF(OR('Tabel 1 F'!G141<5,'Tabel 2 F'!J143<0.5),"-",IFERROR('Tabel 2 F'!J143/'Tabel 1 F'!G141*100,"-")) -> -
A144: Samf. Adm. | C144: =IF(OR('Tabel 1 F'!C142<5,'Tabel 2 F'!C144<0.5),"-",IFERROR('Tabel 2 F'!C144/'Tabel 1 F'!C142*100,"-")) -> 4.166666667 | D144: =IF(OR('Tabel 1 F'!C142<5,'Tabel 2 F'!D144<0.5),"-",IFERROR('Tabel 2 F'!D144/'Tabel 1 F'!C142*100,"-")) -> - | F144: =IF(OR('Tabel 1 F'!E142<5,'Tabel 2 F'!F144<0.5),"-",IFERROR('Tabel 2 F'!F144/'Tabel 1 F'!E142*100,"-")) -> 4.166666667 | G144: =IF(OR('Tabel 1 F'!E142<5,'Tabel 2 F'!G144<0.5),"-",IFERROR('Tabel 2 F'!G144/'Tabel 1 F'!E142*100,"-")) -> 4.165887025 | I144: =IF(OR('Tabel 1 F'!G142<5,'Tabel 2 F'!I144<0.5),"-",IFERROR('Tabel 2 F'!I144/'Tabel 1 F'!G142*100,"-")) -> 4.166666667 | J144: =IF(OR('Tabel 1 F'!G142<5,'Tabel 2 F'!J144<0.5),"-",IFERROR('Tabel 2 F'!J144/'Tabel 1 F'!G142*100,"-")) -> 3.268432469
A145: Cand. Merc. | C145: =IF(OR('Tabel 1 F'!C143<5,'Tabel 2 F'!C145<0.5),"-",IFERROR('Tabel 2 F'!C145/'Tabel 1 F'!C143*100,"-")) -> - | D145: =IF(OR('Tabel 1 F'!C143<5,'Tabel 2 F'!D145<0.5),"-",IFERROR('Tabel 2 F'!D145/'Tabel 1 F'!C143*100,"-")) -> - | F145: =IF(OR('Tabel 1 F'!E143<5,'Tabel 2 F'!F145<0.5),"-",IFERROR('Tabel 2 F'!F145/'Tabel 1 F'!E143*100,"-")) -> 6.25 | G145: =IF(OR('Tabel 1 F'!E143<5,'Tabel 2 F'!G145<0.5),"-",IFERROR('Tabel 2 F'!G145/'Tabel 1 F'!E143*100,"-")) -> 6.248830537 | I145: =IF(OR('Tabel 1 F'!G143<5,'Tabel 2 F'!I145<0.5),"-",IFERROR('Tabel 2 F'!I145/'Tabel 1 F'!G143*100,"-")) -> 2.898550725 | J145: =IF(OR('Tabel 1 F'!G143<5,'Tabel 2 F'!J145<0.5),"-",IFERROR('Tabel 2 F'!J145/'Tabel 1 F'!G143*100,"-")) -> 2.898008365
A146: HA | C146: =IF(OR('Tabel 1 F'!C144<5,'Tabel 2 F'!C146<0.5),"-",IFERROR('Tabel 2 F'!C146/'Tabel 1 F'!C144*100,"-")) -> - | D146: =IF(OR('Tabel 1 F'!C144<5,'Tabel 2 F'!D146<0.5),"-",IFERROR('Tabel 2 F'!D146/'Tabel 1 F'!C144*100,"-")) -> - | F146: =IF(OR('Tabel 1 F'!E144<5,'Tabel 2 F'!F146<0.5),"-",IFERROR('Tabel 2 F'!F146/'Tabel 1 F'!E144*100,"-")) -> - | G146: =IF(OR('Tabel 1 F'!E144<5,'Tabel 2 F'!G146<0.5),"-",IFERROR('Tabel 2 F'!G146/'Tabel 1 F'!E144*100,"-")) -> - | I146: =IF(OR('Tabel 1 F'!G144<5,'Tabel 2 F'!I146<0.5),"-",IFERROR('Tabel 2 F'!I146/'Tabel 1 F'!G144*100,"-")) -> - | J146: =IF(OR('Tabel 1 F'!G144<5,'Tabel 2 F'!J146<0.5),"-",IFERROR('Tabel 2 F'!J146/'Tabel 1 F'!G144*100,"-")) -> -
A147: HD | C147: =IF(OR('Tabel 1 F'!C145<5,'Tabel 2 F'!C147<0.5),"-",IFERROR('Tabel 2 F'!C147/'Tabel 1 F'!C145*100,"-")) -> - | D147: =IF(OR('Tabel 1 F'!C145<5,'Tabel 2 F'!D147<0.5),"-",IFERROR('Tabel 2 F'!D147/'Tabel 1 F'!C145*100,"-")) -> - | F147: =IF(OR('Tabel 1 F'!E145<5,'Tabel 2 F'!F147<0.5),"-",IFERROR('Tabel 2 F'!F147/'Tabel 1 F'!E145*100,"-")) -> 14.28571429 | G147: =IF(OR('Tabel 1 F'!E145<5,'Tabel 2 F'!G147<0.5),"-",IFERROR('Tabel 2 F'!G147/'Tabel 1 F'!E145*100,"-")) -> 14.28304123 | I147: =IF(OR('Tabel 1 F'!G145<5,'Tabel 2 F'!I147<0.5),"-",IFERROR('Tabel 2 F'!I147/'Tabel 1 F'!G145*100,"-")) -> 6.25 | J147: =IF(OR('Tabel 1 F'!G145<5,'Tabel 2 F'!J147<0.5),"-",IFERROR('Tabel 2 F'!J147/'Tabel 1 F'!G145*100,"-")) -> 6.248830537
A148: Komm. og Sprog | C148: =IF(OR('Tabel 1 F'!C146<5,'Tabel 2 F'!C148<0.5),"-",IFERROR('Tabel 2 F'!C148/'Tabel 1 F'!C146*100,"-")) -> - | D148: =IF(OR('Tabel 1 F'!C146<5,'Tabel 2 F'!D148<0.5),"-",IFERROR('Tabel 2 F'!D148/'Tabel 1 F'!C146*100,"-")) -> - | F148: =IF(OR('Tabel 1 F'!E146<5,'Tabel 2 F'!F148<0.5),"-",IFERROR('Tabel 2 F'!F148/'Tabel 1 F'!E146*100,"-")) -> - | G148: =IF(OR('Tabel 1 F'!E146<5,'Tabel 2 F'!G148<0.5),"-",IFERROR('Tabel 2 F'!G148/'Tabel 1 F'!E146*100,"-")) -> - | I148: =IF(OR('Tabel 1 F'!G146<5,'Tabel 2 F'!I148<0.5),"-",IFERROR('Tabel 2 F'!I148/'Tabel 1 F'!G146*100,"-")) -> - | J148: =IF(OR('Tabel 1 F'!G146<5,'Tabel 2 F'!J148<0.5),"-",IFERROR('Tabel 2 F'!J148/'Tabel 1 F'!G146*100,"-")) -> -
A149: Bygningskonst. | C149: =IF(OR('Tabel 1 F'!C147<5,'Tabel 2 F'!C149<0.5),"-",IFERROR('Tabel 2 F'!C149/'Tabel 1 F'!C147*100,"-")) -> 1.785714286 | D149: =IF(OR('Tabel 1 F'!C147<5,'Tabel 2 F'!D149<0.5),"-",IFERROR('Tabel 2 F'!D149/'Tabel 1 F'!C147*100,"-")) -> 1.70329499 | F149: =IF(OR('Tabel 1 F'!E147<5,'Tabel 2 F'!F149<0.5),"-",IFERROR('Tabel 2 F'!F149/'Tabel 1 F'!E147*100,"-")) -> - | G149: =IF(OR('Tabel 1 F'!E147<5,'Tabel 2 F'!G149<0.5),"-",IFERROR('Tabel 2 F'!G149/'Tabel 1 F'!E147*100,"-")) -> - | I149: =IF(OR('Tabel 1 F'!G147<5,'Tabel 2 F'!I149<0.5),"-",IFERROR('Tabel 2 F'!I149/'Tabel 1 F'!G147*100,"-")) -> 1.587301587 | J149: =IF(OR('Tabel 1 F'!G147<5,'Tabel 2 F'!J149<0.5),"-",IFERROR('Tabel 2 F'!J149/'Tabel 1 F'!G147*100,"-")) -> 1.514039991
A150: Cand. IT. | C150: =IF(OR('Tabel 1 F'!C148<5,'Tabel 2 F'!C150<0.5),"-",IFERROR('Tabel 2 F'!C150/'Tabel 1 F'!C148*100,"-")) -> - | D150: =IF(OR('Tabel 1 F'!C148<5,'Tabel 2 F'!D150<0.5),"-",IFERROR('Tabel 2 F'!D150/'Tabel 1 F'!C148*100,"-")) -> - | F150: =IF(OR('Tabel 1 F'!E148<5,'Tabel 2 F'!F150<0.5),"-",IFERROR('Tabel 2 F'!F150/'Tabel 1 F'!E148*100,"-")) -> - | G150: =IF(OR('Tabel 1 F'!E148<5,'Tabel 2 F'!G150<0.5),"-",IFERROR('Tabel 2 F'!G150/'Tabel 1 F'!E148*100,"-")) -> - | I150: =IF(OR('Tabel 1 F'!G148<5,'Tabel 2 F'!I150<0.5),"-",IFERROR('Tabel 2 F'!I150/'Tabel 1 F'!G148*100,"-")) -> - | J150: =IF(OR('Tabel 1 F'!G148<5,'Tabel 2 F'!J150<0.5),"-",IFERROR('Tabel 2 F'!J150/'Tabel 1 F'!G148*100,"-")) -> -
A151: Bac. Samf. | C151: =IF(OR('Tabel 1 F'!C149<5,'Tabel 2 F'!C151<0.5),"-",IFERROR('Tabel 2 F'!C151/'Tabel 1 F'!C149*100,"-")) -> - | D151: =IF(OR('Tabel 1 F'!C149<5,'Tabel 2 F'!D151<0.5),"-",IFERROR('Tabel 2 F'!D151/'Tabel 1 F'!C149*100,"-")) -> - | F151: =IF(OR('Tabel 1 F'!E149<5,'Tabel 2 F'!F151<0.5),"-",IFERROR('Tabel 2 F'!F151/'Tabel 1 F'!E149*100,"-")) -> - | G151: =IF(OR('Tabel 1 F'!E149<5,'Tabel 2 F'!G151<0.5),"-",IFERROR('Tabel 2 F'!G151/'Tabel 1 F'!E149*100,"-")) -> - | I151: =IF(OR('Tabel 1 F'!G149<5,'Tabel 2 F'!I151<0.5),"-",IFERROR('Tabel 2 F'!I151/'Tabel 1 F'!G149*100,"-")) -> - | J151: =IF(OR('Tabel 1 F'!G149<5,'Tabel 2 F'!J151<0.5),"-",IFERROR('Tabel 2 F'!J151/'Tabel 1 F'!G149*100,"-")) -> -
A152: Bac. Hum. | C152: =IF(OR('Tabel 1 F'!C150<5,'Tabel 2 F'!C152<0.5),"-",IFERROR('Tabel 2 F'!C152/'Tabel 1 F'!C150*100,"-")) -> - | D152: =IF(OR('Tabel 1 F'!C150<5,'Tabel 2 F'!D152<0.5),"-",IFERROR('Tabel 2 F'!D152/'Tabel 1 F'!C150*100,"-")) -> - | F152: =IF(OR('Tabel 1 F'!E150<5,'Tabel 2 F'!F152<0.5),"-",IFERROR('Tabel 2 F'!F152/'Tabel 1 F'!E150*100,"-")) -> 8.333333333 | G152: =IF(OR('Tabel 1 F'!E150<5,'Tabel 2 F'!G152<0.5),"-",IFERROR('Tabel 2 F'!G152/'Tabel 1 F'!E150*100,"-")) -> 6.408657145 | I152: =IF(OR('Tabel 1 F'!G150<5,'Tabel 2 F'!I152<0.5),"-",IFERROR('Tabel 2 F'!I152/'Tabel 1 F'!G150*100,"-")) -> 5.882352941 | J152: =IF(OR('Tabel 1 F'!G150<5,'Tabel 2 F'!J152<0.5),"-",IFERROR('Tabel 2 F'!J152/'Tabel 1 F'!G150*100,"-")) -> 4.523757984
A153: Bac. Nat. | C153: =IF(OR('Tabel 1 F'!C151<5,'Tabel 2 F'!C153<0.5),"-",IFERROR('Tabel 2 F'!C153/'Tabel 1 F'!C151*100,"-")) -> 20 | D153: =IF(OR('Tabel 1 F'!C151<5,'Tabel 2 F'!D153<0.5),"-",IFERROR('Tabel 2 F'!D153/'Tabel 1 F'!C151*100,"-")) -> 19.0731616 | F153: =IF(OR('Tabel 1 F'!E151<5,'Tabel 2 F'!F153<0.5),"-",IFERROR('Tabel 2 F'!F153/'Tabel 1 F'!E151*100,"-")) -> - | G153: =IF(OR('Tabel 1 F'!E151<5,'Tabel 2 F'!G153<0.5),"-",IFERROR('Tabel 2 F'!G153/'Tabel 1 F'!E151*100,"-")) -> - | I153: =IF(OR('Tabel 1 F'!G151<5,'Tabel 2 F'!I153<0.5),"-",IFERROR('Tabel 2 F'!I153/'Tabel 1 F'!G151*100,"-")) -> 22.22222222 | J153: =IF(OR('Tabel 1 F'!G151<5,'Tabel 2 F'!J153<0.5),"-",IFERROR('Tabel 2 F'!J153/'Tabel 1 F'!G151*100,"-")) -> 16.57692121
A154: Andre | C154: =IF(OR('Tabel 1 F'!C152<5,'Tabel 2 F'!C154<0.5),"-",IFERROR('Tabel 2 F'!C154/'Tabel 1 F'!C152*100,"-")) -> 4.918032787 | D154: =IF(OR('Tabel 1 F'!C152<5,'Tabel 2 F'!D154<0.5),"-",IFERROR('Tabel 2 F'!D154/'Tabel 1 F'!C152*100,"-")) -> 4.585828614 | F154: =IF(OR('Tabel 1 F'!E152<5,'Tabel 2 F'!F154<0.5),"-",IFERROR('Tabel 2 F'!F154/'Tabel 1 F'!E152*100,"-")) -> 3.846153846 | G154: =IF(OR('Tabel 1 F'!E152<5,'Tabel 2 F'!G154<0.5),"-",IFERROR('Tabel 2 F'!G154/'Tabel 1 F'!E152*100,"-")) -> 2.717951916 | I154: =IF(OR('Tabel 1 F'!G152<5,'Tabel 2 F'!I154<0.5),"-",IFERROR('Tabel 2 F'!I154/'Tabel 1 F'!G152*100,"-")) -> 4.597701149 | J154: =IF(OR('Tabel 1 F'!G152<5,'Tabel 2 F'!J154<0.5),"-",IFERROR('Tabel 2 F'!J154/'Tabel 1 F'!G152*100,"-")) -> 4.027612589
A156: Total | C156: =IF(OR('Tabel 1 F'!C154<5,'Tabel 2 F'!C156<0.5),"-",IFERROR('Tabel 2 F'!C156/'Tabel 1 F'!C154*100,"-")) -> 2.143950995 | D156: =IF(OR('Tabel 1 F'!C154<5,'Tabel 2 F'!D156<0.5),"-",IFERROR('Tabel 2 F'!D156/'Tabel 1 F'!C154*100,"-")) -> 1.593984612 | F156: =IF(OR('Tabel 1 F'!E154<5,'Tabel 2 F'!F156<0.5),"-",IFERROR('Tabel 2 F'!F156/'Tabel 1 F'!E154*100,"-")) -> 4.429301533 | G156: =IF(OR('Tabel 1 F'!E154<5,'Tabel 2 F'!G156<0.5),"-",IFERROR('Tabel 2 F'!G156/'Tabel 1 F'!E154*100,"-")) -> 3.206546634 | I156: =IF(OR('Tabel 1 F'!G154<5,'Tabel 2 F'!I156<0.5),"-",IFERROR('Tabel 2 F'!I156/'Tabel 1 F'!G154*100,"-")) -> 3.225806452 | J156: =IF(OR('Tabel 1 F'!G154<5,'Tabel 2 F'!J156<0.5),"-",IFERROR('Tabel 2 F'!J156/'Tabel 1 F'!G154*100,"-")) -> 2.357350666
A158: Ingeniører i alt | C158: =IF(OR('Tabel 1 F'!C156<5,'Tabel 2 F'!C158<0.5),"-",IFERROR('Tabel 2 F'!C158/'Tabel 1 F'!C156*100,"-")) -> 1.111111111 | D158: =IF(OR('Tabel 1 F'!C156<5,'Tabel 2 F'!D158<0.5),"-",IFERROR('Tabel 2 F'!D158/'Tabel 1 F'!C156*100,"-")) -> 0.5809776595 | F158: =IF(OR('Tabel 1 F'!E156<5,'Tabel 2 F'!F158<0.5),"-",IFERROR('Tabel 2 F'!F158/'Tabel 1 F'!E156*100,"-")) -> 3.174603175 | G158: =IF(OR('Tabel 1 F'!E156<5,'Tabel 2 F'!G158<0.5),"-",IFERROR('Tabel 2 F'!G158/'Tabel 1 F'!E156*100,"-")) -> 2.00182362 | I158: =IF(OR('Tabel 1 F'!G156<5,'Tabel 2 F'!I158<0.5),"-",IFERROR('Tabel 2 F'!I158/'Tabel 1 F'!G156*100,"-")) -> 1.501501502 | J158: =IF(OR('Tabel 1 F'!G156<5,'Tabel 2 F'!J158<0.5),"-",IFERROR('Tabel 2 F'!J158/'Tabel 1 F'!G156*100,"-")) -> 0.8497863547
A159: Magistre i alt | C159: =IF(OR('Tabel 1 F'!C157<5,'Tabel 2 F'!C159<0.5),"-",IFERROR('Tabel 2 F'!C159/'Tabel 1 F'!C157*100,"-")) -> 4 | D159: =IF(OR('Tabel 1 F'!C157<5,'Tabel 2 F'!D159<0.5),"-",IFERROR('Tabel 2 F'!D159/'Tabel 1 F'!C157*100,"-")) -> 2.745171417 | F159: =IF(OR('Tabel 1 F'!E157<5,'Tabel 2 F'!F159<0.5),"-",IFERROR('Tabel 2 F'!F159/'Tabel 1 F'!E157*100,"-")) -> 6.748466258 | G159: =IF(OR('Tabel 1 F'!E157<5,'Tabel 2 F'!G159<0.5),"-",IFERROR('Tabel 2 F'!G159/'Tabel 1 F'!E157*100,"-")) -> 4.238573892 | I159: =IF(OR('Tabel 1 F'!G157<5,'Tabel 2 F'!I159<0.5),"-",IFERROR('Tabel 2 F'!I159/'Tabel 1 F'!G157*100,"-")) -> 5.882352941 | J159: =IF(OR('Tabel 1 F'!G157<5,'Tabel 2 F'!J159<0.5),"-",IFERROR('Tabel 2 F'!J159/'Tabel 1 F'!G157*100,"-")) -> 3.767963869
A160: DJØF'ere i alt | C160: =IF(OR('Tabel 1 F'!C158<5,'Tabel 2 F'!C160<0.5),"-",IFERROR('Tabel 2 F'!C160/'Tabel 1 F'!C158*100,"-")) -> 1.111111111 | D160: =IF(OR('Tabel 1 F'!C158<5,'Tabel 2 F'!D160<0.5),"-",IFERROR('Tabel 2 F'!D160/'Tabel 1 F'!C158*100,"-")) -> - | F160: =IF(OR('Tabel 1 F'!E158<5,'Tabel 2 F'!F160<0.5),"-",IFERROR('Tabel 2 F'!F160/'Tabel 1 F'!E158*100,"-")) -> 4.8 | G160: =IF(OR('Tabel 1 F'!E158<5,'Tabel 2 F'!G160<0.5),"-",IFERROR('Tabel 2 F'!G160/'Tabel 1 F'!E158*100,"-")) -> 4.466787251 | I160: =IF(OR('Tabel 1 F'!G158<5,'Tabel 2 F'!I160<0.5),"-",IFERROR('Tabel 2 F'!I160/'Tabel 1 F'!G158*100,"-")) -> 3.255813953 | J160: =IF(OR('Tabel 1 F'!G158<5,'Tabel 2 F'!J160<0.5),"-",IFERROR('Tabel 2 F'!J160/'Tabel 1 F'!G158*100,"-")) -> 2.76145566
A165: Faaborg-Midtfyn
C167: Mænd | F167: Kvinder | I167: I alt
C168: Ledigheds- berørte | D168: Gns. brutto- ledighed | F168: Ledigheds- berørte | G168: Gns. brutto- ledighed | I168: Ledigheds- berørte | J168: Gns. brutto- ledighed
A171: Civ. ing. | C171: =IF(OR('Tabel 1 F'!C169<5,'Tabel 2 F'!C171<0.5),"-",IFERROR('Tabel 2 F'!C171/'Tabel 1 F'!C169*100,"-")) -> 2.325581395 | D171: =IF(OR('Tabel 1 F'!C169<5,'Tabel 2 F'!D171<0.5),"-",IFERROR('Tabel 2 F'!D171/'Tabel 1 F'!C169*100,"-")) -> 2.325146246 | F171: =IF(OR('Tabel 1 F'!E169<5,'Tabel 2 F'!F171<0.5),"-",IFERROR('Tabel 2 F'!F171/'Tabel 1 F'!E169*100,"-")) -> 5.882352941 | G171: =IF(OR('Tabel 1 F'!E169<5,'Tabel 2 F'!G171<0.5),"-",IFERROR('Tabel 2 F'!G171/'Tabel 1 F'!E169*100,"-")) -> 5.88125227 | I171: =IF(OR('Tabel 1 F'!G169<5,'Tabel 2 F'!I171<0.5),"-",IFERROR('Tabel 2 F'!I171/'Tabel 1 F'!G169*100,"-")) -> 2.912621359 | J171: =IF(OR('Tabel 1 F'!G169<5,'Tabel 2 F'!J171<0.5),"-",IFERROR('Tabel 2 F'!J171/'Tabel 1 F'!G169*100,"-")) -> 2.912076367
A172: Diplom ing. | C172: =IF(OR('Tabel 1 F'!C170<5,'Tabel 2 F'!C172<0.5),"-",IFERROR('Tabel 2 F'!C172/'Tabel 1 F'!C170*100,"-")) -> 0.8403361345 | D172: =IF(OR('Tabel 1 F'!C170<5,'Tabel 2 F'!D172<0.5),"-",IFERROR('Tabel 2 F'!D172/'Tabel 1 F'!C170*100,"-")) -> 0.7432150182 | F172: =IF(OR('Tabel 1 F'!E170<5,'Tabel 2 F'!F172<0.5),"-",IFERROR('Tabel 2 F'!F172/'Tabel 1 F'!E170*100,"-")) -> 8.695652174 | G172: =IF(OR('Tabel 1 F'!E170<5,'Tabel 2 F'!G172<0.5),"-",IFERROR('Tabel 2 F'!G172/'Tabel 1 F'!E170*100,"-")) -> 7.289313617 | I172: =IF(OR('Tabel 1 F'!G170<5,'Tabel 2 F'!I172<0.5),"-",IFERROR('Tabel 2 F'!I172/'Tabel 1 F'!G170*100,"-")) -> 2.112676056 | J172: =IF(OR('Tabel 1 F'!G170<5,'Tabel 2 F'!J172<0.5),"-",IFERROR('Tabel 2 F'!J172/'Tabel 1 F'!G170*100,"-")) -> 1.803498594
A173: Cand. Scient. Tek. | C173: =IF(OR('Tabel 1 F'!C171<5,'Tabel 2 F'!C173<0.5),"-",IFERROR('Tabel 2 F'!C173/'Tabel 1 F'!C171*100,"-")) -> - | D173: =IF(OR('Tabel 1 F'!C171<5,'Tabel 2 F'!D173<0.5),"-",IFERROR('Tabel 2 F'!D173/'Tabel 1 F'!C171*100,"-")) -> - | F173: =IF(OR('Tabel 1 F'!E171<5,'Tabel 2 F'!F173<0.5),"-",IFERROR('Tabel 2 F'!F173/'Tabel 1 F'!E171*100,"-")) -> 6.25 | G173: =IF(OR('Tabel 1 F'!E171<5,'Tabel 2 F'!G173<0.5),"-",IFERROR('Tabel 2 F'!G173/'Tabel 1 F'!E171*100,"-")) -> 5.512068858 | I173: =IF(OR('Tabel 1 F'!G171<5,'Tabel 2 F'!I173<0.5),"-",IFERROR('Tabel 2 F'!I173/'Tabel 1 F'!G171*100,"-")) -> 3.571428571 | J173: =IF(OR('Tabel 1 F'!G171<5,'Tabel 2 F'!J173<0.5),"-",IFERROR('Tabel 2 F'!J173/'Tabel 1 F'!G171*100,"-")) -> 3.149753633
A174: MA. Hum. | C174: =IF(OR('Tabel 1 F'!C172<5,'Tabel 2 F'!C174<0.5),"-",IFERROR('Tabel 2 F'!C174/'Tabel 1 F'!C172*100,"-")) -> 2.898550725 | D174: =IF(OR('Tabel 1 F'!C172<5,'Tabel 2 F'!D174<0.5),"-",IFERROR('Tabel 2 F'!D174/'Tabel 1 F'!C172*100,"-")) -> 1.894643023 | F174: =IF(OR('Tabel 1 F'!E172<5,'Tabel 2 F'!F174<0.5),"-",IFERROR('Tabel 2 F'!F174/'Tabel 1 F'!E172*100,"-")) -> 7.857142857 | G174: =IF(OR('Tabel 1 F'!E172<5,'Tabel 2 F'!G174<0.5),"-",IFERROR('Tabel 2 F'!G174/'Tabel 1 F'!E172*100,"-")) -> 6.176101077 | I174: =IF(OR('Tabel 1 F'!G172<5,'Tabel 2 F'!I174<0.5),"-",IFERROR('Tabel 2 F'!I174/'Tabel 1 F'!G172*100,"-")) -> 6.220095694 | J174: =IF(OR('Tabel 1 F'!G172<5,'Tabel 2 F'!J174<0.5),"-",IFERROR('Tabel 2 F'!J174/'Tabel 1 F'!G172*100,"-")) -> 4.762605356
A175: MA. Nat. | C175: =IF(OR('Tabel 1 F'!C173<5,'Tabel 2 F'!C175<0.5),"-",IFERROR('Tabel 2 F'!C175/'Tabel 1 F'!C173*100,"-")) -> 3.03030303 | D175: =IF(OR('Tabel 1 F'!C173<5,'Tabel 2 F'!D175<0.5),"-",IFERROR('Tabel 2 F'!D175/'Tabel 1 F'!C173*100,"-")) -> 2.651727781 | F175: =IF(OR('Tabel 1 F'!E173<5,'Tabel 2 F'!F175<0.5),"-",IFERROR('Tabel 2 F'!F175/'Tabel 1 F'!E173*100,"-")) -> - | G175: =IF(OR('Tabel 1 F'!E173<5,'Tabel 2 F'!G175<0.5),"-",IFERROR('Tabel 2 F'!G175/'Tabel 1 F'!E173*100,"-")) -> - | I175: =IF(OR('Tabel 1 F'!G173<5,'Tabel 2 F'!I175<0.5),"-",IFERROR('Tabel 2 F'!I175/'Tabel 1 F'!G173*100,"-")) -> 1.25 | J175: =IF(OR('Tabel 1 F'!G173<5,'Tabel 2 F'!J175<0.5),"-",IFERROR('Tabel 2 F'!J175/'Tabel 1 F'!G173*100,"-")) -> 1.09383771
A176: MA. Ph.d. | C176: =IF(OR('Tabel 1 F'!C174<5,'Tabel 2 F'!C176<0.5),"-",IFERROR('Tabel 2 F'!C176/'Tabel 1 F'!C174*100,"-")) -> 20 | D176: =IF(OR('Tabel 1 F'!C174<5,'Tabel 2 F'!D176<0.5),"-",IFERROR('Tabel 2 F'!D176/'Tabel 1 F'!C174*100,"-")) -> 19.99625772 | F176: =IF(OR('Tabel 1 F'!E174<5,'Tabel 2 F'!F176<0.5),"-",IFERROR('Tabel 2 F'!F176/'Tabel 1 F'!E174*100,"-")) -> - | G176: =IF(OR('Tabel 1 F'!E174<5,'Tabel 2 F'!G176<0.5),"-",IFERROR('Tabel 2 F'!G176/'Tabel 1 F'!E174*100,"-")) -> - | I176: =IF(OR('Tabel 1 F'!G174<5,'Tabel 2 F'!I176<0.5),"-",IFERROR('Tabel 2 F'!I176/'Tabel 1 F'!G174*100,"-")) -> 11.11111111 | J176: =IF(OR('Tabel 1 F'!G174<5,'Tabel 2 F'!J176<0.5),"-",IFERROR('Tabel 2 F'!J176/'Tabel 1 F'!G174*100,"-")) -> 11.10903207
A177: MA. Samf. | C177: =IF(OR('Tabel 1 F'!C175<5,'Tabel 2 F'!C177<0.5),"-",IFERROR('Tabel 2 F'!C177/'Tabel 1 F'!C175*100,"-")) -> - | D177: =IF(OR('Tabel 1 F'!C175<5,'Tabel 2 F'!D177<0.5),"-",IFERROR('Tabel 2 F'!D177/'Tabel 1 F'!C175*100,"-")) -> - | F177: =IF(OR('Tabel 1 F'!E175<5,'Tabel 2 F'!F177<0.5),"-",IFERROR('Tabel 2 F'!F177/'Tabel 1 F'!E175*100,"-")) -> 40 | G177: =IF(OR('Tabel 1 F'!E175<5,'Tabel 2 F'!G177<0.5),"-",IFERROR('Tabel 2 F'!G177/'Tabel 1 F'!E175*100,"-")) -> 25.17308052 | I177: =IF(OR('Tabel 1 F'!G175<5,'Tabel 2 F'!I177<0.5),"-",IFERROR('Tabel 2 F'!I177/'Tabel 1 F'!G175*100,"-")) -> 25 | J177: =IF(OR('Tabel 1 F'!G175<5,'Tabel 2 F'!J177<0.5),"-",IFERROR('Tabel 2 F'!J177/'Tabel 1 F'!G175*100,"-")) -> 15.73317533
A178: Øvrige Mag. | C178: =IF(OR('Tabel 1 F'!C176<5,'Tabel 2 F'!C178<0.5),"-",IFERROR('Tabel 2 F'!C178/'Tabel 1 F'!C176*100,"-")) -> - | D178: =IF(OR('Tabel 1 F'!C176<5,'Tabel 2 F'!D178<0.5),"-",IFERROR('Tabel 2 F'!D178/'Tabel 1 F'!C176*100,"-")) -> - | F178: =IF(OR('Tabel 1 F'!E176<5,'Tabel 2 F'!F178<0.5),"-",IFERROR('Tabel 2 F'!F178/'Tabel 1 F'!E176*100,"-")) -> - | G178: =IF(OR('Tabel 1 F'!E176<5,'Tabel 2 F'!G178<0.5),"-",IFERROR('Tabel 2 F'!G178/'Tabel 1 F'!E176*100,"-")) -> - | I178: =IF(OR('Tabel 1 F'!G176<5,'Tabel 2 F'!I178<0.5),"-",IFERROR('Tabel 2 F'!I178/'Tabel 1 F'!G176*100,"-")) -> - | J178: =IF(OR('Tabel 1 F'!G176<5,'Tabel 2 F'!J178<0.5),"-",IFERROR('Tabel 2 F'!J178/'Tabel 1 F'!G176*100,"-")) -> -
A179: Agronom | C179: =IF(OR('Tabel 1 F'!C177<5,'Tabel 2 F'!C179<0.5),"-",IFERROR('Tabel 2 F'!C179/'Tabel 1 F'!C177*100,"-")) -> - | D179: =IF(OR('Tabel 1 F'!C177<5,'Tabel 2 F'!D179<0.5),"-",IFERROR('Tabel 2 F'!D179/'Tabel 1 F'!C177*100,"-")) -> - | F179: =IF(OR('Tabel 1 F'!E177<5,'Tabel 2 F'!F179<0.5),"-",IFERROR('Tabel 2 F'!F179/'Tabel 1 F'!E177*100,"-")) -> 18.75 | G179: =IF(OR('Tabel 1 F'!E177<5,'Tabel 2 F'!G179<0.5),"-",IFERROR('Tabel 2 F'!G179/'Tabel 1 F'!E177*100,"-")) -> 14.41947858 | I179: =IF(OR('Tabel 1 F'!G177<5,'Tabel 2 F'!I179<0.5),"-",IFERROR('Tabel 2 F'!I179/'Tabel 1 F'!G177*100,"-")) -> 12 | J179: =IF(OR('Tabel 1 F'!G177<5,'Tabel 2 F'!J179<0.5),"-",IFERROR('Tabel 2 F'!J179/'Tabel 1 F'!G177*100,"-")) -> 9.228466288
A180: Landsk. Arkt. | C180: =IF(OR('Tabel 1 F'!C178<5,'Tabel 2 F'!C180<0.5),"-",IFERROR('Tabel 2 F'!C180/'Tabel 1 F'!C178*100,"-")) -> - | D180: =IF(OR('Tabel 1 F'!C178<5,'Tabel 2 F'!D180<0.5),"-",IFERROR('Tabel 2 F'!D180/'Tabel 1 F'!C178*100,"-")) -> - | F180: =IF(OR('Tabel 1 F'!E178<5,'Tabel 2 F'!F180<0.5),"-",IFERROR('Tabel 2 F'!F180/'Tabel 1 F'!E178*100,"-")) -> - | G180: =IF(OR('Tabel 1 F'!E178<5,'Tabel 2 F'!G180<0.5),"-",IFERROR('Tabel 2 F'!G180/'Tabel 1 F'!E178*100,"-")) -> - | I180: =IF(OR('Tabel 1 F'!G178<5,'Tabel 2 F'!I180<0.5),"-",IFERROR('Tabel 2 F'!I180/'Tabel 1 F'!G178*100,"-")) -> - | J180: =IF(OR('Tabel 1 F'!G178<5,'Tabel 2 F'!J180<0.5),"-",IFERROR('Tabel 2 F'!J180/'Tabel 1 F'!G178*100,"-")) -> -
A181: Hortonom | C181: =IF(OR('Tabel 1 F'!C179<5,'Tabel 2 F'!C181<0.5),"-",IFERROR('Tabel 2 F'!C181/'Tabel 1 F'!C179*100,"-")) -> - | D181: =IF(OR('Tabel 1 F'!C179<5,'Tabel 2 F'!D181<0.5),"-",IFERROR('Tabel 2 F'!D181/'Tabel 1 F'!C179*100,"-")) -> - | F181: =IF(OR('Tabel 1 F'!E179<5,'Tabel 2 F'!F181<0.5),"-",IFERROR('Tabel 2 F'!F181/'Tabel 1 F'!E179*100,"-")) -> - | G181: =IF(OR('Tabel 1 F'!E179<5,'Tabel 2 F'!G181<0.5),"-",IFERROR('Tabel 2 F'!G181/'Tabel 1 F'!E179*100,"-")) -> - | I181: =IF(OR('Tabel 1 F'!G179<5,'Tabel 2 F'!I181<0.5),"-",IFERROR('Tabel 2 F'!I181/'Tabel 1 F'!G179*100,"-")) -> - | J181: =IF(OR('Tabel 1 F'!G179<5,'Tabel 2 F'!J181<0.5),"-",IFERROR('Tabel 2 F'!J181/'Tabel 1 F'!G179*100,"-")) -> -
A182: Forstkand. | C182: =IF(OR('Tabel 1 F'!C180<5,'Tabel 2 F'!C182<0.5),"-",IFERROR('Tabel 2 F'!C182/'Tabel 1 F'!C180*100,"-")) -> - | D182: =IF(OR('Tabel 1 F'!C180<5,'Tabel 2 F'!D182<0.5),"-",IFERROR('Tabel 2 F'!D182/'Tabel 1 F'!C180*100,"-")) -> - | F182: =IF(OR('Tabel 1 F'!E180<5,'Tabel 2 F'!F182<0.5),"-",IFERROR('Tabel 2 F'!F182/'Tabel 1 F'!E180*100,"-")) -> - | G182: =IF(OR('Tabel 1 F'!E180<5,'Tabel 2 F'!G182<0.5),"-",IFERROR('Tabel 2 F'!G182/'Tabel 1 F'!E180*100,"-")) -> - | I182: =IF(OR('Tabel 1 F'!G180<5,'Tabel 2 F'!I182<0.5),"-",IFERROR('Tabel 2 F'!I182/'Tabel 1 F'!G180*100,"-")) -> - | J182: =IF(OR('Tabel 1 F'!G180<5,'Tabel 2 F'!J182<0.5),"-",IFERROR('Tabel 2 F'!J182/'Tabel 1 F'!G180*100,"-")) -> -
A183: Jordbrugsakad. | C183: =IF(OR('Tabel 1 F'!C181<5,'Tabel 2 F'!C183<0.5),"-",IFERROR('Tabel 2 F'!C183/'Tabel 1 F'!C181*100,"-")) -> - | D183: =IF(OR('Tabel 1 F'!C181<5,'Tabel 2 F'!D183<0.5),"-",IFERROR('Tabel 2 F'!D183/'Tabel 1 F'!C181*100,"-")) -> - | F183: =IF(OR('Tabel 1 F'!E181<5,'Tabel 2 F'!F183<0.5),"-",IFERROR('Tabel 2 F'!F183/'Tabel 1 F'!E181*100,"-")) -> 12 | G183: =IF(OR('Tabel 1 F'!E181<5,'Tabel 2 F'!G183<0.5),"-",IFERROR('Tabel 2 F'!G183/'Tabel 1 F'!E181*100,"-")) -> 9.228466288 | I183: =IF(OR('Tabel 1 F'!G181<5,'Tabel 2 F'!I183<0.5),"-",IFERROR('Tabel 2 F'!I183/'Tabel 1 F'!G181*100,"-")) -> 7.142857143 | J183: =IF(OR('Tabel 1 F'!G181<5,'Tabel 2 F'!J183<0.5),"-",IFERROR('Tabel 2 F'!J183/'Tabel 1 F'!G181*100,"-")) -> 5.493134695
A184: Mejeriing. | C184: =IF(OR('Tabel 1 F'!C182<5,'Tabel 2 F'!C184<0.5),"-",IFERROR('Tabel 2 F'!C184/'Tabel 1 F'!C182*100,"-")) -> - | D184: =IF(OR('Tabel 1 F'!C182<5,'Tabel 2 F'!D184<0.5),"-",IFERROR('Tabel 2 F'!D184/'Tabel 1 F'!C182*100,"-")) -> - | F184: =IF(OR('Tabel 1 F'!E182<5,'Tabel 2 F'!F184<0.5),"-",IFERROR('Tabel 2 F'!F184/'Tabel 1 F'!E182*100,"-")) -> - | G184: =IF(OR('Tabel 1 F'!E182<5,'Tabel 2 F'!G184<0.5),"-",IFERROR('Tabel 2 F'!G184/'Tabel 1 F'!E182*100,"-")) -> - | I184: =IF(OR('Tabel 1 F'!G182<5,'Tabel 2 F'!I184<0.5),"-",IFERROR('Tabel 2 F'!I184/'Tabel 1 F'!G182*100,"-")) -> - | J184: =IF(OR('Tabel 1 F'!G182<5,'Tabel 2 F'!J184<0.5),"-",IFERROR('Tabel 2 F'!J184/'Tabel 1 F'!G182*100,"-")) -> -
A185: Levn.m.kand. | C185: =IF(OR('Tabel 1 F'!C183<5,'Tabel 2 F'!C185<0.5),"-",IFERROR('Tabel 2 F'!C185/'Tabel 1 F'!C183*100,"-")) -> - | D185: =IF(OR('Tabel 1 F'!C183<5,'Tabel 2 F'!D185<0.5),"-",IFERROR('Tabel 2 F'!D185/'Tabel 1 F'!C183*100,"-")) -> - | F185: =IF(OR('Tabel 1 F'!E183<5,'Tabel 2 F'!F185<0.5),"-",IFERROR('Tabel 2 F'!F185/'Tabel 1 F'!E183*100,"-")) -> - | G185: =IF(OR('Tabel 1 F'!E183<5,'Tabel 2 F'!G185<0.5),"-",IFERROR('Tabel 2 F'!G185/'Tabel 1 F'!E183*100,"-")) -> - | I185: =IF(OR('Tabel 1 F'!G183<5,'Tabel 2 F'!I185<0.5),"-",IFERROR('Tabel 2 F'!I185/'Tabel 1 F'!G183*100,"-")) -> - | J185: =IF(OR('Tabel 1 F'!G183<5,'Tabel 2 F'!J185<0.5),"-",IFERROR('Tabel 2 F'!J185/'Tabel 1 F'!G183*100,"-")) -> -
A186: Dyrlæge | C186: =IF(OR('Tabel 1 F'!C184<5,'Tabel 2 F'!C186<0.5),"-",IFERROR('Tabel 2 F'!C186/'Tabel 1 F'!C184*100,"-")) -> - | D186: =IF(OR('Tabel 1 F'!C184<5,'Tabel 2 F'!D186<0.5),"-",IFERROR('Tabel 2 F'!D186/'Tabel 1 F'!C184*100,"-")) -> - | F186: =IF(OR('Tabel 1 F'!E184<5,'Tabel 2 F'!F186<0.5),"-",IFERROR('Tabel 2 F'!F186/'Tabel 1 F'!E184*100,"-")) -> - | G186: =IF(OR('Tabel 1 F'!E184<5,'Tabel 2 F'!G186<0.5),"-",IFERROR('Tabel 2 F'!G186/'Tabel 1 F'!E184*100,"-")) -> - | I186: =IF(OR('Tabel 1 F'!G184<5,'Tabel 2 F'!I186<0.5),"-",IFERROR('Tabel 2 F'!I186/'Tabel 1 F'!G184*100,"-")) -> - | J186: =IF(OR('Tabel 1 F'!G184<5,'Tabel 2 F'!J186<0.5),"-",IFERROR('Tabel 2 F'!J186/'Tabel 1 F'!G184*100,"-")) -> -
A187: Farmaceut | C187: =IF(OR('Tabel 1 F'!C185<5,'Tabel 2 F'!C187<0.5),"-",IFERROR('Tabel 2 F'!C187/'Tabel 1 F'!C185*100,"-")) -> - | D187: =IF(OR('Tabel 1 F'!C185<5,'Tabel 2 F'!D187<0.5),"-",IFERROR('Tabel 2 F'!D187/'Tabel 1 F'!C185*100,"-")) -> - | F187: =IF(OR('Tabel 1 F'!E185<5,'Tabel 2 F'!F187<0.5),"-",IFERROR('Tabel 2 F'!F187/'Tabel 1 F'!E185*100,"-")) -> 4.761904762 | G187: =IF(OR('Tabel 1 F'!E185<5,'Tabel 2 F'!G187<0.5),"-",IFERROR('Tabel 2 F'!G187/'Tabel 1 F'!E185*100,"-")) -> 3.662089797 | I187: =IF(OR('Tabel 1 F'!G185<5,'Tabel 2 F'!I187<0.5),"-",IFERROR('Tabel 2 F'!I187/'Tabel 1 F'!G185*100,"-")) -> 4.166666667 | J187: =IF(OR('Tabel 1 F'!G185<5,'Tabel 2 F'!J187<0.5),"-",IFERROR('Tabel 2 F'!J187/'Tabel 1 F'!G185*100,"-")) -> 3.204328572
A188: Læge | C188: =IF(OR('Tabel 1 F'!C186<5,'Tabel 2 F'!C188<0.5),"-",IFERROR('Tabel 2 F'!C188/'Tabel 1 F'!C186*100,"-")) -> 7.692307692 | D188: =IF(OR('Tabel 1 F'!C186<5,'Tabel 2 F'!D188<0.5),"-",IFERROR('Tabel 2 F'!D188/'Tabel 1 F'!C186*100,"-")) -> 7.690868353 | F188: =IF(OR('Tabel 1 F'!E186<5,'Tabel 2 F'!F188<0.5),"-",IFERROR('Tabel 2 F'!F188/'Tabel 1 F'!E186*100,"-")) -> - | G188: =IF(OR('Tabel 1 F'!E186<5,'Tabel 2 F'!G188<0.5),"-",IFERROR('Tabel 2 F'!G188/'Tabel 1 F'!E186*100,"-")) -> - | I188: =IF(OR('Tabel 1 F'!G186<5,'Tabel 2 F'!I188<0.5),"-",IFERROR('Tabel 2 F'!I188/'Tabel 1 F'!G186*100,"-")) -> 2 | J188: =IF(OR('Tabel 1 F'!G186<5,'Tabel 2 F'!J188<0.5),"-",IFERROR('Tabel 2 F'!J188/'Tabel 1 F'!G186*100,"-")) -> 1.999625772
A189: Tandlæge | C189: =IF(OR('Tabel 1 F'!C187<5,'Tabel 2 F'!C189<0.5),"-",IFERROR('Tabel 2 F'!C189/'Tabel 1 F'!C187*100,"-")) -> - | D189: =IF(OR('Tabel 1 F'!C187<5,'Tabel 2 F'!D189<0.5),"-",IFERROR('Tabel 2 F'!D189/'Tabel 1 F'!C187*100,"-")) -> - | F189: =IF(OR('Tabel 1 F'!E187<5,'Tabel 2 F'!F189<0.5),"-",IFERROR('Tabel 2 F'!F189/'Tabel 1 F'!E187*100,"-")) -> - | G189: =IF(OR('Tabel 1 F'!E187<5,'Tabel 2 F'!G189<0.5),"-",IFERROR('Tabel 2 F'!G189/'Tabel 1 F'!E187*100,"-")) -> - | I189: =IF(OR('Tabel 1 F'!G187<5,'Tabel 2 F'!I189<0.5),"-",IFERROR('Tabel 2 F'!I189/'Tabel 1 F'!G187*100,"-")) -> - | J189: =IF(OR('Tabel 1 F'!G187<5,'Tabel 2 F'!J189<0.5),"-",IFERROR('Tabel 2 F'!J189/'Tabel 1 F'!G187*100,"-")) -> -
A190: Arkitekt | C190: =IF(OR('Tabel 1 F'!C188<5,'Tabel 2 F'!C190<0.5),"-",IFERROR('Tabel 2 F'!C190/'Tabel 1 F'!C188*100,"-")) -> 14.28571429 | D190: =IF(OR('Tabel 1 F'!C188<5,'Tabel 2 F'!D190<0.5),"-",IFERROR('Tabel 2 F'!D190/'Tabel 1 F'!C188*100,"-")) -> 7.529114059 | F190: =IF(OR('Tabel 1 F'!E188<5,'Tabel 2 F'!F190<0.5),"-",IFERROR('Tabel 2 F'!F190/'Tabel 1 F'!E188*100,"-")) -> - | G190: =IF(OR('Tabel 1 F'!E188<5,'Tabel 2 F'!G190<0.5),"-",IFERROR('Tabel 2 F'!G190/'Tabel 1 F'!E188*100,"-")) -> - | I190: =IF(OR('Tabel 1 F'!G188<5,'Tabel 2 F'!I190<0.5),"-",IFERROR('Tabel 2 F'!I190/'Tabel 1 F'!G188*100,"-")) -> 8.333333333 | J190: =IF(OR('Tabel 1 F'!G188<5,'Tabel 2 F'!J190<0.5),"-",IFERROR('Tabel 2 F'!J190/'Tabel 1 F'!G188*100,"-")) -> 4.391983201
A191: Landinspek. | C191: =IF(OR('Tabel 1 F'!C189<5,'Tabel 2 F'!C191<0.5),"-",IFERROR('Tabel 2 F'!C191/'Tabel 1 F'!C189*100,"-")) -> - | D191: =IF(OR('Tabel 1 F'!C189<5,'Tabel 2 F'!D191<0.5),"-",IFERROR('Tabel 2 F'!D191/'Tabel 1 F'!C189*100,"-")) -> - | F191: =IF(OR('Tabel 1 F'!E189<5,'Tabel 2 F'!F191<0.5),"-",IFERROR('Tabel 2 F'!F191/'Tabel 1 F'!E189*100,"-")) -> - | G191: =IF(OR('Tabel 1 F'!E189<5,'Tabel 2 F'!G191<0.5),"-",IFERROR('Tabel 2 F'!G191/'Tabel 1 F'!E189*100,"-")) -> - | I191: =IF(OR('Tabel 1 F'!G189<5,'Tabel 2 F'!I191<0.5),"-",IFERROR('Tabel 2 F'!I191/'Tabel 1 F'!G189*100,"-")) -> - | J191: =IF(OR('Tabel 1 F'!G189<5,'Tabel 2 F'!J191<0.5),"-",IFERROR('Tabel 2 F'!J191/'Tabel 1 F'!G189*100,"-")) -> -
A192: Bibliotekar | C192: =IF(OR('Tabel 1 F'!C190<5,'Tabel 2 F'!C192<0.5),"-",IFERROR('Tabel 2 F'!C192/'Tabel 1 F'!C190*100,"-")) -> - | D192: =IF(OR('Tabel 1 F'!C190<5,'Tabel 2 F'!D192<0.5),"-",IFERROR('Tabel 2 F'!D192/'Tabel 1 F'!C190*100,"-")) -> - | F192: =IF(OR('Tabel 1 F'!E190<5,'Tabel 2 F'!F192<0.5),"-",IFERROR('Tabel 2 F'!F192/'Tabel 1 F'!E190*100,"-")) -> - | G192: =IF(OR('Tabel 1 F'!E190<5,'Tabel 2 F'!G192<0.5),"-",IFERROR('Tabel 2 F'!G192/'Tabel 1 F'!E190*100,"-")) -> - | I192: =IF(OR('Tabel 1 F'!G190<5,'Tabel 2 F'!I192<0.5),"-",IFERROR('Tabel 2 F'!I192/'Tabel 1 F'!G190*100,"-")) -> - | J192: =IF(OR('Tabel 1 F'!G190<5,'Tabel 2 F'!J192<0.5),"-",IFERROR('Tabel 2 F'!J192/'Tabel 1 F'!G190*100,"-")) -> -
A193: Musikudd. | C193: =IF(OR('Tabel 1 F'!C191<5,'Tabel 2 F'!C193<0.5),"-",IFERROR('Tabel 2 F'!C193/'Tabel 1 F'!C191*100,"-")) -> - | D193: =IF(OR('Tabel 1 F'!C191<5,'Tabel 2 F'!D193<0.5),"-",IFERROR('Tabel 2 F'!D193/'Tabel 1 F'!C191*100,"-")) -> - | F193: =IF(OR('Tabel 1 F'!E191<5,'Tabel 2 F'!F193<0.5),"-",IFERROR('Tabel 2 F'!F193/'Tabel 1 F'!E191*100,"-")) -> - | G193: =IF(OR('Tabel 1 F'!E191<5,'Tabel 2 F'!G193<0.5),"-",IFERROR('Tabel 2 F'!G193/'Tabel 1 F'!E191*100,"-")) -> - | I193: =IF(OR('Tabel 1 F'!G191<5,'Tabel 2 F'!I193<0.5),"-",IFERROR('Tabel 2 F'!I193/'Tabel 1 F'!G191*100,"-")) -> - | J193: =IF(OR('Tabel 1 F'!G191<5,'Tabel 2 F'!J193<0.5),"-",IFERROR('Tabel 2 F'!J193/'Tabel 1 F'!G191*100,"-")) -> -
A194: Teolog | C194: =IF(OR('Tabel 1 F'!C192<5,'Tabel 2 F'!C194<0.5),"-",IFERROR('Tabel 2 F'!C194/'Tabel 1 F'!C192*100,"-")) -> - | D194: =IF(OR('Tabel 1 F'!C192<5,'Tabel 2 F'!D194<0.5),"-",IFERROR('Tabel 2 F'!D194/'Tabel 1 F'!C192*100,"-")) -> - | F194: =IF(OR('Tabel 1 F'!E192<5,'Tabel 2 F'!F194<0.5),"-",IFERROR('Tabel 2 F'!F194/'Tabel 1 F'!E192*100,"-")) -> - | G194: =IF(OR('Tabel 1 F'!E192<5,'Tabel 2 F'!G194<0.5),"-",IFERROR('Tabel 2 F'!G194/'Tabel 1 F'!E192*100,"-")) -> - | I194: =IF(OR('Tabel 1 F'!G192<5,'Tabel 2 F'!I194<0.5),"-",IFERROR('Tabel 2 F'!I194/'Tabel 1 F'!G192*100,"-")) -> - | J194: =IF(OR('Tabel 1 F'!G192<5,'Tabel 2 F'!J194<0.5),"-",IFERROR('Tabel 2 F'!J194/'Tabel 1 F'!G192*100,"-")) -> -
A195: Psykolog | C195: =IF(OR('Tabel 1 F'!C193<5,'Tabel 2 F'!C195<0.5),"-",IFERROR('Tabel 2 F'!C195/'Tabel 1 F'!C193*100,"-")) -> - | D195: =IF(OR('Tabel 1 F'!C193<5,'Tabel 2 F'!D195<0.5),"-",IFERROR('Tabel 2 F'!D195/'Tabel 1 F'!C193*100,"-")) -> - | F195: =IF(OR('Tabel 1 F'!E193<5,'Tabel 2 F'!F195<0.5),"-",IFERROR('Tabel 2 F'!F195/'Tabel 1 F'!E193*100,"-")) -> 5.555555556 | G195: =IF(OR('Tabel 1 F'!E193<5,'Tabel 2 F'!G195<0.5),"-",IFERROR('Tabel 2 F'!G195/'Tabel 1 F'!E193*100,"-")) -> - | I195: =IF(OR('Tabel 1 F'!G193<5,'Tabel 2 F'!I195<0.5),"-",IFERROR('Tabel 2 F'!I195/'Tabel 1 F'!G193*100,"-")) -> 4.545454545 | J195: =IF(OR('Tabel 1 F'!G193<5,'Tabel 2 F'!J195<0.5),"-",IFERROR('Tabel 2 F'!J195/'Tabel 1 F'!G193*100,"-")) -> -
A196: Jurist | C196: =IF(OR('Tabel 1 F'!C194<5,'Tabel 2 F'!C196<0.5),"-",IFERROR('Tabel 2 F'!C196/'Tabel 1 F'!C194*100,"-")) -> - | D196: =IF(OR('Tabel 1 F'!C194<5,'Tabel 2 F'!D196<0.5),"-",IFERROR('Tabel 2 F'!D196/'Tabel 1 F'!C194*100,"-")) -> - | F196: =IF(OR('Tabel 1 F'!E194<5,'Tabel 2 F'!F196<0.5),"-",IFERROR('Tabel 2 F'!F196/'Tabel 1 F'!E194*100,"-")) -> - | G196: =IF(OR('Tabel 1 F'!E194<5,'Tabel 2 F'!G196<0.5),"-",IFERROR('Tabel 2 F'!G196/'Tabel 1 F'!E194*100,"-")) -> - | I196: =IF(OR('Tabel 1 F'!G194<5,'Tabel 2 F'!I196<0.5),"-",IFERROR('Tabel 2 F'!I196/'Tabel 1 F'!G194*100,"-")) -> - | J196: =IF(OR('Tabel 1 F'!G194<5,'Tabel 2 F'!J196<0.5),"-",IFERROR('Tabel 2 F'!J196/'Tabel 1 F'!G194*100,"-")) -> -
A197: Økonom | C197: =IF(OR('Tabel 1 F'!C195<5,'Tabel 2 F'!C197<0.5),"-",IFERROR('Tabel 2 F'!C197/'Tabel 1 F'!C195*100,"-")) -> - | D197: =IF(OR('Tabel 1 F'!C195<5,'Tabel 2 F'!D197<0.5),"-",IFERROR('Tabel 2 F'!D197/'Tabel 1 F'!C195*100,"-")) -> - | F197: =IF(OR('Tabel 1 F'!E195<5,'Tabel 2 F'!F197<0.5),"-",IFERROR('Tabel 2 F'!F197/'Tabel 1 F'!E195*100,"-")) -> - | G197: =IF(OR('Tabel 1 F'!E195<5,'Tabel 2 F'!G197<0.5),"-",IFERROR('Tabel 2 F'!G197/'Tabel 1 F'!E195*100,"-")) -> - | I197: =IF(OR('Tabel 1 F'!G195<5,'Tabel 2 F'!I197<0.5),"-",IFERROR('Tabel 2 F'!I197/'Tabel 1 F'!G195*100,"-")) -> - | J197: =IF(OR('Tabel 1 F'!G195<5,'Tabel 2 F'!J197<0.5),"-",IFERROR('Tabel 2 F'!J197/'Tabel 1 F'!G195*100,"-")) -> -
A198: Samf. Adm. | C198: =IF(OR('Tabel 1 F'!C196<5,'Tabel 2 F'!C198<0.5),"-",IFERROR('Tabel 2 F'!C198/'Tabel 1 F'!C196*100,"-")) -> 3.703703704 | D198: =IF(OR('Tabel 1 F'!C196<5,'Tabel 2 F'!D198<0.5),"-",IFERROR('Tabel 2 F'!D198/'Tabel 1 F'!C196*100,"-")) -> 2.677348339 | F198: =IF(OR('Tabel 1 F'!E196<5,'Tabel 2 F'!F198<0.5),"-",IFERROR('Tabel 2 F'!F198/'Tabel 1 F'!E196*100,"-")) -> 7.8125 | G198: =IF(OR('Tabel 1 F'!E196<5,'Tabel 2 F'!G198<0.5),"-",IFERROR('Tabel 2 F'!G198/'Tabel 1 F'!E196*100,"-")) -> 5.503297886 | I198: =IF(OR('Tabel 1 F'!G196<5,'Tabel 2 F'!I198<0.5),"-",IFERROR('Tabel 2 F'!I198/'Tabel 1 F'!G196*100,"-")) -> 6.593406593 | J198: =IF(OR('Tabel 1 F'!G196<5,'Tabel 2 F'!J198<0.5),"-",IFERROR('Tabel 2 F'!J198/'Tabel 1 F'!G196*100,"-")) -> 4.664829339
A199: Cand. Merc. | C199: =IF(OR('Tabel 1 F'!C197<5,'Tabel 2 F'!C199<0.5),"-",IFERROR('Tabel 2 F'!C199/'Tabel 1 F'!C197*100,"-")) -> - | D199: =IF(OR('Tabel 1 F'!C197<5,'Tabel 2 F'!D199<0.5),"-",IFERROR('Tabel 2 F'!D199/'Tabel 1 F'!C197*100,"-")) -> - | F199: =IF(OR('Tabel 1 F'!E197<5,'Tabel 2 F'!F199<0.5),"-",IFERROR('Tabel 2 F'!F199/'Tabel 1 F'!E197*100,"-")) -> 1.818181818 | G199: =IF(OR('Tabel 1 F'!E197<5,'Tabel 2 F'!G199<0.5),"-",IFERROR('Tabel 2 F'!G199/'Tabel 1 F'!E197*100,"-")) -> 1.817841611 | I199: =IF(OR('Tabel 1 F'!G197<5,'Tabel 2 F'!I199<0.5),"-",IFERROR('Tabel 2 F'!I199/'Tabel 1 F'!G197*100,"-")) -> 1.123595506 | J199: =IF(OR('Tabel 1 F'!G197<5,'Tabel 2 F'!J199<0.5),"-",IFERROR('Tabel 2 F'!J199/'Tabel 1 F'!G197*100,"-")) -> 1.123385265
A200: HA | C200: =IF(OR('Tabel 1 F'!C198<5,'Tabel 2 F'!C200<0.5),"-",IFERROR('Tabel 2 F'!C200/'Tabel 1 F'!C198*100,"-")) -> 7.142857143 | D200: =IF(OR('Tabel 1 F'!C198<5,'Tabel 2 F'!D200<0.5),"-",IFERROR('Tabel 2 F'!D200/'Tabel 1 F'!C198*100,"-")) -> 4.174425961 | F200: =IF(OR('Tabel 1 F'!E198<5,'Tabel 2 F'!F200<0.5),"-",IFERROR('Tabel 2 F'!F200/'Tabel 1 F'!E198*100,"-")) -> 7.692307692 | G200: =IF(OR('Tabel 1 F'!E198<5,'Tabel 2 F'!G200<0.5),"-",IFERROR('Tabel 2 F'!G200/'Tabel 1 F'!E198*100,"-")) -> 7.690868353 | I200: =IF(OR('Tabel 1 F'!G198<5,'Tabel 2 F'!I200<0.5),"-",IFERROR('Tabel 2 F'!I200/'Tabel 1 F'!G198*100,"-")) -> 7.407407407 | J200: =IF(OR('Tabel 1 F'!G198<5,'Tabel 2 F'!J200<0.5),"-",IFERROR('Tabel 2 F'!J200/'Tabel 1 F'!G198*100,"-")) -> 5.867527853
A201: HD | C201: =IF(OR('Tabel 1 F'!C199<5,'Tabel 2 F'!C201<0.5),"-",IFERROR('Tabel 2 F'!C201/'Tabel 1 F'!C199*100,"-")) -> - | D201: =IF(OR('Tabel 1 F'!C199<5,'Tabel 2 F'!D201<0.5),"-",IFERROR('Tabel 2 F'!D201/'Tabel 1 F'!C199*100,"-")) -> - | F201: =IF(OR('Tabel 1 F'!E199<5,'Tabel 2 F'!F201<0.5),"-",IFERROR('Tabel 2 F'!F201/'Tabel 1 F'!E199*100,"-")) -> - | G201: =IF(OR('Tabel 1 F'!E199<5,'Tabel 2 F'!G201<0.5),"-",IFERROR('Tabel 2 F'!G201/'Tabel 1 F'!E199*100,"-")) -> - | I201: =IF(OR('Tabel 1 F'!G199<5,'Tabel 2 F'!I201<0.5),"-",IFERROR('Tabel 2 F'!I201/'Tabel 1 F'!G199*100,"-")) -> - | J201: =IF(OR('Tabel 1 F'!G199<5,'Tabel 2 F'!J201<0.5),"-",IFERROR('Tabel 2 F'!J201/'Tabel 1 F'!G199*100,"-")) -> -
A202: Komm. og Sprog | C202: =IF(OR('Tabel 1 F'!C200<5,'Tabel 2 F'!C202<0.5),"-",IFERROR('Tabel 2 F'!C202/'Tabel 1 F'!C200*100,"-")) -> - | D202: =IF(OR('Tabel 1 F'!C200<5,'Tabel 2 F'!D202<0.5),"-",IFERROR('Tabel 2 F'!D202/'Tabel 1 F'!C200*100,"-")) -> - | F202: =IF(OR('Tabel 1 F'!E200<5,'Tabel 2 F'!F202<0.5),"-",IFERROR('Tabel 2 F'!F202/'Tabel 1 F'!E200*100,"-")) -> 9.090909091 | G202: =IF(OR('Tabel 1 F'!E200<5,'Tabel 2 F'!G202<0.5),"-",IFERROR('Tabel 2 F'!G202/'Tabel 1 F'!E200*100,"-")) -> 5.732494911 | I202: =IF(OR('Tabel 1 F'!G200<5,'Tabel 2 F'!I202<0.5),"-",IFERROR('Tabel 2 F'!I202/'Tabel 1 F'!G200*100,"-")) -> 5.882352941 | J202: =IF(OR('Tabel 1 F'!G200<5,'Tabel 2 F'!J202<0.5),"-",IFERROR('Tabel 2 F'!J202/'Tabel 1 F'!G200*100,"-")) -> 3.709261413
A203: Bygningskonst. | C203: =IF(OR('Tabel 1 F'!C201<5,'Tabel 2 F'!C203<0.5),"-",IFERROR('Tabel 2 F'!C203/'Tabel 1 F'!C201*100,"-")) -> 1.408450704 | D203: =IF(OR('Tabel 1 F'!C201<5,'Tabel 2 F'!D203<0.5),"-",IFERROR('Tabel 2 F'!D203/'Tabel 1 F'!C201*100,"-")) -> 1.408450704 | F203: =IF(OR('Tabel 1 F'!E201<5,'Tabel 2 F'!F203<0.5),"-",IFERROR('Tabel 2 F'!F203/'Tabel 1 F'!E201*100,"-")) -> - | G203: =IF(OR('Tabel 1 F'!E201<5,'Tabel 2 F'!G203<0.5),"-",IFERROR('Tabel 2 F'!G203/'Tabel 1 F'!E201*100,"-")) -> - | I203: =IF(OR('Tabel 1 F'!G201<5,'Tabel 2 F'!I203<0.5),"-",IFERROR('Tabel 2 F'!I203/'Tabel 1 F'!G201*100,"-")) -> 1.219512195 | J203: =IF(OR('Tabel 1 F'!G201<5,'Tabel 2 F'!J203<0.5),"-",IFERROR('Tabel 2 F'!J203/'Tabel 1 F'!G201*100,"-")) -> 1.219512195
A204: Cand. IT. | C204: =IF(OR('Tabel 1 F'!C202<5,'Tabel 2 F'!C204<0.5),"-",IFERROR('Tabel 2 F'!C204/'Tabel 1 F'!C202*100,"-")) -> 16.66666667 | D204: =IF(OR('Tabel 1 F'!C202<5,'Tabel 2 F'!D204<0.5),"-",IFERROR('Tabel 2 F'!D204/'Tabel 1 F'!C202*100,"-")) -> 16.6635481 | F204: =IF(OR('Tabel 1 F'!E202<5,'Tabel 2 F'!F204<0.5),"-",IFERROR('Tabel 2 F'!F204/'Tabel 1 F'!E202*100,"-")) -> 16.66666667 | G204: =IF(OR('Tabel 1 F'!E202<5,'Tabel 2 F'!G204<0.5),"-",IFERROR('Tabel 2 F'!G204/'Tabel 1 F'!E202*100,"-")) -> 16.6635481 | I204: =IF(OR('Tabel 1 F'!G202<5,'Tabel 2 F'!I204<0.5),"-",IFERROR('Tabel 2 F'!I204/'Tabel 1 F'!G202*100,"-")) -> 16.66666667 | J204: =IF(OR('Tabel 1 F'!G202<5,'Tabel 2 F'!J204<0.5),"-",IFERROR('Tabel 2 F'!J204/'Tabel 1 F'!G202*100,"-")) -> 16.6635481
A205: Bac. Samf. | C205: =IF(OR('Tabel 1 F'!C203<5,'Tabel 2 F'!C205<0.5),"-",IFERROR('Tabel 2 F'!C205/'Tabel 1 F'!C203*100,"-")) -> - | D205: =IF(OR('Tabel 1 F'!C203<5,'Tabel 2 F'!D205<0.5),"-",IFERROR('Tabel 2 F'!D205/'Tabel 1 F'!C203*100,"-")) -> - | F205: =IF(OR('Tabel 1 F'!E203<5,'Tabel 2 F'!F205<0.5),"-",IFERROR('Tabel 2 F'!F205/'Tabel 1 F'!E203*100,"-")) -> 20 | G205: =IF(OR('Tabel 1 F'!E203<5,'Tabel 2 F'!G205<0.5),"-",IFERROR('Tabel 2 F'!G205/'Tabel 1 F'!E203*100,"-")) -> 19.99625772 | I205: =IF(OR('Tabel 1 F'!G203<5,'Tabel 2 F'!I205<0.5),"-",IFERROR('Tabel 2 F'!I205/'Tabel 1 F'!G203*100,"-")) -> 10 | J205: =IF(OR('Tabel 1 F'!G203<5,'Tabel 2 F'!J205<0.5),"-",IFERROR('Tabel 2 F'!J205/'Tabel 1 F'!G203*100,"-")) -> 9.998128859
A206: Bac. Hum. | C206: =IF(OR('Tabel 1 F'!C204<5,'Tabel 2 F'!C206<0.5),"-",IFERROR('Tabel 2 F'!C206/'Tabel 1 F'!C204*100,"-")) -> - | D206: =IF(OR('Tabel 1 F'!C204<5,'Tabel 2 F'!D206<0.5),"-",IFERROR('Tabel 2 F'!D206/'Tabel 1 F'!C204*100,"-")) -> - | F206: =IF(OR('Tabel 1 F'!E204<5,'Tabel 2 F'!F206<0.5),"-",IFERROR('Tabel 2 F'!F206/'Tabel 1 F'!E204*100,"-")) -> - | G206: =IF(OR('Tabel 1 F'!E204<5,'Tabel 2 F'!G206<0.5),"-",IFERROR('Tabel 2 F'!G206/'Tabel 1 F'!E204*100,"-")) -> - | I206: =IF(OR('Tabel 1 F'!G204<5,'Tabel 2 F'!I206<0.5),"-",IFERROR('Tabel 2 F'!I206/'Tabel 1 F'!G204*100,"-")) -> - | J206: =IF(OR('Tabel 1 F'!G204<5,'Tabel 2 F'!J206<0.5),"-",IFERROR('Tabel 2 F'!J206/'Tabel 1 F'!G204*100,"-")) -> -
A207: Bac. Nat. | C207: =IF(OR('Tabel 1 F'!C205<5,'Tabel 2 F'!C207<0.5),"-",IFERROR('Tabel 2 F'!C207/'Tabel 1 F'!C205*100,"-")) -> 9.090909091 | D207: =IF(OR('Tabel 1 F'!C205<5,'Tabel 2 F'!D207<0.5),"-",IFERROR('Tabel 2 F'!D207/'Tabel 1 F'!C205*100,"-")) -> 9.089208054 | F207: =IF(OR('Tabel 1 F'!E205<5,'Tabel 2 F'!F207<0.5),"-",IFERROR('Tabel 2 F'!F207/'Tabel 1 F'!E205*100,"-")) -> - | G207: =IF(OR('Tabel 1 F'!E205<5,'Tabel 2 F'!G207<0.5),"-",IFERROR('Tabel 2 F'!G207/'Tabel 1 F'!E205*100,"-")) -> - | I207: =IF(OR('Tabel 1 F'!G205<5,'Tabel 2 F'!I207<0.5),"-",IFERROR('Tabel 2 F'!I207/'Tabel 1 F'!G205*100,"-")) -> 13.33333333 | J207: =IF(OR('Tabel 1 F'!G205<5,'Tabel 2 F'!J207<0.5),"-",IFERROR('Tabel 2 F'!J207/'Tabel 1 F'!G205*100,"-")) -> 13.33083848
A208: Andre | C208: =IF(OR('Tabel 1 F'!C206<5,'Tabel 2 F'!C208<0.5),"-",IFERROR('Tabel 2 F'!C208/'Tabel 1 F'!C206*100,"-")) -> - | D208: =IF(OR('Tabel 1 F'!C206<5,'Tabel 2 F'!D208<0.5),"-",IFERROR('Tabel 2 F'!D208/'Tabel 1 F'!C206*100,"-")) -> - | F208: =IF(OR('Tabel 1 F'!E206<5,'Tabel 2 F'!F208<0.5),"-",IFERROR('Tabel 2 F'!F208/'Tabel 1 F'!E206*100,"-")) -> - | G208: =IF(OR('Tabel 1 F'!E206<5,'Tabel 2 F'!G208<0.5),"-",IFERROR('Tabel 2 F'!G208/'Tabel 1 F'!E206*100,"-")) -> - | I208: =IF(OR('Tabel 1 F'!G206<5,'Tabel 2 F'!I208<0.5),"-",IFERROR('Tabel 2 F'!I208/'Tabel 1 F'!G206*100,"-")) -> - | J208: =IF(OR('Tabel 1 F'!G206<5,'Tabel 2 F'!J208<0.5),"-",IFERROR('Tabel 2 F'!J208/'Tabel 1 F'!G206*100,"-")) -> -
A210: Total | C210: =IF(OR('Tabel 1 F'!C208<5,'Tabel 2 F'!C210<0.5),"-",IFERROR('Tabel 2 F'!C210/'Tabel 1 F'!C208*100,"-")) -> 1.824817518 | D210: =IF(OR('Tabel 1 F'!C208<5,'Tabel 2 F'!D210<0.5),"-",IFERROR('Tabel 2 F'!D210/'Tabel 1 F'!C208*100,"-")) -> 1.555285229 | F210: =IF(OR('Tabel 1 F'!E208<5,'Tabel 2 F'!F210<0.5),"-",IFERROR('Tabel 2 F'!F210/'Tabel 1 F'!E208*100,"-")) -> 4.913678619 | G210: =IF(OR('Tabel 1 F'!E208<5,'Tabel 2 F'!G210<0.5),"-",IFERROR('Tabel 2 F'!G210/'Tabel 1 F'!E208*100,"-")) -> 3.892536053 | I210: =IF(OR('Tabel 1 F'!G208<5,'Tabel 2 F'!I210<0.5),"-",IFERROR('Tabel 2 F'!I210/'Tabel 1 F'!G208*100,"-")) -> 3.301587302 | J210: =IF(OR('Tabel 1 F'!G208<5,'Tabel 2 F'!J210<0.5),"-",IFERROR('Tabel 2 F'!J210/'Tabel 1 F'!G208*100,"-")) -> 2.672713718
A212: Ingeniører i alt | C212: =IF(OR('Tabel 1 F'!C210<5,'Tabel 2 F'!C212<0.5),"-",IFERROR('Tabel 2 F'!C212/'Tabel 1 F'!C210*100,"-")) -> 1.234567901 | D212: =IF(OR('Tabel 1 F'!C210<5,'Tabel 2 F'!D212<0.5),"-",IFERROR('Tabel 2 F'!D212/'Tabel 1 F'!C210*100,"-")) -> 1.163110344 | F212: =IF(OR('Tabel 1 F'!E210<5,'Tabel 2 F'!F212<0.5),"-",IFERROR('Tabel 2 F'!F212/'Tabel 1 F'!E210*100,"-")) -> 7.936507937 | G212: =IF(OR('Tabel 1 F'!E210<5,'Tabel 2 F'!G212<0.5),"-",IFERROR('Tabel 2 F'!G212/'Tabel 1 F'!E210*100,"-")) -> 6.909360555 | I212: =IF(OR('Tabel 1 F'!G210<5,'Tabel 2 F'!I212<0.5),"-",IFERROR('Tabel 2 F'!I212/'Tabel 1 F'!G210*100,"-")) -> 2.325581395 | J212: =IF(OR('Tabel 1 F'!G210<5,'Tabel 2 F'!J212<0.5),"-",IFERROR('Tabel 2 F'!J212/'Tabel 1 F'!G210*100,"-")) -> 2.098546425
A213: Magistre i alt | C213: =IF(OR('Tabel 1 F'!C211<5,'Tabel 2 F'!C213<0.5),"-",IFERROR('Tabel 2 F'!C213/'Tabel 1 F'!C211*100,"-")) -> 3.418803419 | D213: =IF(OR('Tabel 1 F'!C211<5,'Tabel 2 F'!D213<0.5),"-",IFERROR('Tabel 2 F'!D213/'Tabel 1 F'!C211*100,"-")) -> 2.719817726 | F213: =IF(OR('Tabel 1 F'!E211<5,'Tabel 2 F'!F213<0.5),"-",IFERROR('Tabel 2 F'!F213/'Tabel 1 F'!E211*100,"-")) -> 6.310679612 | G213: =IF(OR('Tabel 1 F'!E211<5,'Tabel 2 F'!G213<0.5),"-",IFERROR('Tabel 2 F'!G213/'Tabel 1 F'!E211*100,"-")) -> 4.808347347 | I213: =IF(OR('Tabel 1 F'!G211<5,'Tabel 2 F'!I213<0.5),"-",IFERROR('Tabel 2 F'!I213/'Tabel 1 F'!G211*100,"-")) -> 5.263157895 | J213: =IF(OR('Tabel 1 F'!G211<5,'Tabel 2 F'!J213<0.5),"-",IFERROR('Tabel 2 F'!J213/'Tabel 1 F'!G211*100,"-")) -> 4.051821137
A214: DJØF'ere i alt | C214: =IF(OR('Tabel 1 F'!C212<5,'Tabel 2 F'!C214<0.5),"-",IFERROR('Tabel 2 F'!C214/'Tabel 1 F'!C212*100,"-")) -> 1.941747573 | D214: =IF(OR('Tabel 1 F'!C212<5,'Tabel 2 F'!D214<0.5),"-",IFERROR('Tabel 2 F'!D214/'Tabel 1 F'!C212*100,"-")) -> 1.26922688 | F214: =IF(OR('Tabel 1 F'!E212<5,'Tabel 2 F'!F214<0.5),"-",IFERROR('Tabel 2 F'!F214/'Tabel 1 F'!E212*100,"-")) -> 4.022988506 | G214: =IF(OR('Tabel 1 F'!E212<5,'Tabel 2 F'!G214<0.5),"-",IFERROR('Tabel 2 F'!G214/'Tabel 1 F'!E212*100,"-")) -> 3.173411735 | I214: =IF(OR('Tabel 1 F'!G212<5,'Tabel 2 F'!I214<0.5),"-",IFERROR('Tabel 2 F'!I214/'Tabel 1 F'!G212*100,"-")) -> 3.249097473 | J214: =IF(OR('Tabel 1 F'!G212<5,'Tabel 2 F'!J214<0.5),"-",IFERROR('Tabel 2 F'!J214/'Tabel 1 F'!G212*100,"-")) -> 2.465357439
A219: Kerteminde
C221: Mænd | F221: Kvinder | I221: I alt
C222: Ledigheds- berørte | D222: Gns. brutto- ledighed | F222: Ledigheds- berørte | G222: Gns. brutto- ledighed | I222: Ledigheds- berørte | J222: Gns. brutto- ledighed
A225: Civ. ing. | C225: =IF(OR('Tabel 1 F'!C223<5,'Tabel 2 F'!C225<0.5),"-",IFERROR('Tabel 2 F'!C225/'Tabel 1 F'!C223*100,"-")) -> - | D225: =IF(OR('Tabel 1 F'!C223<5,'Tabel 2 F'!D225<0.5),"-",IFERROR('Tabel 2 F'!D225/'Tabel 1 F'!C223*100,"-")) -> - | F225: =IF(OR('Tabel 1 F'!E223<5,'Tabel 2 F'!F225<0.5),"-",IFERROR('Tabel 2 F'!F225/'Tabel 1 F'!E223*100,"-")) -> 9.090909091 | G225: =IF(OR('Tabel 1 F'!E223<5,'Tabel 2 F'!G225<0.5),"-",IFERROR('Tabel 2 F'!G225/'Tabel 1 F'!E223*100,"-")) -> - | I225: =IF(OR('Tabel 1 F'!G223<5,'Tabel 2 F'!I225<0.5),"-",IFERROR('Tabel 2 F'!I225/'Tabel 1 F'!G223*100,"-")) -> 2.857142857 | J225: =IF(OR('Tabel 1 F'!G223<5,'Tabel 2 F'!J225<0.5),"-",IFERROR('Tabel 2 F'!J225/'Tabel 1 F'!G223*100,"-")) -> -
A226: Diplom ing. | C226: =IF(OR('Tabel 1 F'!C224<5,'Tabel 2 F'!C226<0.5),"-",IFERROR('Tabel 2 F'!C226/'Tabel 1 F'!C224*100,"-")) -> 0.7633587786 | D226: =IF(OR('Tabel 1 F'!C224<5,'Tabel 2 F'!D226<0.5),"-",IFERROR('Tabel 2 F'!D226/'Tabel 1 F'!C224*100,"-")) -> 0.7632159435 | F226: =IF(OR('Tabel 1 F'!E224<5,'Tabel 2 F'!F226<0.5),"-",IFERROR('Tabel 2 F'!F226/'Tabel 1 F'!E224*100,"-")) -> 3.448275862 | G226: =IF(OR('Tabel 1 F'!E224<5,'Tabel 2 F'!G226<0.5),"-",IFERROR('Tabel 2 F'!G226/'Tabel 1 F'!E224*100,"-")) -> 3.447630641 | I226: =IF(OR('Tabel 1 F'!G224<5,'Tabel 2 F'!I226<0.5),"-",IFERROR('Tabel 2 F'!I226/'Tabel 1 F'!G224*100,"-")) -> 1.25 | J226: =IF(OR('Tabel 1 F'!G224<5,'Tabel 2 F'!J226<0.5),"-",IFERROR('Tabel 2 F'!J226/'Tabel 1 F'!G224*100,"-")) -> 1.249766107
A227: Cand. Scient. Tek. | C227: =IF(OR('Tabel 1 F'!C225<5,'Tabel 2 F'!C227<0.5),"-",IFERROR('Tabel 2 F'!C227/'Tabel 1 F'!C225*100,"-")) -> - | D227: =IF(OR('Tabel 1 F'!C225<5,'Tabel 2 F'!D227<0.5),"-",IFERROR('Tabel 2 F'!D227/'Tabel 1 F'!C225*100,"-")) -> - | F227: =IF(OR('Tabel 1 F'!E225<5,'Tabel 2 F'!F227<0.5),"-",IFERROR('Tabel 2 F'!F227/'Tabel 1 F'!E225*100,"-")) -> 10 | G227: =IF(OR('Tabel 1 F'!E225<5,'Tabel 2 F'!G227<0.5),"-",IFERROR('Tabel 2 F'!G227/'Tabel 1 F'!E225*100,"-")) -> 9.998128859 | I227: =IF(OR('Tabel 1 F'!G225<5,'Tabel 2 F'!I227<0.5),"-",IFERROR('Tabel 2 F'!I227/'Tabel 1 F'!G225*100,"-")) -> 4.651162791 | J227: =IF(OR('Tabel 1 F'!G225<5,'Tabel 2 F'!J227<0.5),"-",IFERROR('Tabel 2 F'!J227/'Tabel 1 F'!G225*100,"-")) -> 4.650292493
A228: MA. Hum. | C228: =IF(OR('Tabel 1 F'!C226<5,'Tabel 2 F'!C228<0.5),"-",IFERROR('Tabel 2 F'!C228/'Tabel 1 F'!C226*100,"-")) -> 9.090909091 | D228: =IF(OR('Tabel 1 F'!C226<5,'Tabel 2 F'!D228<0.5),"-",IFERROR('Tabel 2 F'!D228/'Tabel 1 F'!C226*100,"-")) -> 7.690577578 | F228: =IF(OR('Tabel 1 F'!E226<5,'Tabel 2 F'!F228<0.5),"-",IFERROR('Tabel 2 F'!F228/'Tabel 1 F'!E226*100,"-")) -> 9.87654321 | G228: =IF(OR('Tabel 1 F'!E226<5,'Tabel 2 F'!G228<0.5),"-",IFERROR('Tabel 2 F'!G228/'Tabel 1 F'!E226*100,"-")) -> 9.475826478 | I228: =IF(OR('Tabel 1 F'!G226<5,'Tabel 2 F'!I228<0.5),"-",IFERROR('Tabel 2 F'!I228/'Tabel 1 F'!G226*100,"-")) -> 9.649122807 | J228: =IF(OR('Tabel 1 F'!G226<5,'Tabel 2 F'!J228<0.5),"-",IFERROR('Tabel 2 F'!J228/'Tabel 1 F'!G226*100,"-")) -> 8.959043902
A229: MA. Nat. | C229: =IF(OR('Tabel 1 F'!C227<5,'Tabel 2 F'!C229<0.5),"-",IFERROR('Tabel 2 F'!C229/'Tabel 1 F'!C227*100,"-")) -> 6.25 | D229: =IF(OR('Tabel 1 F'!C227<5,'Tabel 2 F'!D229<0.5),"-",IFERROR('Tabel 2 F'!D229/'Tabel 1 F'!C227*100,"-")) -> - | F229: =IF(OR('Tabel 1 F'!E227<5,'Tabel 2 F'!F229<0.5),"-",IFERROR('Tabel 2 F'!F229/'Tabel 1 F'!E227*100,"-")) -> 5.882352941 | G229: =IF(OR('Tabel 1 F'!E227<5,'Tabel 2 F'!G229<0.5),"-",IFERROR('Tabel 2 F'!G229/'Tabel 1 F'!E227*100,"-")) -> - | I229: =IF(OR('Tabel 1 F'!G227<5,'Tabel 2 F'!I229<0.5),"-",IFERROR('Tabel 2 F'!I229/'Tabel 1 F'!G227*100,"-")) -> 6.060606061 | J229: =IF(OR('Tabel 1 F'!G227<5,'Tabel 2 F'!J229<0.5),"-",IFERROR('Tabel 2 F'!J229/'Tabel 1 F'!G227*100,"-")) -> -
A230: MA. Ph.d. | C230: =IF(OR('Tabel 1 F'!C228<5,'Tabel 2 F'!C230<0.5),"-",IFERROR('Tabel 2 F'!C230/'Tabel 1 F'!C228*100,"-")) -> - | D230: =IF(OR('Tabel 1 F'!C228<5,'Tabel 2 F'!D230<0.5),"-",IFERROR('Tabel 2 F'!D230/'Tabel 1 F'!C228*100,"-")) -> - | F230: =IF(OR('Tabel 1 F'!E228<5,'Tabel 2 F'!F230<0.5),"-",IFERROR('Tabel 2 F'!F230/'Tabel 1 F'!E228*100,"-")) -> - | G230: =IF(OR('Tabel 1 F'!E228<5,'Tabel 2 F'!G230<0.5),"-",IFERROR('Tabel 2 F'!G230/'Tabel 1 F'!E228*100,"-")) -> - | I230: =IF(OR('Tabel 1 F'!G228<5,'Tabel 2 F'!I230<0.5),"-",IFERROR('Tabel 2 F'!I230/'Tabel 1 F'!G228*100,"-")) -> - | J230: =IF(OR('Tabel 1 F'!G228<5,'Tabel 2 F'!J230<0.5),"-",IFERROR('Tabel 2 F'!J230/'Tabel 1 F'!G228*100,"-")) -> -
A231: MA. Samf. | C231: =IF(OR('Tabel 1 F'!C229<5,'Tabel 2 F'!C231<0.5),"-",IFERROR('Tabel 2 F'!C231/'Tabel 1 F'!C229*100,"-")) -> - | D231: =IF(OR('Tabel 1 F'!C229<5,'Tabel 2 F'!D231<0.5),"-",IFERROR('Tabel 2 F'!D231/'Tabel 1 F'!C229*100,"-")) -> - | F231: =IF(OR('Tabel 1 F'!E229<5,'Tabel 2 F'!F231<0.5),"-",IFERROR('Tabel 2 F'!F231/'Tabel 1 F'!E229*100,"-")) -> - | G231: =IF(OR('Tabel 1 F'!E229<5,'Tabel 2 F'!G231<0.5),"-",IFERROR('Tabel 2 F'!G231/'Tabel 1 F'!E229*100,"-")) -> - | I231: =IF(OR('Tabel 1 F'!G229<5,'Tabel 2 F'!I231<0.5),"-",IFERROR('Tabel 2 F'!I231/'Tabel 1 F'!G229*100,"-")) -> - | J231: =IF(OR('Tabel 1 F'!G229<5,'Tabel 2 F'!J231<0.5),"-",IFERROR('Tabel 2 F'!J231/'Tabel 1 F'!G229*100,"-")) -> -
A232: Øvrige Mag. | C232: =IF(OR('Tabel 1 F'!C230<5,'Tabel 2 F'!C232<0.5),"-",IFERROR('Tabel 2 F'!C232/'Tabel 1 F'!C230*100,"-")) -> - | D232: =IF(OR('Tabel 1 F'!C230<5,'Tabel 2 F'!D232<0.5),"-",IFERROR('Tabel 2 F'!D232/'Tabel 1 F'!C230*100,"-")) -> - | F232: =IF(OR('Tabel 1 F'!E230<5,'Tabel 2 F'!F232<0.5),"-",IFERROR('Tabel 2 F'!F232/'Tabel 1 F'!E230*100,"-")) -> - | G232: =IF(OR('Tabel 1 F'!E230<5,'Tabel 2 F'!G232<0.5),"-",IFERROR('Tabel 2 F'!G232/'Tabel 1 F'!E230*100,"-")) -> - | I232: =IF(OR('Tabel 1 F'!G230<5,'Tabel 2 F'!I232<0.5),"-",IFERROR('Tabel 2 F'!I232/'Tabel 1 F'!G230*100,"-")) -> - | J232: =IF(OR('Tabel 1 F'!G230<5,'Tabel 2 F'!J232<0.5),"-",IFERROR('Tabel 2 F'!J232/'Tabel 1 F'!G230*100,"-")) -> -
A233: Agronom | C233: =IF(OR('Tabel 1 F'!C231<5,'Tabel 2 F'!C233<0.5),"-",IFERROR('Tabel 2 F'!C233/'Tabel 1 F'!C231*100,"-")) -> - | D233: =IF(OR('Tabel 1 F'!C231<5,'Tabel 2 F'!D233<0.5),"-",IFERROR('Tabel 2 F'!D233/'Tabel 1 F'!C231*100,"-")) -> - | F233: =IF(OR('Tabel 1 F'!E231<5,'Tabel 2 F'!F233<0.5),"-",IFERROR('Tabel 2 F'!F233/'Tabel 1 F'!E231*100,"-")) -> - | G233: =IF(OR('Tabel 1 F'!E231<5,'Tabel 2 F'!G233<0.5),"-",IFERROR('Tabel 2 F'!G233/'Tabel 1 F'!E231*100,"-")) -> - | I233: =IF(OR('Tabel 1 F'!G231<5,'Tabel 2 F'!I233<0.5),"-",IFERROR('Tabel 2 F'!I233/'Tabel 1 F'!G231*100,"-")) -> - | J233: =IF(OR('Tabel 1 F'!G231<5,'Tabel 2 F'!J233<0.5),"-",IFERROR('Tabel 2 F'!J233/'Tabel 1 F'!G231*100,"-")) -> -
A234: Landsk. Arkt. | C234: =IF(OR('Tabel 1 F'!C232<5,'Tabel 2 F'!C234<0.5),"-",IFERROR('Tabel 2 F'!C234/'Tabel 1 F'!C232*100,"-")) -> - | D234: =IF(OR('Tabel 1 F'!C232<5,'Tabel 2 F'!D234<0.5),"-",IFERROR('Tabel 2 F'!D234/'Tabel 1 F'!C232*100,"-")) -> - | F234: =IF(OR('Tabel 1 F'!E232<5,'Tabel 2 F'!F234<0.5),"-",IFERROR('Tabel 2 F'!F234/'Tabel 1 F'!E232*100,"-")) -> - | G234: =IF(OR('Tabel 1 F'!E232<5,'Tabel 2 F'!G234<0.5),"-",IFERROR('Tabel 2 F'!G234/'Tabel 1 F'!E232*100,"-")) -> - | I234: =IF(OR('Tabel 1 F'!G232<5,'Tabel 2 F'!I234<0.5),"-",IFERROR('Tabel 2 F'!I234/'Tabel 1 F'!G232*100,"-")) -> - | J234: =IF(OR('Tabel 1 F'!G232<5,'Tabel 2 F'!J234<0.5),"-",IFERROR('Tabel 2 F'!J234/'Tabel 1 F'!G232*100,"-")) -> -
A235: Hortonom | C235: =IF(OR('Tabel 1 F'!C233<5,'Tabel 2 F'!C235<0.5),"-",IFERROR('Tabel 2 F'!C235/'Tabel 1 F'!C233*100,"-")) -> - | D235: =IF(OR('Tabel 1 F'!C233<5,'Tabel 2 F'!D235<0.5),"-",IFERROR('Tabel 2 F'!D235/'Tabel 1 F'!C233*100,"-")) -> - | F235: =IF(OR('Tabel 1 F'!E233<5,'Tabel 2 F'!F235<0.5),"-",IFERROR('Tabel 2 F'!F235/'Tabel 1 F'!E233*100,"-")) -> - | G235: =IF(OR('Tabel 1 F'!E233<5,'Tabel 2 F'!G235<0.5),"-",IFERROR('Tabel 2 F'!G235/'Tabel 1 F'!E233*100,"-")) -> - | I235: =IF(OR('Tabel 1 F'!G233<5,'Tabel 2 F'!I235<0.5),"-",IFERROR('Tabel 2 F'!I235/'Tabel 1 F'!G233*100,"-")) -> - | J235: =IF(OR('Tabel 1 F'!G233<5,'Tabel 2 F'!J235<0.5),"-",IFERROR('Tabel 2 F'!J235/'Tabel 1 F'!G233*100,"-")) -> -
A236: Forstkand. | C236: =IF(OR('Tabel 1 F'!C234<5,'Tabel 2 F'!C236<0.5),"-",IFERROR('Tabel 2 F'!C236/'Tabel 1 F'!C234*100,"-")) -> - | D236: =IF(OR('Tabel 1 F'!C234<5,'Tabel 2 F'!D236<0.5),"-",IFERROR('Tabel 2 F'!D236/'Tabel 1 F'!C234*100,"-")) -> - | F236: =IF(OR('Tabel 1 F'!E234<5,'Tabel 2 F'!F236<0.5),"-",IFERROR('Tabel 2 F'!F236/'Tabel 1 F'!E234*100,"-")) -> - | G236: =IF(OR('Tabel 1 F'!E234<5,'Tabel 2 F'!G236<0.5),"-",IFERROR('Tabel 2 F'!G236/'Tabel 1 F'!E234*100,"-")) -> - | I236: =IF(OR('Tabel 1 F'!G234<5,'Tabel 2 F'!I236<0.5),"-",IFERROR('Tabel 2 F'!I236/'Tabel 1 F'!G234*100,"-")) -> - | J236: =IF(OR('Tabel 1 F'!G234<5,'Tabel 2 F'!J236<0.5),"-",IFERROR('Tabel 2 F'!J236/'Tabel 1 F'!G234*100,"-")) -> -
A237: Jordbrugsakad. | C237: =IF(OR('Tabel 1 F'!C235<5,'Tabel 2 F'!C237<0.5),"-",IFERROR('Tabel 2 F'!C237/'Tabel 1 F'!C235*100,"-")) -> - | D237: =IF(OR('Tabel 1 F'!C235<5,'Tabel 2 F'!D237<0.5),"-",IFERROR('Tabel 2 F'!D237/'Tabel 1 F'!C235*100,"-")) -> - | F237: =IF(OR('Tabel 1 F'!E235<5,'Tabel 2 F'!F237<0.5),"-",IFERROR('Tabel 2 F'!F237/'Tabel 1 F'!E235*100,"-")) -> - | G237: =IF(OR('Tabel 1 F'!E235<5,'Tabel 2 F'!G237<0.5),"-",IFERROR('Tabel 2 F'!G237/'Tabel 1 F'!E235*100,"-")) -> - | I237: =IF(OR('Tabel 1 F'!G235<5,'Tabel 2 F'!I237<0.5),"-",IFERROR('Tabel 2 F'!I237/'Tabel 1 F'!G235*100,"-")) -> - | J237: =IF(OR('Tabel 1 F'!G235<5,'Tabel 2 F'!J237<0.5),"-",IFERROR('Tabel 2 F'!J237/'Tabel 1 F'!G235*100,"-")) -> -
A238: Mejeriing. | C238: =IF(OR('Tabel 1 F'!C236<5,'Tabel 2 F'!C238<0.5),"-",IFERROR('Tabel 2 F'!C238/'Tabel 1 F'!C236*100,"-")) -> - | D238: =IF(OR('Tabel 1 F'!C236<5,'Tabel 2 F'!D238<0.5),"-",IFERROR('Tabel 2 F'!D238/'Tabel 1 F'!C236*100,"-")) -> - | F238: =IF(OR('Tabel 1 F'!E236<5,'Tabel 2 F'!F238<0.5),"-",IFERROR('Tabel 2 F'!F238/'Tabel 1 F'!E236*100,"-")) -> - | G238: =IF(OR('Tabel 1 F'!E236<5,'Tabel 2 F'!G238<0.5),"-",IFERROR('Tabel 2 F'!G238/'Tabel 1 F'!E236*100,"-")) -> - | I238: =IF(OR('Tabel 1 F'!G236<5,'Tabel 2 F'!I238<0.5),"-",IFERROR('Tabel 2 F'!I238/'Tabel 1 F'!G236*100,"-")) -> - | J238: =IF(OR('Tabel 1 F'!G236<5,'Tabel 2 F'!J238<0.5),"-",IFERROR('Tabel 2 F'!J238/'Tabel 1 F'!G236*100,"-")) -> -
A239: Levn.m.kand. | C239: =IF(OR('Tabel 1 F'!C237<5,'Tabel 2 F'!C239<0.5),"-",IFERROR('Tabel 2 F'!C239/'Tabel 1 F'!C237*100,"-")) -> - | D239: =IF(OR('Tabel 1 F'!C237<5,'Tabel 2 F'!D239<0.5),"-",IFERROR('Tabel 2 F'!D239/'Tabel 1 F'!C237*100,"-")) -> - | F239: =IF(OR('Tabel 1 F'!E237<5,'Tabel 2 F'!F239<0.5),"-",IFERROR('Tabel 2 F'!F239/'Tabel 1 F'!E237*100,"-")) -> - | G239: =IF(OR('Tabel 1 F'!E237<5,'Tabel 2 F'!G239<0.5),"-",IFERROR('Tabel 2 F'!G239/'Tabel 1 F'!E237*100,"-")) -> - | I239: =IF(OR('Tabel 1 F'!G237<5,'Tabel 2 F'!I239<0.5),"-",IFERROR('Tabel 2 F'!I239/'Tabel 1 F'!G237*100,"-")) -> - | J239: =IF(OR('Tabel 1 F'!G237<5,'Tabel 2 F'!J239<0.5),"-",IFERROR('Tabel 2 F'!J239/'Tabel 1 F'!G237*100,"-")) -> -
A240: Dyrlæge | C240: =IF(OR('Tabel 1 F'!C238<5,'Tabel 2 F'!C240<0.5),"-",IFERROR('Tabel 2 F'!C240/'Tabel 1 F'!C238*100,"-")) -> - | D240: =IF(OR('Tabel 1 F'!C238<5,'Tabel 2 F'!D240<0.5),"-",IFERROR('Tabel 2 F'!D240/'Tabel 1 F'!C238*100,"-")) -> - | F240: =IF(OR('Tabel 1 F'!E238<5,'Tabel 2 F'!F240<0.5),"-",IFERROR('Tabel 2 F'!F240/'Tabel 1 F'!E238*100,"-")) -> - | G240: =IF(OR('Tabel 1 F'!E238<5,'Tabel 2 F'!G240<0.5),"-",IFERROR('Tabel 2 F'!G240/'Tabel 1 F'!E238*100,"-")) -> - | I240: =IF(OR('Tabel 1 F'!G238<5,'Tabel 2 F'!I240<0.5),"-",IFERROR('Tabel 2 F'!I240/'Tabel 1 F'!G238*100,"-")) -> - | J240: =IF(OR('Tabel 1 F'!G238<5,'Tabel 2 F'!J240<0.5),"-",IFERROR('Tabel 2 F'!J240/'Tabel 1 F'!G238*100,"-")) -> -
... 296 more rows

Sheet Tabel 4F F
A1: Tabel 4. Antal forsikrede - aldersfordelt
A3: Fyn
C5: Under 30 år | D5: 30 - 39 år | E5: 40 - 49 år | F5: 50 - 59 år | G5: Over 60 år | I5: I alt
A7: Civ. ing. | C7: 630 | D7: 606 | E7: 314 | F7: 176 | G7: 63 | I7: 1789
A8: Diplom ing. | C8: 457 | D8: 687 | E8: 763 | F8: 989 | G8: 436 | I8: 3332
A9: Cand. Scient. Tek. | C9: 549 | D9: 714 | E9: 185 | F9: 60 | G9: 8 | I9: 1516
A10: MA. Hum. | C10: 525 | D10: 1211 | E10: 1107 | F10: 576 | G10: 185 | I10: 3604
A11: MA. Nat. | C11: 157 | D11: 299 | E11: 362 | F11: 297 | G11: 133 | I11: 1248
A12: MA. Ph.d. | C12: 4 | D12: 34 | E12: 65 | F12: 49 | G12: 8 | I12: 160
A13: MA. Samf. | C13: 74 | D13: 137 | E13: 40 | F13: 13 | G13: 1 | I13: 265
A14: Øvrige Mag. | C14: 71 | D14: 50 | E14: 52 | F14: 69 | G14: 35 | I14: 277
A15: Agronom | C15: 6 | D15: 20 | E15: 33 | F15: 49 | G15: 37 | I15: 145
A16: Landsk. Arkt. | C16: 1 | D16: 9 | E16: 11 | F16: 11 | G16: 1 | I16: 33
A17: Hortonom | C17: 0 | D17: 1 | E17: 4 | F17: 16 | G17: 13 | I17: 34
A18: Forstkand. | C18: 2 | D18: 3 | E18: 9 | F18: 6 | G18: 5 | I18: 25
A19: Jordbrugsakad. | C19: 9 | D19: 33 | E19: 57 | F19: 82 | G19: 56 | I19: 237
A20: Mejeriing. | C20: 0 | D20: 1 | E20: 4 | F20: 9 | G20: 1 | I20: 15
A21: Levn.m.kand. | C21: 5 | D21: 12 | E21: 2 | F21: 0 | G21: 0 | I21: 19
A22: Dyrlæge | C22: 28 | D22: 51 | E22: 36 | F22: 30 | G22: 8 | I22: 153
A23: Farmaceut | C23: 114 | D23: 112 | E23: 58 | F23: 22 | G23: 11 | I23: 317
A24: Læge | C24: 278 | D24: 623 | E24: 289 | F24: 168 | G24: 71 | I24: 1429
A25: Tandlæge | C25: 21 | D25: 35 | E25: 29 | F25: 17 | G25: 14 | I25: 116
A26: Arkitekt | C26: 11 | D26: 38 | E26: 43 | F26: 36 | G26: 27 | I26: 155
A27: Landinspek. | C27: 3 | D27: 15 | E27: 9 | F27: 26 | G27: 10 | I27: 63
A28: Bibliotekar | C28: 5 | D28: 35 | E28: 61 | F28: 56 | G28: 33 | I28: 190
A29: Musikudd. | C29: 1 | D29: 18 | E29: 17 | F29: 31 | G29: 28 | I29: 95
A30: Teolog | C30: 2 | D30: 18 | E30: 36 | F30: 36 | G30: 22 | I30: 114
A31: Psykolog | C31: 176 | D31: 250 | E31: 121 | F31: 65 | G31: 39 | I31: 651
A32: Jurist | C32: 92 | D32: 287 | E32: 176 | F32: 85 | G32: 36 | I32: 676
A33: Økonom | C33: 123 | D33: 212 | E33: 127 | F33: 133 | G33: 26 | I33: 621
A34: Samf. Adm. | C34: 306 | D34: 657 | E34: 400 | F34: 221 | G34: 74 | I34: 1658
A35: Cand. Merc. | C35: 536 | D35: 825 | E35: 369 | F35: 292 | G35: 62 | I35: 2084
A36: HA | C36: 139 | D36: 109 | E36: 46 | F36: 112 | G36: 47 | I36: 453
A37: HD | C37: 25 | D37: 55 | E37: 45 | F37: 93 | G37: 60 | I37: 278
A38: Komm. og Sprog | C38: 82 | D38: 117 | E38: 111 | F38: 73 | G38: 58 | I38: 441
A39: Bygninskonst. | C39: 157 | D39: 391 | E39: 250 | F39: 130 | G39: 39 | I39: 967
A40: Cand. IT. | C40: 60 | D40: 109 | E40: 67 | F40: 9 | G40: 0 | I40: 245
A41: Bac. Samf. | C41: 44 | D41: 23 | E41: 12 | F41: 15 | G41: 3 | I41: 97
A42: Bac. Hum. | C42: 306 | D42: 101 | E42: 69 | F42: 63 | G42: 18 | I42: 557
A43: Bac. Nat. | C43: 175 | D43: 95 | E43: 34 | F43: 15 | G43: 2 | I43: 321
A44: Andre | C44: 327 | D44: 474 | E44: 332 | F44: 239 | G44: 155 | I44: 1527
A46: Total | C46: 5492 | D46: 8434 | E46: 5688 | F46: 4287 | G46: 1769 | I46: 25670
A48: Ingeniører i alt | C48: 1087 | D48: 1293 | E48: 1077 | F48: 1165 | G48: 499 | I48: 5121
A49: Magistre i alt | C49: 831 | D49: 1731 | E49: 1626 | F49: 1004 | G49: 362 | I49: 5554
A50: DJØF'ere i alt | C50: 1196 | D50: 2090 | E50: 1118 | F50: 843 | G50: 245 | I50: 5492
A57: Middelfart
C59: Under 30 år | D59: 30 - 39 år | E59: 40 - 49 år | F59: 50 - 59 år | G59: Over 60 år | I59: I alt
A61: Civ. ing. | C61: 18 | D61: 36 | E61: 40 | F61: 24 | G61: 6 | I61: 124
A62: Diplom ing. | C62: 17 | D62: 67 | E62: 64 | F62: 106 | G62: 51 | I62: 305
A63: Cand. Scient. Tek. | C63: 16 | D63: 35 | E63: 21 | F63: 7 | G63: 0 | I63: 79
A64: MA. Hum. | C64: 15 | D64: 62 | E64: 76 | F64: 35 | G64: 7 | I64: 195
A65: MA. Nat. | C65: 5 | D65: 19 | E65: 24 | F65: 22 | G65: 8 | I65: 78
A66: MA. Ph.d. | C66: 0 | D66: 1 | E66: 1 | F66: 2 | G66: 0 | I66: 4
A67: MA. Samf. | C67: 2 | D67: 12 | E67: 6 | F67: 1 | G67: 0 | I67: 21
A68: Øvrige Mag. | C68: 0 | D68: 2 | E68: 3 | F68: 2 | G68: 3 | I68: 10
A69: Agronom | C69: 1 | D69: 2 | E69: 6 | F69: 12 | G69: 8 | I69: 29
A70: Landsk. Arkt. | C70: 0 | D70: 1 | E70: 0 | F70: 1 | G70: 1 | I70: 3
A71: Hortonom | C71: 0 | D71: 0 | E71: 0 | F71: 2 | G71: 1 | I71: 3
A72: Forstkand. | C72: 1 | D72: 0 | E72: 1 | F72: 0 | G72: 0 | I72: 2
A73: Jordbrugsakad. | C73: 2 | D73: 3 | E73: 7 | F73: 15 | G73: 10 | I73: 37
A74: Mejeriing. | C74: 0 | D74: 0 | E74: 1 | F74: 3 | G74: 0 | I74: 4
A75: Levn.m.kand. | C75: 0 | D75: 2 | E75: 0 | F75: 0 | G75: 0 | I75: 2
A76: Dyrlæge | C76: 2 | D76: 6 | E76: 7 | F76: 2 | G76: 1 | I76: 18
A77: Farmaceut | C77: 0 | D77: 8 | E77: 2 | F77: 2 | G77: 1 | I77: 13
A78: Læge | C78: 7 | D78: 50 | E78: 34 | F78: 13 | G78: 6 | I78: 110
A79: Tandlæge | C79: 0 | D79: 1 | E79: 3 | F79: 4 | G79: 2 | I79: 10
A80: Arkitekt | C80: 0 | D80: 1 | E80: 5 | F80: 5 | G80: 1 | I80: 12
A81: Landinspek. | C81: 0 | D81: 3 | E81: 1 | F81: 9 | G81: 1 | I81: 14
A82: Bibliotekar | C82: 0 | D82: 3 | E82: 8 | F82: 2 | G82: 3 | I82: 16
A83: Musikudd. | C83: 0 | D83: 1 | E83: 0 | F83: 2 | G83: 2 | I83: 5
A84: Teolog | C84: 0 | D84: 4 | E84: 5 | F84: 4 | G84: 1 | I84: 14
A85: Psykolog | C85: 4 | D85: 20 | E85: 14 | F85: 10 | G85: 5 | I85: 53
A86: Jurist | C86: 9 | D86: 23 | E86: 15 | F86: 5 | G86: 4 | I86: 56
A87: Økonom | C87: 3 | D87: 13 | E87: 13 | F87: 16 | G87: 3 | I87: 48
A88: Samf. Adm. | C88: 7 | D88: 42 | E88: 34 | F88: 15 | G88: 3 | I88: 101
A89: Cand. Merc. | C89: 25 | D89: 60 | E89: 49 | F89: 28 | G89: 6 | I89: 168
A90: HA | C90: 2 | D90: 10 | E90: 5 | F90: 16 | G90: 4 | I90: 37
A91: HD | C91: 0 | D91: 7 | E91: 5 | F91: 7 | G91: 3 | I91: 22
A92: Komm. og Sprog | C92: 2 | D92: 6 | E92: 8 | F92: 8 | G92: 7 | I92: 31
A93: Bygningskonst. | C93: 9 | D93: 47 | E93: 22 | F93: 16 | G93: 2 | I93: 96
A94: Cand. IT. | C94: 2 | D94: 8 | E94: 3 | F94: 0 | G94: 0 | I94: 13
A95: Bac. Samf. | C95: 1 | D95: 2 | E95: 1 | F95: 1 | G95: 1 | I95: 6
A96: Bac. Hum. | C96: 7 | D96: 6 | E96: 2 | F96: 4 | G96: 0 | I96: 19
A97: Bac. Nat. | C97: 3 | D97: 9 | E97: 1 | F97: 1 | G97: 0 | I97: 14
A98: Andre | C98: 13 | D98: 26 | E98: 25 | F98: 20 | G98: 12 | I98: 96
A100: Total | C100: 171 | D100: 595 | E100: 505 | F100: 407 | G100: 153 | I100: 1831
A102: Ingeniører i alt | C102: 35 | D102: 103 | E102: 104 | F102: 130 | G102: 57 | I102: 429
A103: Magistre i alt | C103: 22 | D103: 96 | E103: 110 | F103: 62 | G103: 18 | I103: 308
A104: DJØF'ere i alt | C104: 46 | D104: 148 | E104: 116 | F104: 80 | G104: 20 | I104: 410
A111: Assens
C113: Under 30 år | D113: 30 - 39 år | E113: 40 - 49 år | F113: 50 - 59 år | G113: Over 60 år | I113: I alt
A115: Civ. ing. | C115: 8 | D115: 31 | E115: 18 | F115: 19 | G115: 6 | I115: 82
A116: Diplom ing. | C116: 14 | D116: 46 | E116: 60 | F116: 90 | G116: 41 | I116: 251
A117: Cand. Scient. Tek. | C117: 7 | D117: 26 | E117: 9 | F117: 2 | G117: 1 | I117: 45
A118: MA. Hum. | C118: 11 | D118: 48 | E118: 68 | F118: 26 | G118: 10 | I118: 163
A119: MA. Nat. | C119: 2 | D119: 15 | E119: 21 | F119: 14 | G119: 6 | I119: 58
A120: MA. Ph.d. | C120: 0 | D120: 0 | E120: 3 | F120: 1 | G120: 0 | I120: 4
A121: MA. Samf. | C121: 2 | D121: 4 | E121: 1 | F121: 1 | G121: 0 | I121: 8
A122: Øvrige Mag. | C122: 0 | D122: 0 | E122: 3 | F122: 2 | G122: 0 | I122: 5
A123: Agronom | C123: 2 | D123: 1 | E123: 5 | F123: 8 | G123: 2 | I123: 18
A124: Landsk. Arkt. | C124: 0 | D124: 2 | E124: 2 | F124: 3 | G124: 0 | I124: 7
A125: Hortonom | C125: 0 | D125: 0 | E125: 0 | F125: 2 | G125: 1 | I125: 3
A126: Forstkand. | C126: 1 | D126: 1 | E126: 2 | F126: 0 | G126: 1 | I126: 5
A127: Jordbrugsakad. | C127: 3 | D127: 4 | E127: 9 | F127: 13 | G127: 4 | I127: 33
A128: Mejeriing. | C128: 0 | D128: 0 | E128: 0 | F128: 1 | G128: 0 | I128: 1
A129: Levn.m.kand. | C129: 0 | D129: 1 | E129: 0 | F129: 0 | G129: 0 | I129: 1
A130: Dyrlæge | C130: 2 | D130: 5 | E130: 6 | F130: 4 | G130: 1 | I130: 18
A131: Farmaceut | C131: 1 | D131: 6 | E131: 6 | F131: 1 | G131: 0 | I131: 14
A132: Læge | C132: 4 | D132: 21 | E132: 12 | F132: 7 | G132: 0 | I132: 44
A133: Tandlæge | C133: 0 | D133: 2 | E133: 1 | F133: 2 | G133: 0 | I133: 5
A134: Arkitekt | C134: 0 | D134: 1 | E134: 2 | F134: 1 | G134: 1 | I134: 5
A135: Landinspek. | C135: 0 | D135: 1 | E135: 0 | F135: 2 | G135: 0 | I135: 3
A136: Bibliotekar | C136: 2 | D136: 2 | E136: 2 | F136: 5 | G136: 4 | I136: 15
A137: Musikudd. | C137: 0 | D137: 2 | E137: 1 | F137: 2 | G137: 7 | I137: 12
A138: Teolog | C138: 0 | D138: 2 | E138: 3 | F138: 2 | G138: 3 | I138: 10
A139: Psykolog | C139: 5 | D139: 9 | E139: 7 | F139: 2 | G139: 3 | I139: 26
A140: Jurist | C140: 2 | D140: 12 | E140: 9 | F140: 6 | G140: 1 | I140: 30
A141: Økonom | C141: 2 | D141: 6 | E141: 4 | F141: 8 | G141: 0 | I141: 20
A142: Samf. Adm. | C142: 5 | D142: 27 | E142: 17 | F142: 16 | G142: 7 | I142: 72
A143: Cand. Merc. | C143: 9 | D143: 18 | E143: 18 | F143: 20 | G143: 4 | I143: 69
A144: HA | C144: 4 | D144: 4 | E144: 3 | F144: 11 | G144: 2 | I144: 24
A145: HD | C145: 1 | D145: 0 | E145: 4 | F145: 7 | G145: 4 | I145: 16
A146: Komm. og Sprog | C146: 2 | D146: 4 | E146: 7 | F146: 4 | G146: 3 | I146: 20
A147: Bygningskonst. | C147: 5 | D147: 22 | E147: 22 | F147: 10 | G147: 4 | I147: 63
A148: Cand. IT. | C148: 3 | D148: 3 | E148: 2 | F148: 0 | G148: 0 | I148: 8
A149: Bac. Samf. | C149: 0 | D149: 0 | E149: 1 | F149: 1 | G149: 0 | I149: 2
A150: Bac. Hum. | C150: 2 | D150: 8 | E150: 3 | F150: 3 | G150: 1 | I150: 17
A151: Bac. Nat. | C151: 3 | D151: 4 | E151: 2 | F151: 0 | G151: 0 | I151: 9
A152: Andre | C152: 13 | D152: 28 | E152: 21 | F152: 15 | G152: 10 | I152: 87
A154: Total | C154: 112 | D154: 362 | E154: 345 | F154: 298 | G154: 123 | I154: 1240
A156: Ingeniører i alt | C156: 22 | D156: 77 | E156: 78 | F156: 109 | G156: 47 | I156: 333
A157: Magistre i alt | C157: 15 | D157: 67 | E157: 96 | F157: 44 | G157: 16 | I157: 238
A158: DJØF'ere i alt | C158: 22 | D158: 67 | E158: 51 | F158: 61 | G158: 14 | I158: 215
A165: Faaborg-Midtfyn
C167: Under 30 år | D167: 30 - 39 år | E167: 40 - 49 år | F167: 50 - 59 år | G167: Over 60 år | I167: I alt
A169: Civ. ing. | C169: 14 | D169: 52 | E169: 23 | F169: 9 | G169: 5 | I169: 103
A170: Diplom ing. | C170: 24 | D170: 54 | E170: 64 | F170: 95 | G170: 47 | I170: 284
A171: Cand. Scient. Tek. | C171: 14 | D171: 58 | E171: 4 | F171: 7 | G171: 1 | I171: 84
A172: MA. Hum. | C172: 15 | D172: 71 | E172: 75 | F172: 32 | G172: 16 | I172: 209
A173: MA. Nat. | C173: 3 | D173: 21 | E173: 28 | F173: 23 | G173: 5 | I173: 80
A174: MA. Ph.d. | C174: 0 | D174: 3 | E174: 4 | F174: 2 | G174: 0 | I174: 9
A175: MA. Samf. | C175: 2 | D175: 5 | E175: 1 | F175: 0 | G175: 0 | I175: 8
A176: Øvrige Mag. | C176: 4 | D176: 3 | E176: 2 | F176: 6 | G176: 2 | I176: 17
A177: Agronom | C177: 2 | D177: 4 | E177: 3 | F177: 5 | G177: 11 | I177: 25
A178: Landsk. Arkt. | C178: 1 | D178: 1 | E178: 2 | F178: 3 | G178: 0 | I178: 7
A179: Hortonom | C179: 0 | D179: 0 | E179: 0 | F179: 0 | G179: 3 | I179: 3
A180: Forstkand. | C180: 0 | D180: 1 | E180: 2 | F180: 1 | G180: 3 | I180: 7
A181: Jordbrugsakad. | C181: 3 | D181: 6 | E181: 7 | F181: 9 | G181: 17 | I181: 42
A182: Mejeriing. | C182: 0 | D182: 0 | E182: 1 | F182: 2 | G182: 0 | I182: 3
A183: Levn.m.kand. | C183: 1 | D183: 3 | E183: 1 | F183: 0 | G183: 0 | I183: 5
A184: Dyrlæge | C184: 7 | D184: 5 | E184: 2 | F184: 2 | G184: 1 | I184: 17
A185: Farmaceut | C185: 7 | D185: 9 | E185: 6 | F185: 1 | G185: 1 | I185: 24
A186: Læge | C186: 2 | D186: 21 | E186: 16 | F186: 8 | G186: 3 | I186: 50
A187: Tandlæge | C187: 1 | D187: 1 | E187: 1 | F187: 0 | G187: 0 | I187: 3
A188: Arkitekt | C188: 0 | D188: 1 | E188: 4 | F188: 1 | G188: 6 | I188: 12
A189: Landinspek. | C189: 1 | D189: 1 | E189: 1 | F189: 1 | G189: 1 | I189: 5
A190: Bibliotekar | C190: 0 | D190: 2 | E190: 3 | F190: 5 | G190: 2 | I190: 12
A191: Musikudd. | C191: 0 | D191: 3 | E191: 2 | F191: 1 | G191: 4 | I191: 10
A192: Teolog | C192: 0 | D192: 0 | E192: 4 | F192: 0 | G192: 4 | I192: 8
A193: Psykolog | C193: 2 | D193: 10 | E193: 6 | F193: 2 | G193: 2 | I193: 22
A194: Jurist | C194: 2 | D194: 14 | E194: 10 | F194: 8 | G194: 4 | I194: 38
A195: Økonom | C195: 8 | D195: 9 | E195: 6 | F195: 7 | G195: 2 | I195: 32
A196: Samf. Adm. | C196: 8 | D196: 35 | E196: 26 | F196: 20 | G196: 2 | I196: 91
A197: Cand. Merc. | C197: 13 | D197: 41 | E197: 15 | F197: 18 | G197: 2 | I197: 89
A198: HA | C198: 3 | D198: 8 | E198: 2 | F198: 12 | G198: 2 | I198: 27
A199: HD | C199: 0 | D199: 2 | E199: 2 | F199: 9 | G199: 8 | I199: 21
A200: Komm. og Sprog | C200: 1 | D200: 4 | E200: 5 | F200: 4 | G200: 3 | I200: 17
A201: Bygningskonst. | C201: 7 | D201: 31 | E201: 23 | F201: 12 | G201: 9 | I201: 82
A202: Cand. IT. | C202: 0 | D202: 3 | E202: 7 | F202: 2 | G202: 0 | I202: 12
A203: Bac. Samf. | C203: 4 | D203: 3 | E203: 1 | F203: 2 | G203: 0 | I203: 10
A204: Bac. Hum. | C204: 5 | D204: 5 | E204: 7 | F204: 3 | G204: 2 | I204: 22
A205: Bac. Nat. | C205: 6 | D205: 6 | E205: 1 | F205: 2 | G205: 0 | I205: 15
A206: Andre | C206: 9 | D206: 30 | E206: 30 | F206: 25 | G206: 18 | I206: 112
A208: Total | C208: 166 | D208: 520 | E208: 390 | F208: 330 | G208: 169 | I208: 1575
A210: Ingeniører i alt | C210: 38 | D210: 106 | E210: 87 | F210: 104 | G210: 52 | I210: 387
A211: Magistre i alt | C211: 24 | D211: 103 | E211: 110 | F211: 63 | G211: 23 | I211: 323
A212: DJØF'ere i alt | C212: 34 | D212: 107 | E212: 59 | F212: 65 | G212: 12 | I212: 277
A219: Kerteminde
C221: Under 30 år | D221: 30 - 39 år | E221: 40 - 49 år | F221: 50 - 59 år | G221: Over 60 år | I221: I alt
A223: Civ. ing. | C223: 6 | D223: 4 | E223: 13 | F223: 9 | G223: 3 | I223: 35
A224: Diplom ing. | C224: 16 | D224: 22 | E224: 28 | F224: 64 | G224: 30 | I224: 160
A225: Cand. Scient. Tek. | C225: 11 | D225: 22 | E225: 5 | F225: 4 | G225: 1 | I225: 43
A226: MA. Hum. | C226: 11 | D226: 35 | E226: 37 | F226: 26 | G226: 5 | I226: 114
A227: MA. Nat. | C227: 3 | D227: 5 | E227: 7 | F227: 13 | G227: 5 | I227: 33
A228: MA. Ph.d. | C228: 0 | D228: 2 | E228: 3 | F228: 3 | G228: 0 | I228: 8
A229: MA. Samf. | C229: 0 | D229: 3 | E229: 0 | F229: 0 | G229: 0 | I229: 3
A230: Øvrige Mag. | C230: 1 | D230: 1 | E230: 0 | F230: 2 | G230: 3 | I230: 7
A231: Agronom | C231: 0 | D231: 0 | E231: 0 | F231: 3 | G231: 0 | I231: 3
A232: Landsk. Arkt. | C232: 0 | D232: 1 | E232: 0 | F232: 2 | G232: 0 | I232: 3
A233: Hortonom | C233: 0 | D233: 0 | E233: 0 | F233: 2 | G233: 1 | I233: 3
A234: Forstkand. | C234: 0 | D234: 0 | E234: 0 | F234: 1 | G234: 0 | I234: 1
A235: Jordbrugsakad. | C235: 0 | D235: 1 | E235: 0 | F235: 8 | G235: 1 | I235: 10
A236: Mejeriing. | C236: 0 | D236: 0 | E236: 0 | F236: 0 | G236: 0 | I236: 0
A237: Levn.m.kand. | C237: 0 | D237: 0 | E237: 0 | F237: 0 | G237: 0 | I237: 0
A238: Dyrlæge | C238: 0 | D238: 0 | E238: 2 | F238: 0 | G238: 0 | I238: 2
A239: Farmaceut | C239: 0 | D239: 1 | E239: 0 | F239: 1 | G239: 1 | I239: 3
A240: Læge | C240: 2 | D240: 6 | E240: 6 | F240: 2 | G240: 1 | I240: 17
A241: Tandlæge | C241: 0 | D241: 1 | E241: 1 | F241: 0 | G241: 1 | I241: 3
A242: Arkitekt | C242: 0 | D242: 1 | E242: 0 | F242: 2 | G242: 1 | I242: 4
A243: Landinspek. | C243: 0 | D243: 1 | E243: 0 | F243: 3 | G243: 1 | I243: 5
... 285 more rows

Sheet Tabel 4 F
A1: Tabel 4. Ledighedsberørte - aldersfordelt
A3: Fyn
C5: Under 30 år | D5: 30 - 39 år | E5: 40 - 49 år | F5: 50 - 59 år | G5: Over 60 år | I5: I alt
A7: Civ. ing. | C7: 103 | D7: 17 | E7: 0 | F7: 3 | G7: 0 | I7: 123
A8: Diplom ing. | C8: 33 | D8: 19 | E8: 4 | F8: 17 | G8: 5 | I8: 78
A9: Cand. Scient. Tek | C9: 108 | D9: 45 | E9: 6 | F9: 2 | G9: 1 | I9: 162
A10: MA. Hum. | C10: 152 | D10: 142 | E10: 52 | F10: 26 | G10: 17 | I10: 389
A11: MA. Nat. | C11: 34 | D11: 13 | E11: 7 | F11: 3 | G11: 6 | I11: 63
A12: MA. Ph.d. | C12: 1 | D12: 0 | E12: 4 | F12: 2 | G12: 1 | I12: 8
A13: MA. Samf. | C13: 21 | D13: 21 | E13: 3 | F13: 1 | G13: 0 | I13: 46
A14: Øvrige Mag. | C14: 18 | D14: 9 | E14: 4 | F14: 2 | G14: 0 | I14: 33
A15: Agronom | C15: 1 | D15: 1 | E15: 1 | F15: 1 | G15: 1 | I15: 5
A16: Landsk. Arkt. | C16: 0 | D16: 0 | E16: 0 | F16: 0 | G16: 0 | I16: 0
A17: Hortonom | C17: 0 | D17: 0 | E17: 0 | F17: 1 | G17: 1 | I17: 2
A18: Forstkand. | C18: 0 | D18: 1 | E18: 0 | F18: 0 | G18: 0 | I18: 1
A19: Jordbrugsakad. | C19: 1 | D19: 2 | E19: 1 | F19: 2 | G19: 2 | I19: 8
A20: Mejeriing. | C20: 0 | D20: 0 | E20: 0 | F20: 0 | G20: 0 | I20: 0
A21: Levn.m.kand. | C21: 0 | D21: 2 | E21: 0 | F21: 0 | G21: 0 | I21: 2
A22: Dyrlæge | C22: 0 | D22: 0 | E22: 1 | F22: 0 | G22: 0 | I22: 1
A23: Farmaceut | C23: 14 | D23: 5 | E23: 0 | F23: 0 | G23: 0 | I23: 19
A24: Læge | C24: 72 | D24: 16 | E24: 1 | F24: 0 | G24: 0 | I24: 89
A25: Tandlæge | C25: 3 | D25: 0 | E25: 0 | F25: 0 | G25: 1 | I25: 4
A26: Arkitekt | C26: 2 | D26: 1 | E26: 0 | F26: 2 | G26: 1 | I26: 6
A27: Landinspek. | C27: 0 | D27: 0 | E27: 0 | F27: 0 | G27: 0 | I27: 0
A28: Bibliotekar | C28: 0 | D28: 1 | E28: 0 | F28: 1 | G28: 0 | I28: 2
A29: Musikudd. | C29: 0 | D29: 2 | E29: 0 | F29: 0 | G29: 0 | I29: 2
A30: Teolog | C30: 0 | D30: 0 | E30: 3 | F30: 0 | G30: 0 | I30: 3
A31: Psykolog | C31: 40 | D31: 19 | E31: 2 | F31: 1 | G31: 0 | I31: 62
A32: Jurist | C32: 7 | D32: 7 | E32: 1 | F32: 0 | G32: 1 | I32: 16
A33: Økonom | C33: 7 | D33: 3 | E33: 1 | F33: 1 | G33: 0 | I33: 12
A34: Samf. Adm. | C34: 65 | D34: 26 | E34: 18 | F34: 7 | G34: 3 | I34: 119
A35: Cand. Merc. | C35: 99 | D35: 31 | E35: 8 | F35: 8 | G35: 3 | I35: 149
A36: HA | C36: 34 | D36: 12 | E36: 1 | F36: 1 | G36: 4 | I36: 52
A37: HD | C37: 5 | D37: 0 | E37: 0 | F37: 2 | G37: 3 | I37: 10
A38: Komm. og Sprog | C38: 14 | D38: 7 | E38: 5 | F38: 2 | G38: 3 | I38: 31
A39: Bygningskonst. | C39: 21 | D39: 13 | E39: 4 | F39: 3 | G39: 0 | I39: 41
A40: Cand. IT. | C40: 14 | D40: 13 | E40: 3 | F40: 0 | G40: 0 | I40: 30
A41: Bac. Samf. | C41: 6 | D41: 3 | E41: 0 | F41: 2 | G41: 1 | I41: 12
A42: Bac. Hum. | C42: 42 | D42: 10 | E42: 2 | F42: 2 | G42: 2 | I42: 58
A43: Bac. Nat. | C43: 26 | D43: 8 | E43: 1 | F43: 1 | G43: 1 | I43: 37
A44: Andre | C44: 57 | D44: 22 | E44: 11 | F44: 5 | G44: 12 | I44: 107
A46: Total | C46: 999 | D46: 469 | E46: 143 | F46: 96 | G46: 67 | I46: 1774
A48: Ingeniører i alt | C48: 136 | D48: 36 | E48: 4 | F48: 20 | G48: 5 | I48: 201
A49: Magistre i alt | C49: 226 | D49: 185 | E49: 70 | F49: 34 | G49: 24 | I49: 539
A50: DJØF'ere i alt | C50: 212 | D50: 79 | E50: 29 | F50: 17 | G50: 11 | I50: 348
A57: Middelfart
C59: Under 30 år | D59: 30 - 39 år | E59: 40 - 49 år | F59: 50 - 59 år | G59: Over 60 år | I59: I alt
A61: Civ. ing. | C61: 1 | D61: 0 | E61: 0 | F61: 0 | G61: 0 | I61: 1
A62: Diplom ing. | C62: 0 | D62: 0 | E62: 0 | F62: 0 | G62: 2 | I62: 2
A63: Cand. Scient. Tek | C63: 1 | D63: 2 | E63: 0 | F63: 0 | G63: 0 | I63: 3
A64: MA. Hum. | C64: 4 | D64: 4 | E64: 2 | F64: 1 | G64: 0 | I64: 11
A65: MA. Nat. | C65: 0 | D65: 0 | E65: 1 | F65: 0 | G65: 1 | I65: 2
A66: MA. Ph.d. | C66: 0 | D66: 0 | E66: 0 | F66: 0 | G66: 0 | I66: 0
A67: MA. Samf. | C67: 0 | D67: 0 | E67: 0 | F67: 0 | G67: 0 | I67: 0
A68: Øvrige Mag. | C68: 0 | D68: 0 | E68: 0 | F68: 0 | G68: 0 | I68: 0
A69: Agronom | C69: 0 | D69: 0 | E69: 0 | F69: 0 | G69: 0 | I69: 0
A70: Landsk. Arkt. | C70: 0 | D70: 0 | E70: 0 | F70: 0 | G70: 0 | I70: 0
A71: Hortonom | C71: 0 | D71: 0 | E71: 0 | F71: 0 | G71: 0 | I71: 0
A72: Forstkand. | C72: 0 | D72: 0 | E72: 0 | F72: 0 | G72: 0 | I72: 0
A73: Jordbrugsakad. | C73: 0 | D73: 0 | E73: 0 | F73: 0 | G73: 0 | I73: 0
A74: Mejeriing. | C74: 0 | D74: 0 | E74: 0 | F74: 0 | G74: 0 | I74: 0
A75: Levn.m.kand. | C75: 0 | D75: 1 | E75: 0 | F75: 0 | G75: 0 | I75: 1
A76: Dyrlæge | C76: 0 | D76: 0 | E76: 1 | F76: 0 | G76: 0 | I76: 1
A77: Farmaceut | C77: 0 | D77: 0 | E77: 0 | F77: 0 | G77: 0 | I77: 0
A78: Læge | C78: 0 | D78: 0 | E78: 0 | F78: 0 | G78: 0 | I78: 0
A79: Tandlæge | C79: 0 | D79: 0 | E79: 0 | F79: 0 | G79: 0 | I79: 0
A80: Arkitekt | C80: 0 | D80: 0 | E80: 0 | F80: 1 | G80: 0 | I80: 1
A81: Landinspek. | C81: 0 | D81: 0 | E81: 0 | F81: 0 | G81: 0 | I81: 0
A82: Bibliotekar | C82: 0 | D82: 0 | E82: 0 | F82: 0 | G82: 0 | I82: 0
A83: Musikudd. | C83: 0 | D83: 0 | E83: 0 | F83: 0 | G83: 0 | I83: 0
A84: Teolog | C84: 0 | D84: 0 | E84: 1 | F84: 0 | G84: 0 | I84: 1
A85: Psykolog | C85: 0 | D85: 1 | E85: 0 | F85: 0 | G85: 0 | I85: 1
A86: Jurist | C86: 0 | D86: 0 | E86: 0 | F86: 0 | G86: 0 | I86: 0
A87: Økonom | C87: 0 | D87: 0 | E87: 0 | F87: 0 | G87: 0 | I87: 0
A88: Samf. Adm. | C88: 2 | D88: 0 | E88: 0 | F88: 0 | G88: 0 | I88: 2
A89: Cand. Merc. | C89: 1 | D89: 0 | E89: 0 | F89: 0 | G89: 0 | I89: 1
A90: HA | C90: 0 | D90: 0 | E90: 0 | F90: 0 | G90: 0 | I90: 0
A91: HD | C91: 0 | D91: 0 | E91: 0 | F91: 0 | G91: 0 | I91: 0
A92: Komm. og Sprog | C92: 0 | D92: 0 | E92: 0 | F92: 0 | G92: 0 | I92: 0
A93: Bygningskonst. | C93: 0 | D93: 1 | E93: 0 | F93: 0 | G93: 0 | I93: 1
A94: Cand. IT. | C94: 0 | D94: 1 | E94: 0 | F94: 0 | G94: 0 | I94: 1
A95: Bac. Samf. | C95: 0 | D95: 0 | E95: 0 | F95: 0 | G95: 1 | I95: 1
A96: Bac. Hum. | C96: 1 | D96: 2 | E96: 0 | F96: 0 | G96: 0 | I96: 3
A97: Bac. Nat. | C97: 0 | D97: 1 | E97: 0 | F97: 0 | G97: 0 | I97: 1
A98: Andre | C98: 1 | D98: 1 | E98: 1 | F98: 1 | G98: 0 | I98: 4
A100: Total | C100: 11 | D100: 14 | E100: 6 | F100: 3 | G100: 4 | I100: 38
A102: Ingeniører i alt | C102: 1 | D102: 0 | E102: 0 | F102: 0 | G102: 2 | I102: 3
A103: Magistre i alt | C103: 4 | D103: 4 | E103: 3 | F103: 1 | G103: 1 | I103: 13
A104: DJØF'ere i alt | C104: 3 | D104: 0 | E104: 0 | F104: 0 | G104: 0 | I104: 3
A111: Assens
C113: Under 30 år | D113: 30 - 39 år | E113: 40 - 49 år | F113: 50 - 59 år | G113: Over 60 år | I113: I alt
A115: Civ. ing. | C115: 1 | D115: 0 | E115: 0 | F115: 0 | G115: 0 | I115: 1
A116: Diplom ing. | C116: 1 | D116: 0 | E116: 1 | F116: 1 | G116: 1 | I116: 4
A117: Cand. Scient. Tek | C117: 1 | D117: 1 | E117: 1 | F117: 0 | G117: 0 | I117: 3
A118: MA. Hum. | C118: 0 | D118: 5 | E118: 3 | F118: 2 | G118: 0 | I118: 10
A119: MA. Nat. | C119: 0 | D119: 0 | E119: 2 | F119: 0 | G119: 0 | I119: 2
A120: MA. Ph.d. | C120: 0 | D120: 0 | E120: 0 | F120: 0 | G120: 0 | I120: 0
A121: MA. Samf. | C121: 0 | D121: 1 | E121: 0 | F121: 1 | G121: 0 | I121: 2
A122: Øvrige Mag. | C122: 0 | D122: 0 | E122: 0 | F122: 0 | G122: 0 | I122: 0
A123: Agronom | C123: 0 | D123: 0 | E123: 0 | F123: 0 | G123: 0 | I123: 0
A124: Landsk. Arkt. | C124: 0 | D124: 0 | E124: 0 | F124: 0 | G124: 0 | I124: 0
A125: Hortonom | C125: 0 | D125: 0 | E125: 0 | F125: 0 | G125: 0 | I125: 0
A126: Forstkand. | C126: 0 | D126: 0 | E126: 0 | F126: 0 | G126: 0 | I126: 0
A127: Jordbrugsakad. | C127: 0 | D127: 0 | E127: 0 | F127: 0 | G127: 0 | I127: 0
A128: Mejeriing. | C128: 0 | D128: 0 | E128: 0 | F128: 0 | G128: 0 | I128: 0
A129: Levn.m.kand. | C129: 0 | D129: 0 | E129: 0 | F129: 0 | G129: 0 | I129: 0
A130: Dyrlæge | C130: 0 | D130: 0 | E130: 0 | F130: 0 | G130: 0 | I130: 0
A131: Farmaceut | C131: 0 | D131: 0 | E131: 0 | F131: 0 | G131: 0 | I131: 0
A132: Læge | C132: 1 | D132: 0 | E132: 0 | F132: 0 | G132: 0 | I132: 1
A133: Tandlæge | C133: 0 | D133: 0 | E133: 0 | F133: 0 | G133: 0 | I133: 0
A134: Arkitekt | C134: 0 | D134: 0 | E134: 0 | F134: 0 | G134: 0 | I134: 0
A135: Landinspek. | C135: 0 | D135: 0 | E135: 0 | F135: 0 | G135: 0 | I135: 0
A136: Bibliotekar | C136: 0 | D136: 0 | E136: 0 | F136: 0 | G136: 0 | I136: 0
A137: Musikudd. | C137: 0 | D137: 0 | E137: 0 | F137: 0 | G137: 0 | I137: 0
A138: Teolog | C138: 0 | D138: 0 | E138: 0 | F138: 0 | G138: 0 | I138: 0
A139: Psykolog | C139: 0 | D139: 1 | E139: 0 | F139: 0 | G139: 0 | I139: 1
A140: Jurist | C140: 0 | D140: 1 | E140: 1 | F140: 0 | G140: 0 | I140: 2
A141: Økonom | C141: 0 | D141: 0 | E141: 0 | F141: 0 | G141: 0 | I141: 0
A142: Samf. Adm. | C142: 3 | D142: 0 | E142: 0 | F142: 0 | G142: 0 | I142: 3
A143: Cand. Merc. | C143: 0 | D143: 1 | E143: 1 | F143: 0 | G143: 0 | I143: 2
A144: HA | C144: 0 | D144: 0 | E144: 0 | F144: 0 | G144: 0 | I144: 0
A145: HD | C145: 0 | D145: 0 | E145: 0 | F145: 0 | G145: 1 | I145: 1
A146: Komm. og Sprog | C146: 0 | D146: 0 | E146: 0 | F146: 0 | G146: 0 | I146: 0
A147: Bygningskonst. | C147: 0 | D147: 0 | E147: 1 | F147: 0 | G147: 0 | I147: 1
A148: Cand. IT. | C148: 0 | D148: 0 | E148: 0 | F148: 0 | G148: 0 | I148: 0
A149: Bac. Samf. | C149: 0 | D149: 0 | E149: 0 | F149: 0 | G149: 0 | I149: 0
A150: Bac. Hum. | C150: 0 | D150: 1 | E150: 0 | F150: 0 | G150: 0 | I150: 1
A151: Bac. Nat. | C151: 1 | D151: 1 | E151: 0 | F151: 0 | G151: 0 | I151: 2
A152: Andre | C152: 1 | D152: 0 | E152: 2 | F152: 0 | G152: 1 | I152: 4
A154: Total | C154: 9 | D154: 12 | E154: 12 | F154: 4 | G154: 3 | I154: 40
A156: Ingeniører i alt | C156: 2 | D156: 0 | E156: 1 | F156: 1 | G156: 1 | I156: 5
A157: Magistre i alt | C157: 0 | D157: 6 | E157: 5 | F157: 3 | G157: 0 | I157: 14
A158: DJØF'ere i alt | C158: 3 | D158: 2 | E158: 2 | F158: 0 | G158: 0 | I158: 7
A165: Faaborg-Midtfyn
C167: Under 30 år | D167: 30 - 39 år | E167: 40 - 49 år | F167: 50 - 59 år | G167: Over 60 år | I167: I alt
A169: Civ. ing. | C169: 2 | D169: 1 | E169: 0 | F169: 0 | G169: 0 | I169: 3
A170: Diplom ing. | C170: 3 | D170: 0 | E170: 0 | F170: 2 | G170: 1 | I170: 6
A171: Cand. Scient. Tek | C171: 0 | D171: 2 | E171: 1 | F171: 0 | G171: 0 | I171: 3
A172: MA. Hum. | C172: 3 | D172: 6 | E172: 3 | F172: 1 | G172: 0 | I172: 13
A173: MA. Nat. | C173: 0 | D173: 1 | E173: 0 | F173: 0 | G173: 0 | I173: 1
A174: MA. Ph.d. | C174: 0 | D174: 0 | E174: 1 | F174: 0 | G174: 0 | I174: 1
A175: MA. Samf. | C175: 1 | D175: 1 | E175: 0 | F175: 0 | G175: 0 | I175: 2
A176: Øvrige Mag. | C176: 0 | D176: 0 | E176: 0 | F176: 0 | G176: 0 | I176: 0
A177: Agronom | C177: 1 | D177: 0 | E177: 1 | F177: 0 | G177: 1 | I177: 3
A178: Landsk. Arkt. | C178: 0 | D178: 0 | E178: 0 | F178: 0 | G178: 0 | I178: 0
A179: Hortonom | C179: 0 | D179: 0 | E179: 0 | F179: 0 | G179: 0 | I179: 0
A180: Forstkand. | C180: 0 | D180: 0 | E180: 0 | F180: 0 | G180: 0 | I180: 0
A181: Jordbrugsakad. | C181: 1 | D181: 0 | E181: 1 | F181: 0 | G181: 1 | I181: 3
A182: Mejeriing. | C182: 0 | D182: 0 | E182: 0 | F182: 0 | G182: 0 | I182: 0
A183: Levn.m.kand. | C183: 0 | D183: 0 | E183: 0 | F183: 0 | G183: 0 | I183: 0
A184: Dyrlæge | C184: 0 | D184: 0 | E184: 0 | F184: 0 | G184: 0 | I184: 0
A185: Farmaceut | C185: 1 | D185: 0 | E185: 0 | F185: 0 | G185: 0 | I185: 1
A186: Læge | C186: 1 | D186: 0 | E186: 0 | F186: 0 | G186: 0 | I186: 1
A187: Tandlæge | C187: 0 | D187: 0 | E187: 0 | F187: 0 | G187: 0 | I187: 0
A188: Arkitekt | C188: 0 | D188: 0 | E188: 0 | F188: 0 | G188: 1 | I188: 1
A189: Landinspek. | C189: 0 | D189: 0 | E189: 0 | F189: 0 | G189: 0 | I189: 0
A190: Bibliotekar | C190: 0 | D190: 0 | E190: 0 | F190: 0 | G190: 0 | I190: 0
A191: Musikudd. | C191: 0 | D191: 0 | E191: 0 | F191: 0 | G191: 0 | I191: 0
A192: Teolog | C192: 0 | D192: 0 | E192: 0 | F192: 0 | G192: 0 | I192: 0
A193: Psykolog | C193: 0 | D193: 1 | E193: 0 | F193: 0 | G193: 0 | I193: 1
A194: Jurist | C194: 0 | D194: 0 | E194: 0 | F194: 0 | G194: 0 | I194: 0
A195: Økonom | C195: 0 | D195: 0 | E195: 0 | F195: 0 | G195: 0 | I195: 0
A196: Samf. Adm. | C196: 1 | D196: 3 | E196: 2 | F196: 0 | G196: 0 | I196: 6
A197: Cand. Merc. | C197: 0 | D197: 1 | E197: 0 | F197: 0 | G197: 0 | I197: 1
A198: HA | C198: 0 | D198: 1 | E198: 0 | F198: 0 | G198: 1 | I198: 2
A199: HD | C199: 0 | D199: 0 | E199: 0 | F199: 0 | G199: 0 | I199: 0
A200: Komm. og Sprog | C200: 0 | D200: 0 | E200: 0 | F200: 1 | G200: 0 | I200: 1
A201: Bygningskonst. | C201: 0 | D201: 0 | E201: 0 | F201: 1 | G201: 0 | I201: 1
A202: Cand. IT. | C202: 0 | D202: 2 | E202: 0 | F202: 0 | G202: 0 | I202: 2
A203: Bac. Samf. | C203: 1 | D203: 0 | E203: 0 | F203: 0 | G203: 0 | I203: 1
A204: Bac. Hum. | C204: 0 | D204: 0 | E204: 0 | F204: 0 | G204: 0 | I204: 0
A205: Bac. Nat. | C205: 1 | D205: 1 | E205: 0 | F205: 0 | G205: 0 | I205: 2
A206: Andre | C206: 0 | D206: 0 | E206: 0 | F206: 0 | G206: 0 | I206: 0
A208: Total | C208: 15 | D208: 20 | E208: 8 | F208: 5 | G208: 4 | I208: 52
A210: Ingeniører i alt | C210: 5 | D210: 1 | E210: 0 | F210: 2 | G210: 1 | I210: 9
A211: Magistre i alt | C211: 4 | D211: 8 | E211: 4 | F211: 1 | G211: 0 | I211: 17
A212: DJØF'ere i alt | C212: 1 | D212: 5 | E212: 2 | F212: 0 | G212: 1 | I212: 9
A219: Kerteminde
C221: Under 30 år | D221: 30 - 39 år | E221: 40 - 49 år | F221: 50 - 59 år | G221: Over 60 år | I221: I alt
A223: Civ. ing. | C223: 1 | D223: 0 | E223: 0 | F223: 0 | G223: 0 | I223: 1
A224: Diplom ing. | C224: 2 | D224: 0 | E224: 0 | F224: 0 | G224: 0 | I224: 2
A225: Cand. Scient. Tek | C225: 2 | D225: 0 | E225: 0 | F225: 0 | G225: 0 | I225: 2
A226: MA. Hum. | C226: 2 | D226: 5 | E226: 2 | F226: 1 | G226: 1 | I226: 11
A227: MA. Nat. | C227: 1 | D227: 0 | E227: 0 | F227: 1 | G227: 0 | I227: 2
A228: MA. Ph.d. | C228: 0 | D228: 0 | E228: 0 | F228: 0 | G228: 0 | I228: 0
A229: MA. Samf. | C229: 0 | D229: 1 | E229: 0 | F229: 0 | G229: 0 | I229: 1
A230: Øvrige Mag. | C230: 0 | D230: 0 | E230: 0 | F230: 0 | G230: 0 | I230: 0
A231: Agronom | C231: 0 | D231: 0 | E231: 0 | F231: 0 | G231: 0 | I231: 0
A232: Landsk. Arkt. | C232: 0 | D232: 0 | E232: 0 | F232: 0 | G232: 0 | I232: 0
A233: Hortonom | C233: 0 | D233: 0 | E233: 0 | F233: 0 | G233: 0 | I233: 0
A234: Forstkand. | C234: 0 | D234: 0 | E234: 0 | F234: 0 | G234: 0 | I234: 0
A235: Jordbrugsakad. | C235: 0 | D235: 0 | E235: 0 | F235: 0 | G235: 0 | I235: 0
A236: Mejeriing. | C236: 0 | D236: 0 | E236: 0 | F236: 0 | G236: 0 | I236: 0
A237: Levn.m.kand. | C237: 0 | D237: 0 | E237: 0 | F237: 0 | G237: 0 | I237: 0
A238: Dyrlæge | C238: 0 | D238: 0 | E238: 0 | F238: 0 | G238: 0 | I238: 0
A239: Farmaceut | C239: 0 | D239: 0 | E239: 0 | F239: 0 | G239: 0 | I239: 0
A240: Læge | C240: 0 | D240: 0 | E240: 0 | F240: 0 | G240: 0 | I240: 0
A241: Tandlæge | C241: 0 | D241: 0 | E241: 0 | F241: 0 | G241: 1 | I241: 1
A242: Arkitekt | C242: 0 | D242: 0 | E242: 0 | F242: 0 | G242: 0 | I242: 0
A243: Landinspek. | C243: 0 | D243: 0 | E243: 0 | F243: 0 | G243: 0 | I243: 0
... 285 more rows

Sheet Tabel 4(Br) F
A1: Tabel 4. Ledighedsberørte - aldersfordelt
A3: Fyn
C5: Under 30 år | D5: 30 - 39 år | E5: 40 - 49 år | F5: 50 - 59 år | G5: Over 60 år | I5: I alt
A7: Civ. ing. | C7: 86.88143205 | D7: 13.53520863 | E7: 0 | F7: 2.030187738 | G7: 0 | I7: 102.4468284
A8: Diplom ing. | C8: 25.67579368 | D8: 14.17513878 | E8: 1.783820869 | F8: 13.46535271 | G8: 2.797355454 | I8: 57.89746149
A9: Cand. Scient. Tek | C9: 90.76155429 | D9: 35.06455436 | E9: 3.533961205 | F9: 1.90731616 | G9: 0.1690263831 | I9: 131.4364124
A10: MA. Hum. | C10: 124.7589347 | D10: 109.5359571 | E10: 37.12218549 | F10: 17.30805214 | G10: 11.9871515 | I10: 300.7122809
A11: MA. Nat. | C11: 25.46497848 | D11: 11.08339051 | E11: 4.000498971 | F11: 2.214806961 | G11: 5.156240254 | I11: 47.91991517
A12: MA. Ph.d. | C12: 0.7690388574 | D12: 0 | E12: 3.430424749 | F12: 1.399613298 | G12: 0.9998128859 | I12: 6.59888979
A13: MA. Samf. | C13: 15.91030999 | D13: 16.12486746 | E13: 2.076342544 | F13: 0.5844196345 | G13: 0 | I13: 34.69593962
A14: Øvrige Mag. | C14: 14.71277989 | D14: 8.536767916 | E14: 3.306929458 | F14: 1.999625772 | G14: 0 | I14: 28.55610304
A15: Agronom | C15: 0.9998128859 | D15: 0.9998128859 | E15: 0.9998128859 | F15: 0.9998128859 | G15: 0.3074908002 | I15: 4.306742344
A16: Landsk. Arkt. | C16: 0 | D16: 0 | E16: 0 | F16: 0 | G16: 0 | I16: 0
A17: Hortonom | C17: 0 | D17: 0 | E17: 0 | F17: 0.9998128859 | G17: 0.4840017464 | I17: 1.483814632
A18: Forstkand. | C18: 0 | D18: 0.9998128859 | E18: 0 | F18: 0 | G18: 0 | I18: 0.9998128859
A19: Jordbrugsakad. | C19: 0.9998128859 | D19: 1.999625772 | E19: 0.9998128859 | F19: 1.999625772 | G19: 0.7914925466 | I19: 6.790369862
A20: Mejeriing. | C20: 0 | D20: 0 | E20: 0 | F20: 0 | G20: 0 | I20: 0
A21: Levn.m.kand. | C21: 0 | D21: 1.538077715 | E21: 0 | F21: 0 | G21: 0 | I21: 1.538077715
A22: Dyrlæge | C22: 0 | D22: 0 | E22: 0.9075032745 | F22: 0 | G22: 0 | I22: 0.9075032745
A23: Farmaceut | C23: 10.2981351 | D23: 4.617351712 | E23: 0 | F23: 0 | G23: 0 | I23: 14.91548681
A24: Læge | C24: 59.75799913 | D24: 11.07153995 | E24: 0.9998128859 | F24: 0 | G24: 0 | I24: 71.82935196
A25: Tandlæge | C25: 1.937878126 | D25: 0 | E25: 0 | F25: 0 | G25: 0.1690263831 | I25: 2.106904509
A26: Arkitekt | C26: 0.4615480571 | D26: 0.9998128859 | E26: 0 | F26: 1.999625772 | G26: 0.5270379842 | I26: 3.988024699
A27: Landinspek. | C27: 0 | D27: 0 | E27: 0 | F27: 0 | G27: 0 | I27: 0
A28: Bibliotekar | C28: 0 | D28: 0.5476205327 | E28: 0 | F28: 0.292521674 | G28: 0 | I28: 0.8401422067
A29: Musikudd. | C29: 0 | D29: 1.70398553 | E29: 0 | F29: 0 | G29: 0 | I29: 1.70398553
A30: Teolog | C30: 0 | D30: 0 | E30: 2.537890601 | F30: 0 | G30: 0 | I30: 2.537890601
A31: Psykolog | C31: 34.9703736 | D31: 13.92939562 | E31: 0.6798478139 | F31: 0.8108276679 | G31: 0 | I31: 50.39044471
A32: Jurist | C32: 4.121499407 | D32: 6.263331878 | E32: 0.7228840516 | F32: 0 | G32: 0.3074908002 | I32: 11.41520614
A33: Økonom | C33: 5.060188362 | D33: 2.990082954 | E33: 0.9998128859 | F33: 0.3998004117 | G33: 0 | I33: 9.449884613
A34: Samf. Adm. | C34: 56.15043972 | D34: 21.55803655 | E34: 11.58859852 | F34: 4.737104722 | G34: 2.307116572 | I34: 96.34129608
A35: Cand. Merc. | C35: 80.21455748 | D35: 28.18686459 | E35: 5.336493482 | F35: 4.7820121 | G35: 2.517931766 | I35: 121.0378594
A36: HA | C36: 25.46497848 | D36: 8.996444833 | E36: 0.8151936631 | F36: 0.3074908002 | G36: 2.816690576 | I36: 38.40079835
A37: HD | C37: 4.057256908 | D37: 0 | E37: 0 | F37: 1.90731616 | G37: 2.307116572 | I37: 8.27168964
A38: Komm. og Sprog | C38: 7.835090127 | D38: 5.678912243 | E38: 3.522110647 | F38: 1.38090189 | G38: 2.537890601 | I38: 20.95490551
A39: Bygningskonst. | C39: 16.76361255 | D39: 10.90450945 | E39: 3.723071166 | F39: 2.03074908 | G39: 0 | I39: 33.42194224
A40: Cand. IT. | C40: 12.66887045 | D40: 10.94929209 | E40: 2.307116572 | F40: 0 | G40: 0 | I40: 25.92527911
A41: Bac. Samf. | C41: 4.259963825 | D41: 2.722509823 | E41: 0 | F41: 1.26114888 | G41: 0.5869144889 | I41: 8.830537017
A42: Bac. Hum. | C42: 33.97555043 | D42: 8.680845756 | E42: 1.815006549 | F42: 1.307303686 | G42: 1.030374852 | I42: 46.80908127
A43: Bac. Nat. | C43: 21.57550053 | D43: 6.568951537 | E43: 0.9075032745 | F43: 0.5382648288 | G43: 0.9998128859 | I43: 30.59003306
A44: Andre | C44: 50.27817626 | D44: 16.63194661 | E44: 8.980851993 | F44: 2.999438658 | G44: 9.48418886 | I44: 88.37460238
A46: Total | C46: 815.7862534 | D46: 374.5950228 | E46: 102.0976735 | F46: 67.66350652 | G46: 47.49267137 | I46: 1407.635128
A48: Ingeniører i alt | C48: 112.5572257 | D48: 27.71034741 | E48: 1.783820869 | F48: 15.49554045 | G48: 2.797355454 | I48: 160.3442899
A49: Magistre i alt | C49: 181.6160419 | D49: 145.280983 | E49: 49.93638121 | F49: 23.50651781 | G49: 18.14320464 | I49: 418.4831285
A50: DJØF'ere i alt | C50: 171.0116634 | D50: 67.99476081 | E50: 19.4629826 | F50: 10.22640803 | G50: 7.949229714 | I50: 276.6450446
A57: Middelfart
C59: Under 30 år | D59: 30 - 39 år | E59: 40 - 49 år | F59: 50 - 59 år | G59: Over 60 år | I59: I alt
A61: Civ. ing. | C61: 0.9312043909 | D61: 0 | E61: 0 | F61: 0 | G61: 0 | I61: 0.9312043909
A62: Diplom ing. | C62: 0 | D62: 0 | E62: 0 | F62: 0 | G62: 1.214994075 | I62: 1.214994075
A63: Cand. Scient. Tek | C63: 0.9998128859 | D63: 1.445768103 | E63: 0 | F63: 0 | G63: 0 | I63: 2.445580989
A64: MA. Hum. | C64: 2.854113391 | D64: 3.168465041 | E64: 1.860537641 | F64: 0.9998128859 | G64: 0 | I64: 8.882928959
A65: MA. Nat. | C65: 0 | D65: 0 | E65: 0.4459552174 | F65: 0 | G65: 0.9998128859 | I65: 1.445768103
A66: MA. Ph.d. | C66: 0 | D66: 0 | E66: 0 | F66: 0 | G66: 0 | I66: 0
A67: MA. Samf. | C67: 0 | D67: 0 | E67: 0 | F67: 0 | G67: 0 | I67: 0
A68: Øvrige Mag. | C68: 0 | D68: 0 | E68: 0 | F68: 0 | G68: 0 | I68: 0
A69: Agronom | C69: 0 | D69: 0 | E69: 0 | F69: 0 | G69: 0 | I69: 0
A70: Landsk. Arkt. | C70: 0 | D70: 0 | E70: 0 | F70: 0 | G70: 0 | I70: 0
A71: Hortonom | C71: 0 | D71: 0 | E71: 0 | F71: 0 | G71: 0 | I71: 0
A72: Forstkand. | C72: 0 | D72: 0 | E72: 0 | F72: 0 | G72: 0 | I72: 0
A73: Jordbrugsakad. | C73: 0 | D73: 0 | E73: 0 | F73: 0 | G73: 0 | I73: 0
A74: Mejeriing. | C74: 0 | D74: 0 | E74: 0 | F74: 0 | G74: 0 | I74: 0
A75: Levn.m.kand. | C75: 0 | D75: 0.8151936631 | E75: 0 | F75: 0 | G75: 0 | I75: 0.8151936631
A76: Dyrlæge | C76: 0 | D76: 0 | E76: 0.9075032745 | F76: 0 | G76: 0 | I76: 0.9075032745
A77: Farmaceut | C77: 0 | D77: 0 | E77: 0 | F77: 0 | G77: 0 | I77: 0
A78: Læge | C78: 0 | D78: 0 | E78: 0 | F78: 0 | G78: 0 | I78: 0
A79: Tandlæge | C79: 0 | D79: 0 | E79: 0 | F79: 0 | G79: 0 | I79: 0
A80: Arkitekt | C80: 0 | D80: 0 | E80: 0 | F80: 0.9998128859 | G80: 0 | I80: 0.9998128859
A81: Landinspek. | C81: 0 | D81: 0 | E81: 0 | F81: 0 | G81: 0 | I81: 0
A82: Bibliotekar | C82: 0 | D82: 0 | E82: 0 | F82: 0 | G82: 0 | I82: 0
A83: Musikudd. | C83: 0 | D83: 0 | E83: 0 | F83: 0 | G83: 0 | I83: 0
A84: Teolog | C84: 0 | D84: 0 | E84: 0.5382648288 | F84: 0 | G84: 0 | I84: 0.5382648288
A85: Psykolog | C85: 0 | D85: 0.9075032745 | E85: 0 | F85: 0 | G85: 0 | I85: 0.9075032745
A86: Jurist | C86: 0 | D86: 0 | E86: 0 | F86: 0 | G86: 0 | I86: 0
A87: Økonom | C87: 0 | D87: 0 | E87: 0 | F87: 0 | G87: 0 | I87: 0
A88: Samf. Adm. | C88: 1.630387326 | D88: 0 | E88: 0 | F88: 0 | G88: 0 | I88: 1.630387326
A89: Cand. Merc. | C89: 0.9998128859 | D89: 0 | E89: 0 | F89: 0 | G89: 0 | I89: 0.9998128859
A90: HA | C90: 0 | D90: 0 | E90: 0 | F90: 0 | G90: 0 | I90: 0
A91: HD | C91: 0 | D91: 0 | E91: 0 | F91: 0 | G91: 0 | I91: 0
A92: Komm. og Sprog | C92: 0 | D92: 0 | E92: 0 | F92: 0 | G92: 0 | I92: 0
A93: Bygningskonst. | C93: 0 | D93: 0.7999750515 | E93: 0 | F93: 0 | G93: 0 | I93: 0.7999750515
A94: Cand. IT. | C94: 0 | D94: 0.9998128859 | E94: 0 | F94: 0 | G94: 0 | I94: 0.9998128859
A95: Bac. Samf. | C95: 0 | D95: 0 | E95: 0 | F95: 0 | G95: 0.5869144889 | I95: 0.5869144889
A96: Bac. Hum. | C96: 0.5382648288 | D96: 1.90731616 | E96: 0 | F96: 0 | G96: 0 | I96: 2.445580989
A97: Bac. Nat. | C97: 0 | D97: 0.8151936631 | E97: 0 | F97: 0 | G97: 0 | I97: 0.8151936631
A98: Andre | C98: 0.9998128859 | D98: 0.9998128859 | E98: 0.4771408969 | F98: 0.9511632258 | G98: 0 | I98: 3.427929895
A100: Total | C100: 8.953408595 | D100: 11.85904073 | E100: 4.229401859 | F100: 2.950788998 | G100: 2.80172145 | I100: 30.79436163
A102: Ingeniører i alt | C102: 0.9312043909 | D102: 0 | E102: 0 | F102: 0 | G102: 1.214994075 | I102: 2.146198466
A103: Magistre i alt | C103: 2.854113391 | D103: 3.168465041 | E103: 2.306492858 | F103: 0.9998128859 | G103: 0.9998128859 | I103: 10.32869706
A104: DJØF'ere i alt | C104: 2.630200212 | D104: 0 | E104: 0 | F104: 0 | G104: 0 | I104: 2.630200212
A111: Assens
C113: Under 30 år | D113: 30 - 39 år | E113: 40 - 49 år | F113: 50 - 59 år | G113: Over 60 år | I113: I alt
A115: Civ. ing. | C115: 0.7228840516 | D115: 0 | E115: 0 | F115: 0 | G115: 0 | I115: 0.7228840516
A116: Diplom ing. | C116: 0.3074908002 | D116: 0 | E116: 0.2613359945 | F116: 0.9998128859 | G116: 0.5382648288 | I116: 2.106904509
A117: Cand. Scient. Tek | C117: 0.7690388574 | D117: 0.7228840516 | E117: 0.3324393439 | F117: 0 | G117: 0 | I117: 1.824362253
A118: MA. Hum. | C118: 0 | D118: 3.038732614 | E118: 2.116883927 | F118: 1.307303686 | G118: 0 | I118: 6.462920227
A119: MA. Nat. | C119: 0 | D119: 0 | E119: 1.382149317 | F119: 0 | G119: 0 | I119: 1.382149317
A120: MA. Ph.d. | C120: 0 | D120: 0 | E120: 0 | F120: 0 | G120: 0 | I120: 0
A121: MA. Samf. | C121: 0 | D121: 0.5382648288 | E121: 0 | F121: 0.5844196345 | G121: 0 | I121: 1.122684463
A122: Øvrige Mag. | C122: 0 | D122: 0 | E122: 0 | F122: 0 | G122: 0 | I122: 0
A123: Agronom | C123: 0 | D123: 0 | E123: 0 | F123: 0 | G123: 0 | I123: 0
A124: Landsk. Arkt. | C124: 0 | D124: 0 | E124: 0 | F124: 0 | G124: 0 | I124: 0
A125: Hortonom | C125: 0 | D125: 0 | E125: 0 | F125: 0 | G125: 0 | I125: 0
A126: Forstkand. | C126: 0 | D126: 0 | E126: 0 | F126: 0 | G126: 0 | I126: 0
A127: Jordbrugsakad. | C127: 0 | D127: 0 | E127: 0 | F127: 0 | G127: 0 | I127: 0
A128: Mejeriing. | C128: 0 | D128: 0 | E128: 0 | F128: 0 | G128: 0 | I128: 0
A129: Levn.m.kand. | C129: 0 | D129: 0 | E129: 0 | F129: 0 | G129: 0 | I129: 0
A130: Dyrlæge | C130: 0 | D130: 0 | E130: 0 | F130: 0 | G130: 0 | I130: 0
A131: Farmaceut | C131: 0 | D131: 0 | E131: 0 | F131: 0 | G131: 0 | I131: 0
A132: Læge | C132: 0.9536580802 | D132: 0 | E132: 0 | F132: 0 | G132: 0 | I132: 0.9536580802
A133: Tandlæge | C133: 0 | D133: 0 | E133: 0 | F133: 0 | G133: 0 | I133: 0
A134: Arkitekt | C134: 0 | D134: 0 | E134: 0 | F134: 0 | G134: 0 | I134: 0
A135: Landinspek. | C135: 0 | D135: 0 | E135: 0 | F135: 0 | G135: 0 | I135: 0
A136: Bibliotekar | C136: 0 | D136: 0 | E136: 0 | F136: 0 | G136: 0 | I136: 0
A137: Musikudd. | C137: 0 | D137: 0 | E137: 0 | F137: 0 | G137: 0 | I137: 0
A138: Teolog | C138: 0 | D138: 0 | E138: 0 | F138: 0 | G138: 0 | I138: 0
A139: Psykolog | C139: 0 | D139: 0.9998128859 | E139: 0 | F139: 0 | G139: 0 | I139: 0.9998128859
A140: Jurist | C140: 0 | D140: 0.8613484688 | E140: 0.7228840516 | F140: 0 | G140: 0 | I140: 1.58423252
A141: Økonom | C141: 0 | D141: 0 | E141: 0 | F141: 0 | G141: 0 | I141: 0
A142: Samf. Adm. | C142: 2.353271378 | D142: 0 | E142: 0 | F142: 0 | G142: 0 | I142: 2.353271378
A143: Cand. Merc. | C143: 0 | D143: 0.9998128859 | E143: 0.9998128859 | F143: 0 | G143: 0 | I143: 1.999625772
A144: HA | C144: 0 | D144: 0 | E144: 0 | F144: 0 | G144: 0 | I144: 0
A145: HD | C145: 0 | D145: 0 | E145: 0 | F145: 0 | G145: 0.9998128859 | I145: 0.9998128859
A146: Komm. og Sprog | C146: 0 | D146: 0 | E146: 0 | F146: 0 | G146: 0 | I146: 0
A147: Bygningskonst. | C147: 0 | D147: 0 | E147: 0.9538451943 | F147: 0 | G147: 0 | I147: 0.9538451943
A148: Cand. IT. | C148: 0 | D148: 0 | E148: 0 | F148: 0 | G148: 0 | I148: 0
A149: Bac. Samf. | C149: 0 | D149: 0 | E149: 0 | F149: 0 | G149: 0 | I149: 0
A150: Bac. Hum. | C150: 0 | D150: 0.7690388574 | E150: 0 | F150: 0 | G150: 0 | I150: 0.7690388574
A151: Bac. Nat. | C151: 0.5382648288 | D151: 0.9536580802 | E151: 0 | F151: 0 | G151: 0 | I151: 1.491922909
A152: Andre | C152: 0.7066674983 | D152: 0 | E152: 1.797542568 | F152: 0 | G152: 0.9998128859 | I152: 3.504022953
A154: Total | C154: 6.351275494 | D154: 8.883552673 | E154: 8.566893283 | F154: 2.891536207 | G154: 2.537890601 | I154: 29.23114826
A156: Ingeniører i alt | C156: 1.030374852 | D156: 0 | E156: 0.2613359945 | F156: 0.9998128859 | G156: 0.5382648288 | I156: 2.829788561
A157: Magistre i alt | C157: 0 | D157: 3.576997443 | E157: 3.499033244 | F157: 1.891723321 | G157: 0 | I157: 8.967754007
A158: DJØF'ere i alt | C158: 2.353271378 | D158: 1.861161355 | E158: 1.722696938 | F158: 0 | G158: 0 | I158: 5.93712967
A165: Faaborg-Midtfyn
C167: Under 30 år | D167: 30 - 39 år | E167: 40 - 49 år | F167: 50 - 59 år | G167: Over 60 år | I167: I alt
A169: Civ. ing. | C169: 1.999625772 | D169: 0.9998128859 | E169: 0 | F169: 0 | G169: 0 | I169: 2.999438658
A170: Diplom ing. | C170: 2.537890601 | D170: 0 | E170: 0 | F170: 1.815006549 | G170: 0.7690388574 | I170: 5.121936007
A171: Cand. Scient. Tek | C171: 0 | D171: 1.692134972 | E171: 0.9536580802 | F171: 0 | G171: 0 | I171: 2.645793052
A172: MA. Hum. | C172: 2.232270941 | D172: 5.106966881 | E172: 2.307116572 | F172: 0.3074908002 | G172: 0 | I172: 9.953845194
A173: MA. Nat. | C173: 0 | D173: 0.8750701678 | E173: 0 | F173: 0 | G173: 0 | I173: 0.8750701678
A174: MA. Ph.d. | C174: 0 | D174: 0 | E174: 0.9998128859 | F174: 0 | G174: 0 | I174: 0.9998128859
A175: MA. Samf. | C175: 0.2588411401 | D175: 0.9998128859 | E175: 0 | F175: 0 | G175: 0 | I175: 1.258654026
A176: Øvrige Mag. | C176: 0 | D176: 0 | E176: 0 | F176: 0 | G176: 0 | I176: 0
A177: Agronom | C177: 0.9998128859 | D177: 0 | E177: 0.9998128859 | F177: 0 | G177: 0.3074908002 | I177: 2.307116572
A178: Landsk. Arkt. | C178: 0 | D178: 0 | E178: 0 | F178: 0 | G178: 0 | I178: 0
A179: Hortonom | C179: 0 | D179: 0 | E179: 0 | F179: 0 | G179: 0 | I179: 0
A180: Forstkand. | C180: 0 | D180: 0 | E180: 0 | F180: 0 | G180: 0 | I180: 0
A181: Jordbrugsakad. | C181: 0.9998128859 | D181: 0 | E181: 0.9998128859 | F181: 0 | G181: 0.3074908002 | I181: 2.307116572
A182: Mejeriing. | C182: 0 | D182: 0 | E182: 0 | F182: 0 | G182: 0 | I182: 0
A183: Levn.m.kand. | C183: 0 | D183: 0 | E183: 0 | F183: 0 | G183: 0 | I183: 0
A184: Dyrlæge | C184: 0 | D184: 0 | E184: 0 | F184: 0 | G184: 0 | I184: 0
A185: Farmaceut | C185: 0.7690388574 | D185: 0 | E185: 0 | F185: 0 | G185: 0 | I185: 0.7690388574
A186: Læge | C186: 0.9998128859 | D186: 0 | E186: 0 | F186: 0 | G186: 0 | I186: 0.9998128859
A187: Tandlæge | C187: 0 | D187: 0 | E187: 0 | F187: 0 | G187: 0 | I187: 0
A188: Arkitekt | C188: 0 | D188: 0 | E188: 0 | F188: 0 | G188: 0.5270379842 | I188: 0.5270379842
A189: Landinspek. | C189: 0 | D189: 0 | E189: 0 | F189: 0 | G189: 0 | I189: 0
A190: Bibliotekar | C190: 0 | D190: 0 | E190: 0 | F190: 0 | G190: 0 | I190: 0
A191: Musikudd. | C191: 0 | D191: 0 | E191: 0 | F191: 0 | G191: 0 | I191: 0
A192: Teolog | C192: 0 | D192: 0 | E192: 0 | F192: 0 | G192: 0 | I192: 0
A193: Psykolog | C193: 0 | D193: 0.1790058005 | E193: 0 | F193: 0 | G193: 0 | I193: 0.1790058005
A194: Jurist | C194: 0 | D194: 0 | E194: 0 | F194: 0 | G194: 0 | I194: 0
A195: Økonom | C195: 0 | D195: 0 | E195: 0 | F195: 0 | G195: 0 | I195: 0
A196: Samf. Adm. | C196: 0.9998128859 | D196: 1.799413709 | E196: 1.445768103 | F196: 0 | G196: 0 | I196: 4.244994698
A197: Cand. Merc. | C197: 0 | D197: 0.9998128859 | E197: 0 | F197: 0 | G197: 0 | I197: 0.9998128859
A198: HA | C198: 0 | D198: 0.9998128859 | E198: 0 | F198: 0 | G198: 0.5844196345 | I198: 1.58423252
A199: HD | C199: 0 | D199: 0 | E199: 0 | F199: 0 | G199: 0 | I199: 0
A200: Komm. og Sprog | C200: 0 | D200: 0 | E200: 0 | F200: 0.6305744402 | G200: 0 | I200: 0.6305744402
A201: Bygningskonst. | C201: 0 | D201: 0 | E201: 0 | F201: 1 | G201: 0 | I201: 1
A202: Cand. IT. | C202: 0 | D202: 1.999625772 | E202: 0 | F202: 0 | G202: 0 | I202: 1.999625772
A203: Bac. Samf. | C203: 0.9998128859 | D203: 0 | E203: 0 | F203: 0 | G203: 0 | I203: 0.9998128859
A204: Bac. Hum. | C204: 0 | D204: 0 | E204: 0 | F204: 0 | G204: 0 | I204: 0
A205: Bac. Nat. | C205: 0.9998128859 | D205: 0.9998128859 | E205: 0 | F205: 0 | G205: 0 | I205: 1.999625772
A206: Andre | C206: 0 | D206: 0 | E206: 0 | F206: 0 | G206: 0 | I206: 0
A208: Total | C208: 12.79673174 | D208: 16.65128173 | E208: 6.706168527 | F208: 3.753071789 | G208: 2.187987276 | I208: 42.09524107
A210: Ingeniører i alt | C210: 4.537516372 | D210: 0.9998128859 | E210: 0 | F210: 1.815006549 | G210: 0.7690388574 | I210: 8.121374665
A211: Magistre i alt | C211: 2.491112081 | D211: 6.981849935 | E211: 3.306929458 | F211: 0.3074908002 | G211: 0 | I211: 13.08738227
A212: DJØF'ere i alt | C212: 0.9998128859 | D212: 3.799039481 | E212: 1.445768103 | F212: 0 | G212: 0.5844196345 | I212: 6.829040105
A219: Kerteminde
C221: Under 30 år | D221: 30 - 39 år | E221: 40 - 49 år | F221: 50 - 59 år | G221: Over 60 år | I221: I alt
A223: Civ. ing. | C223: 0.4459552174 | D223: 0 | E223: 0 | F223: 0 | G223: 0 | I223: 0.4459552174
A224: Diplom ing. | C224: 1.999625772 | D224: 0 | E224: 0 | F224: 0 | G224: 0 | I224: 1.999625772
A225: Cand. Scient. Tek | C225: 1.999625772 | D225: 0 | E225: 0 | F225: 0 | G225: 0 | I225: 1.999625772
A226: MA. Hum. | C226: 1.999625772 | D226: 4.537516372 | E226: 1.676542132 | F226: 0.9998128859 | G226: 0.9998128859 | I226: 10.21331005
A227: MA. Nat. | C227: 0.1228715774 | D227: 0 | E227: 0 | F227: 0.3074908002 | G227: 0 | I227: 0.4303623776
A228: MA. Ph.d. | C228: 0 | D228: 0 | E228: 0 | F228: 0 | G228: 0 | I228: 0
A229: MA. Samf. | C229: 0 | D229: 0.4459552174 | E229: 0 | F229: 0 | G229: 0 | I229: 0.4459552174
A230: Øvrige Mag. | C230: 0 | D230: 0 | E230: 0 | F230: 0 | G230: 0 | I230: 0
A231: Agronom | C231: 0 | D231: 0 | E231: 0 | F231: 0 | G231: 0 | I231: 0
A232: Landsk. Arkt. | C232: 0 | D232: 0 | E232: 0 | F232: 0 | G232: 0 | I232: 0
A233: Hortonom | C233: 0 | D233: 0 | E233: 0 | F233: 0 | G233: 0 | I233: 0
A234: Forstkand. | C234: 0 | D234: 0 | E234: 0 | F234: 0 | G234: 0 | I234: 0
A235: Jordbrugsakad. | C235: 0 | D235: 0 | E235: 0 | F235: 0 | G235: 0 | I235: 0
A236: Mejeriing. | C236: 0 | D236: 0 | E236: 0 | F236: 0 | G236: 0 | I236: 0
A237: Levn.m.kand. | C237: 0 | D237: 0 | E237: 0 | F237: 0 | G237: 0 | I237: 0
A238: Dyrlæge | C238: 0 | D238: 0 | E238: 0 | F238: 0 | G238: 0 | I238: 0
A239: Farmaceut | C239: 0 | D239: 0 | E239: 0 | F239: 0 | G239: 0 | I239: 0
A240: Læge | C240: 0 | D240: 0 | E240: 0 | F240: 0 | G240: 0 | I240: 0
A241: Tandlæge | C241: 0 | D241: 0 | E241: 0 | F241: 0 | G241: 0.1690263831 | I241: 0.1690263831
A242: Arkitekt | C242: 0 | D242: 0 | E242: 0 | F242: 0 | G242: 0 | I242: 0
A243: Landinspek. | C243: 0 | D243: 0 | E243: 0 | F243: 0 | G243: 0 | I243: 0
... 285 more rows

Sheet Tabel 4P F
A1: Tabel 4. Ledighedsberørte - aldersfordelt
A3: Fyn
C5: Under 30 år | D5: 30 - 39 år | E5: 40 - 49 år | F5: 50 - 59 år | G5: Over 60 år | I5: I alt
A7: Civ. ing. | C7: =IF(OR('Tabel 4F F'!C7<5,'Tabel 4 F'!C7<0.5),"-",IFERROR('Tabel 4 F'!C7/'Tabel 4F F'!C7*100,"-")) -> 16.34920635 | D7: =IF(OR('Tabel 4F F'!D7<5,'Tabel 4 F'!D7<0.5),"-",IFERROR('Tabel 4 F'!D7/'Tabel 4F F'!D7*100,"-")) -> 2.805280528 | E7: =IF(OR('Tabel 4F F'!E7<5,'Tabel 4 F'!E7<0.5),"-",IFERROR('Tabel 4 F'!E7/'Tabel 4F F'!E7*100,"-")) -> - | F7: =IF(OR('Tabel 4F F'!F7<5,'Tabel 4 F'!F7<0.5),"-",IFERROR('Tabel 4 F'!F7/'Tabel 4F F'!F7*100,"-")) -> 1.704545455 | G7: =IF(OR('Tabel 4F F'!G7<5,'Tabel 4 F'!G7<0.5),"-",IFERROR('Tabel 4 F'!G7/'Tabel 4F F'!G7*100,"-")) -> - | I7: =IF(OR('Tabel 4F F'!I7<5,'Tabel 4 F'!I7<0.5),"-",IFERROR('Tabel 4 F'!I7/'Tabel 4F F'!I7*100,"-")) -> 6.875349357
A8: Diplom ing. | C8: =IF(OR('Tabel 4F F'!C8<5,'Tabel 4 F'!C8<0.5),"-",IFERROR('Tabel 4 F'!C8/'Tabel 4F F'!C8*100,"-")) -> 7.221006565 | D8: =IF(OR('Tabel 4F F'!D8<5,'Tabel 4 F'!D8<0.5),"-",IFERROR('Tabel 4 F'!D8/'Tabel 4F F'!D8*100,"-")) -> 2.765647744 | E8: =IF(OR('Tabel 4F F'!E8<5,'Tabel 4 F'!E8<0.5),"-",IFERROR('Tabel 4 F'!E8/'Tabel 4F F'!E8*100,"-")) -> 0.5242463958 | F8: =IF(OR('Tabel 4F F'!F8<5,'Tabel 4 F'!F8<0.5),"-",IFERROR('Tabel 4 F'!F8/'Tabel 4F F'!F8*100,"-")) -> 1.718907988 | G8: =IF(OR('Tabel 4F F'!G8<5,'Tabel 4 F'!G8<0.5),"-",IFERROR('Tabel 4 F'!G8/'Tabel 4F F'!G8*100,"-")) -> 1.146788991 | I8: =IF(OR('Tabel 4F F'!I8<5,'Tabel 4 F'!I8<0.5),"-",IFERROR('Tabel 4 F'!I8/'Tabel 4F F'!I8*100,"-")) -> 2.340936375
A9: Cand. Scient. Tek | C9: =IF(OR('Tabel 4F F'!C9<5,'Tabel 4 F'!C9<0.5),"-",IFERROR('Tabel 4 F'!C9/'Tabel 4F F'!C9*100,"-")) -> 19.67213115 | D9: =IF(OR('Tabel 4F F'!D9<5,'Tabel 4 F'!D9<0.5),"-",IFERROR('Tabel 4 F'!D9/'Tabel 4F F'!D9*100,"-")) -> 6.302521008 | E9: =IF(OR('Tabel 4F F'!E9<5,'Tabel 4 F'!E9<0.5),"-",IFERROR('Tabel 4 F'!E9/'Tabel 4F F'!E9*100,"-")) -> 3.243243243 | F9: =IF(OR('Tabel 4F F'!F9<5,'Tabel 4 F'!F9<0.5),"-",IFERROR('Tabel 4 F'!F9/'Tabel 4F F'!F9*100,"-")) -> 3.333333333 | G9: =IF(OR('Tabel 4F F'!G9<5,'Tabel 4 F'!G9<0.5),"-",IFERROR('Tabel 4 F'!G9/'Tabel 4F F'!G9*100,"-")) -> 12.5 | I9: =IF(OR('Tabel 4F F'!I9<5,'Tabel 4 F'!I9<0.5),"-",IFERROR('Tabel 4 F'!I9/'Tabel 4F F'!I9*100,"-")) -> 10.68601583
A10: MA. Hum. | C10: =IF(OR('Tabel 4F F'!C10<5,'Tabel 4 F'!C10<0.5),"-",IFERROR('Tabel 4 F'!C10/'Tabel 4F F'!C10*100,"-")) -> 28.95238095 | D10: =IF(OR('Tabel 4F F'!D10<5,'Tabel 4 F'!D10<0.5),"-",IFERROR('Tabel 4 F'!D10/'Tabel 4F F'!D10*100,"-")) -> 11.72584641 | E10: =IF(OR('Tabel 4F F'!E10<5,'Tabel 4 F'!E10<0.5),"-",IFERROR('Tabel 4 F'!E10/'Tabel 4F F'!E10*100,"-")) -> 4.697380307 | F10: =IF(OR('Tabel 4F F'!F10<5,'Tabel 4 F'!F10<0.5),"-",IFERROR('Tabel 4 F'!F10/'Tabel 4F F'!F10*100,"-")) -> 4.513888889 | G10: =IF(OR('Tabel 4F F'!G10<5,'Tabel 4 F'!G10<0.5),"-",IFERROR('Tabel 4 F'!G10/'Tabel 4F F'!G10*100,"-")) -> 9.189189189 | I10: =IF(OR('Tabel 4F F'!I10<5,'Tabel 4 F'!I10<0.5),"-",IFERROR('Tabel 4 F'!I10/'Tabel 4F F'!I10*100,"-")) -> 10.79356271
A11: MA. Nat. | C11: =IF(OR('Tabel 4F F'!C11<5,'Tabel 4 F'!C11<0.5),"-",IFERROR('Tabel 4 F'!C11/'Tabel 4F F'!C11*100,"-")) -> 21.65605096 | D11: =IF(OR('Tabel 4F F'!D11<5,'Tabel 4 F'!D11<0.5),"-",IFERROR('Tabel 4 F'!D11/'Tabel 4F F'!D11*100,"-")) -> 4.347826087 | E11: =IF(OR('Tabel 4F F'!E11<5,'Tabel 4 F'!E11<0.5),"-",IFERROR('Tabel 4 F'!E11/'Tabel 4F F'!E11*100,"-")) -> 1.933701657 | F11: =IF(OR('Tabel 4F F'!F11<5,'Tabel 4 F'!F11<0.5),"-",IFERROR('Tabel 4 F'!F11/'Tabel 4F F'!F11*100,"-")) -> 1.01010101 | G11: =IF(OR('Tabel 4F F'!G11<5,'Tabel 4 F'!G11<0.5),"-",IFERROR('Tabel 4 F'!G11/'Tabel 4F F'!G11*100,"-")) -> 4.511278195 | I11: =IF(OR('Tabel 4F F'!I11<5,'Tabel 4 F'!I11<0.5),"-",IFERROR('Tabel 4 F'!I11/'Tabel 4F F'!I11*100,"-")) -> 5.048076923
A12: MA. Ph.d. | C12: =IF(OR('Tabel 4F F'!C12<5,'Tabel 4 F'!C12<0.5),"-",IFERROR('Tabel 4 F'!C12/'Tabel 4F F'!C12*100,"-")) -> - | D12: =IF(OR('Tabel 4F F'!D12<5,'Tabel 4 F'!D12<0.5),"-",IFERROR('Tabel 4 F'!D12/'Tabel 4F F'!D12*100,"-")) -> - | E12: =IF(OR('Tabel 4F F'!E12<5,'Tabel 4 F'!E12<0.5),"-",IFERROR('Tabel 4 F'!E12/'Tabel 4F F'!E12*100,"-")) -> 6.153846154 | F12: =IF(OR('Tabel 4F F'!F12<5,'Tabel 4 F'!F12<0.5),"-",IFERROR('Tabel 4 F'!F12/'Tabel 4F F'!F12*100,"-")) -> 4.081632653 | G12: =IF(OR('Tabel 4F F'!G12<5,'Tabel 4 F'!G12<0.5),"-",IFERROR('Tabel 4 F'!G12/'Tabel 4F F'!G12*100,"-")) -> 12.5 | I12: =IF(OR('Tabel 4F F'!I12<5,'Tabel 4 F'!I12<0.5),"-",IFERROR('Tabel 4 F'!I12/'Tabel 4F F'!I12*100,"-")) -> 5
A13: MA. Samf. | C13: =IF(OR('Tabel 4F F'!C13<5,'Tabel 4 F'!C13<0.5),"-",IFERROR('Tabel 4 F'!C13/'Tabel 4F F'!C13*100,"-")) -> 28.37837838 | D13: =IF(OR('Tabel 4F F'!D13<5,'Tabel 4 F'!D13<0.5),"-",IFERROR('Tabel 4 F'!D13/'Tabel 4F F'!D13*100,"-")) -> 15.32846715 | E13: =IF(OR('Tabel 4F F'!E13<5,'Tabel 4 F'!E13<0.5),"-",IFERROR('Tabel 4 F'!E13/'Tabel 4F F'!E13*100,"-")) -> 7.5 | F13: =IF(OR('Tabel 4F F'!F13<5,'Tabel 4 F'!F13<0.5),"-",IFERROR('Tabel 4 F'!F13/'Tabel 4F F'!F13*100,"-")) -> 7.692307692 | G13: =IF(OR('Tabel 4F F'!G13<5,'Tabel 4 F'!G13<0.5),"-",IFERROR('Tabel 4 F'!G13/'Tabel 4F F'!G13*100,"-")) -> - | I13: =IF(OR('Tabel 4F F'!I13<5,'Tabel 4 F'!I13<0.5),"-",IFERROR('Tabel 4 F'!I13/'Tabel 4F F'!I13*100,"-")) -> 17.35849057
A14: Øvrige Mag. | C14: =IF(OR('Tabel 4F F'!C14<5,'Tabel 4 F'!C14<0.5),"-",IFERROR('Tabel 4 F'!C14/'Tabel 4F F'!C14*100,"-")) -> 25.35211268 | D14: =IF(OR('Tabel 4F F'!D14<5,'Tabel 4 F'!D14<0.5),"-",IFERROR('Tabel 4 F'!D14/'Tabel 4F F'!D14*100,"-")) -> 18 | E14: =IF(OR('Tabel 4F F'!E14<5,'Tabel 4 F'!E14<0.5),"-",IFERROR('Tabel 4 F'!E14/'Tabel 4F F'!E14*100,"-")) -> 7.692307692 | F14: =IF(OR('Tabel 4F F'!F14<5,'Tabel 4 F'!F14<0.5),"-",IFERROR('Tabel 4 F'!F14/'Tabel 4F F'!F14*100,"-")) -> 2.898550725 | G14: =IF(OR('Tabel 4F F'!G14<5,'Tabel 4 F'!G14<0.5),"-",IFERROR('Tabel 4 F'!G14/'Tabel 4F F'!G14*100,"-")) -> - | I14: =IF(OR('Tabel 4F F'!I14<5,'Tabel 4 F'!I14<0.5),"-",IFERROR('Tabel 4 F'!I14/'Tabel 4F F'!I14*100,"-")) -> 11.9133574
A15: Agronom | C15: =IF(OR('Tabel 4F F'!C15<5,'Tabel 4 F'!C15<0.5),"-",IFERROR('Tabel 4 F'!C15/'Tabel 4F F'!C15*100,"-")) -> 16.66666667 | D15: =IF(OR('Tabel 4F F'!D15<5,'Tabel 4 F'!D15<0.5),"-",IFERROR('Tabel 4 F'!D15/'Tabel 4F F'!D15*100,"-")) -> 5 | E15: =IF(OR('Tabel 4F F'!E15<5,'Tabel 4 F'!E15<0.5),"-",IFERROR('Tabel 4 F'!E15/'Tabel 4F F'!E15*100,"-")) -> 3.03030303 | F15: =IF(OR('Tabel 4F F'!F15<5,'Tabel 4 F'!F15<0.5),"-",IFERROR('Tabel 4 F'!F15/'Tabel 4F F'!F15*100,"-")) -> 2.040816327 | G15: =IF(OR('Tabel 4F F'!G15<5,'Tabel 4 F'!G15<0.5),"-",IFERROR('Tabel 4 F'!G15/'Tabel 4F F'!G15*100,"-")) -> 2.702702703 | I15: =IF(OR('Tabel 4F F'!I15<5,'Tabel 4 F'!I15<0.5),"-",IFERROR('Tabel 4 F'!I15/'Tabel 4F F'!I15*100,"-")) -> 3.448275862
A16: Landsk. Arkt. | C16: =IF(OR('Tabel 4F F'!C16<5,'Tabel 4 F'!C16<0.5),"-",IFERROR('Tabel 4 F'!C16/'Tabel 4F F'!C16*100,"-")) -> - | D16: =IF(OR('Tabel 4F F'!D16<5,'Tabel 4 F'!D16<0.5),"-",IFERROR('Tabel 4 F'!D16/'Tabel 4F F'!D16*100,"-")) -> - | E16: =IF(OR('Tabel 4F F'!E16<5,'Tabel 4 F'!E16<0.5),"-",IFERROR('Tabel 4 F'!E16/'Tabel 4F F'!E16*100,"-")) -> - | F16: =IF(OR('Tabel 4F F'!F16<5,'Tabel 4 F'!F16<0.5),"-",IFERROR('Tabel 4 F'!F16/'Tabel 4F F'!F16*100,"-")) -> - | G16: =IF(OR('Tabel 4F F'!G16<5,'Tabel 4 F'!G16<0.5),"-",IFERROR('Tabel 4 F'!G16/'Tabel 4F F'!G16*100,"-")) -> - | I16: =IF(OR('Tabel 4F F'!I16<5,'Tabel 4 F'!I16<0.5),"-",IFERROR('Tabel 4 F'!I16/'Tabel 4F F'!I16*100,"-")) -> -
A17: Hortonom | C17: =IF(OR('Tabel 4F F'!C17<5,'Tabel 4 F'!C17<0.5),"-",IFERROR('Tabel 4 F'!C17/'Tabel 4F F'!C17*100,"-")) -> - | D17: =IF(OR('Tabel 4F F'!D17<5,'Tabel 4 F'!D17<0.5),"-",IFERROR('Tabel 4 F'!D17/'Tabel 4F F'!D17*100,"-")) -> - | E17: =IF(OR('Tabel 4F F'!E17<5,'Tabel 4 F'!E17<0.5),"-",IFERROR('Tabel 4 F'!E17/'Tabel 4F F'!E17*100,"-")) -> - | F17: =IF(OR('Tabel 4F F'!F17<5,'Tabel 4 F'!F17<0.5),"-",IFERROR('Tabel 4 F'!F17/'Tabel 4F F'!F17*100,"-")) -> 6.25 | G17: =IF(OR('Tabel 4F F'!G17<5,'Tabel 4 F'!G17<0.5),"-",IFERROR('Tabel 4 F'!G17/'Tabel 4F F'!G17*100,"-")) -> 7.692307692 | I17: =IF(OR('Tabel 4F F'!I17<5,'Tabel 4 F'!I17<0.5),"-",IFERROR('Tabel 4 F'!I17/'Tabel 4F F'!I17*100,"-")) -> 5.882352941
A18: Forstkand. | C18: =IF(OR('Tabel 4F F'!C18<5,'Tabel 4 F'!C18<0.5),"-",IFERROR('Tabel 4 F'!C18/'Tabel 4F F'!C18*100,"-")) -> - | D18: =IF(OR('Tabel 4F F'!D18<5,'Tabel 4 F'!D18<0.5),"-",IFERROR('Tabel 4 F'!D18/'Tabel 4F F'!D18*100,"-")) -> - | E18: =IF(OR('Tabel 4F F'!E18<5,'Tabel 4 F'!E18<0.5),"-",IFERROR('Tabel 4 F'!E18/'Tabel 4F F'!E18*100,"-")) -> - | F18: =IF(OR('Tabel 4F F'!F18<5,'Tabel 4 F'!F18<0.5),"-",IFERROR('Tabel 4 F'!F18/'Tabel 4F F'!F18*100,"-")) -> - | G18: =IF(OR('Tabel 4F F'!G18<5,'Tabel 4 F'!G18<0.5),"-",IFERROR('Tabel 4 F'!G18/'Tabel 4F F'!G18*100,"-")) -> - | I18: =IF(OR('Tabel 4F F'!I18<5,'Tabel 4 F'!I18<0.5),"-",IFERROR('Tabel 4 F'!I18/'Tabel 4F F'!I18*100,"-")) -> 4
A19: Jordbrugsakad. | C19: =IF(OR('Tabel 4F F'!C19<5,'Tabel 4 F'!C19<0.5),"-",IFERROR('Tabel 4 F'!C19/'Tabel 4F F'!C19*100,"-")) -> 11.11111111 | D19: =IF(OR('Tabel 4F F'!D19<5,'Tabel 4 F'!D19<0.5),"-",IFERROR('Tabel 4 F'!D19/'Tabel 4F F'!D19*100,"-")) -> 6.060606061 | E19: =IF(OR('Tabel 4F F'!E19<5,'Tabel 4 F'!E19<0.5),"-",IFERROR('Tabel 4 F'!E19/'Tabel 4F F'!E19*100,"-")) -> 1.754385965 | F19: =IF(OR('Tabel 4F F'!F19<5,'Tabel 4 F'!F19<0.5),"-",IFERROR('Tabel 4 F'!F19/'Tabel 4F F'!F19*100,"-")) -> 2.43902439 | G19: =IF(OR('Tabel 4F F'!G19<5,'Tabel 4 F'!G19<0.5),"-",IFERROR('Tabel 4 F'!G19/'Tabel 4F F'!G19*100,"-")) -> 3.571428571 | I19: =IF(OR('Tabel 4F F'!I19<5,'Tabel 4 F'!I19<0.5),"-",IFERROR('Tabel 4 F'!I19/'Tabel 4F F'!I19*100,"-")) -> 3.375527426
A20: Mejeriing. | C20: =IF(OR('Tabel 4F F'!C20<5,'Tabel 4 F'!C20<0.5),"-",IFERROR('Tabel 4 F'!C20/'Tabel 4F F'!C20*100,"-")) -> - | D20: =IF(OR('Tabel 4F F'!D20<5,'Tabel 4 F'!D20<0.5),"-",IFERROR('Tabel 4 F'!D20/'Tabel 4F F'!D20*100,"-")) -> - | E20: =IF(OR('Tabel 4F F'!E20<5,'Tabel 4 F'!E20<0.5),"-",IFERROR('Tabel 4 F'!E20/'Tabel 4F F'!E20*100,"-")) -> - | F20: =IF(OR('Tabel 4F F'!F20<5,'Tabel 4 F'!F20<0.5),"-",IFERROR('Tabel 4 F'!F20/'Tabel 4F F'!F20*100,"-")) -> - | G20: =IF(OR('Tabel 4F F'!G20<5,'Tabel 4 F'!G20<0.5),"-",IFERROR('Tabel 4 F'!G20/'Tabel 4F F'!G20*100,"-")) -> - | I20: =IF(OR('Tabel 4F F'!I20<5,'Tabel 4 F'!I20<0.5),"-",IFERROR('Tabel 4 F'!I20/'Tabel 4F F'!I20*100,"-")) -> -
A21: Levn.m.kand. | C21: =IF(OR('Tabel 4F F'!C21<5,'Tabel 4 F'!C21<0.5),"-",IFERROR('Tabel 4 F'!C21/'Tabel 4F F'!C21*100,"-")) -> - | D21: =IF(OR('Tabel 4F F'!D21<5,'Tabel 4 F'!D21<0.5),"-",IFERROR('Tabel 4 F'!D21/'Tabel 4F F'!D21*100,"-")) -> 16.66666667 | E21: =IF(OR('Tabel 4F F'!E21<5,'Tabel 4 F'!E21<0.5),"-",IFERROR('Tabel 4 F'!E21/'Tabel 4F F'!E21*100,"-")) -> - | F21: =IF(OR('Tabel 4F F'!F21<5,'Tabel 4 F'!F21<0.5),"-",IFERROR('Tabel 4 F'!F21/'Tabel 4F F'!F21*100,"-")) -> - | G21: =IF(OR('Tabel 4F F'!G21<5,'Tabel 4 F'!G21<0.5),"-",IFERROR('Tabel 4 F'!G21/'Tabel 4F F'!G21*100,"-")) -> - | I21: =IF(OR('Tabel 4F F'!I21<5,'Tabel 4 F'!I21<0.5),"-",IFERROR('Tabel 4 F'!I21/'Tabel 4F F'!I21*100,"-")) -> 10.52631579
A22: Dyrlæge | C22: =IF(OR('Tabel 4F F'!C22<5,'Tabel 4 F'!C22<0.5),"-",IFERROR('Tabel 4 F'!C22/'Tabel 4F F'!C22*100,"-")) -> - | D22: =IF(OR('Tabel 4F F'!D22<5,'Tabel 4 F'!D22<0.5),"-",IFERROR('Tabel 4 F'!D22/'Tabel 4F F'!D22*100,"-")) -> - | E22: =IF(OR('Tabel 4F F'!E22<5,'Tabel 4 F'!E22<0.5),"-",IFERROR('Tabel 4 F'!E22/'Tabel 4F F'!E22*100,"-")) -> 2.777777778 | F22: =IF(OR('Tabel 4F F'!F22<5,'Tabel 4 F'!F22<0.5),"-",IFERROR('Tabel 4 F'!F22/'Tabel 4F F'!F22*100,"-")) -> - | G22: =IF(OR('Tabel 4F F'!G22<5,'Tabel 4 F'!G22<0.5),"-",IFERROR('Tabel 4 F'!G22/'Tabel 4F F'!G22*100,"-")) -> - | I22: =IF(OR('Tabel 4F F'!I22<5,'Tabel 4 F'!I22<0.5),"-",IFERROR('Tabel 4 F'!I22/'Tabel 4F F'!I22*100,"-")) -> 0.6535947712
A23: Farmaceut | C23: =IF(OR('Tabel 4F F'!C23<5,'Tabel 4 F'!C23<0.5),"-",IFERROR('Tabel 4 F'!C23/'Tabel 4F F'!C23*100,"-")) -> 12.28070175 | D23: =IF(OR('Tabel 4F F'!D23<5,'Tabel 4 F'!D23<0.5),"-",IFERROR('Tabel 4 F'!D23/'Tabel 4F F'!D23*100,"-")) -> 4.464285714 | E23: =IF(OR('Tabel 4F F'!E23<5,'Tabel 4 F'!E23<0.5),"-",IFERROR('Tabel 4 F'!E23/'Tabel 4F F'!E23*100,"-")) -> - | F23: =IF(OR('Tabel 4F F'!F23<5,'Tabel 4 F'!F23<0.5),"-",IFERROR('Tabel 4 F'!F23/'Tabel 4F F'!F23*100,"-")) -> - | G23: =IF(OR('Tabel 4F F'!G23<5,'Tabel 4 F'!G23<0.5),"-",IFERROR('Tabel 4 F'!G23/'Tabel 4F F'!G23*100,"-")) -> - | I23: =IF(OR('Tabel 4F F'!I23<5,'Tabel 4 F'!I23<0.5),"-",IFERROR('Tabel 4 F'!I23/'Tabel 4F F'!I23*100,"-")) -> 5.993690852
A24: Læge | C24: =IF(OR('Tabel 4F F'!C24<5,'Tabel 4 F'!C24<0.5),"-",IFERROR('Tabel 4 F'!C24/'Tabel 4F F'!C24*100,"-")) -> 25.89928058 | D24: =IF(OR('Tabel 4F F'!D24<5,'Tabel 4 F'!D24<0.5),"-",IFERROR('Tabel 4 F'!D24/'Tabel 4F F'!D24*100,"-")) -> 2.568218299 | E24: =IF(OR('Tabel 4F F'!E24<5,'Tabel 4 F'!E24<0.5),"-",IFERROR('Tabel 4 F'!E24/'Tabel 4F F'!E24*100,"-")) -> 0.3460207612 | F24: =IF(OR('Tabel 4F F'!F24<5,'Tabel 4 F'!F24<0.5),"-",IFERROR('Tabel 4 F'!F24/'Tabel 4F F'!F24*100,"-")) -> - | G24: =IF(OR('Tabel 4F F'!G24<5,'Tabel 4 F'!G24<0.5),"-",IFERROR('Tabel 4 F'!G24/'Tabel 4F F'!G24*100,"-")) -> - | I24: =IF(OR('Tabel 4F F'!I24<5,'Tabel 4 F'!I24<0.5),"-",IFERROR('Tabel 4 F'!I24/'Tabel 4F F'!I24*100,"-")) -> 6.228131561
A25: Tandlæge | C25: =IF(OR('Tabel 4F F'!C25<5,'Tabel 4 F'!C25<0.5),"-",IFERROR('Tabel 4 F'!C25/'Tabel 4F F'!C25*100,"-")) -> 14.28571429 | D25: =IF(OR('Tabel 4F F'!D25<5,'Tabel 4 F'!D25<0.5),"-",IFERROR('Tabel 4 F'!D25/'Tabel 4F F'!D25*100,"-")) -> - | E25: =IF(OR('Tabel 4F F'!E25<5,'Tabel 4 F'!E25<0.5),"-",IFERROR('Tabel 4 F'!E25/'Tabel 4F F'!E25*100,"-")) -> - | F25: =IF(OR('Tabel 4F F'!F25<5,'Tabel 4 F'!F25<0.5),"-",IFERROR('Tabel 4 F'!F25/'Tabel 4F F'!F25*100,"-")) -> - | G25: =IF(OR('Tabel 4F F'!G25<5,'Tabel 4 F'!G25<0.5),"-",IFERROR('Tabel 4 F'!G25/'Tabel 4F F'!G25*100,"-")) -> 7.142857143 | I25: =IF(OR('Tabel 4F F'!I25<5,'Tabel 4 F'!I25<0.5),"-",IFERROR('Tabel 4 F'!I25/'Tabel 4F F'!I25*100,"-")) -> 3.448275862
A26: Arkitekt | C26: =IF(OR('Tabel 4F F'!C26<5,'Tabel 4 F'!C26<0.5),"-",IFERROR('Tabel 4 F'!C26/'Tabel 4F F'!C26*100,"-")) -> 18.18181818 | D26: =IF(OR('Tabel 4F F'!D26<5,'Tabel 4 F'!D26<0.5),"-",IFERROR('Tabel 4 F'!D26/'Tabel 4F F'!D26*100,"-")) -> 2.631578947 | E26: =IF(OR('Tabel 4F F'!E26<5,'Tabel 4 F'!E26<0.5),"-",IFERROR('Tabel 4 F'!E26/'Tabel 4F F'!E26*100,"-")) -> - | F26: =IF(OR('Tabel 4F F'!F26<5,'Tabel 4 F'!F26<0.5),"-",IFERROR('Tabel 4 F'!F26/'Tabel 4F F'!F26*100,"-")) -> 5.555555556 | G26: =IF(OR('Tabel 4F F'!G26<5,'Tabel 4 F'!G26<0.5),"-",IFERROR('Tabel 4 F'!G26/'Tabel 4F F'!G26*100,"-")) -> 3.703703704 | I26: =IF(OR('Tabel 4F F'!I26<5,'Tabel 4 F'!I26<0.5),"-",IFERROR('Tabel 4 F'!I26/'Tabel 4F F'!I26*100,"-")) -> 3.870967742
A27: Landinspek. | C27: =IF(OR('Tabel 4F F'!C27<5,'Tabel 4 F'!C27<0.5),"-",IFERROR('Tabel 4 F'!C27/'Tabel 4F F'!C27*100,"-")) -> - | D27: =IF(OR('Tabel 4F F'!D27<5,'Tabel 4 F'!D27<0.5),"-",IFERROR('Tabel 4 F'!D27/'Tabel 4F F'!D27*100,"-")) -> - | E27: =IF(OR('Tabel 4F F'!E27<5,'Tabel 4 F'!E27<0.5),"-",IFERROR('Tabel 4 F'!E27/'Tabel 4F F'!E27*100,"-")) -> - | F27: =IF(OR('Tabel 4F F'!F27<5,'Tabel 4 F'!F27<0.5),"-",IFERROR('Tabel 4 F'!F27/'Tabel 4F F'!F27*100,"-")) -> - | G27: =IF(OR('Tabel 4F F'!G27<5,'Tabel 4 F'!G27<0.5),"-",IFERROR('Tabel 4 F'!G27/'Tabel 4F F'!G27*100,"-")) -> - | I27: =IF(OR('Tabel 4F F'!I27<5,'Tabel 4 F'!I27<0.5),"-",IFERROR('Tabel 4 F'!I27/'Tabel 4F F'!I27*100,"-")) -> -
A28: Bibliotekar | C28: =IF(OR('Tabel 4F F'!C28<5,'Tabel 4 F'!C28<0.5),"-",IFERROR('Tabel 4 F'!C28/'Tabel 4F F'!C28*100,"-")) -> - | D28: =IF(OR('Tabel 4F F'!D28<5,'Tabel 4 F'!D28<0.5),"-",IFERROR('Tabel 4 F'!D28/'Tabel 4F F'!D28*100,"-")) -> 2.857142857 | E28: =IF(OR('Tabel 4F F'!E28<5,'Tabel 4 F'!E28<0.5),"-",IFERROR('Tabel 4 F'!E28/'Tabel 4F F'!E28*100,"-")) -> - | F28: =IF(OR('Tabel 4F F'!F28<5,'Tabel 4 F'!F28<0.5),"-",IFERROR('Tabel 4 F'!F28/'Tabel 4F F'!F28*100,"-")) -> 1.785714286 | G28: =IF(OR('Tabel 4F F'!G28<5,'Tabel 4 F'!G28<0.5),"-",IFERROR('Tabel 4 F'!G28/'Tabel 4F F'!G28*100,"-")) -> - | I28: =IF(OR('Tabel 4F F'!I28<5,'Tabel 4 F'!I28<0.5),"-",IFERROR('Tabel 4 F'!I28/'Tabel 4F F'!I28*100,"-")) -> 1.052631579
A29: Musikudd. | C29: =IF(OR('Tabel 4F F'!C29<5,'Tabel 4 F'!C29<0.5),"-",IFERROR('Tabel 4 F'!C29/'Tabel 4F F'!C29*100,"-")) -> - | D29: =IF(OR('Tabel 4F F'!D29<5,'Tabel 4 F'!D29<0.5),"-",IFERROR('Tabel 4 F'!D29/'Tabel 4F F'!D29*100,"-")) -> 11.11111111 | E29: =IF(OR('Tabel 4F F'!E29<5,'Tabel 4 F'!E29<0.5),"-",IFERROR('Tabel 4 F'!E29/'Tabel 4F F'!E29*100,"-")) -> - | F29: =IF(OR('Tabel 4F F'!F29<5,'Tabel 4 F'!F29<0.5),"-",IFERROR('Tabel 4 F'!F29/'Tabel 4F F'!F29*100,"-")) -> - | G29: =IF(OR('Tabel 4F F'!G29<5,'Tabel 4 F'!G29<0.5),"-",IFERROR('Tabel 4 F'!G29/'Tabel 4F F'!G29*100,"-")) -> - | I29: =IF(OR('Tabel 4F F'!I29<5,'Tabel 4 F'!I29<0.5),"-",IFERROR('Tabel 4 F'!I29/'Tabel 4F F'!I29*100,"-")) -> 2.105263158
A30: Teolog | C30: =IF(OR('Tabel 4F F'!C30<5,'Tabel 4 F'!C30<0.5),"-",IFERROR('Tabel 4 F'!C30/'Tabel 4F F'!C30*100,"-")) -> - | D30: =IF(OR('Tabel 4F F'!D30<5,'Tabel 4 F'!D30<0.5),"-",IFERROR('Tabel 4 F'!D30/'Tabel 4F F'!D30*100,"-")) -> - | E30: =IF(OR('Tabel 4F F'!E30<5,'Tabel 4 F'!E30<0.5),"-",IFERROR('Tabel 4 F'!E30/'Tabel 4F F'!E30*100,"-")) -> 8.333333333 | F30: =IF(OR('Tabel 4F F'!F30<5,'Tabel 4 F'!F30<0.5),"-",IFERROR('Tabel 4 F'!F30/'Tabel 4F F'!F30*100,"-")) -> - | G30: =IF(OR('Tabel 4F F'!G30<5,'Tabel 4 F'!G30<0.5),"-",IFERROR('Tabel 4 F'!G30/'Tabel 4F F'!G30*100,"-")) -> - | I30: =IF(OR('Tabel 4F F'!I30<5,'Tabel 4 F'!I30<0.5),"-",IFERROR('Tabel 4 F'!I30/'Tabel 4F F'!I30*100,"-")) -> 2.631578947
A31: Psykolog | C31: =IF(OR('Tabel 4F F'!C31<5,'Tabel 4 F'!C31<0.5),"-",IFERROR('Tabel 4 F'!C31/'Tabel 4F F'!C31*100,"-")) -> 22.72727273 | D31: =IF(OR('Tabel 4F F'!D31<5,'Tabel 4 F'!D31<0.5),"-",IFERROR('Tabel 4 F'!D31/'Tabel 4F F'!D31*100,"-")) -> 7.6 | E31: =IF(OR('Tabel 4F F'!E31<5,'Tabel 4 F'!E31<0.5),"-",IFERROR('Tabel 4 F'!E31/'Tabel 4F F'!E31*100,"-")) -> 1.652892562 | F31: =IF(OR('Tabel 4F F'!F31<5,'Tabel 4 F'!F31<0.5),"-",IFERROR('Tabel 4 F'!F31/'Tabel 4F F'!F31*100,"-")) -> 1.538461538 | G31: =IF(OR('Tabel 4F F'!G31<5,'Tabel 4 F'!G31<0.5),"-",IFERROR('Tabel 4 F'!G31/'Tabel 4F F'!G31*100,"-")) -> - | I31: =IF(OR('Tabel 4F F'!I31<5,'Tabel 4 F'!I31<0.5),"-",IFERROR('Tabel 4 F'!I31/'Tabel 4F F'!I31*100,"-")) -> 9.523809524
A32: Jurist | C32: =IF(OR('Tabel 4F F'!C32<5,'Tabel 4 F'!C32<0.5),"-",IFERROR('Tabel 4 F'!C32/'Tabel 4F F'!C32*100,"-")) -> 7.608695652 | D32: =IF(OR('Tabel 4F F'!D32<5,'Tabel 4 F'!D32<0.5),"-",IFERROR('Tabel 4 F'!D32/'Tabel 4F F'!D32*100,"-")) -> 2.43902439 | E32: =IF(OR('Tabel 4F F'!E32<5,'Tabel 4 F'!E32<0.5),"-",IFERROR('Tabel 4 F'!E32/'Tabel 4F F'!E32*100,"-")) -> 0.5681818182 | F32: =IF(OR('Tabel 4F F'!F32<5,'Tabel 4 F'!F32<0.5),"-",IFERROR('Tabel 4 F'!F32/'Tabel 4F F'!F32*100,"-")) -> - | G32: =IF(OR('Tabel 4F F'!G32<5,'Tabel 4 F'!G32<0.5),"-",IFERROR('Tabel 4 F'!G32/'Tabel 4F F'!G32*100,"-")) -> 2.777777778 | I32: =IF(OR('Tabel 4F F'!I32<5,'Tabel 4 F'!I32<0.5),"-",IFERROR('Tabel 4 F'!I32/'Tabel 4F F'!I32*100,"-")) -> 2.366863905
A33: Økonom | C33: =IF(OR('Tabel 4F F'!C33<5,'Tabel 4 F'!C33<0.5),"-",IFERROR('Tabel 4 F'!C33/'Tabel 4F F'!C33*100,"-")) -> 5.691056911 | D33: =IF(OR('Tabel 4F F'!D33<5,'Tabel 4 F'!D33<0.5),"-",IFERROR('Tabel 4 F'!D33/'Tabel 4F F'!D33*100,"-")) -> 1.41509434 | E33: =IF(OR('Tabel 4F F'!E33<5,'Tabel 4 F'!E33<0.5),"-",IFERROR('Tabel 4 F'!E33/'Tabel 4F F'!E33*100,"-")) -> 0.7874015748 | F33: =IF(OR('Tabel 4F F'!F33<5,'Tabel 4 F'!F33<0.5),"-",IFERROR('Tabel 4 F'!F33/'Tabel 4F F'!F33*100,"-")) -> 0.7518796992 | G33: =IF(OR('Tabel 4F F'!G33<5,'Tabel 4 F'!G33<0.5),"-",IFERROR('Tabel 4 F'!G33/'Tabel 4F F'!G33*100,"-")) -> - | I33: =IF(OR('Tabel 4F F'!I33<5,'Tabel 4 F'!I33<0.5),"-",IFERROR('Tabel 4 F'!I33/'Tabel 4F F'!I33*100,"-")) -> 1.93236715
A34: Samf. Adm. | C34: =IF(OR('Tabel 4F F'!C34<5,'Tabel 4 F'!C34<0.5),"-",IFERROR('Tabel 4 F'!C34/'Tabel 4F F'!C34*100,"-")) -> 21.24183007 | D34: =IF(OR('Tabel 4F F'!D34<5,'Tabel 4 F'!D34<0.5),"-",IFERROR('Tabel 4 F'!D34/'Tabel 4F F'!D34*100,"-")) -> 3.95738204 | E34: =IF(OR('Tabel 4F F'!E34<5,'Tabel 4 F'!E34<0.5),"-",IFERROR('Tabel 4 F'!E34/'Tabel 4F F'!E34*100,"-")) -> 4.5 | F34: =IF(OR('Tabel 4F F'!F34<5,'Tabel 4 F'!F34<0.5),"-",IFERROR('Tabel 4 F'!F34/'Tabel 4F F'!F34*100,"-")) -> 3.167420814 | G34: =IF(OR('Tabel 4F F'!G34<5,'Tabel 4 F'!G34<0.5),"-",IFERROR('Tabel 4 F'!G34/'Tabel 4F F'!G34*100,"-")) -> 4.054054054 | I34: =IF(OR('Tabel 4F F'!I34<5,'Tabel 4 F'!I34<0.5),"-",IFERROR('Tabel 4 F'!I34/'Tabel 4F F'!I34*100,"-")) -> 7.177322075
A35: Cand. Merc. | C35: =IF(OR('Tabel 4F F'!C35<5,'Tabel 4 F'!C35<0.5),"-",IFERROR('Tabel 4 F'!C35/'Tabel 4F F'!C35*100,"-")) -> 18.47014925 | D35: =IF(OR('Tabel 4F F'!D35<5,'Tabel 4 F'!D35<0.5),"-",IFERROR('Tabel 4 F'!D35/'Tabel 4F F'!D35*100,"-")) -> 3.757575758 | E35: =IF(OR('Tabel 4F F'!E35<5,'Tabel 4 F'!E35<0.5),"-",IFERROR('Tabel 4 F'!E35/'Tabel 4F F'!E35*100,"-")) -> 2.16802168 | F35: =IF(OR('Tabel 4F F'!F35<5,'Tabel 4 F'!F35<0.5),"-",IFERROR('Tabel 4 F'!F35/'Tabel 4F F'!F35*100,"-")) -> 2.739726027 | G35: =IF(OR('Tabel 4F F'!G35<5,'Tabel 4 F'!G35<0.5),"-",IFERROR('Tabel 4 F'!G35/'Tabel 4F F'!G35*100,"-")) -> 4.838709677 | I35: =IF(OR('Tabel 4F F'!I35<5,'Tabel 4 F'!I35<0.5),"-",IFERROR('Tabel 4 F'!I35/'Tabel 4F F'!I35*100,"-")) -> 7.149712092
A36: HA | C36: =IF(OR('Tabel 4F F'!C36<5,'Tabel 4 F'!C36<0.5),"-",IFERROR('Tabel 4 F'!C36/'Tabel 4F F'!C36*100,"-")) -> 24.46043165 | D36: =IF(OR('Tabel 4F F'!D36<5,'Tabel 4 F'!D36<0.5),"-",IFERROR('Tabel 4 F'!D36/'Tabel 4F F'!D36*100,"-")) -> 11.00917431 | E36: =IF(OR('Tabel 4F F'!E36<5,'Tabel 4 F'!E36<0.5),"-",IFERROR('Tabel 4 F'!E36/'Tabel 4F F'!E36*100,"-")) -> 2.173913043 | F36: =IF(OR('Tabel 4F F'!F36<5,'Tabel 4 F'!F36<0.5),"-",IFERROR('Tabel 4 F'!F36/'Tabel 4F F'!F36*100,"-")) -> 0.8928571429 | G36: =IF(OR('Tabel 4F F'!G36<5,'Tabel 4 F'!G36<0.5),"-",IFERROR('Tabel 4 F'!G36/'Tabel 4F F'!G36*100,"-")) -> 8.510638298 | I36: =IF(OR('Tabel 4F F'!I36<5,'Tabel 4 F'!I36<0.5),"-",IFERROR('Tabel 4 F'!I36/'Tabel 4F F'!I36*100,"-")) -> 11.4790287
A37: HD | C37: =IF(OR('Tabel 4F F'!C37<5,'Tabel 4 F'!C37<0.5),"-",IFERROR('Tabel 4 F'!C37/'Tabel 4F F'!C37*100,"-")) -> 20 | D37: =IF(OR('Tabel 4F F'!D37<5,'Tabel 4 F'!D37<0.5),"-",IFERROR('Tabel 4 F'!D37/'Tabel 4F F'!D37*100,"-")) -> - | E37: =IF(OR('Tabel 4F F'!E37<5,'Tabel 4 F'!E37<0.5),"-",IFERROR('Tabel 4 F'!E37/'Tabel 4F F'!E37*100,"-")) -> - | F37: =IF(OR('Tabel 4F F'!F37<5,'Tabel 4 F'!F37<0.5),"-",IFERROR('Tabel 4 F'!F37/'Tabel 4F F'!F37*100,"-")) -> 2.150537634 | G37: =IF(OR('Tabel 4F F'!G37<5,'Tabel 4 F'!G37<0.5),"-",IFERROR('Tabel 4 F'!G37/'Tabel 4F F'!G37*100,"-")) -> 5 | I37: =IF(OR('Tabel 4F F'!I37<5,'Tabel 4 F'!I37<0.5),"-",IFERROR('Tabel 4 F'!I37/'Tabel 4F F'!I37*100,"-")) -> 3.597122302
A38: Komm. og Sprog | C38: =IF(OR('Tabel 4F F'!C38<5,'Tabel 4 F'!C38<0.5),"-",IFERROR('Tabel 4 F'!C38/'Tabel 4F F'!C38*100,"-")) -> 17.07317073 | D38: =IF(OR('Tabel 4F F'!D38<5,'Tabel 4 F'!D38<0.5),"-",IFERROR('Tabel 4 F'!D38/'Tabel 4F F'!D38*100,"-")) -> 5.982905983 | E38: =IF(OR('Tabel 4F F'!E38<5,'Tabel 4 F'!E38<0.5),"-",IFERROR('Tabel 4 F'!E38/'Tabel 4F F'!E38*100,"-")) -> 4.504504505 | F38: =IF(OR('Tabel 4F F'!F38<5,'Tabel 4 F'!F38<0.5),"-",IFERROR('Tabel 4 F'!F38/'Tabel 4F F'!F38*100,"-")) -> 2.739726027 | G38: =IF(OR('Tabel 4F F'!G38<5,'Tabel 4 F'!G38<0.5),"-",IFERROR('Tabel 4 F'!G38/'Tabel 4F F'!G38*100,"-")) -> 5.172413793 | I38: =IF(OR('Tabel 4F F'!I38<5,'Tabel 4 F'!I38<0.5),"-",IFERROR('Tabel 4 F'!I38/'Tabel 4F F'!I38*100,"-")) -> 7.029478458
A39: Bygningskonst. | C39: =IF(OR('Tabel 4F F'!C39<5,'Tabel 4 F'!C39<0.5),"-",IFERROR('Tabel 4 F'!C39/'Tabel 4F F'!C39*100,"-")) -> 13.37579618 | D39: =IF(OR('Tabel 4F F'!D39<5,'Tabel 4 F'!D39<0.5),"-",IFERROR('Tabel 4 F'!D39/'Tabel 4F F'!D39*100,"-")) -> 3.324808184 | E39: =IF(OR('Tabel 4F F'!E39<5,'Tabel 4 F'!E39<0.5),"-",IFERROR('Tabel 4 F'!E39/'Tabel 4F F'!E39*100,"-")) -> 1.6 | F39: =IF(OR('Tabel 4F F'!F39<5,'Tabel 4 F'!F39<0.5),"-",IFERROR('Tabel 4 F'!F39/'Tabel 4F F'!F39*100,"-")) -> 2.307692308 | G39: =IF(OR('Tabel 4F F'!G39<5,'Tabel 4 F'!G39<0.5),"-",IFERROR('Tabel 4 F'!G39/'Tabel 4F F'!G39*100,"-")) -> - | I39: =IF(OR('Tabel 4F F'!I39<5,'Tabel 4 F'!I39<0.5),"-",IFERROR('Tabel 4 F'!I39/'Tabel 4F F'!I39*100,"-")) -> 4.23991727
A40: Cand. IT. | C40: =IF(OR('Tabel 4F F'!C40<5,'Tabel 4 F'!C40<0.5),"-",IFERROR('Tabel 4 F'!C40/'Tabel 4F F'!C40*100,"-")) -> 23.33333333 | D40: =IF(OR('Tabel 4F F'!D40<5,'Tabel 4 F'!D40<0.5),"-",IFERROR('Tabel 4 F'!D40/'Tabel 4F F'!D40*100,"-")) -> 11.9266055 | E40: =IF(OR('Tabel 4F F'!E40<5,'Tabel 4 F'!E40<0.5),"-",IFERROR('Tabel 4 F'!E40/'Tabel 4F F'!E40*100,"-")) -> 4.47761194 | F40: =IF(OR('Tabel 4F F'!F40<5,'Tabel 4 F'!F40<0.5),"-",IFERROR('Tabel 4 F'!F40/'Tabel 4F F'!F40*100,"-")) -> - | G40: =IF(OR('Tabel 4F F'!G40<5,'Tabel 4 F'!G40<0.5),"-",IFERROR('Tabel 4 F'!G40/'Tabel 4F F'!G40*100,"-")) -> - | I40: =IF(OR('Tabel 4F F'!I40<5,'Tabel 4 F'!I40<0.5),"-",IFERROR('Tabel 4 F'!I40/'Tabel 4F F'!I40*100,"-")) -> 12.24489796
A41: Bac. Samf. | C41: =IF(OR('Tabel 4F F'!C41<5,'Tabel 4 F'!C41<0.5),"-",IFERROR('Tabel 4 F'!C41/'Tabel 4F F'!C41*100,"-")) -> 13.63636364 | D41: =IF(OR('Tabel 4F F'!D41<5,'Tabel 4 F'!D41<0.5),"-",IFERROR('Tabel 4 F'!D41/'Tabel 4F F'!D41*100,"-")) -> 13.04347826 | E41: =IF(OR('Tabel 4F F'!E41<5,'Tabel 4 F'!E41<0.5),"-",IFERROR('Tabel 4 F'!E41/'Tabel 4F F'!E41*100,"-")) -> - | F41: =IF(OR('Tabel 4F F'!F41<5,'Tabel 4 F'!F41<0.5),"-",IFERROR('Tabel 4 F'!F41/'Tabel 4F F'!F41*100,"-")) -> 13.33333333 | G41: =IF(OR('Tabel 4F F'!G41<5,'Tabel 4 F'!G41<0.5),"-",IFERROR('Tabel 4 F'!G41/'Tabel 4F F'!G41*100,"-")) -> - | I41: =IF(OR('Tabel 4F F'!I41<5,'Tabel 4 F'!I41<0.5),"-",IFERROR('Tabel 4 F'!I41/'Tabel 4F F'!I41*100,"-")) -> 12.37113402
A42: Bac. Hum. | C42: =IF(OR('Tabel 4F F'!C42<5,'Tabel 4 F'!C42<0.5),"-",IFERROR('Tabel 4 F'!C42/'Tabel 4F F'!C42*100,"-")) -> 13.7254902 | D42: =IF(OR('Tabel 4F F'!D42<5,'Tabel 4 F'!D42<0.5),"-",IFERROR('Tabel 4 F'!D42/'Tabel 4F F'!D42*100,"-")) -> 9.900990099 | E42: =IF(OR('Tabel 4F F'!E42<5,'Tabel 4 F'!E42<0.5),"-",IFERROR('Tabel 4 F'!E42/'Tabel 4F F'!E42*100,"-")) -> 2.898550725 | F42: =IF(OR('Tabel 4F F'!F42<5,'Tabel 4 F'!F42<0.5),"-",IFERROR('Tabel 4 F'!F42/'Tabel 4F F'!F42*100,"-")) -> 3.174603175 | G42: =IF(OR('Tabel 4F F'!G42<5,'Tabel 4 F'!G42<0.5),"-",IFERROR('Tabel 4 F'!G42/'Tabel 4F F'!G42*100,"-")) -> 11.11111111 | I42: =IF(OR('Tabel 4F F'!I42<5,'Tabel 4 F'!I42<0.5),"-",IFERROR('Tabel 4 F'!I42/'Tabel 4F F'!I42*100,"-")) -> 10.41292639
A43: Bac. Nat. | C43: =IF(OR('Tabel 4F F'!C43<5,'Tabel 4 F'!C43<0.5),"-",IFERROR('Tabel 4 F'!C43/'Tabel 4F F'!C43*100,"-")) -> 14.85714286 | D43: =IF(OR('Tabel 4F F'!D43<5,'Tabel 4 F'!D43<0.5),"-",IFERROR('Tabel 4 F'!D43/'Tabel 4F F'!D43*100,"-")) -> 8.421052632 | E43: =IF(OR('Tabel 4F F'!E43<5,'Tabel 4 F'!E43<0.5),"-",IFERROR('Tabel 4 F'!E43/'Tabel 4F F'!E43*100,"-")) -> 2.941176471 | F43: =IF(OR('Tabel 4F F'!F43<5,'Tabel 4 F'!F43<0.5),"-",IFERROR('Tabel 4 F'!F43/'Tabel 4F F'!F43*100,"-")) -> 6.666666667 | G43: =IF(OR('Tabel 4F F'!G43<5,'Tabel 4 F'!G43<0.5),"-",IFERROR('Tabel 4 F'!G43/'Tabel 4F F'!G43*100,"-")) -> - | I43: =IF(OR('Tabel 4F F'!I43<5,'Tabel 4 F'!I43<0.5),"-",IFERROR('Tabel 4 F'!I43/'Tabel 4F F'!I43*100,"-")) -> 11.52647975
A44: Andre | C44: =IF(OR('Tabel 4F F'!C44<5,'Tabel 4 F'!C44<0.5),"-",IFERROR('Tabel 4 F'!C44/'Tabel 4F F'!C44*100,"-")) -> 17.43119266 | D44: =IF(OR('Tabel 4F F'!D44<5,'Tabel 4 F'!D44<0.5),"-",IFERROR('Tabel 4 F'!D44/'Tabel 4F F'!D44*100,"-")) -> 4.641350211 | E44: =IF(OR('Tabel 4F F'!E44<5,'Tabel 4 F'!E44<0.5),"-",IFERROR('Tabel 4 F'!E44/'Tabel 4F F'!E44*100,"-")) -> 3.313253012 | F44: =IF(OR('Tabel 4F F'!F44<5,'Tabel 4 F'!F44<0.5),"-",IFERROR('Tabel 4 F'!F44/'Tabel 4F F'!F44*100,"-")) -> 2.092050209 | G44: =IF(OR('Tabel 4F F'!G44<5,'Tabel 4 F'!G44<0.5),"-",IFERROR('Tabel 4 F'!G44/'Tabel 4F F'!G44*100,"-")) -> 7.741935484 | I44: =IF(OR('Tabel 4F F'!I44<5,'Tabel 4 F'!I44<0.5),"-",IFERROR('Tabel 4 F'!I44/'Tabel 4F F'!I44*100,"-")) -> 7.007203667
A46: Total | C46: =IF(OR('Tabel 4F F'!C46<5,'Tabel 4 F'!C46<0.5),"-",IFERROR('Tabel 4 F'!C46/'Tabel 4F F'!C46*100,"-")) -> 18.19009468 | D46: =IF(OR('Tabel 4F F'!D46<5,'Tabel 4 F'!D46<0.5),"-",IFERROR('Tabel 4 F'!D46/'Tabel 4F F'!D46*100,"-")) -> 5.560825231 | E46: =IF(OR('Tabel 4F F'!E46<5,'Tabel 4 F'!E46<0.5),"-",IFERROR('Tabel 4 F'!E46/'Tabel 4F F'!E46*100,"-")) -> 2.514064698 | F46: =IF(OR('Tabel 4F F'!F46<5,'Tabel 4 F'!F46<0.5),"-",IFERROR('Tabel 4 F'!F46/'Tabel 4F F'!F46*100,"-")) -> 2.239328202 | G46: =IF(OR('Tabel 4F F'!G46<5,'Tabel 4 F'!G46<0.5),"-",IFERROR('Tabel 4 F'!G46/'Tabel 4F F'!G46*100,"-")) -> 3.787450537 | I46: =IF(OR('Tabel 4F F'!I46<5,'Tabel 4 F'!I46<0.5),"-",IFERROR('Tabel 4 F'!I46/'Tabel 4F F'!I46*100,"-")) -> 6.910790806
A48: Ingeniører i alt | C48: =IF(OR('Tabel 4F F'!C48<5,'Tabel 4 F'!C48<0.5),"-",IFERROR('Tabel 4 F'!C48/'Tabel 4F F'!C48*100,"-")) -> 12.51149954 | D48: =IF(OR('Tabel 4F F'!D48<5,'Tabel 4 F'!D48<0.5),"-",IFERROR('Tabel 4 F'!D48/'Tabel 4F F'!D48*100,"-")) -> 2.784222738 | E48: =IF(OR('Tabel 4F F'!E48<5,'Tabel 4 F'!E48<0.5),"-",IFERROR('Tabel 4 F'!E48/'Tabel 4F F'!E48*100,"-")) -> 0.3714020427 | F48: =IF(OR('Tabel 4F F'!F48<5,'Tabel 4 F'!F48<0.5),"-",IFERROR('Tabel 4 F'!F48/'Tabel 4F F'!F48*100,"-")) -> 1.716738197 | G48: =IF(OR('Tabel 4F F'!G48<5,'Tabel 4 F'!G48<0.5),"-",IFERROR('Tabel 4 F'!G48/'Tabel 4F F'!G48*100,"-")) -> 1.002004008 | I48: =IF(OR('Tabel 4F F'!I48<5,'Tabel 4 F'!I48<0.5),"-",IFERROR('Tabel 4 F'!I48/'Tabel 4F F'!I48*100,"-")) -> 3.925014646
A49: Magistre i alt | C49: =IF(OR('Tabel 4F F'!C49<5,'Tabel 4 F'!C49<0.5),"-",IFERROR('Tabel 4 F'!C49/'Tabel 4F F'!C49*100,"-")) -> 27.19614922 | D49: =IF(OR('Tabel 4F F'!D49<5,'Tabel 4 F'!D49<0.5),"-",IFERROR('Tabel 4 F'!D49/'Tabel 4F F'!D49*100,"-")) -> 10.68746389 | E49: =IF(OR('Tabel 4F F'!E49<5,'Tabel 4 F'!E49<0.5),"-",IFERROR('Tabel 4 F'!E49/'Tabel 4F F'!E49*100,"-")) -> 4.30504305 | F49: =IF(OR('Tabel 4F F'!F49<5,'Tabel 4 F'!F49<0.5),"-",IFERROR('Tabel 4 F'!F49/'Tabel 4F F'!F49*100,"-")) -> 3.386454183 | G49: =IF(OR('Tabel 4F F'!G49<5,'Tabel 4 F'!G49<0.5),"-",IFERROR('Tabel 4 F'!G49/'Tabel 4F F'!G49*100,"-")) -> 6.629834254 | I49: =IF(OR('Tabel 4F F'!I49<5,'Tabel 4 F'!I49<0.5),"-",IFERROR('Tabel 4 F'!I49/'Tabel 4F F'!I49*100,"-")) -> 9.704717321
A50: DJØF'ere i alt | C50: =IF(OR('Tabel 4F F'!C50<5,'Tabel 4 F'!C50<0.5),"-",IFERROR('Tabel 4 F'!C50/'Tabel 4F F'!C50*100,"-")) -> 17.72575251 | D50: =IF(OR('Tabel 4F F'!D50<5,'Tabel 4 F'!D50<0.5),"-",IFERROR('Tabel 4 F'!D50/'Tabel 4F F'!D50*100,"-")) -> 3.779904306 | E50: =IF(OR('Tabel 4F F'!E50<5,'Tabel 4 F'!E50<0.5),"-",IFERROR('Tabel 4 F'!E50/'Tabel 4F F'!E50*100,"-")) -> 2.59391771 | F50: =IF(OR('Tabel 4F F'!F50<5,'Tabel 4 F'!F50<0.5),"-",IFERROR('Tabel 4 F'!F50/'Tabel 4F F'!F50*100,"-")) -> 2.016607355 | G50: =IF(OR('Tabel 4F F'!G50<5,'Tabel 4 F'!G50<0.5),"-",IFERROR('Tabel 4 F'!G50/'Tabel 4F F'!G50*100,"-")) -> 4.489795918 | I50: =IF(OR('Tabel 4F F'!I50<5,'Tabel 4 F'!I50<0.5),"-",IFERROR('Tabel 4 F'!I50/'Tabel 4F F'!I50*100,"-")) -> 6.336489439
A57: Middelfart
C59: Under 30 år | D59: 30 - 39 år | E59: 40 - 49 år | F59: 50 - 59 år | G59: Over 60 år | I59: I alt
A61: Civ. ing. | C61: =IF(OR('Tabel 4F F'!C61<5,'Tabel 4 F'!C61<0.5),"-",IFERROR('Tabel 4 F'!C61/'Tabel 4F F'!C61*100,"-")) -> 5.555555556 | D61: =IF(OR('Tabel 4F F'!D61<5,'Tabel 4 F'!D61<0.5),"-",IFERROR('Tabel 4 F'!D61/'Tabel 4F F'!D61*100,"-")) -> - | E61: =IF(OR('Tabel 4F F'!E61<5,'Tabel 4 F'!E61<0.5),"-",IFERROR('Tabel 4 F'!E61/'Tabel 4F F'!E61*100,"-")) -> - | F61: =IF(OR('Tabel 4F F'!F61<5,'Tabel 4 F'!F61<0.5),"-",IFERROR('Tabel 4 F'!F61/'Tabel 4F F'!F61*100,"-")) -> - | G61: =IF(OR('Tabel 4F F'!G61<5,'Tabel 4 F'!G61<0.5),"-",IFERROR('Tabel 4 F'!G61/'Tabel 4F F'!G61*100,"-")) -> - | I61: =IF(OR('Tabel 4F F'!I61<5,'Tabel 4 F'!I61<0.5),"-",IFERROR('Tabel 4 F'!I61/'Tabel 4F F'!I61*100,"-")) -> 0.8064516129
A62: Diplom ing. | C62: =IF(OR('Tabel 4F F'!C62<5,'Tabel 4 F'!C62<0.5),"-",IFERROR('Tabel 4 F'!C62/'Tabel 4F F'!C62*100,"-")) -> - | D62: =IF(OR('Tabel 4F F'!D62<5,'Tabel 4 F'!D62<0.5),"-",IFERROR('Tabel 4 F'!D62/'Tabel 4F F'!D62*100,"-")) -> - | E62: =IF(OR('Tabel 4F F'!E62<5,'Tabel 4 F'!E62<0.5),"-",IFERROR('Tabel 4 F'!E62/'Tabel 4F F'!E62*100,"-")) -> - | F62: =IF(OR('Tabel 4F F'!F62<5,'Tabel 4 F'!F62<0.5),"-",IFERROR('Tabel 4 F'!F62/'Tabel 4F F'!F62*100,"-")) -> - | G62: =IF(OR('Tabel 4F F'!G62<5,'Tabel 4 F'!G62<0.5),"-",IFERROR('Tabel 4 F'!G62/'Tabel 4F F'!G62*100,"-")) -> 3.921568627 | I62: =IF(OR('Tabel 4F F'!I62<5,'Tabel 4 F'!I62<0.5),"-",IFERROR('Tabel 4 F'!I62/'Tabel 4F F'!I62*100,"-")) -> 0.6557377049
A63: Cand. Scient. Tek | C63: =IF(OR('Tabel 4F F'!C63<5,'Tabel 4 F'!C63<0.5),"-",IFERROR('Tabel 4 F'!C63/'Tabel 4F F'!C63*100,"-")) -> 6.25 | D63: =IF(OR('Tabel 4F F'!D63<5,'Tabel 4 F'!D63<0.5),"-",IFERROR('Tabel 4 F'!D63/'Tabel 4F F'!D63*100,"-")) -> 5.714285714 | E63: =IF(OR('Tabel 4F F'!E63<5,'Tabel 4 F'!E63<0.5),"-",IFERROR('Tabel 4 F'!E63/'Tabel 4F F'!E63*100,"-")) -> - | F63: =IF(OR('Tabel 4F F'!F63<5,'Tabel 4 F'!F63<0.5),"-",IFERROR('Tabel 4 F'!F63/'Tabel 4F F'!F63*100,"-")) -> - | G63: =IF(OR('Tabel 4F F'!G63<5,'Tabel 4 F'!G63<0.5),"-",IFERROR('Tabel 4 F'!G63/'Tabel 4F F'!G63*100,"-")) -> - | I63: =IF(OR('Tabel 4F F'!I63<5,'Tabel 4 F'!I63<0.5),"-",IFERROR('Tabel 4 F'!I63/'Tabel 4F F'!I63*100,"-")) -> 3.797468354
A64: MA. Hum. | C64: =IF(OR('Tabel 4F F'!C64<5,'Tabel 4 F'!C64<0.5),"-",IFERROR('Tabel 4 F'!C64/'Tabel 4F F'!C64*100,"-")) -> 26.66666667 | D64: =IF(OR('Tabel 4F F'!D64<5,'Tabel 4 F'!D64<0.5),"-",IFERROR('Tabel 4 F'!D64/'Tabel 4F F'!D64*100,"-")) -> 6.451612903 | E64: =IF(OR('Tabel 4F F'!E64<5,'Tabel 4 F'!E64<0.5),"-",IFERROR('Tabel 4 F'!E64/'Tabel 4F F'!E64*100,"-")) -> 2.631578947 | F64: =IF(OR('Tabel 4F F'!F64<5,'Tabel 4 F'!F64<0.5),"-",IFERROR('Tabel 4 F'!F64/'Tabel 4F F'!F64*100,"-")) -> 2.857142857 | G64: =IF(OR('Tabel 4F F'!G64<5,'Tabel 4 F'!G64<0.5),"-",IFERROR('Tabel 4 F'!G64/'Tabel 4F F'!G64*100,"-")) -> - | I64: =IF(OR('Tabel 4F F'!I64<5,'Tabel 4 F'!I64<0.5),"-",IFERROR('Tabel 4 F'!I64/'Tabel 4F F'!I64*100,"-")) -> 5.641025641
A65: MA. Nat. | C65: =IF(OR('Tabel 4F F'!C65<5,'Tabel 4 F'!C65<0.5),"-",IFERROR('Tabel 4 F'!C65/'Tabel 4F F'!C65*100,"-")) -> - | D65: =IF(OR('Tabel 4F F'!D65<5,'Tabel 4 F'!D65<0.5),"-",IFERROR('Tabel 4 F'!D65/'Tabel 4F F'!D65*100,"-")) -> - | E65: =IF(OR('Tabel 4F F'!E65<5,'Tabel 4 F'!E65<0.5),"-",IFERROR('Tabel 4 F'!E65/'Tabel 4F F'!E65*100,"-")) -> 4.166666667 | F65: =IF(OR('Tabel 4F F'!F65<5,'Tabel 4 F'!F65<0.5),"-",IFERROR('Tabel 4 F'!F65/'Tabel 4F F'!F65*100,"-")) -> - | G65: =IF(OR('Tabel 4F F'!G65<5,'Tabel 4 F'!G65<0.5),"-",IFERROR('Tabel 4 F'!G65/'Tabel 4F F'!G65*100,"-")) -> 12.5 | I65: =IF(OR('Tabel 4F F'!I65<5,'Tabel 4 F'!I65<0.5),"-",IFERROR('Tabel 4 F'!I65/'Tabel 4F F'!I65*100,"-")) -> 2.564102564
A66: MA. Ph.d. | C66: =IF(OR('Tabel 4F F'!C66<5,'Tabel 4 F'!C66<0.5),"-",IFERROR('Tabel 4 F'!C66/'Tabel 4F F'!C66*100,"-")) -> - | D66: =IF(OR('Tabel 4F F'!D66<5,'Tabel 4 F'!D66<0.5),"-",IFERROR('Tabel 4 F'!D66/'Tabel 4F F'!D66*100,"-")) -> - | E66: =IF(OR('Tabel 4F F'!E66<5,'Tabel 4 F'!E66<0.5),"-",IFERROR('Tabel 4 F'!E66/'Tabel 4F F'!E66*100,"-")) -> - | F66: =IF(OR('Tabel 4F F'!F66<5,'Tabel 4 F'!F66<0.5),"-",IFERROR('Tabel 4 F'!F66/'Tabel 4F F'!F66*100,"-")) -> - | G66: =IF(OR('Tabel 4F F'!G66<5,'Tabel 4 F'!G66<0.5),"-",IFERROR('Tabel 4 F'!G66/'Tabel 4F F'!G66*100,"-")) -> - | I66: =IF(OR('Tabel 4F F'!I66<5,'Tabel 4 F'!I66<0.5),"-",IFERROR('Tabel 4 F'!I66/'Tabel 4F F'!I66*100,"-")) -> -
A67: MA. Samf. | C67: =IF(OR('Tabel 4F F'!C67<5,'Tabel 4 F'!C67<0.5),"-",IFERROR('Tabel 4 F'!C67/'Tabel 4F F'!C67*100,"-")) -> - | D67: =IF(OR('Tabel 4F F'!D67<5,'Tabel 4 F'!D67<0.5),"-",IFERROR('Tabel 4 F'!D67/'Tabel 4F F'!D67*100,"-")) -> - | E67: =IF(OR('Tabel 4F F'!E67<5,'Tabel 4 F'!E67<0.5),"-",IFERROR('Tabel 4 F'!E67/'Tabel 4F F'!E67*100,"-")) -> - | F67: =IF(OR('Tabel 4F F'!F67<5,'Tabel 4 F'!F67<0.5),"-",IFERROR('Tabel 4 F'!F67/'Tabel 4F F'!F67*100,"-")) -> - | G67: =IF(OR('Tabel 4F F'!G67<5,'Tabel 4 F'!G67<0.5),"-",IFERROR('Tabel 4 F'!G67/'Tabel 4F F'!G67*100,"-")) -> - | I67: =IF(OR('Tabel 4F F'!I67<5,'Tabel 4 F'!I67<0.5),"-",IFERROR('Tabel 4 F'!I67/'Tabel 4F F'!I67*100,"-")) -> -
A68: Øvrige Mag. | C68: =IF(OR('Tabel 4F F'!C68<5,'Tabel 4 F'!C68<0.5),"-",IFERROR('Tabel 4 F'!C68/'Tabel 4F F'!C68*100,"-")) -> - | D68: =IF(OR('Tabel 4F F'!D68<5,'Tabel 4 F'!D68<0.5),"-",IFERROR('Tabel 4 F'!D68/'Tabel 4F F'!D68*100,"-")) -> - | E68: =IF(OR('Tabel 4F F'!E68<5,'Tabel 4 F'!E68<0.5),"-",IFERROR('Tabel 4 F'!E68/'Tabel 4F F'!E68*100,"-")) -> - | F68: =IF(OR('Tabel 4F F'!F68<5,'Tabel 4 F'!F68<0.5),"-",IFERROR('Tabel 4 F'!F68/'Tabel 4F F'!F68*100,"-")) -> - | G68: =IF(OR('Tabel 4F F'!G68<5,'Tabel 4 F'!G68<0.5),"-",IFERROR('Tabel 4 F'!G68/'Tabel 4F F'!G68*100,"-")) -> - | I68: =IF(OR('Tabel 4F F'!I68<5,'Tabel 4 F'!I68<0.5),"-",IFERROR('Tabel 4 F'!I68/'Tabel 4F F'!I68*100,"-")) -> -
A69: Agronom | C69: =IF(OR('Tabel 4F F'!C69<5,'Tabel 4 F'!C69<0.5),"-",IFERROR('Tabel 4 F'!C69/'Tabel 4F F'!C69*100,"-")) -> - | D69: =IF(OR('Tabel 4F F'!D69<5,'Tabel 4 F'!D69<0.5),"-",IFERROR('Tabel 4 F'!D69/'Tabel 4F F'!D69*100,"-")) -> - | E69: =IF(OR('Tabel 4F F'!E69<5,'Tabel 4 F'!E69<0.5),"-",IFERROR('Tabel 4 F'!E69/'Tabel 4F F'!E69*100,"-")) -> - | F69: =IF(OR('Tabel 4F F'!F69<5,'Tabel 4 F'!F69<0.5),"-",IFERROR('Tabel 4 F'!F69/'Tabel 4F F'!F69*100,"-")) -> - | G69: =IF(OR('Tabel 4F F'!G69<5,'Tabel 4 F'!G69<0.5),"-",IFERROR('Tabel 4 F'!G69/'Tabel 4F F'!G69*100,"-")) -> - | I69: =IF(OR('Tabel 4F F'!I69<5,'Tabel 4 F'!I69<0.5),"-",IFERROR('Tabel 4 F'!I69/'Tabel 4F F'!I69*100,"-")) -> -
A70: Landsk. Arkt. | C70: =IF(OR('Tabel 4F F'!C70<5,'Tabel 4 F'!C70<0.5),"-",IFERROR('Tabel 4 F'!C70/'Tabel 4F F'!C70*100,"-")) -> - | D70: =IF(OR('Tabel 4F F'!D70<5,'Tabel 4 F'!D70<0.5),"-",IFERROR('Tabel 4 F'!D70/'Tabel 4F F'!D70*100,"-")) -> - | E70: =IF(OR('Tabel 4F F'!E70<5,'Tabel 4 F'!E70<0.5),"-",IFERROR('Tabel 4 F'!E70/'Tabel 4F F'!E70*100,"-")) -> - | F70: =IF(OR('Tabel 4F F'!F70<5,'Tabel 4 F'!F70<0.5),"-",IFERROR('Tabel 4 F'!F70/'Tabel 4F F'!F70*100,"-")) -> - | G70: =IF(OR('Tabel 4F F'!G70<5,'Tabel 4 F'!G70<0.5),"-",IFERROR('Tabel 4 F'!G70/'Tabel 4F F'!G70*100,"-")) -> - | I70: =IF(OR('Tabel 4F F'!I70<5,'Tabel 4 F'!I70<0.5),"-",IFERROR('Tabel 4 F'!I70/'Tabel 4F F'!I70*100,"-")) -> -
A71: Hortonom | C71: =IF(OR('Tabel 4F F'!C71<5,'Tabel 4 F'!C71<0.5),"-",IFERROR('Tabel 4 F'!C71/'Tabel 4F F'!C71*100,"-")) -> - | D71: =IF(OR('Tabel 4F F'!D71<5,'Tabel 4 F'!D71<0.5),"-",IFERROR('Tabel 4 F'!D71/'Tabel 4F F'!D71*100,"-")) -> - | E71: =IF(OR('Tabel 4F F'!E71<5,'Tabel 4 F'!E71<0.5),"-",IFERROR('Tabel 4 F'!E71/'Tabel 4F F'!E71*100,"-")) -> - | F71: =IF(OR('Tabel 4F F'!F71<5,'Tabel 4 F'!F71<0.5),"-",IFERROR('Tabel 4 F'!F71/'Tabel 4F F'!F71*100,"-")) -> - | G71: =IF(OR('Tabel 4F F'!G71<5,'Tabel 4 F'!G71<0.5),"-",IFERROR('Tabel 4 F'!G71/'Tabel 4F F'!G71*100,"-")) -> - | I71: =IF(OR('Tabel 4F F'!I71<5,'Tabel 4 F'!I71<0.5),"-",IFERROR('Tabel 4 F'!I71/'Tabel 4F F'!I71*100,"-")) -> -
A72: Forstkand. | C72: =IF(OR('Tabel 4F F'!C72<5,'Tabel 4 F'!C72<0.5),"-",IFERROR('Tabel 4 F'!C72/'Tabel 4F F'!C72*100,"-")) -> - | D72: =IF(OR('Tabel 4F F'!D72<5,'Tabel 4 F'!D72<0.5),"-",IFERROR('Tabel 4 F'!D72/'Tabel 4F F'!D72*100,"-")) -> - | E72: =IF(OR('Tabel 4F F'!E72<5,'Tabel 4 F'!E72<0.5),"-",IFERROR('Tabel 4 F'!E72/'Tabel 4F F'!E72*100,"-")) -> - | F72: =IF(OR('Tabel 4F F'!F72<5,'Tabel 4 F'!F72<0.5),"-",IFERROR('Tabel 4 F'!F72/'Tabel 4F F'!F72*100,"-")) -> - | G72: =IF(OR('Tabel 4F F'!G72<5,'Tabel 4 F'!G72<0.5),"-",IFERROR('Tabel 4 F'!G72/'Tabel 4F F'!G72*100,"-")) -> - | I72: =IF(OR('Tabel 4F F'!I72<5,'Tabel 4 F'!I72<0.5),"-",IFERROR('Tabel 4 F'!I72/'Tabel 4F F'!I72*100,"-")) -> -
A73: Jordbrugsakad. | C73: =IF(OR('Tabel 4F F'!C73<5,'Tabel 4 F'!C73<0.5),"-",IFERROR('Tabel 4 F'!C73/'Tabel 4F F'!C73*100,"-")) -> - | D73: =IF(OR('Tabel 4F F'!D73<5,'Tabel 4 F'!D73<0.5),"-",IFERROR('Tabel 4 F'!D73/'Tabel 4F F'!D73*100,"-")) -> - | E73: =IF(OR('Tabel 4F F'!E73<5,'Tabel 4 F'!E73<0.5),"-",IFERROR('Tabel 4 F'!E73/'Tabel 4F F'!E73*100,"-")) -> - | F73: =IF(OR('Tabel 4F F'!F73<5,'Tabel 4 F'!F73<0.5),"-",IFERROR('Tabel 4 F'!F73/'Tabel 4F F'!F73*100,"-")) -> - | G73: =IF(OR('Tabel 4F F'!G73<5,'Tabel 4 F'!G73<0.5),"-",IFERROR('Tabel 4 F'!G73/'Tabel 4F F'!G73*100,"-")) -> - | I73: =IF(OR('Tabel 4F F'!I73<5,'Tabel 4 F'!I73<0.5),"-",IFERROR('Tabel 4 F'!I73/'Tabel 4F F'!I73*100,"-")) -> -
A74: Mejeriing. | C74: =IF(OR('Tabel 4F F'!C74<5,'Tabel 4 F'!C74<0.5),"-",IFERROR('Tabel 4 F'!C74/'Tabel 4F F'!C74*100,"-")) -> - | D74: =IF(OR('Tabel 4F F'!D74<5,'Tabel 4 F'!D74<0.5),"-",IFERROR('Tabel 4 F'!D74/'Tabel 4F F'!D74*100,"-")) -> - | E74: =IF(OR('Tabel 4F F'!E74<5,'Tabel 4 F'!E74<0.5),"-",IFERROR('Tabel 4 F'!E74/'Tabel 4F F'!E74*100,"-")) -> - | F74: =IF(OR('Tabel 4F F'!F74<5,'Tabel 4 F'!F74<0.5),"-",IFERROR('Tabel 4 F'!F74/'Tabel 4F F'!F74*100,"-")) -> - | G74: =IF(OR('Tabel 4F F'!G74<5,'Tabel 4 F'!G74<0.5),"-",IFERROR('Tabel 4 F'!G74/'Tabel 4F F'!G74*100,"-")) -> - | I74: =IF(OR('Tabel 4F F'!I74<5,'Tabel 4 F'!I74<0.5),"-",IFERROR('Tabel 4 F'!I74/'Tabel 4F F'!I74*100,"-")) -> -
A75: Levn.m.kand. | C75: =IF(OR('Tabel 4F F'!C75<5,'Tabel 4 F'!C75<0.5),"-",IFERROR('Tabel 4 F'!C75/'Tabel 4F F'!C75*100,"-")) -> - | D75: =IF(OR('Tabel 4F F'!D75<5,'Tabel 4 F'!D75<0.5),"-",IFERROR('Tabel 4 F'!D75/'Tabel 4F F'!D75*100,"-")) -> - | E75: =IF(OR('Tabel 4F F'!E75<5,'Tabel 4 F'!E75<0.5),"-",IFERROR('Tabel 4 F'!E75/'Tabel 4F F'!E75*100,"-")) -> - | F75: =IF(OR('Tabel 4F F'!F75<5,'Tabel 4 F'!F75<0.5),"-",IFERROR('Tabel 4 F'!F75/'Tabel 4F F'!F75*100,"-")) -> - | G75: =IF(OR('Tabel 4F F'!G75<5,'Tabel 4 F'!G75<0.5),"-",IFERROR('Tabel 4 F'!G75/'Tabel 4F F'!G75*100,"-")) -> - | I75: =IF(OR('Tabel 4F F'!I75<5,'Tabel 4 F'!I75<0.5),"-",IFERROR('Tabel 4 F'!I75/'Tabel 4F F'!I75*100,"-")) -> -
A76: Dyrlæge | C76: =IF(OR('Tabel 4F F'!C76<5,'Tabel 4 F'!C76<0.5),"-",IFERROR('Tabel 4 F'!C76/'Tabel 4F F'!C76*100,"-")) -> - | D76: =IF(OR('Tabel 4F F'!D76<5,'Tabel 4 F'!D76<0.5),"-",IFERROR('Tabel 4 F'!D76/'Tabel 4F F'!D76*100,"-")) -> - | E76: =IF(OR('Tabel 4F F'!E76<5,'Tabel 4 F'!E76<0.5),"-",IFERROR('Tabel 4 F'!E76/'Tabel 4F F'!E76*100,"-")) -> 14.28571429 | F76: =IF(OR('Tabel 4F F'!F76<5,'Tabel 4 F'!F76<0.5),"-",IFERROR('Tabel 4 F'!F76/'Tabel 4F F'!F76*100,"-")) -> - | G76: =IF(OR('Tabel 4F F'!G76<5,'Tabel 4 F'!G76<0.5),"-",IFERROR('Tabel 4 F'!G76/'Tabel 4F F'!G76*100,"-")) -> - | I76: =IF(OR('Tabel 4F F'!I76<5,'Tabel 4 F'!I76<0.5),"-",IFERROR('Tabel 4 F'!I76/'Tabel 4F F'!I76*100,"-")) -> 5.555555556
A77: Farmaceut | C77: =IF(OR('Tabel 4F F'!C77<5,'Tabel 4 F'!C77<0.5),"-",IFERROR('Tabel 4 F'!C77/'Tabel 4F F'!C77*100,"-")) -> - | D77: =IF(OR('Tabel 4F F'!D77<5,'Tabel 4 F'!D77<0.5),"-",IFERROR('Tabel 4 F'!D77/'Tabel 4F F'!D77*100,"-")) -> - | E77: =IF(OR('Tabel 4F F'!E77<5,'Tabel 4 F'!E77<0.5),"-",IFERROR('Tabel 4 F'!E77/'Tabel 4F F'!E77*100,"-")) -> - | F77: =IF(OR('Tabel 4F F'!F77<5,'Tabel 4 F'!F77<0.5),"-",IFERROR('Tabel 4 F'!F77/'Tabel 4F F'!F77*100,"-")) -> - | G77: =IF(OR('Tabel 4F F'!G77<5,'Tabel 4 F'!G77<0.5),"-",IFERROR('Tabel 4 F'!G77/'Tabel 4F F'!G77*100,"-")) -> - | I77: =IF(OR('Tabel 4F F'!I77<5,'Tabel 4 F'!I77<0.5),"-",IFERROR('Tabel 4 F'!I77/'Tabel 4F F'!I77*100,"-")) -> -
A78: Læge | C78: =IF(OR('Tabel 4F F'!C78<5,'Tabel 4 F'!C78<0.5),"-",IFERROR('Tabel 4 F'!C78/'Tabel 4F F'!C78*100,"-")) -> - | D78: =IF(OR('Tabel 4F F'!D78<5,'Tabel 4 F'!D78<0.5),"-",IFERROR('Tabel 4 F'!D78/'Tabel 4F F'!D78*100,"-")) -> - | E78: =IF(OR('Tabel 4F F'!E78<5,'Tabel 4 F'!E78<0.5),"-",IFERROR('Tabel 4 F'!E78/'Tabel 4F F'!E78*100,"-")) -> - | F78: =IF(OR('Tabel 4F F'!F78<5,'Tabel 4 F'!F78<0.5),"-",IFERROR('Tabel 4 F'!F78/'Tabel 4F F'!F78*100,"-")) -> - | G78: =IF(OR('Tabel 4F F'!G78<5,'Tabel 4 F'!G78<0.5),"-",IFERROR('Tabel 4 F'!G78/'Tabel 4F F'!G78*100,"-")) -> - | I78: =IF(OR('Tabel 4F F'!I78<5,'Tabel 4 F'!I78<0.5),"-",IFERROR('Tabel 4 F'!I78/'Tabel 4F F'!I78*100,"-")) -> -
A79: Tandlæge | C79: =IF(OR('Tabel 4F F'!C79<5,'Tabel 4 F'!C79<0.5),"-",IFERROR('Tabel 4 F'!C79/'Tabel 4F F'!C79*100,"-")) -> - | D79: =IF(OR('Tabel 4F F'!D79<5,'Tabel 4 F'!D79<0.5),"-",IFERROR('Tabel 4 F'!D79/'Tabel 4F F'!D79*100,"-")) -> - | E79: =IF(OR('Tabel 4F F'!E79<5,'Tabel 4 F'!E79<0.5),"-",IFERROR('Tabel 4 F'!E79/'Tabel 4F F'!E79*100,"-")) -> - | F79: =IF(OR('Tabel 4F F'!F79<5,'Tabel 4 F'!F79<0.5),"-",IFERROR('Tabel 4 F'!F79/'Tabel 4F F'!F79*100,"-")) -> - | G79: =IF(OR('Tabel 4F F'!G79<5,'Tabel 4 F'!G79<0.5),"-",IFERROR('Tabel 4 F'!G79/'Tabel 4F F'!G79*100,"-")) -> - | I79: =IF(OR('Tabel 4F F'!I79<5,'Tabel 4 F'!I79<0.5),"-",IFERROR('Tabel 4 F'!I79/'Tabel 4F F'!I79*100,"-")) -> -
A80: Arkitekt | C80: =IF(OR('Tabel 4F F'!C80<5,'Tabel 4 F'!C80<0.5),"-",IFERROR('Tabel 4 F'!C80/'Tabel 4F F'!C80*100,"-")) -> - | D80: =IF(OR('Tabel 4F F'!D80<5,'Tabel 4 F'!D80<0.5),"-",IFERROR('Tabel 4 F'!D80/'Tabel 4F F'!D80*100,"-")) -> - | E80: =IF(OR('Tabel 4F F'!E80<5,'Tabel 4 F'!E80<0.5),"-",IFERROR('Tabel 4 F'!E80/'Tabel 4F F'!E80*100,"-")) -> - | F80: =IF(OR('Tabel 4F F'!F80<5,'Tabel 4 F'!F80<0.5),"-",IFERROR('Tabel 4 F'!F80/'Tabel 4F F'!F80*100,"-")) -> 20 | G80: =IF(OR('Tabel 4F F'!G80<5,'Tabel 4 F'!G80<0.5),"-",IFERROR('Tabel 4 F'!G80/'Tabel 4F F'!G80*100,"-")) -> - | I80: =IF(OR('Tabel 4F F'!I80<5,'Tabel 4 F'!I80<0.5),"-",IFERROR('Tabel 4 F'!I80/'Tabel 4F F'!I80*100,"-")) -> 8.333333333
A81: Landinspek. | C81: =IF(OR('Tabel 4F F'!C81<5,'Tabel 4 F'!C81<0.5),"-",IFERROR('Tabel 4 F'!C81/'Tabel 4F F'!C81*100,"-")) -> - | D81: =IF(OR('Tabel 4F F'!D81<5,'Tabel 4 F'!D81<0.5),"-",IFERROR('Tabel 4 F'!D81/'Tabel 4F F'!D81*100,"-")) -> - | E81: =IF(OR('Tabel 4F F'!E81<5,'Tabel 4 F'!E81<0.5),"-",IFERROR('Tabel 4 F'!E81/'Tabel 4F F'!E81*100,"-")) -> - | F81: =IF(OR('Tabel 4F F'!F81<5,'Tabel 4 F'!F81<0.5),"-",IFERROR('Tabel 4 F'!F81/'Tabel 4F F'!F81*100,"-")) -> - | G81: =IF(OR('Tabel 4F F'!G81<5,'Tabel 4 F'!G81<0.5),"-",IFERROR('Tabel 4 F'!G81/'Tabel 4F F'!G81*100,"-")) -> - | I81: =IF(OR('Tabel 4F F'!I81<5,'Tabel 4 F'!I81<0.5),"-",IFERROR('Tabel 4 F'!I81/'Tabel 4F F'!I81*100,"-")) -> -
A82: Bibliotekar | C82: =IF(OR('Tabel 4F F'!C82<5,'Tabel 4 F'!C82<0.5),"-",IFERROR('Tabel 4 F'!C82/'Tabel 4F F'!C82*100,"-")) -> - | D82: =IF(OR('Tabel 4F F'!D82<5,'Tabel 4 F'!D82<0.5),"-",IFERROR('Tabel 4 F'!D82/'Tabel 4F F'!D82*100,"-")) -> - | E82: =IF(OR('Tabel 4F F'!E82<5,'Tabel 4 F'!E82<0.5),"-",IFERROR('Tabel 4 F'!E82/'Tabel 4F F'!E82*100,"-")) -> - | F82: =IF(OR('Tabel 4F F'!F82<5,'Tabel 4 F'!F82<0.5),"-",IFERROR('Tabel 4 F'!F82/'Tabel 4F F'!F82*100,"-")) -> - | G82: =IF(OR('Tabel 4F F'!G82<5,'Tabel 4 F'!G82<0.5),"-",IFERROR('Tabel 4 F'!G82/'Tabel 4F F'!G82*100,"-")) -> - | I82: =IF(OR('Tabel 4F F'!I82<5,'Tabel 4 F'!I82<0.5),"-",IFERROR('Tabel 4 F'!I82/'Tabel 4F F'!I82*100,"-")) -> -
A83: Musikudd. | C83: =IF(OR('Tabel 4F F'!C83<5,'Tabel 4 F'!C83<0.5),"-",IFERROR('Tabel 4 F'!C83/'Tabel 4F F'!C83*100,"-")) -> - | D83: =IF(OR('Tabel 4F F'!D83<5,'Tabel 4 F'!D83<0.5),"-",IFERROR('Tabel 4 F'!D83/'Tabel 4F F'!D83*100,"-")) -> - | E83: =IF(OR('Tabel 4F F'!E83<5,'Tabel 4 F'!E83<0.5),"-",IFERROR('Tabel 4 F'!E83/'Tabel 4F F'!E83*100,"-")) -> - | F83: =IF(OR('Tabel 4F F'!F83<5,'Tabel 4 F'!F83<0.5),"-",IFERROR('Tabel 4 F'!F83/'Tabel 4F F'!F83*100,"-")) -> - | G83: =IF(OR('Tabel 4F F'!G83<5,'Tabel 4 F'!G83<0.5),"-",IFERROR('Tabel 4 F'!G83/'Tabel 4F F'!G83*100,"-")) -> - | I83: =IF(OR('Tabel 4F F'!I83<5,'Tabel 4 F'!I83<0.5),"-",IFERROR('Tabel 4 F'!I83/'Tabel 4F F'!I83*100,"-")) -> -
A84: Teolog | C84: =IF(OR('Tabel 4F F'!C84<5,'Tabel 4 F'!C84<0.5),"-",IFERROR('Tabel 4 F'!C84/'Tabel 4F F'!C84*100,"-")) -> - | D84: =IF(OR('Tabel 4F F'!D84<5,'Tabel 4 F'!D84<0.5),"-",IFERROR('Tabel 4 F'!D84/'Tabel 4F F'!D84*100,"-")) -> - | E84: =IF(OR('Tabel 4F F'!E84<5,'Tabel 4 F'!E84<0.5),"-",IFERROR('Tabel 4 F'!E84/'Tabel 4F F'!E84*100,"-")) -> 20 | F84: =IF(OR('Tabel 4F F'!F84<5,'Tabel 4 F'!F84<0.5),"-",IFERROR('Tabel 4 F'!F84/'Tabel 4F F'!F84*100,"-")) -> - | G84: =IF(OR('Tabel 4F F'!G84<5,'Tabel 4 F'!G84<0.5),"-",IFERROR('Tabel 4 F'!G84/'Tabel 4F F'!G84*100,"-")) -> - | I84: =IF(OR('Tabel 4F F'!I84<5,'Tabel 4 F'!I84<0.5),"-",IFERROR('Tabel 4 F'!I84/'Tabel 4F F'!I84*100,"-")) -> 7.142857143
A85: Psykolog | C85: =IF(OR('Tabel 4F F'!C85<5,'Tabel 4 F'!C85<0.5),"-",IFERROR('Tabel 4 F'!C85/'Tabel 4F F'!C85*100,"-")) -> - | D85: =IF(OR('Tabel 4F F'!D85<5,'Tabel 4 F'!D85<0.5),"-",IFERROR('Tabel 4 F'!D85/'Tabel 4F F'!D85*100,"-")) -> 5 | E85: =IF(OR('Tabel 4F F'!E85<5,'Tabel 4 F'!E85<0.5),"-",IFERROR('Tabel 4 F'!E85/'Tabel 4F F'!E85*100,"-")) -> - | F85: =IF(OR('Tabel 4F F'!F85<5,'Tabel 4 F'!F85<0.5),"-",IFERROR('Tabel 4 F'!F85/'Tabel 4F F'!F85*100,"-")) -> - | G85: =IF(OR('Tabel 4F F'!G85<5,'Tabel 4 F'!G85<0.5),"-",IFERROR('Tabel 4 F'!G85/'Tabel 4F F'!G85*100,"-")) -> - | I85: =IF(OR('Tabel 4F F'!I85<5,'Tabel 4 F'!I85<0.5),"-",IFERROR('Tabel 4 F'!I85/'Tabel 4F F'!I85*100,"-")) -> 1.886792453
A86: Jurist | C86: =IF(OR('Tabel 4F F'!C86<5,'Tabel 4 F'!C86<0.5),"-",IFERROR('Tabel 4 F'!C86/'Tabel 4F F'!C86*100,"-")) -> - | D86: =IF(OR('Tabel 4F F'!D86<5,'Tabel 4 F'!D86<0.5),"-",IFERROR('Tabel 4 F'!D86/'Tabel 4F F'!D86*100,"-")) -> - | E86: =IF(OR('Tabel 4F F'!E86<5,'Tabel 4 F'!E86<0.5),"-",IFERROR('Tabel 4 F'!E86/'Tabel 4F F'!E86*100,"-")) -> - | F86: =IF(OR('Tabel 4F F'!F86<5,'Tabel 4 F'!F86<0.5),"-",IFERROR('Tabel 4 F'!F86/'Tabel 4F F'!F86*100,"-")) -> - | G86: =IF(OR('Tabel 4F F'!G86<5,'Tabel 4 F'!G86<0.5),"-",IFERROR('Tabel 4 F'!G86/'Tabel 4F F'!G86*100,"-")) -> - | I86: =IF(OR('Tabel 4F F'!I86<5,'Tabel 4 F'!I86<0.5),"-",IFERROR('Tabel 4 F'!I86/'Tabel 4F F'!I86*100,"-")) -> -
A87: Økonom | C87: =IF(OR('Tabel 4F F'!C87<5,'Tabel 4 F'!C87<0.5),"-",IFERROR('Tabel 4 F'!C87/'Tabel 4F F'!C87*100,"-")) -> - | D87: =IF(OR('Tabel 4F F'!D87<5,'Tabel 4 F'!D87<0.5),"-",IFERROR('Tabel 4 F'!D87/'Tabel 4F F'!D87*100,"-")) -> - | E87: =IF(OR('Tabel 4F F'!E87<5,'Tabel 4 F'!E87<0.5),"-",IFERROR('Tabel 4 F'!E87/'Tabel 4F F'!E87*100,"-")) -> - | F87: =IF(OR('Tabel 4F F'!F87<5,'Tabel 4 F'!F87<0.5),"-",IFERROR('Tabel 4 F'!F87/'Tabel 4F F'!F87*100,"-")) -> - | G87: =IF(OR('Tabel 4F F'!G87<5,'Tabel 4 F'!G87<0.5),"-",IFERROR('Tabel 4 F'!G87/'Tabel 4F F'!G87*100,"-")) -> - | I87: =IF(OR('Tabel 4F F'!I87<5,'Tabel 4 F'!I87<0.5),"-",IFERROR('Tabel 4 F'!I87/'Tabel 4F F'!I87*100,"-")) -> -
A88: Samf. Adm. | C88: =IF(OR('Tabel 4F F'!C88<5,'Tabel 4 F'!C88<0.5),"-",IFERROR('Tabel 4 F'!C88/'Tabel 4F F'!C88*100,"-")) -> 28.57142857 | D88: =IF(OR('Tabel 4F F'!D88<5,'Tabel 4 F'!D88<0.5),"-",IFERROR('Tabel 4 F'!D88/'Tabel 4F F'!D88*100,"-")) -> - | E88: =IF(OR('Tabel 4F F'!E88<5,'Tabel 4 F'!E88<0.5),"-",IFERROR('Tabel 4 F'!E88/'Tabel 4F F'!E88*100,"-")) -> - | F88: =IF(OR('Tabel 4F F'!F88<5,'Tabel 4 F'!F88<0.5),"-",IFERROR('Tabel 4 F'!F88/'Tabel 4F F'!F88*100,"-")) -> - | G88: =IF(OR('Tabel 4F F'!G88<5,'Tabel 4 F'!G88<0.5),"-",IFERROR('Tabel 4 F'!G88/'Tabel 4F F'!G88*100,"-")) -> - | I88: =IF(OR('Tabel 4F F'!I88<5,'Tabel 4 F'!I88<0.5),"-",IFERROR('Tabel 4 F'!I88/'Tabel 4F F'!I88*100,"-")) -> 1.98019802
A89: Cand. Merc. | C89: =IF(OR('Tabel 4F F'!C89<5,'Tabel 4 F'!C89<0.5),"-",IFERROR('Tabel 4 F'!C89/'Tabel 4F F'!C89*100,"-")) -> 4 | D89: =IF(OR('Tabel 4F F'!D89<5,'Tabel 4 F'!D89<0.5),"-",IFERROR('Tabel 4 F'!D89/'Tabel 4F F'!D89*100,"-")) -> - | E89: =IF(OR('Tabel 4F F'!E89<5,'Tabel 4 F'!E89<0.5),"-",IFERROR('Tabel 4 F'!E89/'Tabel 4F F'!E89*100,"-")) -> - | F89: =IF(OR('Tabel 4F F'!F89<5,'Tabel 4 F'!F89<0.5),"-",IFERROR('Tabel 4 F'!F89/'Tabel 4F F'!F89*100,"-")) -> - | G89: =IF(OR('Tabel 4F F'!G89<5,'Tabel 4 F'!G89<0.5),"-",IFERROR('Tabel 4 F'!G89/'Tabel 4F F'!G89*100,"-")) -> - | I89: =IF(OR('Tabel 4F F'!I89<5,'Tabel 4 F'!I89<0.5),"-",IFERROR('Tabel 4 F'!I89/'Tabel 4F F'!I89*100,"-")) -> 0.5952380952
A90: HA | C90: =IF(OR('Tabel 4F F'!C90<5,'Tabel 4 F'!C90<0.5),"-",IFERROR('Tabel 4 F'!C90/'Tabel 4F F'!C90*100,"-")) -> - | D90: =IF(OR('Tabel 4F F'!D90<5,'Tabel 4 F'!D90<0.5),"-",IFERROR('Tabel 4 F'!D90/'Tabel 4F F'!D90*100,"-")) -> - | E90: =IF(OR('Tabel 4F F'!E90<5,'Tabel 4 F'!E90<0.5),"-",IFERROR('Tabel 4 F'!E90/'Tabel 4F F'!E90*100,"-")) -> - | F90: =IF(OR('Tabel 4F F'!F90<5,'Tabel 4 F'!F90<0.5),"-",IFERROR('Tabel 4 F'!F90/'Tabel 4F F'!F90*100,"-")) -> - | G90: =IF(OR('Tabel 4F F'!G90<5,'Tabel 4 F'!G90<0.5),"-",IFERROR('Tabel 4 F'!G90/'Tabel 4F F'!G90*100,"-")) -> - | I90: =IF(OR('Tabel 4F F'!I90<5,'Tabel 4 F'!I90<0.5),"-",IFERROR('Tabel 4 F'!I90/'Tabel 4F F'!I90*100,"-")) -> -
A91: HD | C91: =IF(OR('Tabel 4F F'!C91<5,'Tabel 4 F'!C91<0.5),"-",IFERROR('Tabel 4 F'!C91/'Tabel 4F F'!C91*100,"-")) -> - | D91: =IF(OR('Tabel 4F F'!D91<5,'Tabel 4 F'!D91<0.5),"-",IFERROR('Tabel 4 F'!D91/'Tabel 4F F'!D91*100,"-")) -> - | E91: =IF(OR('Tabel 4F F'!E91<5,'Tabel 4 F'!E91<0.5),"-",IFERROR('Tabel 4 F'!E91/'Tabel 4F F'!E91*100,"-")) -> - | F91: =IF(OR('Tabel 4F F'!F91<5,'Tabel 4 F'!F91<0.5),"-",IFERROR('Tabel 4 F'!F91/'Tabel 4F F'!F91*100,"-")) -> - | G91: =IF(OR('Tabel 4F F'!G91<5,'Tabel 4 F'!G91<0.5),"-",IFERROR('Tabel 4 F'!G91/'Tabel 4F F'!G91*100,"-")) -> - | I91: =IF(OR('Tabel 4F F'!I91<5,'Tabel 4 F'!I91<0.5),"-",IFERROR('Tabel 4 F'!I91/'Tabel 4F F'!I91*100,"-")) -> -
A92: Komm. og Sprog | C92: =IF(OR('Tabel 4F F'!C92<5,'Tabel 4 F'!C92<0.5),"-",IFERROR('Tabel 4 F'!C92/'Tabel 4F F'!C92*100,"-")) -> - | D92: =IF(OR('Tabel 4F F'!D92<5,'Tabel 4 F'!D92<0.5),"-",IFERROR('Tabel 4 F'!D92/'Tabel 4F F'!D92*100,"-")) -> - | E92: =IF(OR('Tabel 4F F'!E92<5,'Tabel 4 F'!E92<0.5),"-",IFERROR('Tabel 4 F'!E92/'Tabel 4F F'!E92*100,"-")) -> - | F92: =IF(OR('Tabel 4F F'!F92<5,'Tabel 4 F'!F92<0.5),"-",IFERROR('Tabel 4 F'!F92/'Tabel 4F F'!F92*100,"-")) -> - | G92: =IF(OR('Tabel 4F F'!G92<5,'Tabel 4 F'!G92<0.5),"-",IFERROR('Tabel 4 F'!G92/'Tabel 4F F'!G92*100,"-")) -> - | I92: =IF(OR('Tabel 4F F'!I92<5,'Tabel 4 F'!I92<0.5),"-",IFERROR('Tabel 4 F'!I92/'Tabel 4F F'!I92*100,"-")) -> -
A93: Bygningskonst. | C93: =IF(OR('Tabel 4F F'!C93<5,'Tabel 4 F'!C93<0.5),"-",IFERROR('Tabel 4 F'!C93/'Tabel 4F F'!C93*100,"-")) -> - | D93: =IF(OR('Tabel 4F F'!D93<5,'Tabel 4 F'!D93<0.5),"-",IFERROR('Tabel 4 F'!D93/'Tabel 4F F'!D93*100,"-")) -> 2.127659574 | E93: =IF(OR('Tabel 4F F'!E93<5,'Tabel 4 F'!E93<0.5),"-",IFERROR('Tabel 4 F'!E93/'Tabel 4F F'!E93*100,"-")) -> - | F93: =IF(OR('Tabel 4F F'!F93<5,'Tabel 4 F'!F93<0.5),"-",IFERROR('Tabel 4 F'!F93/'Tabel 4F F'!F93*100,"-")) -> - | G93: =IF(OR('Tabel 4F F'!G93<5,'Tabel 4 F'!G93<0.5),"-",IFERROR('Tabel 4 F'!G93/'Tabel 4F F'!G93*100,"-")) -> - | I93: =IF(OR('Tabel 4F F'!I93<5,'Tabel 4 F'!I93<0.5),"-",IFERROR('Tabel 4 F'!I93/'Tabel 4F F'!I93*100,"-")) -> 1.041666667
A94: Cand. IT. | C94: =IF(OR('Tabel 4F F'!C94<5,'Tabel 4 F'!C94<0.5),"-",IFERROR('Tabel 4 F'!C94/'Tabel 4F F'!C94*100,"-")) -> - | D94: =IF(OR('Tabel 4F F'!D94<5,'Tabel 4 F'!D94<0.5),"-",IFERROR('Tabel 4 F'!D94/'Tabel 4F F'!D94*100,"-")) -> 12.5 | E94: =IF(OR('Tabel 4F F'!E94<5,'Tabel 4 F'!E94<0.5),"-",IFERROR('Tabel 4 F'!E94/'Tabel 4F F'!E94*100,"-")) -> - | F94: =IF(OR('Tabel 4F F'!F94<5,'Tabel 4 F'!F94<0.5),"-",IFERROR('Tabel 4 F'!F94/'Tabel 4F F'!F94*100,"-")) -> - | G94: =IF(OR('Tabel 4F F'!G94<5,'Tabel 4 F'!G94<0.5),"-",IFERROR('Tabel 4 F'!G94/'Tabel 4F F'!G94*100,"-")) -> - | I94: =IF(OR('Tabel 4F F'!I94<5,'Tabel 4 F'!I94<0.5),"-",IFERROR('Tabel 4 F'!I94/'Tabel 4F F'!I94*100,"-")) -> 7.692307692
A95: Bac. Samf. | C95: =IF(OR('Tabel 4F F'!C95<5,'Tabel 4 F'!C95<0.5),"-",IFERROR('Tabel 4 F'!C95/'Tabel 4F F'!C95*100,"-")) -> - | D95: =IF(OR('Tabel 4F F'!D95<5,'Tabel 4 F'!D95<0.5),"-",IFERROR('Tabel 4 F'!D95/'Tabel 4F F'!D95*100,"-")) -> - | E95: =IF(OR('Tabel 4F F'!E95<5,'Tabel 4 F'!E95<0.5),"-",IFERROR('Tabel 4 F'!E95/'Tabel 4F F'!E95*100,"-")) -> - | F95: =IF(OR('Tabel 4F F'!F95<5,'Tabel 4 F'!F95<0.5),"-",IFERROR('Tabel 4 F'!F95/'Tabel 4F F'!F95*100,"-")) -> - | G95: =IF(OR('Tabel 4F F'!G95<5,'Tabel 4 F'!G95<0.5),"-",IFERROR('Tabel 4 F'!G95/'Tabel 4F F'!G95*100,"-")) -> - | I95: =IF(OR('Tabel 4F F'!I95<5,'Tabel 4 F'!I95<0.5),"-",IFERROR('Tabel 4 F'!I95/'Tabel 4F F'!I95*100,"-")) -> 16.66666667
A96: Bac. Hum. | C96: =IF(OR('Tabel 4F F'!C96<5,'Tabel 4 F'!C96<0.5),"-",IFERROR('Tabel 4 F'!C96/'Tabel 4F F'!C96*100,"-")) -> 14.28571429 | D96: =IF(OR('Tabel 4F F'!D96<5,'Tabel 4 F'!D96<0.5),"-",IFERROR('Tabel 4 F'!D96/'Tabel 4F F'!D96*100,"-")) -> 33.33333333 | E96: =IF(OR('Tabel 4F F'!E96<5,'Tabel 4 F'!E96<0.5),"-",IFERROR('Tabel 4 F'!E96/'Tabel 4F F'!E96*100,"-")) -> - | F96: =IF(OR('Tabel 4F F'!F96<5,'Tabel 4 F'!F96<0.5),"-",IFERROR('Tabel 4 F'!F96/'Tabel 4F F'!F96*100,"-")) -> - | G96: =IF(OR('Tabel 4F F'!G96<5,'Tabel 4 F'!G96<0.5),"-",IFERROR('Tabel 4 F'!G96/'Tabel 4F F'!G96*100,"-")) -> - | I96: =IF(OR('Tabel 4F F'!I96<5,'Tabel 4 F'!I96<0.5),"-",IFERROR('Tabel 4 F'!I96/'Tabel 4F F'!I96*100,"-")) -> 15.78947368
A97: Bac. Nat. | C97: =IF(OR('Tabel 4F F'!C97<5,'Tabel 4 F'!C97<0.5),"-",IFERROR('Tabel 4 F'!C97/'Tabel 4F F'!C97*100,"-")) -> - | D97: =IF(OR('Tabel 4F F'!D97<5,'Tabel 4 F'!D97<0.5),"-",IFERROR('Tabel 4 F'!D97/'Tabel 4F F'!D97*100,"-")) -> 11.11111111 | E97: =IF(OR('Tabel 4F F'!E97<5,'Tabel 4 F'!E97<0.5),"-",IFERROR('Tabel 4 F'!E97/'Tabel 4F F'!E97*100,"-")) -> - | F97: =IF(OR('Tabel 4F F'!F97<5,'Tabel 4 F'!F97<0.5),"-",IFERROR('Tabel 4 F'!F97/'Tabel 4F F'!F97*100,"-")) -> - | G97: =IF(OR('Tabel 4F F'!G97<5,'Tabel 4 F'!G97<0.5),"-",IFERROR('Tabel 4 F'!G97/'Tabel 4F F'!G97*100,"-")) -> - | I97: =IF(OR('Tabel 4F F'!I97<5,'Tabel 4 F'!I97<0.5),"-",IFERROR('Tabel 4 F'!I97/'Tabel 4F F'!I97*100,"-")) -> 7.142857143
A98: Andre | C98: =IF(OR('Tabel 4F F'!C98<5,'Tabel 4 F'!C98<0.5),"-",IFERROR('Tabel 4 F'!C98/'Tabel 4F F'!C98*100,"-")) -> 7.692307692 | D98: =IF(OR('Tabel 4F F'!D98<5,'Tabel 4 F'!D98<0.5),"-",IFERROR('Tabel 4 F'!D98/'Tabel 4F F'!D98*100,"-")) -> 3.846153846 | E98: =IF(OR('Tabel 4F F'!E98<5,'Tabel 4 F'!E98<0.5),"-",IFERROR('Tabel 4 F'!E98/'Tabel 4F F'!E98*100,"-")) -> 4 | F98: =IF(OR('Tabel 4F F'!F98<5,'Tabel 4 F'!F98<0.5),"-",IFERROR('Tabel 4 F'!F98/'Tabel 4F F'!F98*100,"-")) -> 5 | G98: =IF(OR('Tabel 4F F'!G98<5,'Tabel 4 F'!G98<0.5),"-",IFERROR('Tabel 4 F'!G98/'Tabel 4F F'!G98*100,"-")) -> - | I98: =IF(OR('Tabel 4F F'!I98<5,'Tabel 4 F'!I98<0.5),"-",IFERROR('Tabel 4 F'!I98/'Tabel 4F F'!I98*100,"-")) -> 4.166666667
A100: Total | C100: =IF(OR('Tabel 4F F'!C100<5,'Tabel 4 F'!C100<0.5),"-",IFERROR('Tabel 4 F'!C100/'Tabel 4F F'!C100*100,"-")) -> 6.432748538 | D100: =IF(OR('Tabel 4F F'!D100<5,'Tabel 4 F'!D100<0.5),"-",IFERROR('Tabel 4 F'!D100/'Tabel 4F F'!D100*100,"-")) -> 2.352941176 | E100: =IF(OR('Tabel 4F F'!E100<5,'Tabel 4 F'!E100<0.5),"-",IFERROR('Tabel 4 F'!E100/'Tabel 4F F'!E100*100,"-")) -> 1.188118812 | F100: =IF(OR('Tabel 4F F'!F100<5,'Tabel 4 F'!F100<0.5),"-",IFERROR('Tabel 4 F'!F100/'Tabel 4F F'!F100*100,"-")) -> 0.7371007371 | G100: =IF(OR('Tabel 4F F'!G100<5,'Tabel 4 F'!G100<0.5),"-",IFERROR('Tabel 4 F'!G100/'Tabel 4F F'!G100*100,"-")) -> 2.614379085 | I100: =IF(OR('Tabel 4F F'!I100<5,'Tabel 4 F'!I100<0.5),"-",IFERROR('Tabel 4 F'!I100/'Tabel 4F F'!I100*100,"-")) -> 2.075368651
A102: Ingeniører i alt | C102: =IF(OR('Tabel 4F F'!C102<5,'Tabel 4 F'!C102<0.5),"-",IFERROR('Tabel 4 F'!C102/'Tabel 4F F'!C102*100,"-")) -> 2.857142857 | D102: =IF(OR('Tabel 4F F'!D102<5,'Tabel 4 F'!D102<0.5),"-",IFERROR('Tabel 4 F'!D102/'Tabel 4F F'!D102*100,"-")) -> - | E102: =IF(OR('Tabel 4F F'!E102<5,'Tabel 4 F'!E102<0.5),"-",IFERROR('Tabel 4 F'!E102/'Tabel 4F F'!E102*100,"-")) -> - | F102: =IF(OR('Tabel 4F F'!F102<5,'Tabel 4 F'!F102<0.5),"-",IFERROR('Tabel 4 F'!F102/'Tabel 4F F'!F102*100,"-")) -> - | G102: =IF(OR('Tabel 4F F'!G102<5,'Tabel 4 F'!G102<0.5),"-",IFERROR('Tabel 4 F'!G102/'Tabel 4F F'!G102*100,"-")) -> 3.50877193 | I102: =IF(OR('Tabel 4F F'!I102<5,'Tabel 4 F'!I102<0.5),"-",IFERROR('Tabel 4 F'!I102/'Tabel 4F F'!I102*100,"-")) -> 0.6993006993
A103: Magistre i alt | C103: =IF(OR('Tabel 4F F'!C103<5,'Tabel 4 F'!C103<0.5),"-",IFERROR('Tabel 4 F'!C103/'Tabel 4F F'!C103*100,"-")) -> 18.18181818 | D103: =IF(OR('Tabel 4F F'!D103<5,'Tabel 4 F'!D103<0.5),"-",IFERROR('Tabel 4 F'!D103/'Tabel 4F F'!D103*100,"-")) -> 4.166666667 | E103: =IF(OR('Tabel 4F F'!E103<5,'Tabel 4 F'!E103<0.5),"-",IFERROR('Tabel 4 F'!E103/'Tabel 4F F'!E103*100,"-")) -> 2.727272727 | F103: =IF(OR('Tabel 4F F'!F103<5,'Tabel 4 F'!F103<0.5),"-",IFERROR('Tabel 4 F'!F103/'Tabel 4F F'!F103*100,"-")) -> 1.612903226 | G103: =IF(OR('Tabel 4F F'!G103<5,'Tabel 4 F'!G103<0.5),"-",IFERROR('Tabel 4 F'!G103/'Tabel 4F F'!G103*100,"-")) -> 5.555555556 | I103: =IF(OR('Tabel 4F F'!I103<5,'Tabel 4 F'!I103<0.5),"-",IFERROR('Tabel 4 F'!I103/'Tabel 4F F'!I103*100,"-")) -> 4.220779221
A104: DJØF'ere i alt | C104: =IF(OR('Tabel 4F F'!C104<5,'Tabel 4 F'!C104<0.5),"-",IFERROR('Tabel 4 F'!C104/'Tabel 4F F'!C104*100,"-")) -> 6.52173913 | D104: =IF(OR('Tabel 4F F'!D104<5,'Tabel 4 F'!D104<0.5),"-",IFERROR('Tabel 4 F'!D104/'Tabel 4F F'!D104*100,"-")) -> - | E104: =IF(OR('Tabel 4F F'!E104<5,'Tabel 4 F'!E104<0.5),"-",IFERROR('Tabel 4 F'!E104/'Tabel 4F F'!E104*100,"-")) -> - | F104: =IF(OR('Tabel 4F F'!F104<5,'Tabel 4 F'!F104<0.5),"-",IFERROR('Tabel 4 F'!F104/'Tabel 4F F'!F104*100,"-")) -> - | G104: =IF(OR('Tabel 4F F'!G104<5,'Tabel 4 F'!G104<0.5),"-",IFERROR('Tabel 4 F'!G104/'Tabel 4F F'!G104*100,"-")) -> - | I104: =IF(OR('Tabel 4F F'!I104<5,'Tabel 4 F'!I104<0.5),"-",IFERROR('Tabel 4 F'!I104/'Tabel 4F F'!I104*100,"-")) -> 0.7317073171
A111: Assens
C113: Under 30 år | D113: 30 - 39 år | E113: 40 - 49 år | F113: 50 - 59 år | G113: Over 60 år | I113: I alt
A115: Civ. ing. | C115: =IF(OR('Tabel 4F F'!C115<5,'Tabel 4 F'!C115<0.5),"-",IFERROR('Tabel 4 F'!C115/'Tabel 4F F'!C115*100,"-")) -> 12.5 | D115: =IF(OR('Tabel 4F F'!D115<5,'Tabel 4 F'!D115<0.5),"-",IFERROR('Tabel 4 F'!D115/'Tabel 4F F'!D115*100,"-")) -> - | E115: =IF(OR('Tabel 4F F'!E115<5,'Tabel 4 F'!E115<0.5),"-",IFERROR('Tabel 4 F'!E115/'Tabel 4F F'!E115*100,"-")) -> - | F115: =IF(OR('Tabel 4F F'!F115<5,'Tabel 4 F'!F115<0.5),"-",IFERROR('Tabel 4 F'!F115/'Tabel 4F F'!F115*100,"-")) -> - | G115: =IF(OR('Tabel 4F F'!G115<5,'Tabel 4 F'!G115<0.5),"-",IFERROR('Tabel 4 F'!G115/'Tabel 4F F'!G115*100,"-")) -> - | I115: =IF(OR('Tabel 4F F'!I115<5,'Tabel 4 F'!I115<0.5),"-",IFERROR('Tabel 4 F'!I115/'Tabel 4F F'!I115*100,"-")) -> 1.219512195
A116: Diplom ing. | C116: =IF(OR('Tabel 4F F'!C116<5,'Tabel 4 F'!C116<0.5),"-",IFERROR('Tabel 4 F'!C116/'Tabel 4F F'!C116*100,"-")) -> 7.142857143 | D116: =IF(OR('Tabel 4F F'!D116<5,'Tabel 4 F'!D116<0.5),"-",IFERROR('Tabel 4 F'!D116/'Tabel 4F F'!D116*100,"-")) -> - | E116: =IF(OR('Tabel 4F F'!E116<5,'Tabel 4 F'!E116<0.5),"-",IFERROR('Tabel 4 F'!E116/'Tabel 4F F'!E116*100,"-")) -> 1.666666667 | F116: =IF(OR('Tabel 4F F'!F116<5,'Tabel 4 F'!F116<0.5),"-",IFERROR('Tabel 4 F'!F116/'Tabel 4F F'!F116*100,"-")) -> 1.111111111 | G116: =IF(OR('Tabel 4F F'!G116<5,'Tabel 4 F'!G116<0.5),"-",IFERROR('Tabel 4 F'!G116/'Tabel 4F F'!G116*100,"-")) -> 2.43902439 | I116: =IF(OR('Tabel 4F F'!I116<5,'Tabel 4 F'!I116<0.5),"-",IFERROR('Tabel 4 F'!I116/'Tabel 4F F'!I116*100,"-")) -> 1.593625498
A117: Cand. Scient. Tek | C117: =IF(OR('Tabel 4F F'!C117<5,'Tabel 4 F'!C117<0.5),"-",IFERROR('Tabel 4 F'!C117/'Tabel 4F F'!C117*100,"-")) -> 14.28571429 | D117: =IF(OR('Tabel 4F F'!D117<5,'Tabel 4 F'!D117<0.5),"-",IFERROR('Tabel 4 F'!D117/'Tabel 4F F'!D117*100,"-")) -> 3.846153846 | E117: =IF(OR('Tabel 4F F'!E117<5,'Tabel 4 F'!E117<0.5),"-",IFERROR('Tabel 4 F'!E117/'Tabel 4F F'!E117*100,"-")) -> 11.11111111 | F117: =IF(OR('Tabel 4F F'!F117<5,'Tabel 4 F'!F117<0.5),"-",IFERROR('Tabel 4 F'!F117/'Tabel 4F F'!F117*100,"-")) -> - | G117: =IF(OR('Tabel 4F F'!G117<5,'Tabel 4 F'!G117<0.5),"-",IFERROR('Tabel 4 F'!G117/'Tabel 4F F'!G117*100,"-")) -> - | I117: =IF(OR('Tabel 4F F'!I117<5,'Tabel 4 F'!I117<0.5),"-",IFERROR('Tabel 4 F'!I117/'Tabel 4F F'!I117*100,"-")) -> 6.666666667
A118: MA. Hum. | C118: =IF(OR('Tabel 4F F'!C118<5,'Tabel 4 F'!C118<0.5),"-",IFERROR('Tabel 4 F'!C118/'Tabel 4F F'!C118*100,"-")) -> - | D118: =IF(OR('Tabel 4F F'!D118<5,'Tabel 4 F'!D118<0.5),"-",IFERROR('Tabel 4 F'!D118/'Tabel 4F F'!D118*100,"-")) -> 10.41666667 | E118: =IF(OR('Tabel 4F F'!E118<5,'Tabel 4 F'!E118<0.5),"-",IFERROR('Tabel 4 F'!E118/'Tabel 4F F'!E118*100,"-")) -> 4.411764706 | F118: =IF(OR('Tabel 4F F'!F118<5,'Tabel 4 F'!F118<0.5),"-",IFERROR('Tabel 4 F'!F118/'Tabel 4F F'!F118*100,"-")) -> 7.692307692 | G118: =IF(OR('Tabel 4F F'!G118<5,'Tabel 4 F'!G118<0.5),"-",IFERROR('Tabel 4 F'!G118/'Tabel 4F F'!G118*100,"-")) -> - | I118: =IF(OR('Tabel 4F F'!I118<5,'Tabel 4 F'!I118<0.5),"-",IFERROR('Tabel 4 F'!I118/'Tabel 4F F'!I118*100,"-")) -> 6.134969325
A119: MA. Nat. | C119: =IF(OR('Tabel 4F F'!C119<5,'Tabel 4 F'!C119<0.5),"-",IFERROR('Tabel 4 F'!C119/'Tabel 4F F'!C119*100,"-")) -> - | D119: =IF(OR('Tabel 4F F'!D119<5,'Tabel 4 F'!D119<0.5),"-",IFERROR('Tabel 4 F'!D119/'Tabel 4F F'!D119*100,"-")) -> - | E119: =IF(OR('Tabel 4F F'!E119<5,'Tabel 4 F'!E119<0.5),"-",IFERROR('Tabel 4 F'!E119/'Tabel 4F F'!E119*100,"-")) -> 9.523809524 | F119: =IF(OR('Tabel 4F F'!F119<5,'Tabel 4 F'!F119<0.5),"-",IFERROR('Tabel 4 F'!F119/'Tabel 4F F'!F119*100,"-")) -> - | G119: =IF(OR('Tabel 4F F'!G119<5,'Tabel 4 F'!G119<0.5),"-",IFERROR('Tabel 4 F'!G119/'Tabel 4F F'!G119*100,"-")) -> - | I119: =IF(OR('Tabel 4F F'!I119<5,'Tabel 4 F'!I119<0.5),"-",IFERROR('Tabel 4 F'!I119/'Tabel 4F F'!I119*100,"-")) -> 3.448275862
A120: MA. Ph.d. | C120: =IF(OR('Tabel 4F F'!C120<5,'Tabel 4 F'!C120<0.5),"-",IFERROR('Tabel 4 F'!C120/'Tabel 4F F'!C120*100,"-")) -> - | D120: =IF(OR('Tabel 4F F'!D120<5,'Tabel 4 F'!D120<0.5),"-",IFERROR('Tabel 4 F'!D120/'Tabel 4F F'!D120*100,"-")) -> - | E120: =IF(OR('Tabel 4F F'!E120<5,'Tabel 4 F'!E120<0.5),"-",IFERROR('Tabel 4 F'!E120/'Tabel 4F F'!E120*100,"-")) -> - | F120: =IF(OR('Tabel 4F F'!F120<5,'Tabel 4 F'!F120<0.5),"-",IFERROR('Tabel 4 F'!F120/'Tabel 4F F'!F120*100,"-")) -> - | G120: =IF(OR('Tabel 4F F'!G120<5,'Tabel 4 F'!G120<0.5),"-",IFERROR('Tabel 4 F'!G120/'Tabel 4F F'!G120*100,"-")) -> - | I120: =IF(OR('Tabel 4F F'!I120<5,'Tabel 4 F'!I120<0.5),"-",IFERROR('Tabel 4 F'!I120/'Tabel 4F F'!I120*100,"-")) -> -
A121: MA. Samf. | C121: =IF(OR('Tabel 4F F'!C121<5,'Tabel 4 F'!C121<0.5),"-",IFERROR('Tabel 4 F'!C121/'Tabel 4F F'!C121*100,"-")) -> - | D121: =IF(OR('Tabel 4F F'!D121<5,'Tabel 4 F'!D121<0.5),"-",IFERROR('Tabel 4 F'!D121/'Tabel 4F F'!D121*100,"-")) -> - | E121: =IF(OR('Tabel 4F F'!E121<5,'Tabel 4 F'!E121<0.5),"-",IFERROR('Tabel 4 F'!E121/'Tabel 4F F'!E121*100,"-")) -> - | F121: =IF(OR('Tabel 4F F'!F121<5,'Tabel 4 F'!F121<0.5),"-",IFERROR('Tabel 4 F'!F121/'Tabel 4F F'!F121*100,"-")) -> - | G121: =IF(OR('Tabel 4F F'!G121<5,'Tabel 4 F'!G121<0.5),"-",IFERROR('Tabel 4 F'!G121/'Tabel 4F F'!G121*100,"-")) -> - | I121: =IF(OR('Tabel 4F F'!I121<5,'Tabel 4 F'!I121<0.5),"-",IFERROR('Tabel 4 F'!I121/'Tabel 4F F'!I121*100,"-")) -> 25
A122: Øvrige Mag. | C122: =IF(OR('Tabel 4F F'!C122<5,'Tabel 4 F'!C122<0.5),"-",IFERROR('Tabel 4 F'!C122/'Tabel 4F F'!C122*100,"-")) -> - | D122: =IF(OR('Tabel 4F F'!D122<5,'Tabel 4 F'!D122<0.5),"-",IFERROR('Tabel 4 F'!D122/'Tabel 4F F'!D122*100,"-")) -> - | E122: =IF(OR('Tabel 4F F'!E122<5,'Tabel 4 F'!E122<0.5),"-",IFERROR('Tabel 4 F'!E122/'Tabel 4F F'!E122*100,"-")) -> - | F122: =IF(OR('Tabel 4F F'!F122<5,'Tabel 4 F'!F122<0.5),"-",IFERROR('Tabel 4 F'!F122/'Tabel 4F F'!F122*100,"-")) -> - | G122: =IF(OR('Tabel 4F F'!G122<5,'Tabel 4 F'!G122<0.5),"-",IFERROR('Tabel 4 F'!G122/'Tabel 4F F'!G122*100,"-")) -> - | I122: =IF(OR('Tabel 4F F'!I122<5,'Tabel 4 F'!I122<0.5),"-",IFERROR('Tabel 4 F'!I122/'Tabel 4F F'!I122*100,"-")) -> -
A123: Agronom | C123: =IF(OR('Tabel 4F F'!C123<5,'Tabel 4 F'!C123<0.5),"-",IFERROR('Tabel 4 F'!C123/'Tabel 4F F'!C123*100,"-")) -> - | D123: =IF(OR('Tabel 4F F'!D123<5,'Tabel 4 F'!D123<0.5),"-",IFERROR('Tabel 4 F'!D123/'Tabel 4F F'!D123*100,"-")) -> - | E123: =IF(OR('Tabel 4F F'!E123<5,'Tabel 4 F'!E123<0.5),"-",IFERROR('Tabel 4 F'!E123/'Tabel 4F F'!E123*100,"-")) -> - | F123: =IF(OR('Tabel 4F F'!F123<5,'Tabel 4 F'!F123<0.5),"-",IFERROR('Tabel 4 F'!F123/'Tabel 4F F'!F123*100,"-")) -> - | G123: =IF(OR('Tabel 4F F'!G123<5,'Tabel 4 F'!G123<0.5),"-",IFERROR('Tabel 4 F'!G123/'Tabel 4F F'!G123*100,"-")) -> - | I123: =IF(OR('Tabel 4F F'!I123<5,'Tabel 4 F'!I123<0.5),"-",IFERROR('Tabel 4 F'!I123/'Tabel 4F F'!I123*100,"-")) -> -
A124: Landsk. Arkt. | C124: =IF(OR('Tabel 4F F'!C124<5,'Tabel 4 F'!C124<0.5),"-",IFERROR('Tabel 4 F'!C124/'Tabel 4F F'!C124*100,"-")) -> - | D124: =IF(OR('Tabel 4F F'!D124<5,'Tabel 4 F'!D124<0.5),"-",IFERROR('Tabel 4 F'!D124/'Tabel 4F F'!D124*100,"-")) -> - | E124: =IF(OR('Tabel 4F F'!E124<5,'Tabel 4 F'!E124<0.5),"-",IFERROR('Tabel 4 F'!E124/'Tabel 4F F'!E124*100,"-")) -> - | F124: =IF(OR('Tabel 4F F'!F124<5,'Tabel 4 F'!F124<0.5),"-",IFERROR('Tabel 4 F'!F124/'Tabel 4F F'!F124*100,"-")) -> - | G124: =IF(OR('Tabel 4F F'!G124<5,'Tabel 4 F'!G124<0.5),"-",IFERROR('Tabel 4 F'!G124/'Tabel 4F F'!G124*100,"-")) -> - | I124: =IF(OR('Tabel 4F F'!I124<5,'Tabel 4 F'!I124<0.5),"-",IFERROR('Tabel 4 F'!I124/'Tabel 4F F'!I124*100,"-")) -> -
A125: Hortonom | C125: =IF(OR('Tabel 4F F'!C125<5,'Tabel 4 F'!C125<0.5),"-",IFERROR('Tabel 4 F'!C125/'Tabel 4F F'!C125*100,"-")) -> - | D125: =IF(OR('Tabel 4F F'!D125<5,'Tabel 4 F'!D125<0.5),"-",IFERROR('Tabel 4 F'!D125/'Tabel 4F F'!D125*100,"-")) -> - | E125: =IF(OR('Tabel 4F F'!E125<5,'Tabel 4 F'!E125<0.5),"-",IFERROR('Tabel 4 F'!E125/'Tabel 4F F'!E125*100,"-")) -> - | F125: =IF(OR('Tabel 4F F'!F125<5,'Tabel 4 F'!F125<0.5),"-",IFERROR('Tabel 4 F'!F125/'Tabel 4F F'!F125*100,"-")) -> - | G125: =IF(OR('Tabel 4F F'!G125<5,'Tabel 4 F'!G125<0.5),"-",IFERROR('Tabel 4 F'!G125/'Tabel 4F F'!G125*100,"-")) -> - | I125: =IF(OR('Tabel 4F F'!I125<5,'Tabel 4 F'!I125<0.5),"-",IFERROR('Tabel 4 F'!I125/'Tabel 4F F'!I125*100,"-")) -> -
A126: Forstkand. | C126: =IF(OR('Tabel 4F F'!C126<5,'Tabel 4 F'!C126<0.5),"-",IFERROR('Tabel 4 F'!C126/'Tabel 4F F'!C126*100,"-")) -> - | D126: =IF(OR('Tabel 4F F'!D126<5,'Tabel 4 F'!D126<0.5),"-",IFERROR('Tabel 4 F'!D126/'Tabel 4F F'!D126*100,"-")) -> - | E126: =IF(OR('Tabel 4F F'!E126<5,'Tabel 4 F'!E126<0.5),"-",IFERROR('Tabel 4 F'!E126/'Tabel 4F F'!E126*100,"-")) -> - | F126: =IF(OR('Tabel 4F F'!F126<5,'Tabel 4 F'!F126<0.5),"-",IFERROR('Tabel 4 F'!F126/'Tabel 4F F'!F126*100,"-")) -> - | G126: =IF(OR('Tabel 4F F'!G126<5,'Tabel 4 F'!G126<0.5),"-",IFERROR('Tabel 4 F'!G126/'Tabel 4F F'!G126*100,"-")) -> - | I126: =IF(OR('Tabel 4F F'!I126<5,'Tabel 4 F'!I126<0.5),"-",IFERROR('Tabel 4 F'!I126/'Tabel 4F F'!I126*100,"-")) -> -
A127: Jordbrugsakad. | C127: =IF(OR('Tabel 4F F'!C127<5,'Tabel 4 F'!C127<0.5),"-",IFERROR('Tabel 4 F'!C127/'Tabel 4F F'!C127*100,"-")) -> - | D127: =IF(OR('Tabel 4F F'!D127<5,'Tabel 4 F'!D127<0.5),"-",IFERROR('Tabel 4 F'!D127/'Tabel 4F F'!D127*100,"-")) -> - | E127: =IF(OR('Tabel 4F F'!E127<5,'Tabel 4 F'!E127<0.5),"-",IFERROR('Tabel 4 F'!E127/'Tabel 4F F'!E127*100,"-")) -> - | F127: =IF(OR('Tabel 4F F'!F127<5,'Tabel 4 F'!F127<0.5),"-",IFERROR('Tabel 4 F'!F127/'Tabel 4F F'!F127*100,"-")) -> - | G127: =IF(OR('Tabel 4F F'!G127<5,'Tabel 4 F'!G127<0.5),"-",IFERROR('Tabel 4 F'!G127/'Tabel 4F F'!G127*100,"-")) -> - | I127: =IF(OR('Tabel 4F F'!I127<5,'Tabel 4 F'!I127<0.5),"-",IFERROR('Tabel 4 F'!I127/'Tabel 4F F'!I127*100,"-")) -> -
A128: Mejeriing. | C128: =IF(OR('Tabel 4F F'!C128<5,'Tabel 4 F'!C128<0.5),"-",IFERROR('Tabel 4 F'!C128/'Tabel 4F F'!C128*100,"-")) -> - | D128: =IF(OR('Tabel 4F F'!D128<5,'Tabel 4 F'!D128<0.5),"-",IFERROR('Tabel 4 F'!D128/'Tabel 4F F'!D128*100,"-")) -> - | E128: =IF(OR('Tabel 4F F'!E128<5,'Tabel 4 F'!E128<0.5),"-",IFERROR('Tabel 4 F'!E128/'Tabel 4F F'!E128*100,"-")) -> - | F128: =IF(OR('Tabel 4F F'!F128<5,'Tabel 4 F'!F128<0.5),"-",IFERROR('Tabel 4 F'!F128/'Tabel 4F F'!F128*100,"-")) -> - | G128: =IF(OR('Tabel 4F F'!G128<5,'Tabel 4 F'!G128<0.5),"-",IFERROR('Tabel 4 F'!G128/'Tabel 4F F'!G128*100,"-")) -> - | I128: =IF(OR('Tabel 4F F'!I128<5,'Tabel 4 F'!I128<0.5),"-",IFERROR('Tabel 4 F'!I128/'Tabel 4F F'!I128*100,"-")) -> -
A129: Levn.m.kand. | C129: =IF(OR('Tabel 4F F'!C129<5,'Tabel 4 F'!C129<0.5),"-",IFERROR('Tabel 4 F'!C129/'Tabel 4F F'!C129*100,"-")) -> - | D129: =IF(OR('Tabel 4F F'!D129<5,'Tabel 4 F'!D129<0.5),"-",IFERROR('Tabel 4 F'!D129/'Tabel 4F F'!D129*100,"-")) -> - | E129: =IF(OR('Tabel 4F F'!E129<5,'Tabel 4 F'!E129<0.5),"-",IFERROR('Tabel 4 F'!E129/'Tabel 4F F'!E129*100,"-")) -> - | F129: =IF(OR('Tabel 4F F'!F129<5,'Tabel 4 F'!F129<0.5),"-",IFERROR('Tabel 4 F'!F129/'Tabel 4F F'!F129*100,"-")) -> - | G129: =IF(OR('Tabel 4F F'!G129<5,'Tabel 4 F'!G129<0.5),"-",IFERROR('Tabel 4 F'!G129/'Tabel 4F F'!G129*100,"-")) -> - | I129: =IF(OR('Tabel 4F F'!I129<5,'Tabel 4 F'!I129<0.5),"-",IFERROR('Tabel 4 F'!I129/'Tabel 4F F'!I129*100,"-")) -> -
A130: Dyrlæge | C130: =IF(OR('Tabel 4F F'!C130<5,'Tabel 4 F'!C130<0.5),"-",IFERROR('Tabel 4 F'!C130/'Tabel 4F F'!C130*100,"-")) -> - | D130: =IF(OR('Tabel 4F F'!D130<5,'Tabel 4 F'!D130<0.5),"-",IFERROR('Tabel 4 F'!D130/'Tabel 4F F'!D130*100,"-")) -> - | E130: =IF(OR('Tabel 4F F'!E130<5,'Tabel 4 F'!E130<0.5),"-",IFERROR('Tabel 4 F'!E130/'Tabel 4F F'!E130*100,"-")) -> - | F130: =IF(OR('Tabel 4F F'!F130<5,'Tabel 4 F'!F130<0.5),"-",IFERROR('Tabel 4 F'!F130/'Tabel 4F F'!F130*100,"-")) -> - | G130: =IF(OR('Tabel 4F F'!G130<5,'Tabel 4 F'!G130<0.5),"-",IFERROR('Tabel 4 F'!G130/'Tabel 4F F'!G130*100,"-")) -> - | I130: =IF(OR('Tabel 4F F'!I130<5,'Tabel 4 F'!I130<0.5),"-",IFERROR('Tabel 4 F'!I130/'Tabel 4F F'!I130*100,"-")) -> -
A131: Farmaceut | C131: =IF(OR('Tabel 4F F'!C131<5,'Tabel 4 F'!C131<0.5),"-",IFERROR('Tabel 4 F'!C131/'Tabel 4F F'!C131*100,"-")) -> - | D131: =IF(OR('Tabel 4F F'!D131<5,'Tabel 4 F'!D131<0.5),"-",IFERROR('Tabel 4 F'!D131/'Tabel 4F F'!D131*100,"-")) -> - | E131: =IF(OR('Tabel 4F F'!E131<5,'Tabel 4 F'!E131<0.5),"-",IFERROR('Tabel 4 F'!E131/'Tabel 4F F'!E131*100,"-")) -> - | F131: =IF(OR('Tabel 4F F'!F131<5,'Tabel 4 F'!F131<0.5),"-",IFERROR('Tabel 4 F'!F131/'Tabel 4F F'!F131*100,"-")) -> - | G131: =IF(OR('Tabel 4F F'!G131<5,'Tabel 4 F'!G131<0.5),"-",IFERROR('Tabel 4 F'!G131/'Tabel 4F F'!G131*100,"-")) -> - | I131: =IF(OR('Tabel 4F F'!I131<5,'Tabel 4 F'!I131<0.5),"-",IFERROR('Tabel 4 F'!I131/'Tabel 4F F'!I131*100,"-")) -> -
A132: Læge | C132: =IF(OR('Tabel 4F F'!C132<5,'Tabel 4 F'!C132<0.5),"-",IFERROR('Tabel 4 F'!C132/'Tabel 4F F'!C132*100,"-")) -> - | D132: =IF(OR('Tabel 4F F'!D132<5,'Tabel 4 F'!D132<0.5),"-",IFERROR('Tabel 4 F'!D132/'Tabel 4F F'!D132*100,"-")) -> - | E132: =IF(OR('Tabel 4F F'!E132<5,'Tabel 4 F'!E132<0.5),"-",IFERROR('Tabel 4 F'!E132/'Tabel 4F F'!E132*100,"-")) -> - | F132: =IF(OR('Tabel 4F F'!F132<5,'Tabel 4 F'!F132<0.5),"-",IFERROR('Tabel 4 F'!F132/'Tabel 4F F'!F132*100,"-")) -> - | G132: =IF(OR('Tabel 4F F'!G132<5,'Tabel 4 F'!G132<0.5),"-",IFERROR('Tabel 4 F'!G132/'Tabel 4F F'!G132*100,"-")) -> - | I132: =IF(OR('Tabel 4F F'!I132<5,'Tabel 4 F'!I132<0.5),"-",IFERROR('Tabel 4 F'!I132/'Tabel 4F F'!I132*100,"-")) -> 2.272727273
A133: Tandlæge | C133: =IF(OR('Tabel 4F F'!C133<5,'Tabel 4 F'!C133<0.5),"-",IFERROR('Tabel 4 F'!C133/'Tabel 4F F'!C133*100,"-")) -> - | D133: =IF(OR('Tabel 4F F'!D133<5,'Tabel 4 F'!D133<0.5),"-",IFERROR('Tabel 4 F'!D133/'Tabel 4F F'!D133*100,"-")) -> - | E133: =IF(OR('Tabel 4F F'!E133<5,'Tabel 4 F'!E133<0.5),"-",IFERROR('Tabel 4 F'!E133/'Tabel 4F F'!E133*100,"-")) -> - | F133: =IF(OR('Tabel 4F F'!F133<5,'Tabel 4 F'!F133<0.5),"-",IFERROR('Tabel 4 F'!F133/'Tabel 4F F'!F133*100,"-")) -> - | G133: =IF(OR('Tabel 4F F'!G133<5,'Tabel 4 F'!G133<0.5),"-",IFERROR('Tabel 4 F'!G133/'Tabel 4F F'!G133*100,"-")) -> - | I133: =IF(OR('Tabel 4F F'!I133<5,'Tabel 4 F'!I133<0.5),"-",IFERROR('Tabel 4 F'!I133/'Tabel 4F F'!I133*100,"-")) -> -
A134: Arkitekt | C134: =IF(OR('Tabel 4F F'!C134<5,'Tabel 4 F'!C134<0.5),"-",IFERROR('Tabel 4 F'!C134/'Tabel 4F F'!C134*100,"-")) -> - | D134: =IF(OR('Tabel 4F F'!D134<5,'Tabel 4 F'!D134<0.5),"-",IFERROR('Tabel 4 F'!D134/'Tabel 4F F'!D134*100,"-")) -> - | E134: =IF(OR('Tabel 4F F'!E134<5,'Tabel 4 F'!E134<0.5),"-",IFERROR('Tabel 4 F'!E134/'Tabel 4F F'!E134*100,"-")) -> - | F134: =IF(OR('Tabel 4F F'!F134<5,'Tabel 4 F'!F134<0.5),"-",IFERROR('Tabel 4 F'!F134/'Tabel 4F F'!F134*100,"-")) -> - | G134: =IF(OR('Tabel 4F F'!G134<5,'Tabel 4 F'!G134<0.5),"-",IFERROR('Tabel 4 F'!G134/'Tabel 4F F'!G134*100,"-")) -> - | I134: =IF(OR('Tabel 4F F'!I134<5,'Tabel 4 F'!I134<0.5),"-",IFERROR('Tabel 4 F'!I134/'Tabel 4F F'!I134*100,"-")) -> -
A135: Landinspek. | C135: =IF(OR('Tabel 4F F'!C135<5,'Tabel 4 F'!C135<0.5),"-",IFERROR('Tabel 4 F'!C135/'Tabel 4F F'!C135*100,"-")) -> - | D135: =IF(OR('Tabel 4F F'!D135<5,'Tabel 4 F'!D135<0.5),"-",IFERROR('Tabel 4 F'!D135/'Tabel 4F F'!D135*100,"-")) -> - | E135: =IF(OR('Tabel 4F F'!E135<5,'Tabel 4 F'!E135<0.5),"-",IFERROR('Tabel 4 F'!E135/'Tabel 4F F'!E135*100,"-")) -> - | F135: =IF(OR('Tabel 4F F'!F135<5,'Tabel 4 F'!F135<0.5),"-",IFERROR('Tabel 4 F'!F135/'Tabel 4F F'!F135*100,"-")) -> - | G135: =IF(OR('Tabel 4F F'!G135<5,'Tabel 4 F'!G135<0.5),"-",IFERROR('Tabel 4 F'!G135/'Tabel 4F F'!G135*100,"-")) -> - | I135: =IF(OR('Tabel 4F F'!I135<5,'Tabel 4 F'!I135<0.5),"-",IFERROR('Tabel 4 F'!I135/'Tabel 4F F'!I135*100,"-")) -> -
A136: Bibliotekar | C136: =IF(OR('Tabel 4F F'!C136<5,'Tabel 4 F'!C136<0.5),"-",IFERROR('Tabel 4 F'!C136/'Tabel 4F F'!C136*100,"-")) -> - | D136: =IF(OR('Tabel 4F F'!D136<5,'Tabel 4 F'!D136<0.5),"-",IFERROR('Tabel 4 F'!D136/'Tabel 4F F'!D136*100,"-")) -> - | E136: =IF(OR('Tabel 4F F'!E136<5,'Tabel 4 F'!E136<0.5),"-",IFERROR('Tabel 4 F'!E136/'Tabel 4F F'!E136*100,"-")) -> - | F136: =IF(OR('Tabel 4F F'!F136<5,'Tabel 4 F'!F136<0.5),"-",IFERROR('Tabel 4 F'!F136/'Tabel 4F F'!F136*100,"-")) -> - | G136: =IF(OR('Tabel 4F F'!G136<5,'Tabel 4 F'!G136<0.5),"-",IFERROR('Tabel 4 F'!G136/'Tabel 4F F'!G136*100,"-")) -> - | I136: =IF(OR('Tabel 4F F'!I136<5,'Tabel 4 F'!I136<0.5),"-",IFERROR('Tabel 4 F'!I136/'Tabel 4F F'!I136*100,"-")) -> -
A137: Musikudd. | C137: =IF(OR('Tabel 4F F'!C137<5,'Tabel 4 F'!C137<0.5),"-",IFERROR('Tabel 4 F'!C137/'Tabel 4F F'!C137*100,"-")) -> - | D137: =IF(OR('Tabel 4F F'!D137<5,'Tabel 4 F'!D137<0.5),"-",IFERROR('Tabel 4 F'!D137/'Tabel 4F F'!D137*100,"-")) -> - | E137: =IF(OR('Tabel 4F F'!E137<5,'Tabel 4 F'!E137<0.5),"-",IFERROR('Tabel 4 F'!E137/'Tabel 4F F'!E137*100,"-")) -> - | F137: =IF(OR('Tabel 4F F'!F137<5,'Tabel 4 F'!F137<0.5),"-",IFERROR('Tabel 4 F'!F137/'Tabel 4F F'!F137*100,"-")) -> - | G137: =IF(OR('Tabel 4F F'!G137<5,'Tabel 4 F'!G137<0.5),"-",IFERROR('Tabel 4 F'!G137/'Tabel 4F F'!G137*100,"-")) -> - | I137: =IF(OR('Tabel 4F F'!I137<5,'Tabel 4 F'!I137<0.5),"-",IFERROR('Tabel 4 F'!I137/'Tabel 4F F'!I137*100,"-")) -> -
A138: Teolog | C138: =IF(OR('Tabel 4F F'!C138<5,'Tabel 4 F'!C138<0.5),"-",IFERROR('Tabel 4 F'!C138/'Tabel 4F F'!C138*100,"-")) -> - | D138: =IF(OR('Tabel 4F F'!D138<5,'Tabel 4 F'!D138<0.5),"-",IFERROR('Tabel 4 F'!D138/'Tabel 4F F'!D138*100,"-")) -> - | E138: =IF(OR('Tabel 4F F'!E138<5,'Tabel 4 F'!E138<0.5),"-",IFERROR('Tabel 4 F'!E138/'Tabel 4F F'!E138*100,"-")) -> - | F138: =IF(OR('Tabel 4F F'!F138<5,'Tabel 4 F'!F138<0.5),"-",IFERROR('Tabel 4 F'!F138/'Tabel 4F F'!F138*100,"-")) -> - | G138: =IF(OR('Tabel 4F F'!G138<5,'Tabel 4 F'!G138<0.5),"-",IFERROR('Tabel 4 F'!G138/'Tabel 4F F'!G138*100,"-")) -> - | I138: =IF(OR('Tabel 4F F'!I138<5,'Tabel 4 F'!I138<0.5),"-",IFERROR('Tabel 4 F'!I138/'Tabel 4F F'!I138*100,"-")) -> -
A139: Psykolog | C139: =IF(OR('Tabel 4F F'!C139<5,'Tabel 4 F'!C139<0.5),"-",IFERROR('Tabel 4 F'!C139/'Tabel 4F F'!C139*100,"-")) -> - | D139: =IF(OR('Tabel 4F F'!D139<5,'Tabel 4 F'!D139<0.5),"-",IFERROR('Tabel 4 F'!D139/'Tabel 4F F'!D139*100,"-")) -> 11.11111111 | E139: =IF(OR('Tabel 4F F'!E139<5,'Tabel 4 F'!E139<0.5),"-",IFERROR('Tabel 4 F'!E139/'Tabel 4F F'!E139*100,"-")) -> - | F139: =IF(OR('Tabel 4F F'!F139<5,'Tabel 4 F'!F139<0.5),"-",IFERROR('Tabel 4 F'!F139/'Tabel 4F F'!F139*100,"-")) -> - | G139: =IF(OR('Tabel 4F F'!G139<5,'Tabel 4 F'!G139<0.5),"-",IFERROR('Tabel 4 F'!G139/'Tabel 4F F'!G139*100,"-")) -> - | I139: =IF(OR('Tabel 4F F'!I139<5,'Tabel 4 F'!I139<0.5),"-",IFERROR('Tabel 4 F'!I139/'Tabel 4F F'!I139*100,"-")) -> 3.846153846
A140: Jurist | C140: =IF(OR('Tabel 4F F'!C140<5,'Tabel 4 F'!C140<0.5),"-",IFERROR('Tabel 4 F'!C140/'Tabel 4F F'!C140*100,"-")) -> - | D140: =IF(OR('Tabel 4F F'!D140<5,'Tabel 4 F'!D140<0.5),"-",IFERROR('Tabel 4 F'!D140/'Tabel 4F F'!D140*100,"-")) -> 8.333333333 | E140: =IF(OR('Tabel 4F F'!E140<5,'Tabel 4 F'!E140<0.5),"-",IFERROR('Tabel 4 F'!E140/'Tabel 4F F'!E140*100,"-")) -> 11.11111111 | F140: =IF(OR('Tabel 4F F'!F140<5,'Tabel 4 F'!F140<0.5),"-",IFERROR('Tabel 4 F'!F140/'Tabel 4F F'!F140*100,"-")) -> - | G140: =IF(OR('Tabel 4F F'!G140<5,'Tabel 4 F'!G140<0.5),"-",IFERROR('Tabel 4 F'!G140/'Tabel 4F F'!G140*100,"-")) -> - | I140: =IF(OR('Tabel 4F F'!I140<5,'Tabel 4 F'!I140<0.5),"-",IFERROR('Tabel 4 F'!I140/'Tabel 4F F'!I140*100,"-")) -> 6.666666667
A141: Økonom | C141: =IF(OR('Tabel 4F F'!C141<5,'Tabel 4 F'!C141<0.5),"-",IFERROR('Tabel 4 F'!C141/'Tabel 4F F'!C141*100,"-")) -> - | D141: =IF(OR('Tabel 4F F'!D141<5,'Tabel 4 F'!D141<0.5),"-",IFERROR('Tabel 4 F'!D141/'Tabel 4F F'!D141*100,"-")) -> - | E141: =IF(OR('Tabel 4F F'!E141<5,'Tabel 4 F'!E141<0.5),"-",IFERROR('Tabel 4 F'!E141/'Tabel 4F F'!E141*100,"-")) -> - | F141: =IF(OR('Tabel 4F F'!F141<5,'Tabel 4 F'!F141<0.5),"-",IFERROR('Tabel 4 F'!F141/'Tabel 4F F'!F141*100,"-")) -> - | G141: =IF(OR('Tabel 4F F'!G141<5,'Tabel 4 F'!G141<0.5),"-",IFERROR('Tabel 4 F'!G141/'Tabel 4F F'!G141*100,"-")) -> - | I141: =IF(OR('Tabel 4F F'!I141<5,'Tabel 4 F'!I141<0.5),"-",IFERROR('Tabel 4 F'!I141/'Tabel 4F F'!I141*100,"-")) -> -
A142: Samf. Adm. | C142: =IF(OR('Tabel 4F F'!C142<5,'Tabel 4 F'!C142<0.5),"-",IFERROR('Tabel 4 F'!C142/'Tabel 4F F'!C142*100,"-")) -> 60 | D142: =IF(OR('Tabel 4F F'!D142<5,'Tabel 4 F'!D142<0.5),"-",IFERROR('Tabel 4 F'!D142/'Tabel 4F F'!D142*100,"-")) -> - | E142: =IF(OR('Tabel 4F F'!E142<5,'Tabel 4 F'!E142<0.5),"-",IFERROR('Tabel 4 F'!E142/'Tabel 4F F'!E142*100,"-")) -> - | F142: =IF(OR('Tabel 4F F'!F142<5,'Tabel 4 F'!F142<0.5),"-",IFERROR('Tabel 4 F'!F142/'Tabel 4F F'!F142*100,"-")) -> - | G142: =IF(OR('Tabel 4F F'!G142<5,'Tabel 4 F'!G142<0.5),"-",IFERROR('Tabel 4 F'!G142/'Tabel 4F F'!G142*100,"-")) -> - | I142: =IF(OR('Tabel 4F F'!I142<5,'Tabel 4 F'!I142<0.5),"-",IFERROR('Tabel 4 F'!I142/'Tabel 4F F'!I142*100,"-")) -> 4.166666667
A143: Cand. Merc. | C143: =IF(OR('Tabel 4F F'!C143<5,'Tabel 4 F'!C143<0.5),"-",IFERROR('Tabel 4 F'!C143/'Tabel 4F F'!C143*100,"-")) -> - | D143: =IF(OR('Tabel 4F F'!D143<5,'Tabel 4 F'!D143<0.5),"-",IFERROR('Tabel 4 F'!D143/'Tabel 4F F'!D143*100,"-")) -> 5.555555556 | E143: =IF(OR('Tabel 4F F'!E143<5,'Tabel 4 F'!E143<0.5),"-",IFERROR('Tabel 4 F'!E143/'Tabel 4F F'!E143*100,"-")) -> 5.555555556 | F143: =IF(OR('Tabel 4F F'!F143<5,'Tabel 4 F'!F143<0.5),"-",IFERROR('Tabel 4 F'!F143/'Tabel 4F F'!F143*100,"-")) -> - | G143: =IF(OR('Tabel 4F F'!G143<5,'Tabel 4 F'!G143<0.5),"-",IFERROR('Tabel 4 F'!G143/'Tabel 4F F'!G143*100,"-")) -> - | I143: =IF(OR('Tabel 4F F'!I143<5,'Tabel 4 F'!I143<0.5),"-",IFERROR('Tabel 4 F'!I143/'Tabel 4F F'!I143*100,"-")) -> 2.898550725
A144: HA | C144: =IF(OR('Tabel 4F F'!C144<5,'Tabel 4 F'!C144<0.5),"-",IFERROR('Tabel 4 F'!C144/'Tabel 4F F'!C144*100,"-")) -> - | D144: =IF(OR('Tabel 4F F'!D144<5,'Tabel 4 F'!D144<0.5),"-",IFERROR('Tabel 4 F'!D144/'Tabel 4F F'!D144*100,"-")) -> - | E144: =IF(OR('Tabel 4F F'!E144<5,'Tabel 4 F'!E144<0.5),"-",IFERROR('Tabel 4 F'!E144/'Tabel 4F F'!E144*100,"-")) -> - | F144: =IF(OR('Tabel 4F F'!F144<5,'Tabel 4 F'!F144<0.5),"-",IFERROR('Tabel 4 F'!F144/'Tabel 4F F'!F144*100,"-")) -> - | G144: =IF(OR('Tabel 4F F'!G144<5,'Tabel 4 F'!G144<0.5),"-",IFERROR('Tabel 4 F'!G144/'Tabel 4F F'!G144*100,"-")) -> - | I144: =IF(OR('Tabel 4F F'!I144<5,'Tabel 4 F'!I144<0.5),"-",IFERROR('Tabel 4 F'!I144/'Tabel 4F F'!I144*100,"-")) -> -
A145: HD | C145: =IF(OR('Tabel 4F F'!C145<5,'Tabel 4 F'!C145<0.5),"-",IFERROR('Tabel 4 F'!C145/'Tabel 4F F'!C145*100,"-")) -> - | D145: =IF(OR('Tabel 4F F'!D145<5,'Tabel 4 F'!D145<0.5),"-",IFERROR('Tabel 4 F'!D145/'Tabel 4F F'!D145*100,"-")) -> - | E145: =IF(OR('Tabel 4F F'!E145<5,'Tabel 4 F'!E145<0.5),"-",IFERROR('Tabel 4 F'!E145/'Tabel 4F F'!E145*100,"-")) -> - | F145: =IF(OR('Tabel 4F F'!F145<5,'Tabel 4 F'!F145<0.5),"-",IFERROR('Tabel 4 F'!F145/'Tabel 4F F'!F145*100,"-")) -> - | G145: =IF(OR('Tabel 4F F'!G145<5,'Tabel 4 F'!G145<0.5),"-",IFERROR('Tabel 4 F'!G145/'Tabel 4F F'!G145*100,"-")) -> - | I145: =IF(OR('Tabel 4F F'!I145<5,'Tabel 4 F'!I145<0.5),"-",IFERROR('Tabel 4 F'!I145/'Tabel 4F F'!I145*100,"-")) -> 6.25
A146: Komm. og Sprog | C146: =IF(OR('Tabel 4F F'!C146<5,'Tabel 4 F'!C146<0.5),"-",IFERROR('Tabel 4 F'!C146/'Tabel 4F F'!C146*100,"-")) -> - | D146: =IF(OR('Tabel 4F F'!D146<5,'Tabel 4 F'!D146<0.5),"-",IFERROR('Tabel 4 F'!D146/'Tabel 4F F'!D146*100,"-")) -> - | E146: =IF(OR('Tabel 4F F'!E146<5,'Tabel 4 F'!E146<0.5),"-",IFERROR('Tabel 4 F'!E146/'Tabel 4F F'!E146*100,"-")) -> - | F146: =IF(OR('Tabel 4F F'!F146<5,'Tabel 4 F'!F146<0.5),"-",IFERROR('Tabel 4 F'!F146/'Tabel 4F F'!F146*100,"-")) -> - | G146: =IF(OR('Tabel 4F F'!G146<5,'Tabel 4 F'!G146<0.5),"-",IFERROR('Tabel 4 F'!G146/'Tabel 4F F'!G146*100,"-")) -> - | I146: =IF(OR('Tabel 4F F'!I146<5,'Tabel 4 F'!I146<0.5),"-",IFERROR('Tabel 4 F'!I146/'Tabel 4F F'!I146*100,"-")) -> -
A147: Bygningskonst. | C147: =IF(OR('Tabel 4F F'!C147<5,'Tabel 4 F'!C147<0.5),"-",IFERROR('Tabel 4 F'!C147/'Tabel 4F F'!C147*100,"-")) -> - | D147: =IF(OR('Tabel 4F F'!D147<5,'Tabel 4 F'!D147<0.5),"-",IFERROR('Tabel 4 F'!D147/'Tabel 4F F'!D147*100,"-")) -> - | E147: =IF(OR('Tabel 4F F'!E147<5,'Tabel 4 F'!E147<0.5),"-",IFERROR('Tabel 4 F'!E147/'Tabel 4F F'!E147*100,"-")) -> 4.545454545 | F147: =IF(OR('Tabel 4F F'!F147<5,'Tabel 4 F'!F147<0.5),"-",IFERROR('Tabel 4 F'!F147/'Tabel 4F F'!F147*100,"-")) -> - | G147: =IF(OR('Tabel 4F F'!G147<5,'Tabel 4 F'!G147<0.5),"-",IFERROR('Tabel 4 F'!G147/'Tabel 4F F'!G147*100,"-")) -> - | I147: =IF(OR('Tabel 4F F'!I147<5,'Tabel 4 F'!I147<0.5),"-",IFERROR('Tabel 4 F'!I147/'Tabel 4F F'!I147*100,"-")) -> 1.587301587
A148: Cand. IT. | C148: =IF(OR('Tabel 4F F'!C148<5,'Tabel 4 F'!C148<0.5),"-",IFERROR('Tabel 4 F'!C148/'Tabel 4F F'!C148*100,"-")) -> - | D148: =IF(OR('Tabel 4F F'!D148<5,'Tabel 4 F'!D148<0.5),"-",IFERROR('Tabel 4 F'!D148/'Tabel 4F F'!D148*100,"-")) -> - | E148: =IF(OR('Tabel 4F F'!E148<5,'Tabel 4 F'!E148<0.5),"-",IFERROR('Tabel 4 F'!E148/'Tabel 4F F'!E148*100,"-")) -> - | F148: =IF(OR('Tabel 4F F'!F148<5,'Tabel 4 F'!F148<0.5),"-",IFERROR('Tabel 4 F'!F148/'Tabel 4F F'!F148*100,"-")) -> - | G148: =IF(OR('Tabel 4F F'!G148<5,'Tabel 4 F'!G148<0.5),"-",IFERROR('Tabel 4 F'!G148/'Tabel 4F F'!G148*100,"-")) -> - | I148: =IF(OR('Tabel 4F F'!I148<5,'Tabel 4 F'!I148<0.5),"-",IFERROR('Tabel 4 F'!I148/'Tabel 4F F'!I148*100,"-")) -> -
A149: Bac. Samf. | C149: =IF(OR('Tabel 4F F'!C149<5,'Tabel 4 F'!C149<0.5),"-",IFERROR('Tabel 4 F'!C149/'Tabel 4F F'!C149*100,"-")) -> - | D149: =IF(OR('Tabel 4F F'!D149<5,'Tabel 4 F'!D149<0.5),"-",IFERROR('Tabel 4 F'!D149/'Tabel 4F F'!D149*100,"-")) -> - | E149: =IF(OR('Tabel 4F F'!E149<5,'Tabel 4 F'!E149<0.5),"-",IFERROR('Tabel 4 F'!E149/'Tabel 4F F'!E149*100,"-")) -> - | F149: =IF(OR('Tabel 4F F'!F149<5,'Tabel 4 F'!F149<0.5),"-",IFERROR('Tabel 4 F'!F149/'Tabel 4F F'!F149*100,"-")) -> - | G149: =IF(OR('Tabel 4F F'!G149<5,'Tabel 4 F'!G149<0.5),"-",IFERROR('Tabel 4 F'!G149/'Tabel 4F F'!G149*100,"-")) -> - | I149: =IF(OR('Tabel 4F F'!I149<5,'Tabel 4 F'!I149<0.5),"-",IFERROR('Tabel 4 F'!I149/'Tabel 4F F'!I149*100,"-")) -> -
A150: Bac. Hum. | C150: =IF(OR('Tabel 4F F'!C150<5,'Tabel 4 F'!C150<0.5),"-",IFERROR('Tabel 4 F'!C150/'Tabel 4F F'!C150*100,"-")) -> - | D150: =IF(OR('Tabel 4F F'!D150<5,'Tabel 4 F'!D150<0.5),"-",IFERROR('Tabel 4 F'!D150/'Tabel 4F F'!D150*100,"-")) -> 12.5 | E150: =IF(OR('Tabel 4F F'!E150<5,'Tabel 4 F'!E150<0.5),"-",IFERROR('Tabel 4 F'!E150/'Tabel 4F F'!E150*100,"-")) -> - | F150: =IF(OR('Tabel 4F F'!F150<5,'Tabel 4 F'!F150<0.5),"-",IFERROR('Tabel 4 F'!F150/'Tabel 4F F'!F150*100,"-")) -> - | G150: =IF(OR('Tabel 4F F'!G150<5,'Tabel 4 F'!G150<0.5),"-",IFERROR('Tabel 4 F'!G150/'Tabel 4F F'!G150*100,"-")) -> - | I150: =IF(OR('Tabel 4F F'!I150<5,'Tabel 4 F'!I150<0.5),"-",IFERROR('Tabel 4 F'!I150/'Tabel 4F F'!I150*100,"-")) -> 5.882352941
